Workbook

Sheet Read Me
A2: Read Me Sheet
A4: Solar Powered Irrigation Systems - Manual and Tools
B10: Introduction
A11: SAFEGUARD WATER 01- Water Requirement Tool
A12: This tool serves to calculate the water requirement for crops and livestock according to geographic position and rainfall patterns at the SPIS location
B15: Overview
A17: This tool comprises the following sheets:
B19: 1. Geographic Data | E19: for adding basic site information and enetering rainfall and temperature data
B21: 2. Crop Water Requirement | E21: for selecting a crop and planting period
E22: for automatic calculation of water requirements for a single crop
B24: 3. Livestock Water Requirements | E24: for adding the type and number of livestock head
E25: for automatic calculation of the water requirements for all livestock
B26: Crop Information | E26: Hidden and password protected. Only for experts!
E27: for adjusting and adding crops and their respective water requirements
B28: Calculation Sheet | E28: Hidden and password protected. Only for experts!
B30: This tool is based on the FAO Training Manual no. 3: Irrigation Water Management: Irrigation Water Needs, available at http://www.fao.org/docrep/s2022e/s2022e07.htm
B32: Tips & Tricks
A34: This tool comprises a drop down lists and macros to simplify data entry and results review.
A35: Only enter values into white cells!
B36: None entry cells (coloured cells) are password protected. Password: GIZ
B38: About
B39: Authors: Kilian Blumenthal, Robert Schultz
B40: Version: 1.0 (January 2017)
B41: Published by: Powering Agriculture – An Energy Grand Challenge for Development
E42: Internet: https://poweringag.org
B43: Design/layout:
A44: Download link:
B45: Contact: Robert.Schultz@giz.de
B47: GIZ encourages the use, reproduction and dissemination of material in this information product. Except where otherwise indicated, material may be copied, downloaded and printed for private study, research and teaching purposes, or for use in non-commercial products or services, provided that appropriate acknowledgement of GIZ as the source.
B51: © GIZ 2017

Sheet 1 Geographic Data
A1: SAFEGUARD WATER 01- Water Requirement Tool
A2: Enter basic rainfall and climatic data for you location.
A5: 1 GENERAL GEOGRAPHIC INFORMATION
A8: Country | B8: Namibia | F8: Region | G8: Omaheke
A9: Farm code | B9: Paolo 01 | F9: Date | G9: 2017-01-14
A11: Name of the farm | B11: Paolo farm
A12: Village
A13: Division
A14: District
B16: January | C16: February | D16: March | E16: April | F16: May | G16: June | H16: July | I16: August | J16: September | K16: October | L16: November | M16: December
A17: Mean daily temperature [°C]: | B17: 35 | C17: 35 | D17: 35 | E17: 25 | F17: 25 | G17: 25 | H17: 20 | I17: 25 | J17: 25 | K17: 30 | L17: 30 | M17: 35
A18: Rainfall [mm/month]: | B18: 50 | C18: 150 | D18: 150 | E18: 100 | F18: 50 | G18: 0 | H18: 0 | I18: 0 | J18: 0 | K18: 0 | L18: 0 | M18: 0
B21: Hemisphere: | I21: Notes:
B23: Latitude:
A41: Use to identify exact coordinates of the site: | C41: https://www.google.de/maps

Sheet 2 Crop Water Requirement
A1: SAFEGUARD WATER 01- Water Requirement Tool
A2: Select crop intended for planting at your location, for automatic indication of water requirements
A4: 2 CROP WATER REQUIREMENT
N7: Farm code: | P7: ='1 Geographic Data'!B9 -> Paolo 01
B9: Start of planting : | C9: 2018-06-25
F11: =INDEX('Crop Information'!B8:B59,'Crop Information'!A1) &" [mm/month]" -> Barley/Oats/Wheat [mm/month] | G11: Days | H11: From | I11: To | J11: Crop Factor | M11: Conversion of area
F12: Initial stage: | G12: =INDEX('Crop Information'!W8:W59,'Crop Information'!A1) -> 15 | H12: ='2 Crop Water Requirement'!C9 -> 2018-06-25 | I12: =H12+G12 -> 2018-07-10 | J12: =INDEX('Crop Information'!R8:R59,'Crop Information'!A1) -> 0.35 | M12: 10 | N12: ="acre = " &M12/2.5 & " hectar" -> acre = 4 hectar
B13: Type of crop planted: | F13: Crop development stage: | G13: =INDEX('Crop Information'!X8:X59,'Crop Information'!A1) -> 30 | H13: =I12+1 -> 2018-07-11 | I13: =H13+G13 -> 2018-08-10 | J13: =INDEX('Crop Information'!S8:S59,'Crop Information'!A1) -> 0.75
B14: Crop growing period: | F14: Mid season: | G14: =INDEX('Crop Information'!Y8:Y59,'Crop Information'!A1) -> 65 | H14: =I13+1 -> 2018-08-11 | I14: =H14+G14 -> 2018-10-15 | J14: =INDEX('Crop Information'!T8:T59,'Crop Information'!A1) -> 1.15
B15: (subject to soil fertility) | F15: Late season stage: | G15: =INDEX('Crop Information'!Z8:Z59,'Crop Information'!A1) -> 40 | H15: =I14+1 -> 2018-10-16 | I15: =H15+G15 -> 2018-11-25 | J15: =INDEX('Crop Information'!U8:U59,'Crop Information'!A1) -> 0.45
F16: Total growing days: | G16: =INDEX('Crop Information'!V8:V59,'Crop Information'!A1) -> 150 | Q16: Summer months
Q17: Rainy season
F19: January | G19: February | H19: March | I19: April | J19: May | K19: June | L19: July | M19: August | N19: September | O19: October | P19: November | Q19: December
F20: ='1 Geographic Data'!B17 -> 35 | G20: ='1 Geographic Data'!C17 -> 35 | H20: ='1 Geographic Data'!D17 -> 35 | I20: ='1 Geographic Data'!E17 -> 25 | J20: ='1 Geographic Data'!F17 -> 25 | K20: ='1 Geographic Data'!G17 -> 25 | L20: ='1 Geographic Data'!H17 -> 20 | M20: ='1 Geographic Data'!I17 -> 25 | N20: ='1 Geographic Data'!J17 -> 25 | O20: ='1 Geographic Data'!K17 -> 30 | P20: ='1 Geographic Data'!L17 -> 30 | Q20: ='1 Geographic Data'!M17 -> 35 | R20: ° C
C21: Irrigation Scheme | D21: Efficiency | E21: Area in ha | F21: ='1 Geographic Data'!B18 -> 50 | G21: ='1 Geographic Data'!C18 -> 150 | H21: ='1 Geographic Data'!D18 -> 150 | I21: ='1 Geographic Data'!E18 -> 100 | J21: ='1 Geographic Data'!F18 -> 50 | K21: ='1 Geographic Data'!G18 -> 0 | L21: ='1 Geographic Data'!H18 -> 0 | M21: ='1 Geographic Data'!I18 -> 0 | N21: ='1 Geographic Data'!J18 -> 0 | O21: ='1 Geographic Data'!K18 -> 0 | P21: ='1 Geographic Data'!L18 -> 0 | Q21: ='1 Geographic Data'!M18 -> 0 | R21: mm/month
A22: 1 | B22: ='Calculation Sheet'!AH47 -> Evapotranspiration Barley/Oats/Wheat [mm/month] | C22: Drip | D22: ='Calculation Sheet'!AL103 -> 0.9 | E22: 1 | F22: =E53 -> 0 | G22: 0 | H22: 0 | I22: 0 | J22: 0 | K22: 14.742 | L22: 115.885 | M22: 197.496 | N22: 188.37 | O22: 127.9224 | P22: 49.05 | Q22: 0
A23: 2 | C23: Drip | D23: ='Calculation Sheet'!AL112 -> 0.9
A24: 3 | C24: Drip | D24: ='Calculation Sheet'!AL119 -> 0.9
A25: 4 | C25: Drip | D25: ='Calculation Sheet'!AL126 -> 0.9
A26: 5 | C26: Drip | D26: ='Calculation Sheet'!AL133 -> 0.9
B27: Total irrigation water need per day [m³/day] | F27: ='Calculation Sheet'!AI143 -> 0 | G27: ='Calculation Sheet'!AJ143 -> 0 | H27: ='Calculation Sheet'!AK143 -> 0 | I27: ='Calculation Sheet'!AL143 -> 0 | J27: ='Calculation Sheet'!AM143 -> 0 | K27: ='Calculation Sheet'!AN143 -> 5.4054 | L27: ='Calculation Sheet'!AO143 -> 41.12048387 | M27: ='Calculation Sheet'!AP143 -> 70.07922581 | N27: ='Calculation Sheet'!AQ143 -> 69.069 | O27: ='Calculation Sheet'!AR143 -> 45.39181935 | P27: ='Calculation Sheet'!AS143 -> 17.985 | Q27: ='Calculation Sheet'!AT143 -> 0
E30: Highest daily irrigation water need per day: | I30: =MAX(F27:Q27) -> 70.07922581 | J30: ="m³ in the month of "& INDEX(F19:Q19,MATCH(MAX(F27:Q27),F27:Q27,0)) & "." -> m³ in the month of August.
E50: January | F50: February | G50: March | H50: April | I50: May | J50: June | K50: July | L50: August | M50: September | N50: October | O50: November | P50: December
B51: Daytime hours: | E51: =IF('Calculation Sheet'!$AT$22=1,INDEX('Calculation Sheet'!AH8:AH20,'Calculation Sheet'!$AE$8),INDEX('Calculation Sheet'!AH30:AH42,'Calculation Sheet'!$AE$8)) -> 0.19 | F51: =IF('Calculation Sheet'!$AT$22=1,INDEX('Calculation Sheet'!AI8:AI20,'Calculation Sheet'!$AE$8),INDEX('Calculation Sheet'!AI30:AI42,'Calculation Sheet'!$AE$8)) -> 0.23 | G51: =IF('Calculation Sheet'!$AT$22=1,INDEX('Calculation Sheet'!AJ8:AJ20,'Calculation Sheet'!$AE$8),INDEX('Calculation Sheet'!AJ30:AJ42,'Calculation Sheet'!$AE$8)) -> 0.27 | H51: =IF('Calculation Sheet'!$AT$22=1,INDEX('Calculation Sheet'!AK8:AK20,'Calculation Sheet'!$AE$8),INDEX('Calculation Sheet'!AK30:AK42,'Calculation Sheet'!$AE$8)) -> 0.31 | I51: =IF('Calculation Sheet'!$AT$22=1,INDEX('Calculation Sheet'!AL8:AL20,'Calculation Sheet'!$AE$8),INDEX('Calculation Sheet'!AL30:AL42,'Calculation Sheet'!$AE$8)) -> 0.34 | J51: =IF('Calculation Sheet'!$AT$22=1,INDEX('Calculation Sheet'!AM8:AM20,'Calculation Sheet'!$AE$8),INDEX('Calculation Sheet'!AM30:AM42,'Calculation Sheet'!$AE$8)) -> 0.36 | K51: =IF('Calculation Sheet'!$AT$22=1,INDEX('Calculation Sheet'!AN8:AN20,'Calculation Sheet'!$AE$8),INDEX('Calculation Sheet'!AN30:AN42,'Calculation Sheet'!$AE$8)) -> 0.35 | L51: =IF('Calculation Sheet'!$AT$22=1,INDEX('Calculation Sheet'!AO8:AO20,'Calculation Sheet'!$AE$8),INDEX('Calculation Sheet'!AO30:AO42,'Calculation Sheet'!$AE$8)) -> 0.32 | M51: =IF('Calculation Sheet'!$AT$22=1,INDEX('Calculation Sheet'!AP8:AP20,'Calculation Sheet'!$AE$8),INDEX('Calculation Sheet'!AP30:AP42,'Calculation Sheet'!$AE$8)) -> 0.28 | N51: =IF('Calculation Sheet'!$AT$22=1,INDEX('Calculation Sheet'!AQ8:AQ20,'Calculation Sheet'!$AE$8),INDEX('Calculation Sheet'!AQ30:AQ42,'Calculation Sheet'!$AE$8)) -> 0.24 | O51: =IF('Calculation Sheet'!$AT$22=1,INDEX('Calculation Sheet'!AR8:AR20,'Calculation Sheet'!$AE$8),INDEX('Calculation Sheet'!AR30:AR42,'Calculation Sheet'!$AE$8)) -> 0.2 | P51: =IF('Calculation Sheet'!$AT$22=1,INDEX('Calculation Sheet'!AS8:AS20,'Calculation Sheet'!$AE$8),INDEX('Calculation Sheet'!AS30:AS42,'Calculation Sheet'!$AE$8)) -> 0.18
B52: Reference Evapotranspiration | E52: =E51*(0.46*F20+8) -> 4.579 | F52: 5.543 | G52: 6.507 | H52: 6.045 | I52: 6.63 | J52: 7.02 | K52: 6.02 | L52: 6.24 | M52: 5.46 | N52: 5.232 | O52: 4.36 | P52: 4.338
B53: Crop Evapotranspiration [mm/month] | E53: ='Calculation Sheet'!P6 -> 0 | F53: ='Calculation Sheet'!Q6 -> 0 | G53: ='Calculation Sheet'!R6 -> 0 | H53: ='Calculation Sheet'!S6 -> 0 | I53: ='Calculation Sheet'!T6 -> 0 | J53: ='Calculation Sheet'!U6 -> 14.742 | K53: ='Calculation Sheet'!V6 -> 115.885 | L53: ='Calculation Sheet'!W6 -> 197.496 | M53: ='Calculation Sheet'!X6 -> 188.37 | N53: ='Calculation Sheet'!Y6 -> 127.9224 | O53: ='Calculation Sheet'!Z6 -> 49.05 | P53: ='Calculation Sheet'!AA6 -> 0
B54: Effective rainfall [mm/month]: | E54: =IF(IF(F21>75,(0.8*F21-25),(0.6*F21-10))<0,0,IF(F21>75,(0.8*F21-25),(0.6*F21-10))) -> 20 | F54: 95 | G54: 95 | H54: 55 | I54: 20 | J54: 0 | K54: 0 | L54: 0 | M54: 0 | N54: 0 | O54: 0 | P54: 0
B55: Irrigation Water need [mm/month]: | E55: =IF((E53-E54)<0,0,E53-E54) -> 0 | F55: 0 | G55: 0 | H55: 0 | I55: 0 | J55: 14.742 | K55: 115.885 | L55: 197.496 | M55: 188.37 | N55: 127.9224 | O55: 49.05 | P55: 0

Sheet 3 Livestock Water Requirement
A1: SAFEGUARD WATER 01- Water Requirement Tool
A2: Enter the number of livestock head per month at your location, for automatic indication of water requirements.
A4: 3 LIVESTOCK WATER REQUIREMENT
L7: Farm code: | N7: ='1 Geographic Data'!B9 -> Paolo 01
D10: January | E10: February | F10: March | G10: April | H10: May | I10: June | J10: July | K10: August | L10: September | M10: October | N10: November | O10: December
A11: Mean daily temperature [°C]: | D11: ='1 Geographic Data'!B17 -> 35 | E11: ='1 Geographic Data'!C17 -> 35 | F11: ='1 Geographic Data'!D17 -> 35 | G11: ='1 Geographic Data'!E17 -> 25 | H11: ='1 Geographic Data'!F17 -> 25 | I11: ='1 Geographic Data'!G17 -> 25 | J11: ='1 Geographic Data'!H17 -> 20 | K11: ='1 Geographic Data'!I17 -> 25 | L11: ='1 Geographic Data'!J17 -> 25 | M11: ='1 Geographic Data'!K17 -> 30 | N11: ='1 Geographic Data'!L17 -> 30 | O11: ='1 Geographic Data'!M17 -> 35
A12: Rainfall [mm/month]: | D12: ='1 Geographic Data'!B18 -> 50 | E12: ='1 Geographic Data'!C18 -> 150 | F12: ='1 Geographic Data'!D18 -> 150 | G12: ='1 Geographic Data'!E18 -> 100 | H12: ='1 Geographic Data'!F18 -> 50 | I12: ='1 Geographic Data'!G18 -> 0 | J12: ='1 Geographic Data'!H18 -> 0 | K12: ='1 Geographic Data'!I18 -> 0 | L12: ='1 Geographic Data'!J18 -> 0 | M12: ='1 Geographic Data'!K18 -> 0 | N12: ='1 Geographic Data'!L18 -> 0 | O12: ='1 Geographic Data'!M18 -> 0
A15: Total Water Need per day [m³/day] | D15: =(SUM(D22,D24,D26,D30,D32,D34,D38,D40,D42,D46,D48,D50,D54,D56,D58,D62,D64,D66,D70,D72,D74))/1000 -> 0 | E15: 0 | F15: 0 | G15: 0 | H15: 0 | I15: 0 | J15: 0 | K15: 0 | L15: 0 | M15: 0 | N15: 0 | O15: 0
E17: Highest daily water need: | H17: =MAX(D15:O15) -> 0 | I17: ="m³ from the month of "& INDEX(D10:O10,MATCH(MAX(D15:O15),D15:O15,0)) & "." -> m³ from the month of January.
A20: Alpaka | D20: Total head per month
C21: =T55 -> Alpaca (lactating) | D21: 0 | E21: 0 | F21: 0 | G21: 0 | H21: 0 | I21: 0 | J21: 0 | K21: 0 | L21: 0 | M21: 0 | N21: 0 | O21: 0
C22: Water need | D22: =(IF(D$11<(AVERAGE($D$11:$O$11)),$U$55,$V$55))*D21 -> 0 | E22: 0 | F22: 0 | G22: 0 | H22: 0 | I22: 0 | J22: 0 | K22: 0 | L22: 0 | M22: 0 | N22: 0 | O22: 0
C23: =T56 -> Alpaca (dry, adult) | D23: 0 | E23: 0 | F23: 0 | G23: 0 | H23: 0 | I23: 0 | J23: 0 | K23: 0 | L23: 0 | M23: 0 | N23: 0 | O23: 0
C24: Water need | D24: =(IF(D$11<(AVERAGE($D$11:$O$11)),$U$56,$V$56))*D23 -> 0 | E24: 0 | F24: 0 | G24: 0 | H24: 0 | I24: 0 | J24: 0 | K24: 0 | L24: 0 | M24: 0 | N24: 0 | O24: 0
C25: =T57 -> Alpaca (<12 months) | D25: 0 | E25: 0 | F25: 0 | G25: 0 | H25: 0 | I25: 0 | J25: 0 | K25: 0 | L25: 0 | M25: 0 | N25: 0 | O25: 0
C26: Water need | D26: =(IF(D$11<(AVERAGE($D$11:$O$11)),$U$57,$V$57))*D25 -> 0 | E26: 0 | F26: 0 | G26: 0 | H26: 0 | I26: 0 | J26: 0 | K26: 0 | L26: 0 | M26: 0 | N26: 0 | O26: 0
A28: Cattle | D28: Total head per month
C29: =T58 -> Cattle (lactating) | D29: 0 | E29: 0 | F29: 0 | G29: 0 | H29: 0 | I29: 0 | J29: 0 | K29: 0 | L29: 0 | M29: 0 | N29: 0 | O29: 0
C30: Water need | D30: =(IF(D$11<(AVERAGE($D$11:$O$11)),$U$58,$V$58))*D29 -> 0 | E30: 0 | F30: 0 | G30: 0 | H30: 0 | I30: 0 | J30: 0 | K30: 0 | L30: 0 | M30: 0 | N30: 0 | O30: 0
C31: =T59 -> Cattle (adult, dry) | D31: 0 | E31: 0 | F31: 0 | G31: 0 | H31: 0 | I31: 0 | J31: 0 | K31: 0 | L31: 0 | M31: 0 | N31: 0 | O31: 0
C32: Water need | D32: =(IF(D$11<(AVERAGE($D$11:$O$11)),$U$59,$V$59))*D31 -> 0 | E32: 0 | F32: 0 | G32: 0 | H32: 0 | I32: 0 | J32: 0 | K32: 0 | L32: 0 | M32: 0 | N32: 0 | O32: 0
C33: =T60 -> Cattle (weaner) | D33: 0 | E33: 0 | F33: 0 | G33: 0 | H33: 0 | I33: 0 | J33: 0 | K33: 0 | L33: 0 | M33: 0 | N33: 0 | O33: 0
C34: Water need | D34: =(IF(D$11<(AVERAGE($D$11:$O$11)),$U$60,$V$60))*D33 -> 0 | E34: 0 | F34: 0 | G34: 0 | H34: 0 | I34: 0 | J34: 0 | K34: 0 | L34: 0 | M34: 0 | N34: 0 | O34: 0
A36: Goats | D36: Total head per month
C37: =T61 -> Goats (lactating) | D37: 0 | E37: 0 | F37: 0 | G37: 0 | H37: 0 | I37: 0 | J37: 0 | K37: 0 | L37: 0 | M37: 0 | N37: 0 | O37: 0
C38: Water need | D38: =(IF(D$11<(AVERAGE($D$11:$O$11)),$U$61,$V$61))*D37 -> 0 | E38: 0 | F38: 0 | G38: 0 | H38: 0 | I38: 0 | J38: 0 | K38: 0 | L38: 0 | M38: 0 | N38: 0 | O38: 0
C39: =T62 -> Goats (adult, dry) | D39: 0 | E39: 0 | F39: 0 | G39: 0 | H39: 0 | I39: 0 | J39: 0 | K39: 0 | L39: 0 | M39: 0 | N39: 0 | O39: 0
C40: Water need | D40: =(IF(D$11<(AVERAGE($D$11:$O$11)),$U$62,$V$62))*D39 -> 0 | E40: 0 | F40: 0 | G40: 0 | H40: 0 | I40: 0 | J40: 0 | K40: 0 | L40: 0 | M40: 0 | N40: 0 | O40: 0
C41: =T63 -> Goats (weaner) | D41: 0 | E41: 0 | F41: 0 | G41: 0 | H41: 0 | I41: 0 | J41: 0 | K41: 0 | L41: 0 | M41: 0 | N41: 0 | O41: 0
C42: Water need | D42: =(IF(D$11<(AVERAGE($D$11:$O$11)),$U$63,$V$63))*D41 -> 0 | E42: 0 | F42: 0 | G42: 0 | H42: 0 | I42: 0 | J42: 0 | K42: 0 | L42: 0 | M42: 0 | N42: 0 | O42: 0
A44: Horses | D44: Total head per month
C45: =T64 -> Horses (lactating) | D45: 0 | E45: 0 | F45: 0 | G45: 0 | H45: 0 | I45: 0 | J45: 0 | K45: 0 | L45: 0 | M45: 0 | N45: 0 | O45: 0
C46: Water need | D46: =(IF(D$11<(AVERAGE($D$11:$O$11)),$U$64,$V$64))*D45 -> 0 | E46: 0 | F46: 0 | G46: 0 | H46: 0 | I46: 0 | J46: 0 | K46: 0 | L46: 0 | M46: 0 | N46: 0 | O46: 0
C47: =T65 -> Horses (adult, dry) | D47: 0 | E47: 0 | F47: 0 | G47: 0 | H47: 0 | I47: 0 | J47: 0 | K47: 0 | L47: 0 | M47: 0 | N47: 0 | O47: 0
C48: Water need | D48: =(IF(D$11<(AVERAGE($D$11:$O$11)),$U$65,$V$65))*D47 -> 0 | E48: 0 | F48: 0 | G48: 0 | H48: 0 | I48: 0 | J48: 0 | K48: 0 | L48: 0 | M48: 0 | N48: 0 | O48: 0
C49: =T66 -> Horses (<12 months) | D49: 0 | E49: 0 | F49: 0 | G49: 0 | H49: 0 | I49: 0 | J49: 0 | K49: 0 | L49: 0 | M49: 0 | N49: 0 | O49: 0
C50: Water need | D50: =(IF(D$11<(AVERAGE($D$11:$O$11)),$U$66,$V$66))*D49 -> 0 | E50: 0 | F50: 0 | G50: 0 | H50: 0 | I50: 0 | J50: 0 | K50: 0 | L50: 0 | M50: 0 | N50: 0 | O50: 0 | T50: https://www.agric.wa.gov.au/small-landholders-western-australia/calculating-livestock-water-requirements-small-landholders?page=0%2C1
A52: Sheep | D52: Total head per month
C53: =T67 -> Sheep (lactating) | D53: 0 | E53: 0 | F53: 0 | G53: 0 | H53: 0 | I53: 0 | J53: 0 | K53: 0 | L53: 0 | M53: 0 | N53: 0 | O53: 0
C54: Water need | D54: =(IF(D$11<(AVERAGE($D$11:$O$11)),$U$67,$V$67))*D53 -> 0 | E54: 0 | F54: 0 | G54: 0 | H54: 0 | I54: 0 | J54: 0 | K54: 0 | L54: 0 | M54: 0 | N54: 0 | O54: 0 | T54: Enter new livestock data here: | U54: Long term average demand (L/day) | V54: Maximum summer demand (L/day)
C55: =T68 -> Sheep (adult, dry) | D55: 0 | E55: 0 | F55: 0 | G55: 0 | H55: 0 | I55: 0 | J55: 0 | K55: 0 | L55: 0 | M55: 0 | N55: 0 | O55: 0 | T55: Alpaca (lactating) | U55: 10 | V55: 25
C56: Water need | D56: =(IF(D$11<(AVERAGE($D$11:$O$11)),$U$68,$V$68))*D55 -> 0 | E56: 0 | F56: 0 | G56: 0 | H56: 0 | I56: 0 | J56: 0 | K56: 0 | L56: 0 | M56: 0 | N56: 0 | O56: 0 | T56: Alpaca (dry, adult) | U56: 4 | V56: 10
C57: =T69 -> Sheep (weaners) | D57: 0 | E57: 0 | F57: 0 | G57: 0 | H57: 0 | I57: 0 | J57: 0 | K57: 0 | L57: 0 | M57: 0 | N57: 0 | O57: 0 | T57: Alpaca (<12 months) | U57: 3 | V57: 6
C58: Water need | D58: =(IF(D$11<(AVERAGE($D$11:$O$11)),$U$69,$V$69))*D57 -> 0 | E58: 0 | F58: 0 | G58: 0 | H58: 0 | I58: 0 | J58: 0 | K58: 0 | L58: 0 | M58: 0 | N58: 0 | O58: 0 | T58: Cattle (lactating) | U58: 80 | V58: 160
T59: Cattle (adult, dry) | U59: 50 | V59: 100
A60: Other | D60: Total head per month | T60: Cattle (weaner) | U60: 25 | V60: 50
C61: =T70 -> Other | D61: 0 | E61: 0 | F61: 0 | G61: 0 | H61: 0 | I61: 0 | J61: 0 | K61: 0 | L61: 0 | M61: 0 | N61: 0 | O61: 0 | T61: Goats (lactating) | U61: 20 | V61: 40
C62: Water need | D62: =(IF(D$11<(AVERAGE($D$11:$O$11)),$U$70,$V$70))*D53 -> 0 | E62: =(IF(E$11<(AVERAGE($D$11:$O$11)),$U$67,$V$67))*E61 -> 0 | F62: 0 | G62: 0 | H62: 0 | I62: 0 | J62: 0 | K62: 0 | L62: 0 | M62: 0 | N62: 0 | O62: 0 | T62: Goats (adult, dry) | U62: 10 | V62: 20
C63: =T71 -> Other | D63: 0 | E63: 0 | F63: 0 | G63: 0 | H63: 0 | I63: 0 | J63: 0 | K63: 0 | L63: 0 | M63: 0 | N63: 0 | O63: 0 | T63: Goats (weaner) | U63: 5 | V63: 10
C64: Water need | D64: =(IF(D$11<(AVERAGE($D$11:$O$11)),$U$71,$V$71))*D53 -> 0 | E64: =(IF(E$11<(AVERAGE($D$11:$O$11)),$U$68,$V$68))*E63 -> 0 | F64: 0 | G64: 0 | H64: 0 | I64: 0 | J64: 0 | K64: 0 | L64: 0 | M64: 0 | N64: 0 | O64: 0 | T64: Horses (lactating) | U64: 90 | V64: 140
C65: =T72 -> Other | D65: 0 | E65: 0 | F65: 0 | G65: 0 | H65: 0 | I65: 0 | J65: 0 | K65: 0 | L65: 0 | M65: 0 | N65: 0 | O65: 0 | T65: Horses (adult, dry) | U65: 45 | V65: 70
C66: Water need | D66: =(IF(D$11<(AVERAGE($D$11:$O$11)),$U$72,$V$72))*D53 -> 0 | E66: =(IF(E$11<(AVERAGE($D$11:$O$11)),$U$69,$V$69))*E65 -> 0 | F66: 0 | G66: 0 | H66: 0 | I66: 0 | J66: 0 | K66: 0 | L66: 0 | M66: 0 | N66: 0 | O66: 0 | T66: Horses (<12 months) | U66: 20 | V66: 40
T67: Sheep (lactating) | U67: 7 | V67: 14
A68: Other | D68: Total head per month | T68: Sheep (adult, dry) | U68: 5 | V68: 10
C69: =T73 -> Other | D69: 0 | E69: 0 | F69: 0 | G69: 0 | H69: 0 | I69: 0 | J69: 0 | K69: 0 | L69: 0 | M69: 0 | N69: 0 | O69: 0 | T69: Sheep (weaners) | U69: 3 | V69: 5
C70: Water need | D70: =(IF(D$11<(AVERAGE($D$11:$O$11)),$U$73,$V$73))*D53 -> 0 | E70: =(IF(E$11<(AVERAGE($D$11:$O$11)),$U$67,$V$67))*E69 -> 0 | F70: 0 | G70: 0 | H70: 0 | I70: 0 | J70: 0 | K70: 0 | L70: 0 | M70: 0 | N70: 0 | O70: 0 | T70: Other
C71: =T74 -> Other | D71: 0 | E71: 0 | F71: 0 | G71: 0 | H71: 0 | I71: 0 | J71: 0 | K71: 0 | L71: 0 | M71: 0 | N71: 0 | O71: 0 | T71: Other
C72: Water need | D72: =(IF(D$11<(AVERAGE($D$11:$O$11)),$U$74,$V$74))*D53 -> 0 | E72: =(IF(E$11<(AVERAGE($D$11:$O$11)),$U$68,$V$68))*E71 -> 0 | F72: 0 | G72: 0 | H72: 0 | I72: 0 | J72: 0 | K72: 0 | L72: 0 | M72: 0 | N72: 0 | O72: 0 | T72: Other
C73: =T75 -> Other | D73: 0 | E73: 0 | F73: 0 | G73: 0 | H73: 0 | I73: 0 | J73: 0 | K73: 0 | L73: 0 | M73: 0 | N73: 0 | O73: 0 | T73: Other
C74: Water need | D74: =(IF(D$11<(AVERAGE($D$11:$O$11)),$U$75,$V$75))*D53 -> 0 | E74: =(IF(E$11<(AVERAGE($D$11:$O$11)),$U$69,$V$69))*E73 -> 0 | F74: 0 | G74: 0 | H74: 0 | I74: 0 | J74: 0 | K74: 0 | L74: 0 | M74: 0 | N74: 0 | O74: 0 | T74: Other
T75: Other

Sheet Crop Information
A1: =A2+1 -> 1 | B1: =INDEX(B8:B59,A1) -> Barley/Oats/Wheat | Z1: =Z2+1 -> 2
A2: 0 | Z2: 1
C5: Minimum Crop Growing Period | H5: Maximum Crop Growing Period | M5: Average Crop Growing Period | R5: Crop Factor of the development stages | V5: =IF($Z$1=1,C5,IF($Z$1=2,H5,IF($Z$1=3,M5,""))) -> Maximum Crop Growing Period
B7: Crop | C7: Total | D7: Initial stage | E7: Crop Development stage | F7: Mid season stage | G7: Late season stage | H7: Total | I7: Initial stage | J7: Crop Development stage | K7: Mid season stage | L7: Late season stage | M7: Total | N7: Initial stage | O7: Crop Development stage | P7: Mid season stage | Q7: Late season stage | R7: Initial stage | S7: Crop Development stage | T7: Mid season stage | U7: Late season stage | V7: Total | W7: Initial stage | X7: Crop Development stage | Y7: Mid season stage | Z7: Late season stage
B8: Barley/Oats/Wheat | C8: 120 | D8: 15 | E8: 25 | F8: 50 | G8: 30 | H8: 150 | I8: 15 | J8: 30 | K8: 65 | L8: 40 | M8: =SUM(N8:Q8) -> 135 | N8: =(D8+I8)/2 -> 15 | O8: =(E8+J8)/2 -> 27.5 | P8: =(F8+K8)/2 -> 57.5 | Q8: =(G8+L8)/2 -> 35 | R8: 0.35 | S8: 0.75 | T8: 1.15 | U8: 0.45 | V8: =IF($Z$1=1,C8,IF($Z$1=2,H8,IF($Z$1=3,M8,""))) -> 150 | W8: =IF($Z$1=1,D8,IF($Z$1=2,I8,IF($Z$1=3,N8,""))) -> 15 | X8: =IF($Z$1=1,E8,IF($Z$1=2,J8,IF($Z$1=3,O8,""))) -> 30 | Y8: 65 | Z8: 40
B9: Bean/green | C9: 75 | D9: 15 | E9: 25 | F9: 25 | G9: 10 | H9: 90 | I9: 20 | J9: 30 | K9: 30 | L9: 10 | M9: =SUM(N9:Q9) -> 82.5 | N9: =(D9+I9)/2 -> 17.5 | O9: =(E9+J9)/2 -> 27.5 | P9: =(F9+K9)/2 -> 27.5 | Q9: =(G9+L9)/2 -> 10 | R9: 0.35 | S9: 0.7 | T9: 1.1 | U9: 0.9 | V9: =IF($Z$1=1,C9,IF($Z$1=2,H9,IF($Z$1=3,M9,""))) -> 90 | W9: =IF($Z$1=1,D9,IF($Z$1=2,I9,IF($Z$1=3,N9,""))) -> 20 | X9: =IF($Z$1=1,E9,IF($Z$1=2,J9,IF($Z$1=3,O9,""))) -> 30 | Y9: =IF($Z$1=1,F9,IF($Z$1=2,K9,IF($Z$1=3,P9,""))) -> 30 | Z9: =IF($Z$1=1,G9,IF($Z$1=2,L9,IF($Z$1=3,Q9,""))) -> 10
B10: Bean/dry | C10: 95 | D10: 15 | E10: 25 | F10: 35 | G10: 20 | H10: 110 | I10: 20 | J10: 30 | K10: 40 | L10: 20 | M10: 102.5 | N10: 17.5 | O10: 27.5 | P10: 37.5 | Q10: 20 | R10: 0.35 | S10: 0.7 | T10: 1.1 | U10: 0.3 | V10: 110 | W10: 20 | X10: 30 | Y10: 40 | Z10: 20
B11: Cabbage | C11: 120 | D11: 20 | E11: 25 | F11: 60 | G11: 15 | H11: 140 | I11: 25 | J11: 30 | K11: 65 | L11: 20 | M11: 130 | N11: 22.5 | O11: 27.5 | P11: 62.5 | Q11: 17.5 | R11: 0.45 | S11: 0.75 | T11: 1.05 | U11: 0.9 | V11: 140 | W11: 25 | X11: 30 | Y11: 65 | Z11: 20
B12: Carrot | C12: 100 | D12: 20 | E12: 30 | F12: 30 | G12: 20 | H12: 150 | I12: 25 | J12: 35 | K12: 70 | L12: 20 | M12: 125 | N12: 22.5 | O12: 32.5 | P12: 50 | Q12: 20 | R12: 0.45 | S12: 0.75 | T12: 1.05 | U12: 0.9 | V12: 150 | W12: 25 | X12: 35 | Y12: 70 | Z12: 20
B13: Clover (Humid Light/medium wind) | C13: 365 | D13: 0 | E13: 0 | F13: 365 | G13: 0 | H13: 365 | I13: 0 | J13: 0 | K13: 365 | L13: 0 | M13: =SUM(N13:Q13) -> 365 | N13: =(D13+I13)/2 -> 0 | O13: 0 | P13: 365 | Q13: 0 | R13: 0 | S13: 0 | T13: 1,0 | U13: 0 | V13: =IF($Z$1=1,C13,IF($Z$1=2,H13,IF($Z$1=3,M13,""))) -> 365 | W13: 0 | X13: 0 | Y13: 365 | Z13: 0
B14: Clover (Dry Light/medium wind) | C14: 365 | D14: 0 | E14: 0 | F14: 365 | G14: 0 | H14: 365 | I14: 0 | J14: 0 | K14: 365 | L14: 0 | M14: =SUM(N14:Q14) -> 365 | N14: 0 | O14: 0 | P14: 365 | Q14: 0 | R14: 0 | S14: 0 | T14: 1,05 | U14: 0 | V14: 365 | W14: 0 | X14: 0 | Y14: 365 | Z14: 0
B15: Clover (Humid or Dry Strong wind) | C15: 365 | D15: 0 | E15: 0 | F15: 365 | G15: 0 | H15: 365 | I15: 0 | J15: 0 | K15: 365 | L15: 0 | M15: =SUM(N15:Q15) -> 365 | N15: 0 | O15: 0 | P15: 365 | Q15: 0 | R15: 0 | S15: 0 | T15: 1,05 | U15: 0 | V15: 365 | W15: 0 | X15: 0 | Y15: 365 | Z15: 0
B16: Cotton/Flax | C16: 180 | D16: 30 | E16: 50 | F16: 55 | G16: 45 | H16: 195 | I16: 30 | J16: 50 | K16: 65 | L16: 50 | M16: 187.5 | N16: 30 | O16: 50 | P16: 60 | Q16: 47.5 | R16: 0.45 | S16: 0.75 | T16: 1.15 | U16: 0.75 | V16: 195 | W16: 30 | X16: 50 | Y16: 65 | Z16: 50
B17: Cucumber | C17: 105 | D17: 20 | E17: 30 | F17: 40 | G17: 15 | H17: 130 | I17: 25 | J17: 35 | K17: 50 | L17: 20 | M17: 117.5 | N17: 22.5 | O17: 32.5 | P17: 45 | Q17: 17.5 | R17: 0.45 | S17: 0.7 | T17: 0.9 | U17: 0.75 | V17: 130 | W17: 25 | X17: 35 | Y17: 50 | Z17: 20
B18: Eggplant | C18: 130 | D18: 30 | E18: 40 | F18: 40 | G18: 20 | H18: 140 | I18: 30 | J18: 40 | K18: 45 | L18: 25 | M18: 135 | N18: 30 | O18: 40 | P18: 42.5 | Q18: 22.5 | R18: 0.45 | S18: 0.75 | T18: 1.15 | U18: 0.8 | V18: 140 | W18: 30 | X18: 40 | Y18: 45 | Z18: 25
B19: Fruit Tree - High water demand | C19: 365 | D19: 0 | E19: 0 | F19: 365 | G19: 0 | H19: 365 | I19: 0 | J19: 0 | K19: 365 | L19: 0 | M19: =SUM(N19:Q19) -> 365 | N19: =(D19+I19)/2 -> 0 | O19: 0 | P19: 365 | Q19: 0 | R19: 0 | S19: 0 | T19: 1.1 | U19: 0 | V19: =IF($Z$1=1,C19,IF($Z$1=2,H19,IF($Z$1=3,M19,""))) -> 365 | W19: 0 | X19: 0 | Y19: 365 | Z19: 0
B20: Fruit Tree - Middle water demand | C20: 365 | D20: 0 | E20: 0 | F20: 365 | G20: 0 | H20: 365 | I20: 0 | J20: 0 | K20: 365 | L20: 0 | M20: =SUM(N20:Q20) -> 365 | N20: 0 | O20: 0 | P20: 365 | Q20: 0 | R20: 0 | S20: 0 | T20: 0.85 | U20: 0 | V20: 365 | W20: 0 | X20: 0 | Y20: 365 | Z20: 0
B21: Fruit Tree - Low water demand | C21: 365 | D21: 0 | E21: 0 | F21: 365 | G21: 0 | H21: 365 | I21: 0 | J21: 0 | K21: 365 | L21: 0 | M21: =SUM(N21:Q21) -> 365 | N21: 0 | O21: 0 | P21: 365 | Q21: 0 | R21: 0 | S21: 0 | T21: 0.6 | U21: 0 | V21: 365 | W21: 0 | X21: 0 | Y21: 365 | Z21: 0
B22: Grain/small | C22: 150 | D22: 20 | E22: 30 | F22: 60 | G22: 40 | H22: 165 | I22: 25 | J22: 35 | K22: 65 | L22: 40 | M22: 157.5 | N22: 22.5 | O22: 32.5 | P22: 62.5 | Q22: 40 | R22: 0.35 | S22: 0.75 | T22: 1.1 | U22: 0.65 | V22: 165 | W22: 25 | X22: 35 | Y22: 65 | Z22: 40
B23: Lentil | C23: 150 | D23: 20 | E23: 30 | F23: 60 | G23: 40 | H23: 170 | I23: 25 | J23: 35 | K23: 70 | L23: 40 | M23: 160 | N23: 22.5 | O23: 32.5 | P23: 65 | Q23: 40 | R23: 0.45 | S23: 0.75 | T23: 1.1 | U23: 0.5 | V23: 170 | W23: 25 | X23: 35 | Y23: 70 | Z23: 40
B24: Lucerne (Humid Light/medium wind) | C24: 365 | D24: 0 | E24: 0 | F24: 365 | G24: 0 | H24: 365 | I24: 0 | J24: 0 | K24: 365 | L24: 0 | M24: =SUM(N24:Q24) -> 365 | N24: =(D24+I24)/2 -> 0 | O24: 0 | P24: 365 | Q24: 0 | R24: 0 | S24: 0 | T24: 0,85 | U24: 0 | V24: =IF($Z$1=1,C24,IF($Z$1=2,H24,IF($Z$1=3,M24,""))) -> 365 | W24: 0 | X24: 0 | Y24: 365 | Z24: 0
B25: Lucerne (Dry Light/medium wind) | C25: 365 | D25: 0 | E25: 0 | F25: 365 | G25: 0 | H25: 365 | I25: 0 | J25: 0 | K25: 365 | L25: 0 | M25: =SUM(N25:Q25) -> 365 | N25: 0 | O25: 0 | P25: 365 | Q25: 0 | R25: 0 | S25: 0 | T25: 0,95 | U25: 0 | V25: 365 | W25: 0 | X25: 0 | Y25: 365 | Z25: 0
B26: Lucerne (Humid or Dry Strong wind) | C26: 365 | D26: 0 | E26: 0 | F26: 365 | G26: 0 | H26: 365 | I26: 0 | J26: 0 | K26: 365 | L26: 0 | M26: =SUM(N26:Q26) -> 365 | N26: 0 | O26: 0 | P26: 365 | Q26: 0 | R26: 0 | S26: 0 | T26: 1,05 | U26: 0 | V26: 365 | W26: 0 | X26: 0 | Y26: 365 | Z26: 0
B27: Lettuce | C27: 75 | D27: 20 | E27: 30 | F27: 15 | G27: 10 | H27: 140 | I27: 35 | J27: 50 | K27: 45 | L27: 10 | M27: 107.5 | N27: 27.5 | O27: 40 | P27: 30 | Q27: 10 | R27: 0.45 | S27: 0.6 | T27: 1 | U27: 0.9 | V27: 140 | W27: 35 | X27: 50 | Y27: 45 | Z27: 10
B28: Maize, sweet | C28: 80 | D28: 20 | E28: 25 | F28: 25 | G28: 10 | H28: 110 | I28: 20 | J28: 30 | K28: 50 | L28: 10 | M28: 95 | N28: 20 | O28: 27.5 | P28: 37.5 | Q28: 10 | R28: 0.4 | S28: 0.8 | T28: 1.15 | U28: 1 | V28: 110 | W28: 20 | X28: 30 | Y28: 50 | Z28: 10
B29: Maize, grain | C29: 125 | D29: 20 | E29: 35 | F29: 40 | G29: 30 | H29: 180 | I29: 30 | J29: 50 | K29: 60 | L29: 40 | M29: 152.5 | N29: 25 | O29: 42.5 | P29: 50 | Q29: 35 | R29: 0.4 | S29: 0.8 | T29: 1.15 | U29: 0.7 | V29: 180 | W29: 30 | X29: 50 | Y29: 60 | Z29: 40
B30: Melon | C30: 120 | D30: 25 | E30: 35 | F30: 40 | G30: 20 | H30: 160 | I30: 30 | J30: 45 | K30: 65 | L30: 20 | M30: 140 | N30: 27.5 | O30: 40 | P30: 52.5 | Q30: 20 | R30: 0.45 | S30: 0.75 | T30: 1 | U30: 0.75 | V30: 160 | W30: 30 | X30: 45 | Y30: 65 | Z30: 20
B31: Millet | C31: 105 | D31: 15 | E31: 25 | F31: 40 | G31: 25 | H31: 140 | I31: 20 | J31: 30 | K31: 55 | L31: 35 | M31: 122.5 | N31: 17.5 | O31: 27.5 | P31: 47.5 | Q31: 30 | R31: 0.35 | S31: 0.7 | T31: 1.1 | U31: 0.65 | V31: 140 | W31: 20 | X31: 30 | Y31: 55 | Z31: 35
B32: Onion/green | C32: 70 | D32: 25 | E32: 30 | F32: 10 | G32: 5 | H32: 95 | I32: 25 | J32: 40 | K32: 20 | L32: 10 | M32: 82.5 | N32: 25 | O32: 35 | P32: 15 | Q32: 7.5 | R32: 0.5 | S32: 0.7 | T32: 1 | U32: 1 | V32: 95 | W32: 25 | X32: 40 | Y32: 20 | Z32: 10
B33: Onion/dry | C33: 150 | D33: 15 | E33: 25 | F33: 70 | G33: 40 | H33: 210 | I33: 20 | J33: 35 | K33: 110 | L33: 45 | M33: 180 | N33: 17.5 | O33: 30 | P33: 90 | Q33: 42.5 | R33: 0.5 | S33: 0.75 | T33: 1.05 | U33: 0.85 | V33: 210 | W33: 20 | X33: 35 | Y33: 110 | Z33: 45
B34: Pasture (Humid Light/medium wind) | C34: 365 | D34: 0 | E34: 0 | F34: 365 | G34: 0 | H34: 365 | I34: 0 | J34: 0 | K34: 365 | L34: 0 | M34: =SUM(N34:Q34) -> 365 | N34: =(D34+I34)/2 -> 0 | O34: 0 | P34: 365 | Q34: 0 | R34: 0 | S34: 0 | T34: 0,95 | U34: 0 | V34: =IF($Z$1=1,C34,IF($Z$1=2,H34,IF($Z$1=3,M34,""))) -> 365 | W34: 0 | X34: 0 | Y34: 365 | Z34: 0
B35: Pasture (Dry Light/medium wind) | C35: 365 | D35: 0 | E35: 0 | F35: 365 | G35: 0 | H35: 365 | I35: 0 | J35: 0 | K35: 365 | L35: 0 | M35: =SUM(N35:Q35) -> 365 | N35: 0 | O35: 0 | P35: 365 | Q35: 0 | R35: 0 | S35: 0 | T35: 1,0 | U35: 0 | V35: 365 | W35: 0 | X35: 0 | Y35: 365 | Z35: 0
B36: Pasture (Humid or Dry Strong wind) | C36: 365 | D36: 0 | E36: 0 | F36: 365 | G36: 0 | H36: 365 | I36: 0 | J36: 0 | K36: 365 | L36: 0 | M36: =SUM(N36:Q36) -> 365 | N36: 0 | O36: 0 | P36: 365 | Q36: 0 | R36: 0 | S36: 0 | T36: 1,05 | U36: 0 | V36: 365 | W36: 0 | X36: 0 | Y36: 365 | Z36: 0
B37: Peanut/Groundnut | C37: 130 | D37: 25 | E37: 35 | F37: 45 | G37: 25 | H37: 140 | I37: 30 | J37: 40 | K37: 45 | L37: 25 | M37: 135 | N37: 27.5 | O37: 37.5 | P37: 45 | Q37: 25 | R37: 0.45 | S37: 0.75 | T37: 1.05 | U37: 0.7 | V37: 140 | W37: 30 | X37: 40 | Y37: 45 | Z37: 25
B38: Pea | C38: 90 | D38: 15 | E38: 25 | F38: 35 | G38: 15 | H38: 100 | I38: 20 | J38: 30 | K38: 35 | L38: 15 | M38: 95 | N38: 17.5 | O38: 27.5 | P38: 35 | Q38: 15 | R38: 0.45 | S38: 0.8 | T38: 1.15 | U38: 1.05 | V38: 100 | W38: 20 | X38: 30 | Y38: 35 | Z38: 15
B39: Pepper | C39: 120 | D39: 25 | E39: 35 | F39: 40 | G39: 20 | H39: 210 | I39: 30 | J39: 40 | K39: 110 | L39: 30 | M39: 165 | N39: 27.5 | O39: 37.5 | P39: 75 | Q39: 25 | R39: 0.35 | S39: 0.7 | T39: 1.05 | U39: 0.9 | V39: 210 | W39: 30 | X39: 40 | Y39: 110 | Z39: 30
B40: Potato | C40: 105 | D40: 25 | E40: 30 | F40: 30 | G40: 20 | H40: 145 | I40: 30 | J40: 35 | K40: 50 | L40: 30 | M40: 125 | N40: 27.5 | O40: 32.5 | P40: 40 | Q40: 25 | R40: 0.45 | S40: 0.75 | T40: 1.15 | U40: 0.85 | V40: 145 | W40: 30 | X40: 35 | Y40: 50 | Z40: 30
B41: Radish | C41: 35 | D41: 5 | E41: 10 | F41: 15 | G41: 5 | H41: 40 | I41: 10 | J41: 10 | K41: 15 | L41: 5 | M41: 37.5 | N41: 7.5 | O41: 10 | P41: 15 | Q41: 5 | R41: 0.45 | S41: 0.6 | T41: 0.9 | U41: 0.9 | V41: 40 | W41: 10 | X41: 10 | Y41: 15 | Z41: 5
B42: Sorghum | C42: 120 | D42: 20 | E42: 30 | F42: 40 | G42: 30 | H42: 130 | I42: 20 | J42: 35 | K42: 45 | L42: 30 | M42: 125 | N42: 20 | O42: 32.5 | P42: 42.5 | Q42: 30 | R42: 0.35 | S42: 0.75 | T42: 1.1 | U42: 0.65 | V42: 130 | W42: 20 | X42: 35 | Y42: 45 | Z42: 30
B43: Soybean | C43: 135 | D43: 20 | E43: 30 | F43: 60 | G43: 25 | H43: 150 | I43: 20 | J43: 30 | K43: 70 | L43: 30 | M43: 142.5 | N43: 20 | O43: 30 | P43: 65 | Q43: 27.5 | R43: 0.35 | S43: 0.75 | T43: 1.1 | U43: 0.6 | V43: 150 | W43: 20 | X43: 30 | Y43: 70 | Z43: 30
B44: Spinach | C44: 60 | D44: 20 | E44: 20 | F44: 15 | G44: 5 | H44: 100 | I44: 20 | J44: 30 | K44: 40 | L44: 10 | M44: 80 | N44: 20 | O44: 25 | P44: 27.5 | Q44: 7.5 | R44: 0.45 | S44: 0.6 | T44: 1 | U44: 0.9 | V44: 100 | W44: 20 | X44: 30 | Y44: 40 | Z44: 10
B45: Squash | C45: 95 | D45: 20 | E45: 30 | F45: 30 | G45: 15 | H45: 120 | I45: 25 | J45: 35 | K45: 35 | L45: 25 | M45: 107.5 | N45: 22.5 | O45: 32.5 | P45: 32.5 | Q45: 20 | R45: 0.45 | S45: 0.7 | T45: 0.9 | U45: 0.75 | V45: 120 | W45: 25 | X45: 35 | Y45: 35 | Z45: 25
B46: Sugarbeet | C46: 160 | D46: 25 | E46: 35 | F46: 60 | G46: 40 | H46: 230 | I46: 45 | J46: 65 | K46: 80 | L46: 40 | M46: 195 | N46: 35 | O46: 50 | P46: 70 | Q46: 40 | R46: 0.45 | S46: 0.8 | T46: 1.15 | U46: 0.8 | V46: 230 | W46: 45 | X46: 65 | Y46: 80 | Z46: 40
B47: Sunflower | C47: 125 | D47: 20 | E47: 35 | F47: 45 | G47: 25 | H47: 130 | I47: 25 | J47: 35 | K47: 45 | L47: 25 | M47: 127.5 | N47: 22.5 | O47: 35 | P47: 45 | Q47: 25 | R47: 0.35 | S47: 0.75 | T47: 1.15 | U47: 0.55 | V47: 130 | W47: 25 | X47: 35 | Y47: 45 | Z47: 25
B48: Tomato | C48: 135 | D48: 30 | E48: 40 | F48: 40 | G48: 25 | H48: 180 | I48: 35 | J48: 45 | K48: 70 | L48: 30 | M48: 157.5 | N48: 32.5 | O48: 42.5 | P48: 55 | Q48: 27.5 | R48: 0.45 | S48: 0.75 | T48: 1.15 | U48: 0.8 | V48: 180 | W48: 35 | X48: 45 | Y48: 70 | Z48: 30
B49: *new crop* | C49: *insert value* | D49: *insert value* | E49: *insert value* | F49: *insert value* | G49: *insert value* | H49: *insert value* | I49: *insert value* | J49: *insert value* | K49: *insert value* | L49: *insert value* | R49: *insert value* | S49: *insert value* | T49: *insert value* | U49: *insert value* | V49: *insert value* | W49: *insert value* | X49: *insert value* | Y49: *insert value* | Z49: *insert value*
B50: *new crop* | C50: *insert value* | D50: *insert value* | E50: *insert value* | F50: *insert value* | G50: *insert value* | H50: *insert value* | I50: *insert value* | J50: *insert value* | K50: *insert value* | L50: *insert value* | R50: *insert value* | S50: *insert value* | T50: *insert value* | U50: *insert value* | V50: *insert value* | W50: *insert value* | X50: *insert value* | Y50: *insert value* | Z50: *insert value*
B51: *new crop* | C51: *insert value* | D51: *insert value* | E51: *insert value* | F51: *insert value* | G51: *insert value* | H51: *insert value* | I51: *insert value* | J51: *insert value* | K51: *insert value* | L51: *insert value* | R51: *insert value* | S51: *insert value* | T51: *insert value* | U51: *insert value* | V51: *insert value* | W51: *insert value* | X51: *insert value* | Y51: *insert value* | Z51: *insert value*
B52: *new crop* | C52: *insert value* | D52: *insert value* | E52: *insert value* | F52: *insert value* | G52: *insert value* | H52: *insert value* | I52: *insert value* | J52: *insert value* | K52: *insert value* | L52: *insert value* | M52: =SUM(N52:Q52) ->  | N52: =(D52+I52)/2 ->  | O52: =(E52+J52)/2 ->  | P52: =(F52+K52)/2 ->  | Q52: =(G52+L52)/2 ->  | R52: *insert value* | S52: *insert value* | T52: *insert value* | U52: *insert value* | V52: =IF($Z$1=1,C52,IF($Z$1=2,H52,IF($Z$1=3,M52,""))) -> *insert value* | W52: =IF($Z$1=1,D52,IF($Z$1=2,I52,IF($Z$1=3,N52,""))) -> *insert value* | X52: =IF($Z$1=1,E52,IF($Z$1=2,J52,IF($Z$1=3,O52,""))) -> *insert value* | Y52: =IF($Z$1=1,F52,IF($Z$1=2,K52,IF($Z$1=3,P52,""))) -> *insert value* | Z52: =IF($Z$1=1,G52,IF($Z$1=2,L52,IF($Z$1=3,Q52,""))) -> *insert value*
B53: *new crop* | C53: *insert value* | D53: *insert value* | E53: *insert value* | F53: *insert value* | G53: *insert value* | H53: *insert value* | I53: *insert value* | J53: *insert value* | K53: *insert value* | L53: *insert value* | R53: *insert value* | S53: *insert value* | T53: *insert value* | U53: *insert value* | V53: *insert value* | W53: *insert value* | X53: *insert value* | Y53: *insert value* | Z53: *insert value*
B54: *new crop* | C54: *insert value* | D54: *insert value* | E54: *insert value* | F54: *insert value* | G54: *insert value* | H54: *insert value* | I54: *insert value* | J54: *insert value* | K54: *insert value* | L54: *insert value* | R54: *insert value* | S54: *insert value* | T54: *insert value* | U54: *insert value* | V54: *insert value* | W54: *insert value* | X54: *insert value* | Y54: *insert value* | Z54: *insert value*
B55: *new crop* | C55: *insert value* | D55: *insert value* | E55: *insert value* | F55: *insert value* | G55: *insert value* | H55: *insert value* | I55: *insert value* | J55: *insert value* | K55: *insert value* | L55: *insert value* | R55: *insert value* | S55: *insert value* | T55: *insert value* | U55: *insert value* | V55: *insert value* | W55: *insert value* | X55: *insert value* | Y55: *insert value* | Z55: *insert value*
B56: *new crop* | C56: *insert value* | D56: *insert value* | E56: *insert value* | F56: *insert value* | G56: *insert value* | H56: *insert value* | I56: *insert value* | J56: *insert value* | K56: *insert value* | L56: *insert value* | R56: *insert value* | S56: *insert value* | T56: *insert value* | U56: *insert value* | V56: *insert value* | W56: *insert value* | X56: *insert value* | Y56: *insert value* | Z56: *insert value*
B57: *new crop* | C57: *insert value* | D57: *insert value* | E57: *insert value* | F57: *insert value* | G57: *insert value* | H57: *insert value* | I57: *insert value* | J57: *insert value* | K57: *insert value* | L57: *insert value* | R57: *insert value* | S57: *insert value* | T57: *insert value* | U57: *insert value* | V57: *insert value* | W57: *insert value* | X57: *insert value* | Y57: *insert value* | Z57: *insert value*
B58: *new crop* | C58: *insert value* | D58: *insert value* | E58: *insert value* | F58: *insert value* | G58: *insert value* | H58: *insert value* | I58: *insert value* | J58: *insert value* | K58: *insert value* | L58: *insert value* | R58: *insert value* | S58: *insert value* | T58: *insert value* | U58: *insert value* | V58: *insert value* | W58: *insert value* | X58: *insert value* | Y58: *insert value* | Z58: *insert value*
B59: Appletree | C59: *insert value* | D59: *insert value* | E59: *insert value* | F59: *insert value* | G59: *insert value* | H59: *insert value* | I59: *insert value* | J59: *insert value* | K59: *insert value* | L59: *insert value* | R59: *insert value* | S59: *insert value* | T59: *insert value* | U59: *insert value* | V59: *insert value* | W59: *insert value* | X59: *insert value* | Y59: *insert value* | Z59: *insert value*

Sheet Calculation Sheet
B5: Date | C5: Stage: | D5: ETo | E5: ='2 Crop Water Requirement'!J11 -> Crop Factor | F5: ETo x Kc | P5: January | Q5: February | R5: March | S5: April | T5: May | U5: June | V5: July | W5: August | X5: September | Y5: October | Z5: November | AA5: December | AG5: North
O6: Sum: | P6: =SUM(P7:P3293) -> 0 | Q6: =SUM(Q7:Q3293) -> 0 | R6: 0 | S6: 0 | T6: 0 | U6: 14.742 | V6: 115.885 | W6: 197.496 | X6: 188.37 | Y6: 127.9224 | Z6: 49.05 | AA6: 0 | AF6: Latitude | AH6: Jan | AI6: Feb | AJ6: Mar | AK6: Apr | AL6: May | AM6: June | AN6: July | AO6: Aug | AP6: Sept | AQ6: Oct | AR6: Nov | AS6: Dec
B7: 2017-01-01 | C7: =IF(AND(B7>='2 Crop Water Requirement'!$H$12,B7<='2 Crop Water Requirement'!$I$12),"Initial Stage",IF(AND(B7+1>'2 Crop Water Requirement'!$H$13,B7<='2 Crop Water Requirement'!$I$13),"Crop Development Phase",IF(AND(B7+1>'2 Crop Water Requirement'!$H$14,B7<'2 Crop Water Requirement'!$I$14+1),"Mid Season",IF(AND(B7+1>'2 Crop Water Requirement'!$H$15,B7-1<'2 Crop Water Requirement'!$I$15),"Late Season Stage","")))) ->  | D7: =IF(MONTH(B7)=1,'2 Crop Water Requirement'!$E$52,IF(MONTH(B7)=2,'2 Crop Water Requirement'!$F$52,IF(MONTH(B7)=3,'2 Crop Water Requirement'!$G$52,IF(MONTH(B7)=4,'2 Crop Water Requirement'!$H$52,IF(MONTH(B7)=5,'2 Crop Water Requirement'!$I$52,IF(MONTH(B7)=6,'2 Crop Water Requirement'!$J$52,IF(MONTH(B7)=7,'2 Crop Water Requirement'!$K$52,IF(MONTH(B7)=8,'2 Crop Water Requirement'!$L$52,IF(MONTH(B7)=9,'2 Crop Water Requirement'!$M$52,IF(MONTH(B7)=10,'2 Crop Water Requirement'!$N$52,IF(MONTH(B7)=11,'2 Crop Water Requirement'!$O$52,IF(MONTH(B7)=12,'2 Crop Water Requirement'!$P$52,"")))))))))))) -> 4.579 | E7: =IF(C7="Initial Stage",'2 Crop Water Requirement'!$J$12,IF(C7="Crop Development Phase",'2 Crop Water Requirement'!$J$13,IF(C7="Mid Season",'2 Crop Water Requirement'!$J$14,IF(C7="Late Season Stage",'2 Crop Water Requirement'!$J$15,"")))) ->  | F7: =IFERROR((D7*E7),0) -> 0 | P7: =IF(MONTH($B7)=1,$F7,0) -> 0 | Q7: =IF(MONTH($B7)=2,$F7,0) -> 0 | R7: =IF(MONTH($B7)=3,$F7,0) -> 0 | S7: =IF(MONTH($B7)=4,$F7,0) -> 0 | T7: =IF(MONTH($B7)=5,$F7,0) -> 0 | U7: =IF(MONTH($B7)=6,$F7,0) -> 0 | V7: =IF(MONTH($B7)=7,$F7,0) -> 0 | W7: =IF(MONTH($B7)=8,$F7,0) -> 0 | X7: =IF(MONTH($B7)=9,$F7,0) -> 0 | Y7: =IF(MONTH($B7)=10,$F7,0) -> 0 | Z7: =IF(MONTH($B7)=11,$F7,0) -> 0 | AA7: =IF(MONTH($B7)=12,$F7,0) -> 0
B8: 2017-01-02 | C8: =IF(AND(B8>='2 Crop Water Requirement'!$H$12,B8<='2 Crop Water Requirement'!$I$12),"Initial Stage",IF(AND(B8+1>'2 Crop Water Requirement'!$H$13,B8<='2 Crop Water Requirement'!$I$13),"Crop Development Phase",IF(AND(B8+1>'2 Crop Water Requirement'!$H$14,B8<'2 Crop Water Requirement'!$I$14+1),"Mid Season",IF(AND(B8+1>'2 Crop Water Requirement'!$H$15,B8-1<'2 Crop Water Requirement'!$I$15),"Late Season Stage","")))) ->  | D8: =IF(MONTH(B8)=1,'2 Crop Water Requirement'!$E$52,IF(MONTH(B8)=2,'2 Crop Water Requirement'!$F$52,IF(MONTH(B8)=3,'2 Crop Water Requirement'!$G$52,IF(MONTH(B8)=4,'2 Crop Water Requirement'!$H$52,IF(MONTH(B8)=5,'2 Crop Water Requirement'!$I$52,IF(MONTH(B8)=6,'2 Crop Water Requirement'!$J$52,IF(MONTH(B8)=7,'2 Crop Water Requirement'!$K$52,IF(MONTH(B8)=8,'2 Crop Water Requirement'!$L$52,IF(MONTH(B8)=9,'2 Crop Water Requirement'!$M$52,IF(MONTH(B8)=10,'2 Crop Water Requirement'!$N$52,IF(MONTH(B8)=11,'2 Crop Water Requirement'!$O$52,IF(MONTH(B8)=12,'2 Crop Water Requirement'!$P$52,"")))))))))))) -> 4.579 | E8: =IF(C8="Initial Stage",'2 Crop Water Requirement'!$J$12,IF(C8="Crop Development Phase",'2 Crop Water Requirement'!$J$13,IF(C8="Mid Season",'2 Crop Water Requirement'!$J$14,IF(C8="Late Season Stage",'2 Crop Water Requirement'!$J$15,"")))) ->  | F8: =IFERROR((D8*E8),0) -> 0 | P8: =IF(MONTH($B8)=1,$F8,0) -> 0 | Q8: =IF(MONTH($B8)=2,$F8,0) -> 0 | R8: =IF(MONTH($B8)=3,$F8,0) -> 0 | S8: =IF(MONTH($B8)=4,$F8,0) -> 0 | T8: =IF(MONTH($B8)=5,$F8,0) -> 0 | U8: =IF(MONTH($B8)=6,$F8,0) -> 0 | V8: =IF(MONTH($B8)=7,$F8,0) -> 0 | W8: =IF(MONTH($B8)=8,$F8,0) -> 0 | X8: =IF(MONTH($B8)=9,$F8,0) -> 0 | Y8: =IF(MONTH($B8)=10,$F8,0) -> 0 | Z8: =IF(MONTH($B8)=11,$F8,0) -> 0 | AA8: =IF(MONTH($B8)=12,$F8,0) -> 0 | AE8: =AE9+1 -> 3 | AF8: 60° | AH8: 0.15 | AI8: 0.2 | AJ8: 0.26 | AK8: 0.32 | AL8: 0.38 | AM8: 0.41 | AN8: 0.4 | AO8: 0.34 | AP8: 0.28 | AQ8: 0.22 | AR8: 0.17 | AS8: 0.13
B9: 2017-01-03 | C9: =IF(AND(B9>='2 Crop Water Requirement'!$H$12,B9<='2 Crop Water Requirement'!$I$12),"Initial Stage",IF(AND(B9+1>'2 Crop Water Requirement'!$H$13,B9<='2 Crop Water Requirement'!$I$13),"Crop Development Phase",IF(AND(B9+1>'2 Crop Water Requirement'!$H$14,B9<'2 Crop Water Requirement'!$I$14+1),"Mid Season",IF(AND(B9+1>'2 Crop Water Requirement'!$H$15,B9-1<'2 Crop Water Requirement'!$I$15),"Late Season Stage","")))) ->  | D9: =IF(MONTH(B9)=1,'2 Crop Water Requirement'!$E$52,IF(MONTH(B9)=2,'2 Crop Water Requirement'!$F$52,IF(MONTH(B9)=3,'2 Crop Water Requirement'!$G$52,IF(MONTH(B9)=4,'2 Crop Water Requirement'!$H$52,IF(MONTH(B9)=5,'2 Crop Water Requirement'!$I$52,IF(MONTH(B9)=6,'2 Crop Water Requirement'!$J$52,IF(MONTH(B9)=7,'2 Crop Water Requirement'!$K$52,IF(MONTH(B9)=8,'2 Crop Water Requirement'!$L$52,IF(MONTH(B9)=9,'2 Crop Water Requirement'!$M$52,IF(MONTH(B9)=10,'2 Crop Water Requirement'!$N$52,IF(MONTH(B9)=11,'2 Crop Water Requirement'!$O$52,IF(MONTH(B9)=12,'2 Crop Water Requirement'!$P$52,"")))))))))))) -> 4.579 | E9: =IF(C9="Initial Stage",'2 Crop Water Requirement'!$J$12,IF(C9="Crop Development Phase",'2 Crop Water Requirement'!$J$13,IF(C9="Mid Season",'2 Crop Water Requirement'!$J$14,IF(C9="Late Season Stage",'2 Crop Water Requirement'!$J$15,"")))) ->  | F9: 0 | P9: 0 | Q9: 0 | R9: 0 | S9: 0 | T9: 0 | U9: 0 | V9: 0 | W9: 0 | X9: 0 | Y9: 0 | Z9: 0 | AA9: 0 | AE9: 2 | AF9: 55° | AH9: 0.17 | AI9: 0.21 | AJ9: 0.26 | AK9: 0.32 | AL9: 0.36 | AM9: 0.39 | AN9: 0.38 | AO9: 0.33 | AP9: 0.28 | AQ9: 0.23 | AR9: 0.18 | AS9: 0.16
B10: 2017-01-04 | C10: =IF(AND(B10>='2 Crop Water Requirement'!$H$12,B10<='2 Crop Water Requirement'!$I$12),"Initial Stage",IF(AND(B10+1>'2 Crop Water Requirement'!$H$13,B10<='2 Crop Water Requirement'!$I$13),"Crop Development Phase",IF(AND(B10+1>'2 Crop Water Requirement'!$H$14,B10<'2 Crop Water Requirement'!$I$14+1),"Mid Season",IF(AND(B10+1>'2 Crop Water Requirement'!$H$15,B10-1<'2 Crop Water Requirement'!$I$15),"Late Season Stage","")))) ->  | D10: =IF(MONTH(B10)=1,'2 Crop Water Requirement'!$E$52,IF(MONTH(B10)=2,'2 Crop Water Requirement'!$F$52,IF(MONTH(B10)=3,'2 Crop Water Requirement'!$G$52,IF(MONTH(B10)=4,'2 Crop Water Requirement'!$H$52,IF(MONTH(B10)=5,'2 Crop Water Requirement'!$I$52,IF(MONTH(B10)=6,'2 Crop Water Requirement'!$J$52,IF(MONTH(B10)=7,'2 Crop Water Requirement'!$K$52,IF(MONTH(B10)=8,'2 Crop Water Requirement'!$L$52,IF(MONTH(B10)=9,'2 Crop Water Requirement'!$M$52,IF(MONTH(B10)=10,'2 Crop Water Requirement'!$N$52,IF(MONTH(B10)=11,'2 Crop Water Requirement'!$O$52,IF(MONTH(B10)=12,'2 Crop Water Requirement'!$P$52,"")))))))))))) -> 4.579 | E10: =IF(C10="Initial Stage",'2 Crop Water Requirement'!$J$12,IF(C10="Crop Development Phase",'2 Crop Water Requirement'!$J$13,IF(C10="Mid Season",'2 Crop Water Requirement'!$J$14,IF(C10="Late Season Stage",'2 Crop Water Requirement'!$J$15,"")))) ->  | F10: 0 | P10: 0 | Q10: 0 | R10: 0 | S10: 0 | T10: 0 | U10: 0 | V10: 0 | W10: 0 | X10: 0 | Y10: 0 | Z10: 0 | AA10: 0 | AF10: 50° | AH10: 0.19 | AI10: 0.23 | AJ10: 0.27 | AK10: 0.31 | AL10: 0.34 | AM10: 0.36 | AN10: 0.35 | AO10: 0.32 | AP10: 0.28 | AQ10: 0.24 | AR10: 0.2 | AS10: 0.18
B11: 2017-01-05 | C11: =IF(AND(B11>='2 Crop Water Requirement'!$H$12,B11<='2 Crop Water Requirement'!$I$12),"Initial Stage",IF(AND(B11+1>'2 Crop Water Requirement'!$H$13,B11<='2 Crop Water Requirement'!$I$13),"Crop Development Phase",IF(AND(B11+1>'2 Crop Water Requirement'!$H$14,B11<'2 Crop Water Requirement'!$I$14+1),"Mid Season",IF(AND(B11+1>'2 Crop Water Requirement'!$H$15,B11-1<'2 Crop Water Requirement'!$I$15),"Late Season Stage","")))) ->  | D11: =IF(MONTH(B11)=1,'2 Crop Water Requirement'!$E$52,IF(MONTH(B11)=2,'2 Crop Water Requirement'!$F$52,IF(MONTH(B11)=3,'2 Crop Water Requirement'!$G$52,IF(MONTH(B11)=4,'2 Crop Water Requirement'!$H$52,IF(MONTH(B11)=5,'2 Crop Water Requirement'!$I$52,IF(MONTH(B11)=6,'2 Crop Water Requirement'!$J$52,IF(MONTH(B11)=7,'2 Crop Water Requirement'!$K$52,IF(MONTH(B11)=8,'2 Crop Water Requirement'!$L$52,IF(MONTH(B11)=9,'2 Crop Water Requirement'!$M$52,IF(MONTH(B11)=10,'2 Crop Water Requirement'!$N$52,IF(MONTH(B11)=11,'2 Crop Water Requirement'!$O$52,IF(MONTH(B11)=12,'2 Crop Water Requirement'!$P$52,"")))))))))))) -> 4.579 | E11: =IF(C11="Initial Stage",'2 Crop Water Requirement'!$J$12,IF(C11="Crop Development Phase",'2 Crop Water Requirement'!$J$13,IF(C11="Mid Season",'2 Crop Water Requirement'!$J$14,IF(C11="Late Season Stage",'2 Crop Water Requirement'!$J$15,"")))) ->  | F11: 0 | P11: 0 | Q11: 0 | R11: 0 | S11: 0 | T11: 0 | U11: 0 | V11: 0 | W11: 0 | X11: 0 | Y11: 0 | Z11: 0 | AA11: 0 | AF11: 45° | AH11: 0.2 | AI11: 0.23 | AJ11: 0.27 | AK11: 0.3 | AL11: 0.34 | AM11: 0.35 | AN11: 0.34 | AO11: 0.32 | AP11: 0.28 | AQ11: 0.24 | AR11: 0.21 | AS11: 0.2
B12: 2017-01-06 | C12: =IF(AND(B12>='2 Crop Water Requirement'!$H$12,B12<='2 Crop Water Requirement'!$I$12),"Initial Stage",IF(AND(B12+1>'2 Crop Water Requirement'!$H$13,B12<='2 Crop Water Requirement'!$I$13),"Crop Development Phase",IF(AND(B12+1>'2 Crop Water Requirement'!$H$14,B12<'2 Crop Water Requirement'!$I$14+1),"Mid Season",IF(AND(B12+1>'2 Crop Water Requirement'!$H$15,B12-1<'2 Crop Water Requirement'!$I$15),"Late Season Stage","")))) ->  | D12: =IF(MONTH(B12)=1,'2 Crop Water Requirement'!$E$52,IF(MONTH(B12)=2,'2 Crop Water Requirement'!$F$52,IF(MONTH(B12)=3,'2 Crop Water Requirement'!$G$52,IF(MONTH(B12)=4,'2 Crop Water Requirement'!$H$52,IF(MONTH(B12)=5,'2 Crop Water Requirement'!$I$52,IF(MONTH(B12)=6,'2 Crop Water Requirement'!$J$52,IF(MONTH(B12)=7,'2 Crop Water Requirement'!$K$52,IF(MONTH(B12)=8,'2 Crop Water Requirement'!$L$52,IF(MONTH(B12)=9,'2 Crop Water Requirement'!$M$52,IF(MONTH(B12)=10,'2 Crop Water Requirement'!$N$52,IF(MONTH(B12)=11,'2 Crop Water Requirement'!$O$52,IF(MONTH(B12)=12,'2 Crop Water Requirement'!$P$52,"")))))))))))) -> 4.579 | E12: =IF(C12="Initial Stage",'2 Crop Water Requirement'!$J$12,IF(C12="Crop Development Phase",'2 Crop Water Requirement'!$J$13,IF(C12="Mid Season",'2 Crop Water Requirement'!$J$14,IF(C12="Late Season Stage",'2 Crop Water Requirement'!$J$15,"")))) ->  | F12: 0 | P12: 0 | Q12: 0 | R12: 0 | S12: 0 | T12: 0 | U12: 0 | V12: 0 | W12: 0 | X12: 0 | Y12: 0 | Z12: 0 | AA12: 0 | AF12: 40° | AH12: 0.22 | AI12: 0.24 | AJ12: 0.27 | AK12: 0.3 | AL12: 0.32 | AM12: 0.34 | AN12: 0.33 | AO12: 0.31 | AP12: 0.28 | AQ12: 0.25 | AR12: 0.22 | AS12: 0.21
B13: 2017-01-07 | C13: =IF(AND(B13>='2 Crop Water Requirement'!$H$12,B13<='2 Crop Water Requirement'!$I$12),"Initial Stage",IF(AND(B13+1>'2 Crop Water Requirement'!$H$13,B13<='2 Crop Water Requirement'!$I$13),"Crop Development Phase",IF(AND(B13+1>'2 Crop Water Requirement'!$H$14,B13<'2 Crop Water Requirement'!$I$14+1),"Mid Season",IF(AND(B13+1>'2 Crop Water Requirement'!$H$15,B13-1<'2 Crop Water Requirement'!$I$15),"Late Season Stage","")))) ->  | D13: =IF(MONTH(B13)=1,'2 Crop Water Requirement'!$E$52,IF(MONTH(B13)=2,'2 Crop Water Requirement'!$F$52,IF(MONTH(B13)=3,'2 Crop Water Requirement'!$G$52,IF(MONTH(B13)=4,'2 Crop Water Requirement'!$H$52,IF(MONTH(B13)=5,'2 Crop Water Requirement'!$I$52,IF(MONTH(B13)=6,'2 Crop Water Requirement'!$J$52,IF(MONTH(B13)=7,'2 Crop Water Requirement'!$K$52,IF(MONTH(B13)=8,'2 Crop Water Requirement'!$L$52,IF(MONTH(B13)=9,'2 Crop Water Requirement'!$M$52,IF(MONTH(B13)=10,'2 Crop Water Requirement'!$N$52,IF(MONTH(B13)=11,'2 Crop Water Requirement'!$O$52,IF(MONTH(B13)=12,'2 Crop Water Requirement'!$P$52,"")))))))))))) -> 4.579 | E13: =IF(C13="Initial Stage",'2 Crop Water Requirement'!$J$12,IF(C13="Crop Development Phase",'2 Crop Water Requirement'!$J$13,IF(C13="Mid Season",'2 Crop Water Requirement'!$J$14,IF(C13="Late Season Stage",'2 Crop Water Requirement'!$J$15,"")))) ->  | F13: 0 | P13: 0 | Q13: 0 | R13: 0 | S13: 0 | T13: 0 | U13: 0 | V13: 0 | W13: 0 | X13: 0 | Y13: 0 | Z13: 0 | AA13: 0 | AF13: 35° | AH13: 0.23 | AI13: 0.25 | AJ13: 0.27 | AK13: 0.29 | AL13: 0.31 | AM13: 0.32 | AN13: 0.32 | AO13: 0.3 | AP13: 0.28 | AQ13: 0.25 | AR13: 0.23 | AS13: 0.22
B14: 2017-01-08 | C14: =IF(AND(B14>='2 Crop Water Requirement'!$H$12,B14<='2 Crop Water Requirement'!$I$12),"Initial Stage",IF(AND(B14+1>'2 Crop Water Requirement'!$H$13,B14<='2 Crop Water Requirement'!$I$13),"Crop Development Phase",IF(AND(B14+1>'2 Crop Water Requirement'!$H$14,B14<'2 Crop Water Requirement'!$I$14+1),"Mid Season",IF(AND(B14+1>'2 Crop Water Requirement'!$H$15,B14-1<'2 Crop Water Requirement'!$I$15),"Late Season Stage","")))) ->  | D14: =IF(MONTH(B14)=1,'2 Crop Water Requirement'!$E$52,IF(MONTH(B14)=2,'2 Crop Water Requirement'!$F$52,IF(MONTH(B14)=3,'2 Crop Water Requirement'!$G$52,IF(MONTH(B14)=4,'2 Crop Water Requirement'!$H$52,IF(MONTH(B14)=5,'2 Crop Water Requirement'!$I$52,IF(MONTH(B14)=6,'2 Crop Water Requirement'!$J$52,IF(MONTH(B14)=7,'2 Crop Water Requirement'!$K$52,IF(MONTH(B14)=8,'2 Crop Water Requirement'!$L$52,IF(MONTH(B14)=9,'2 Crop Water Requirement'!$M$52,IF(MONTH(B14)=10,'2 Crop Water Requirement'!$N$52,IF(MONTH(B14)=11,'2 Crop Water Requirement'!$O$52,IF(MONTH(B14)=12,'2 Crop Water Requirement'!$P$52,"")))))))))))) -> 4.579 | E14: =IF(C14="Initial Stage",'2 Crop Water Requirement'!$J$12,IF(C14="Crop Development Phase",'2 Crop Water Requirement'!$J$13,IF(C14="Mid Season",'2 Crop Water Requirement'!$J$14,IF(C14="Late Season Stage",'2 Crop Water Requirement'!$J$15,"")))) ->  | F14: 0 | P14: 0 | Q14: 0 | R14: 0 | S14: 0 | T14: 0 | U14: 0 | V14: 0 | W14: 0 | X14: 0 | Y14: 0 | Z14: 0 | AA14: 0 | AF14: 30° | AH14: 0.24 | AI14: 0.25 | AJ14: 0.27 | AK14: 0.29 | AL14: 0.31 | AM14: 0.32 | AN14: 0.31 | AO14: 0.3 | AP14: 0.28 | AQ14: 0.26 | AR14: 0.24 | AS14: 0.23
B15: 2017-01-09 | C15: =IF(AND(B15>='2 Crop Water Requirement'!$H$12,B15<='2 Crop Water Requirement'!$I$12),"Initial Stage",IF(AND(B15+1>'2 Crop Water Requirement'!$H$13,B15<='2 Crop Water Requirement'!$I$13),"Crop Development Phase",IF(AND(B15+1>'2 Crop Water Requirement'!$H$14,B15<'2 Crop Water Requirement'!$I$14+1),"Mid Season",IF(AND(B15+1>'2 Crop Water Requirement'!$H$15,B15-1<'2 Crop Water Requirement'!$I$15),"Late Season Stage","")))) ->  | D15: =IF(MONTH(B15)=1,'2 Crop Water Requirement'!$E$52,IF(MONTH(B15)=2,'2 Crop Water Requirement'!$F$52,IF(MONTH(B15)=3,'2 Crop Water Requirement'!$G$52,IF(MONTH(B15)=4,'2 Crop Water Requirement'!$H$52,IF(MONTH(B15)=5,'2 Crop Water Requirement'!$I$52,IF(MONTH(B15)=6,'2 Crop Water Requirement'!$J$52,IF(MONTH(B15)=7,'2 Crop Water Requirement'!$K$52,IF(MONTH(B15)=8,'2 Crop Water Requirement'!$L$52,IF(MONTH(B15)=9,'2 Crop Water Requirement'!$M$52,IF(MONTH(B15)=10,'2 Crop Water Requirement'!$N$52,IF(MONTH(B15)=11,'2 Crop Water Requirement'!$O$52,IF(MONTH(B15)=12,'2 Crop Water Requirement'!$P$52,"")))))))))))) -> 4.579 | E15: =IF(C15="Initial Stage",'2 Crop Water Requirement'!$J$12,IF(C15="Crop Development Phase",'2 Crop Water Requirement'!$J$13,IF(C15="Mid Season",'2 Crop Water Requirement'!$J$14,IF(C15="Late Season Stage",'2 Crop Water Requirement'!$J$15,"")))) ->  | F15: 0 | P15: 0 | Q15: 0 | R15: 0 | S15: 0 | T15: 0 | U15: 0 | V15: 0 | W15: 0 | X15: 0 | Y15: 0 | Z15: 0 | AA15: 0 | AF15: 25° | AH15: 0.24 | AI15: 0.26 | AJ15: 0.27 | AK15: 0.29 | AL15: 0.3 | AM15: 0.31 | AN15: 0.31 | AO15: 0.29 | AP15: 0.28 | AQ15: 0.26 | AR15: 0.25 | AS15: 0.24
B16: 2017-01-10 | C16: =IF(AND(B16>='2 Crop Water Requirement'!$H$12,B16<='2 Crop Water Requirement'!$I$12),"Initial Stage",IF(AND(B16+1>'2 Crop Water Requirement'!$H$13,B16<='2 Crop Water Requirement'!$I$13),"Crop Development Phase",IF(AND(B16+1>'2 Crop Water Requirement'!$H$14,B16<'2 Crop Water Requirement'!$I$14+1),"Mid Season",IF(AND(B16+1>'2 Crop Water Requirement'!$H$15,B16-1<'2 Crop Water Requirement'!$I$15),"Late Season Stage","")))) ->  | D16: =IF(MONTH(B16)=1,'2 Crop Water Requirement'!$E$52,IF(MONTH(B16)=2,'2 Crop Water Requirement'!$F$52,IF(MONTH(B16)=3,'2 Crop Water Requirement'!$G$52,IF(MONTH(B16)=4,'2 Crop Water Requirement'!$H$52,IF(MONTH(B16)=5,'2 Crop Water Requirement'!$I$52,IF(MONTH(B16)=6,'2 Crop Water Requirement'!$J$52,IF(MONTH(B16)=7,'2 Crop Water Requirement'!$K$52,IF(MONTH(B16)=8,'2 Crop Water Requirement'!$L$52,IF(MONTH(B16)=9,'2 Crop Water Requirement'!$M$52,IF(MONTH(B16)=10,'2 Crop Water Requirement'!$N$52,IF(MONTH(B16)=11,'2 Crop Water Requirement'!$O$52,IF(MONTH(B16)=12,'2 Crop Water Requirement'!$P$52,"")))))))))))) -> 4.579 | E16: =IF(C16="Initial Stage",'2 Crop Water Requirement'!$J$12,IF(C16="Crop Development Phase",'2 Crop Water Requirement'!$J$13,IF(C16="Mid Season",'2 Crop Water Requirement'!$J$14,IF(C16="Late Season Stage",'2 Crop Water Requirement'!$J$15,"")))) ->  | F16: 0 | P16: 0 | Q16: 0 | R16: 0 | S16: 0 | T16: 0 | U16: 0 | V16: 0 | W16: 0 | X16: 0 | Y16: 0 | Z16: 0 | AA16: 0 | AF16: 20° | AH16: 0.25 | AI16: 0.26 | AJ16: 0.27 | AK16: 0.28 | AL16: 0.29 | AM16: 0.3 | AN16: 0.3 | AO16: 0.29 | AP16: 0.28 | AQ16: 0.26 | AR16: 0.25 | AS16: 0.25
B17: 2017-01-11 | C17: =IF(AND(B17>='2 Crop Water Requirement'!$H$12,B17<='2 Crop Water Requirement'!$I$12),"Initial Stage",IF(AND(B17+1>'2 Crop Water Requirement'!$H$13,B17<='2 Crop Water Requirement'!$I$13),"Crop Development Phase",IF(AND(B17+1>'2 Crop Water Requirement'!$H$14,B17<'2 Crop Water Requirement'!$I$14+1),"Mid Season",IF(AND(B17+1>'2 Crop Water Requirement'!$H$15,B17-1<'2 Crop Water Requirement'!$I$15),"Late Season Stage","")))) ->  | D17: =IF(MONTH(B17)=1,'2 Crop Water Requirement'!$E$52,IF(MONTH(B17)=2,'2 Crop Water Requirement'!$F$52,IF(MONTH(B17)=3,'2 Crop Water Requirement'!$G$52,IF(MONTH(B17)=4,'2 Crop Water Requirement'!$H$52,IF(MONTH(B17)=5,'2 Crop Water Requirement'!$I$52,IF(MONTH(B17)=6,'2 Crop Water Requirement'!$J$52,IF(MONTH(B17)=7,'2 Crop Water Requirement'!$K$52,IF(MONTH(B17)=8,'2 Crop Water Requirement'!$L$52,IF(MONTH(B17)=9,'2 Crop Water Requirement'!$M$52,IF(MONTH(B17)=10,'2 Crop Water Requirement'!$N$52,IF(MONTH(B17)=11,'2 Crop Water Requirement'!$O$52,IF(MONTH(B17)=12,'2 Crop Water Requirement'!$P$52,"")))))))))))) -> 4.579 | E17: =IF(C17="Initial Stage",'2 Crop Water Requirement'!$J$12,IF(C17="Crop Development Phase",'2 Crop Water Requirement'!$J$13,IF(C17="Mid Season",'2 Crop Water Requirement'!$J$14,IF(C17="Late Season Stage",'2 Crop Water Requirement'!$J$15,"")))) ->  | F17: 0 | P17: 0 | Q17: 0 | R17: 0 | S17: 0 | T17: 0 | U17: 0 | V17: 0 | W17: 0 | X17: 0 | Y17: 0 | Z17: 0 | AA17: 0 | AF17: 15° | AH17: 0.26 | AI17: 0.26 | AJ17: 0.27 | AK17: 0.28 | AL17: 0.29 | AM17: 0.29 | AN17: 0.29 | AO17: 0.28 | AP17: 0.28 | AQ17: 0.27 | AR17: 0.26 | AS17: 0.25
B18: 2017-01-12 | C18: =IF(AND(B18>='2 Crop Water Requirement'!$H$12,B18<='2 Crop Water Requirement'!$I$12),"Initial Stage",IF(AND(B18+1>'2 Crop Water Requirement'!$H$13,B18<='2 Crop Water Requirement'!$I$13),"Crop Development Phase",IF(AND(B18+1>'2 Crop Water Requirement'!$H$14,B18<'2 Crop Water Requirement'!$I$14+1),"Mid Season",IF(AND(B18+1>'2 Crop Water Requirement'!$H$15,B18-1<'2 Crop Water Requirement'!$I$15),"Late Season Stage","")))) ->  | D18: =IF(MONTH(B18)=1,'2 Crop Water Requirement'!$E$52,IF(MONTH(B18)=2,'2 Crop Water Requirement'!$F$52,IF(MONTH(B18)=3,'2 Crop Water Requirement'!$G$52,IF(MONTH(B18)=4,'2 Crop Water Requirement'!$H$52,IF(MONTH(B18)=5,'2 Crop Water Requirement'!$I$52,IF(MONTH(B18)=6,'2 Crop Water Requirement'!$J$52,IF(MONTH(B18)=7,'2 Crop Water Requirement'!$K$52,IF(MONTH(B18)=8,'2 Crop Water Requirement'!$L$52,IF(MONTH(B18)=9,'2 Crop Water Requirement'!$M$52,IF(MONTH(B18)=10,'2 Crop Water Requirement'!$N$52,IF(MONTH(B18)=11,'2 Crop Water Requirement'!$O$52,IF(MONTH(B18)=12,'2 Crop Water Requirement'!$P$52,"")))))))))))) -> 4.579 | E18: =IF(C18="Initial Stage",'2 Crop Water Requirement'!$J$12,IF(C18="Crop Development Phase",'2 Crop Water Requirement'!$J$13,IF(C18="Mid Season",'2 Crop Water Requirement'!$J$14,IF(C18="Late Season Stage",'2 Crop Water Requirement'!$J$15,"")))) ->  | F18: 0 | P18: 0 | Q18: 0 | R18: 0 | S18: 0 | T18: 0 | U18: 0 | V18: 0 | W18: 0 | X18: 0 | Y18: 0 | Z18: 0 | AA18: 0 | AF18: 10° | AH18: 0.26 | AI18: 0.27 | AJ18: 0.27 | AK18: 0.28 | AL18: 0.28 | AM18: 0.29 | AN18: 0.29 | AO18: 0.28 | AP18: 0.28 | AQ18: 0.27 | AR18: 0.26 | AS18: 0.26
B19: 2017-01-13 | C19: =IF(AND(B19>='2 Crop Water Requirement'!$H$12,B19<='2 Crop Water Requirement'!$I$12),"Initial Stage",IF(AND(B19+1>'2 Crop Water Requirement'!$H$13,B19<='2 Crop Water Requirement'!$I$13),"Crop Development Phase",IF(AND(B19+1>'2 Crop Water Requirement'!$H$14,B19<'2 Crop Water Requirement'!$I$14+1),"Mid Season",IF(AND(B19+1>'2 Crop Water Requirement'!$H$15,B19-1<'2 Crop Water Requirement'!$I$15),"Late Season Stage","")))) ->  | D19: =IF(MONTH(B19)=1,'2 Crop Water Requirement'!$E$52,IF(MONTH(B19)=2,'2 Crop Water Requirement'!$F$52,IF(MONTH(B19)=3,'2 Crop Water Requirement'!$G$52,IF(MONTH(B19)=4,'2 Crop Water Requirement'!$H$52,IF(MONTH(B19)=5,'2 Crop Water Requirement'!$I$52,IF(MONTH(B19)=6,'2 Crop Water Requirement'!$J$52,IF(MONTH(B19)=7,'2 Crop Water Requirement'!$K$52,IF(MONTH(B19)=8,'2 Crop Water Requirement'!$L$52,IF(MONTH(B19)=9,'2 Crop Water Requirement'!$M$52,IF(MONTH(B19)=10,'2 Crop Water Requirement'!$N$52,IF(MONTH(B19)=11,'2 Crop Water Requirement'!$O$52,IF(MONTH(B19)=12,'2 Crop Water Requirement'!$P$52,"")))))))))))) -> 4.579 | E19: =IF(C19="Initial Stage",'2 Crop Water Requirement'!$J$12,IF(C19="Crop Development Phase",'2 Crop Water Requirement'!$J$13,IF(C19="Mid Season",'2 Crop Water Requirement'!$J$14,IF(C19="Late Season Stage",'2 Crop Water Requirement'!$J$15,"")))) ->  | F19: 0 | P19: 0 | Q19: 0 | R19: 0 | S19: 0 | T19: 0 | U19: 0 | V19: 0 | W19: 0 | X19: 0 | Y19: 0 | Z19: 0 | AA19: 0 | AF19: 5° | AH19: 0.27 | AI19: 0.27 | AJ19: 0.27 | AK19: 0.28 | AL19: 0.28 | AM19: 0.28 | AN19: 0.28 | AO19: 0.28 | AP19: 0.28 | AQ19: 0.27 | AR19: 0.27 | AS19: 0.27
B20: 2017-01-14 | C20: =IF(AND(B20>='2 Crop Water Requirement'!$H$12,B20<='2 Crop Water Requirement'!$I$12),"Initial Stage",IF(AND(B20+1>'2 Crop Water Requirement'!$H$13,B20<='2 Crop Water Requirement'!$I$13),"Crop Development Phase",IF(AND(B20+1>'2 Crop Water Requirement'!$H$14,B20<'2 Crop Water Requirement'!$I$14+1),"Mid Season",IF(AND(B20+1>'2 Crop Water Requirement'!$H$15,B20-1<'2 Crop Water Requirement'!$I$15),"Late Season Stage","")))) ->  | D20: =IF(MONTH(B20)=1,'2 Crop Water Requirement'!$E$52,IF(MONTH(B20)=2,'2 Crop Water Requirement'!$F$52,IF(MONTH(B20)=3,'2 Crop Water Requirement'!$G$52,IF(MONTH(B20)=4,'2 Crop Water Requirement'!$H$52,IF(MONTH(B20)=5,'2 Crop Water Requirement'!$I$52,IF(MONTH(B20)=6,'2 Crop Water Requirement'!$J$52,IF(MONTH(B20)=7,'2 Crop Water Requirement'!$K$52,IF(MONTH(B20)=8,'2 Crop Water Requirement'!$L$52,IF(MONTH(B20)=9,'2 Crop Water Requirement'!$M$52,IF(MONTH(B20)=10,'2 Crop Water Requirement'!$N$52,IF(MONTH(B20)=11,'2 Crop Water Requirement'!$O$52,IF(MONTH(B20)=12,'2 Crop Water Requirement'!$P$52,"")))))))))))) -> 4.579 | E20: =IF(C20="Initial Stage",'2 Crop Water Requirement'!$J$12,IF(C20="Crop Development Phase",'2 Crop Water Requirement'!$J$13,IF(C20="Mid Season",'2 Crop Water Requirement'!$J$14,IF(C20="Late Season Stage",'2 Crop Water Requirement'!$J$15,"")))) ->  | F20: 0 | P20: 0 | Q20: 0 | R20: 0 | S20: 0 | T20: 0 | U20: 0 | V20: 0 | W20: 0 | X20: 0 | Y20: 0 | Z20: 0 | AA20: 0 | AF20: 0° | AH20: 0.27 | AI20: 0.27 | AJ20: 0.27 | AK20: 0.27 | AL20: 0.27 | AM20: 0.27 | AN20: 0.27 | AO20: 0.27 | AP20: 0.27 | AQ20: 0.27 | AR20: 0.27 | AS20: 0.27
B21: 2017-01-15 | C21: =IF(AND(B21>='2 Crop Water Requirement'!$H$12,B21<='2 Crop Water Requirement'!$I$12),"Initial Stage",IF(AND(B21+1>'2 Crop Water Requirement'!$H$13,B21<='2 Crop Water Requirement'!$I$13),"Crop Development Phase",IF(AND(B21+1>'2 Crop Water Requirement'!$H$14,B21<'2 Crop Water Requirement'!$I$14+1),"Mid Season",IF(AND(B21+1>'2 Crop Water Requirement'!$H$15,B21-1<'2 Crop Water Requirement'!$I$15),"Late Season Stage","")))) ->  | D21: =IF(MONTH(B21)=1,'2 Crop Water Requirement'!$E$52,IF(MONTH(B21)=2,'2 Crop Water Requirement'!$F$52,IF(MONTH(B21)=3,'2 Crop Water Requirement'!$G$52,IF(MONTH(B21)=4,'2 Crop Water Requirement'!$H$52,IF(MONTH(B21)=5,'2 Crop Water Requirement'!$I$52,IF(MONTH(B21)=6,'2 Crop Water Requirement'!$J$52,IF(MONTH(B21)=7,'2 Crop Water Requirement'!$K$52,IF(MONTH(B21)=8,'2 Crop Water Requirement'!$L$52,IF(MONTH(B21)=9,'2 Crop Water Requirement'!$M$52,IF(MONTH(B21)=10,'2 Crop Water Requirement'!$N$52,IF(MONTH(B21)=11,'2 Crop Water Requirement'!$O$52,IF(MONTH(B21)=12,'2 Crop Water Requirement'!$P$52,"")))))))))))) -> 4.579 | E21: =IF(C21="Initial Stage",'2 Crop Water Requirement'!$J$12,IF(C21="Crop Development Phase",'2 Crop Water Requirement'!$J$13,IF(C21="Mid Season",'2 Crop Water Requirement'!$J$14,IF(C21="Late Season Stage",'2 Crop Water Requirement'!$J$15,"")))) ->  | F21: 0 | P21: 0 | Q21: 0 | R21: 0 | S21: 0 | T21: 0 | U21: 0 | V21: 0 | W21: 0 | X21: 0 | Y21: 0 | Z21: 0 | AA21: 0
B22: 2017-01-16 | C22: =IF(AND(B22>='2 Crop Water Requirement'!$H$12,B22<='2 Crop Water Requirement'!$I$12),"Initial Stage",IF(AND(B22+1>'2 Crop Water Requirement'!$H$13,B22<='2 Crop Water Requirement'!$I$13),"Crop Development Phase",IF(AND(B22+1>'2 Crop Water Requirement'!$H$14,B22<'2 Crop Water Requirement'!$I$14+1),"Mid Season",IF(AND(B22+1>'2 Crop Water Requirement'!$H$15,B22-1<'2 Crop Water Requirement'!$I$15),"Late Season Stage","")))) ->  | D22: =IF(MONTH(B22)=1,'2 Crop Water Requirement'!$E$52,IF(MONTH(B22)=2,'2 Crop Water Requirement'!$F$52,IF(MONTH(B22)=3,'2 Crop Water Requirement'!$G$52,IF(MONTH(B22)=4,'2 Crop Water Requirement'!$H$52,IF(MONTH(B22)=5,'2 Crop Water Requirement'!$I$52,IF(MONTH(B22)=6,'2 Crop Water Requirement'!$J$52,IF(MONTH(B22)=7,'2 Crop Water Requirement'!$K$52,IF(MONTH(B22)=8,'2 Crop Water Requirement'!$L$52,IF(MONTH(B22)=9,'2 Crop Water Requirement'!$M$52,IF(MONTH(B22)=10,'2 Crop Water Requirement'!$N$52,IF(MONTH(B22)=11,'2 Crop Water Requirement'!$O$52,IF(MONTH(B22)=12,'2 Crop Water Requirement'!$P$52,"")))))))))))) -> 4.579 | E22: =IF(C22="Initial Stage",'2 Crop Water Requirement'!$J$12,IF(C22="Crop Development Phase",'2 Crop Water Requirement'!$J$13,IF(C22="Mid Season",'2 Crop Water Requirement'!$J$14,IF(C22="Late Season Stage",'2 Crop Water Requirement'!$J$15,"")))) ->  | F22: 0 | P22: 0 | Q22: 0 | R22: 0 | S22: 0 | T22: 0 | U22: 0 | V22: 0 | W22: 0 | X22: 0 | Y22: 0 | Z22: 0 | AA22: 0 | AT22: =AT23+1 -> 1 | AU22: North
B23: 2017-01-17 | C23: =IF(AND(B23>='2 Crop Water Requirement'!$H$12,B23<='2 Crop Water Requirement'!$I$12),"Initial Stage",IF(AND(B23+1>'2 Crop Water Requirement'!$H$13,B23<='2 Crop Water Requirement'!$I$13),"Crop Development Phase",IF(AND(B23+1>'2 Crop Water Requirement'!$H$14,B23<'2 Crop Water Requirement'!$I$14+1),"Mid Season",IF(AND(B23+1>'2 Crop Water Requirement'!$H$15,B23-1<'2 Crop Water Requirement'!$I$15),"Late Season Stage","")))) ->  | D23: =IF(MONTH(B23)=1,'2 Crop Water Requirement'!$E$52,IF(MONTH(B23)=2,'2 Crop Water Requirement'!$F$52,IF(MONTH(B23)=3,'2 Crop Water Requirement'!$G$52,IF(MONTH(B23)=4,'2 Crop Water Requirement'!$H$52,IF(MONTH(B23)=5,'2 Crop Water Requirement'!$I$52,IF(MONTH(B23)=6,'2 Crop Water Requirement'!$J$52,IF(MONTH(B23)=7,'2 Crop Water Requirement'!$K$52,IF(MONTH(B23)=8,'2 Crop Water Requirement'!$L$52,IF(MONTH(B23)=9,'2 Crop Water Requirement'!$M$52,IF(MONTH(B23)=10,'2 Crop Water Requirement'!$N$52,IF(MONTH(B23)=11,'2 Crop Water Requirement'!$O$52,IF(MONTH(B23)=12,'2 Crop Water Requirement'!$P$52,"")))))))))))) -> 4.579 | E23: =IF(C23="Initial Stage",'2 Crop Water Requirement'!$J$12,IF(C23="Crop Development Phase",'2 Crop Water Requirement'!$J$13,IF(C23="Mid Season",'2 Crop Water Requirement'!$J$14,IF(C23="Late Season Stage",'2 Crop Water Requirement'!$J$15,"")))) ->  | F23: 0 | P23: 0 | Q23: 0 | R23: 0 | S23: 0 | T23: 0 | U23: 0 | V23: 0 | W23: 0 | X23: 0 | Y23: 0 | Z23: 0 | AA23: 0 | AT23: 0 | AU23: South
B24: 2017-01-18 | C24: =IF(AND(B24>='2 Crop Water Requirement'!$H$12,B24<='2 Crop Water Requirement'!$I$12),"Initial Stage",IF(AND(B24+1>'2 Crop Water Requirement'!$H$13,B24<='2 Crop Water Requirement'!$I$13),"Crop Development Phase",IF(AND(B24+1>'2 Crop Water Requirement'!$H$14,B24<'2 Crop Water Requirement'!$I$14+1),"Mid Season",IF(AND(B24+1>'2 Crop Water Requirement'!$H$15,B24-1<'2 Crop Water Requirement'!$I$15),"Late Season Stage","")))) ->  | D24: =IF(MONTH(B24)=1,'2 Crop Water Requirement'!$E$52,IF(MONTH(B24)=2,'2 Crop Water Requirement'!$F$52,IF(MONTH(B24)=3,'2 Crop Water Requirement'!$G$52,IF(MONTH(B24)=4,'2 Crop Water Requirement'!$H$52,IF(MONTH(B24)=5,'2 Crop Water Requirement'!$I$52,IF(MONTH(B24)=6,'2 Crop Water Requirement'!$J$52,IF(MONTH(B24)=7,'2 Crop Water Requirement'!$K$52,IF(MONTH(B24)=8,'2 Crop Water Requirement'!$L$52,IF(MONTH(B24)=9,'2 Crop Water Requirement'!$M$52,IF(MONTH(B24)=10,'2 Crop Water Requirement'!$N$52,IF(MONTH(B24)=11,'2 Crop Water Requirement'!$O$52,IF(MONTH(B24)=12,'2 Crop Water Requirement'!$P$52,"")))))))))))) -> 4.579 | E24: =IF(C24="Initial Stage",'2 Crop Water Requirement'!$J$12,IF(C24="Crop Development Phase",'2 Crop Water Requirement'!$J$13,IF(C24="Mid Season",'2 Crop Water Requirement'!$J$14,IF(C24="Late Season Stage",'2 Crop Water Requirement'!$J$15,"")))) ->  | F24: 0 | P24: 0 | Q24: 0 | R24: 0 | S24: 0 | T24: 0 | U24: 0 | V24: 0 | W24: 0 | X24: 0 | Y24: 0 | Z24: 0 | AA24: 0
B25: 2017-01-19 | C25: =IF(AND(B25>='2 Crop Water Requirement'!$H$12,B25<='2 Crop Water Requirement'!$I$12),"Initial Stage",IF(AND(B25+1>'2 Crop Water Requirement'!$H$13,B25<='2 Crop Water Requirement'!$I$13),"Crop Development Phase",IF(AND(B25+1>'2 Crop Water Requirement'!$H$14,B25<'2 Crop Water Requirement'!$I$14+1),"Mid Season",IF(AND(B25+1>'2 Crop Water Requirement'!$H$15,B25-1<'2 Crop Water Requirement'!$I$15),"Late Season Stage","")))) ->  | D25: =IF(MONTH(B25)=1,'2 Crop Water Requirement'!$E$52,IF(MONTH(B25)=2,'2 Crop Water Requirement'!$F$52,IF(MONTH(B25)=3,'2 Crop Water Requirement'!$G$52,IF(MONTH(B25)=4,'2 Crop Water Requirement'!$H$52,IF(MONTH(B25)=5,'2 Crop Water Requirement'!$I$52,IF(MONTH(B25)=6,'2 Crop Water Requirement'!$J$52,IF(MONTH(B25)=7,'2 Crop Water Requirement'!$K$52,IF(MONTH(B25)=8,'2 Crop Water Requirement'!$L$52,IF(MONTH(B25)=9,'2 Crop Water Requirement'!$M$52,IF(MONTH(B25)=10,'2 Crop Water Requirement'!$N$52,IF(MONTH(B25)=11,'2 Crop Water Requirement'!$O$52,IF(MONTH(B25)=12,'2 Crop Water Requirement'!$P$52,"")))))))))))) -> 4.579 | E25: =IF(C25="Initial Stage",'2 Crop Water Requirement'!$J$12,IF(C25="Crop Development Phase",'2 Crop Water Requirement'!$J$13,IF(C25="Mid Season",'2 Crop Water Requirement'!$J$14,IF(C25="Late Season Stage",'2 Crop Water Requirement'!$J$15,"")))) ->  | F25: 0 | P25: 0 | Q25: 0 | R25: 0 | S25: 0 | T25: 0 | U25: 0 | V25: 0 | W25: 0 | X25: 0 | Y25: 0 | Z25: 0 | AA25: 0
B26: 2017-01-20 | C26: =IF(AND(B26>='2 Crop Water Requirement'!$H$12,B26<='2 Crop Water Requirement'!$I$12),"Initial Stage",IF(AND(B26+1>'2 Crop Water Requirement'!$H$13,B26<='2 Crop Water Requirement'!$I$13),"Crop Development Phase",IF(AND(B26+1>'2 Crop Water Requirement'!$H$14,B26<'2 Crop Water Requirement'!$I$14+1),"Mid Season",IF(AND(B26+1>'2 Crop Water Requirement'!$H$15,B26-1<'2 Crop Water Requirement'!$I$15),"Late Season Stage","")))) ->  | D26: =IF(MONTH(B26)=1,'2 Crop Water Requirement'!$E$52,IF(MONTH(B26)=2,'2 Crop Water Requirement'!$F$52,IF(MONTH(B26)=3,'2 Crop Water Requirement'!$G$52,IF(MONTH(B26)=4,'2 Crop Water Requirement'!$H$52,IF(MONTH(B26)=5,'2 Crop Water Requirement'!$I$52,IF(MONTH(B26)=6,'2 Crop Water Requirement'!$J$52,IF(MONTH(B26)=7,'2 Crop Water Requirement'!$K$52,IF(MONTH(B26)=8,'2 Crop Water Requirement'!$L$52,IF(MONTH(B26)=9,'2 Crop Water Requirement'!$M$52,IF(MONTH(B26)=10,'2 Crop Water Requirement'!$N$52,IF(MONTH(B26)=11,'2 Crop Water Requirement'!$O$52,IF(MONTH(B26)=12,'2 Crop Water Requirement'!$P$52,"")))))))))))) -> 4.579 | E26: =IF(C26="Initial Stage",'2 Crop Water Requirement'!$J$12,IF(C26="Crop Development Phase",'2 Crop Water Requirement'!$J$13,IF(C26="Mid Season",'2 Crop Water Requirement'!$J$14,IF(C26="Late Season Stage",'2 Crop Water Requirement'!$J$15,"")))) ->  | F26: 0 | P26: 0 | Q26: 0 | R26: 0 | S26: 0 | T26: 0 | U26: 0 | V26: 0 | W26: 0 | X26: 0 | Y26: 0 | Z26: 0 | AA26: 0
B27: 2017-01-21 | C27: =IF(AND(B27>='2 Crop Water Requirement'!$H$12,B27<='2 Crop Water Requirement'!$I$12),"Initial Stage",IF(AND(B27+1>'2 Crop Water Requirement'!$H$13,B27<='2 Crop Water Requirement'!$I$13),"Crop Development Phase",IF(AND(B27+1>'2 Crop Water Requirement'!$H$14,B27<'2 Crop Water Requirement'!$I$14+1),"Mid Season",IF(AND(B27+1>'2 Crop Water Requirement'!$H$15,B27-1<'2 Crop Water Requirement'!$I$15),"Late Season Stage","")))) ->  | D27: =IF(MONTH(B27)=1,'2 Crop Water Requirement'!$E$52,IF(MONTH(B27)=2,'2 Crop Water Requirement'!$F$52,IF(MONTH(B27)=3,'2 Crop Water Requirement'!$G$52,IF(MONTH(B27)=4,'2 Crop Water Requirement'!$H$52,IF(MONTH(B27)=5,'2 Crop Water Requirement'!$I$52,IF(MONTH(B27)=6,'2 Crop Water Requirement'!$J$52,IF(MONTH(B27)=7,'2 Crop Water Requirement'!$K$52,IF(MONTH(B27)=8,'2 Crop Water Requirement'!$L$52,IF(MONTH(B27)=9,'2 Crop Water Requirement'!$M$52,IF(MONTH(B27)=10,'2 Crop Water Requirement'!$N$52,IF(MONTH(B27)=11,'2 Crop Water Requirement'!$O$52,IF(MONTH(B27)=12,'2 Crop Water Requirement'!$P$52,"")))))))))))) -> 4.579 | E27: =IF(C27="Initial Stage",'2 Crop Water Requirement'!$J$12,IF(C27="Crop Development Phase",'2 Crop Water Requirement'!$J$13,IF(C27="Mid Season",'2 Crop Water Requirement'!$J$14,IF(C27="Late Season Stage",'2 Crop Water Requirement'!$J$15,"")))) ->  | F27: 0 | P27: 0 | Q27: 0 | R27: 0 | S27: 0 | T27: 0 | U27: 0 | V27: 0 | W27: 0 | X27: 0 | Y27: 0 | Z27: 0 | AA27: 0 | AG27: South
B28: 2017-01-22 | C28: =IF(AND(B28>='2 Crop Water Requirement'!$H$12,B28<='2 Crop Water Requirement'!$I$12),"Initial Stage",IF(AND(B28+1>'2 Crop Water Requirement'!$H$13,B28<='2 Crop Water Requirement'!$I$13),"Crop Development Phase",IF(AND(B28+1>'2 Crop Water Requirement'!$H$14,B28<'2 Crop Water Requirement'!$I$14+1),"Mid Season",IF(AND(B28+1>'2 Crop Water Requirement'!$H$15,B28-1<'2 Crop Water Requirement'!$I$15),"Late Season Stage","")))) ->  | D28: =IF(MONTH(B28)=1,'2 Crop Water Requirement'!$E$52,IF(MONTH(B28)=2,'2 Crop Water Requirement'!$F$52,IF(MONTH(B28)=3,'2 Crop Water Requirement'!$G$52,IF(MONTH(B28)=4,'2 Crop Water Requirement'!$H$52,IF(MONTH(B28)=5,'2 Crop Water Requirement'!$I$52,IF(MONTH(B28)=6,'2 Crop Water Requirement'!$J$52,IF(MONTH(B28)=7,'2 Crop Water Requirement'!$K$52,IF(MONTH(B28)=8,'2 Crop Water Requirement'!$L$52,IF(MONTH(B28)=9,'2 Crop Water Requirement'!$M$52,IF(MONTH(B28)=10,'2 Crop Water Requirement'!$N$52,IF(MONTH(B28)=11,'2 Crop Water Requirement'!$O$52,IF(MONTH(B28)=12,'2 Crop Water Requirement'!$P$52,"")))))))))))) -> 4.579 | E28: =IF(C28="Initial Stage",'2 Crop Water Requirement'!$J$12,IF(C28="Crop Development Phase",'2 Crop Water Requirement'!$J$13,IF(C28="Mid Season",'2 Crop Water Requirement'!$J$14,IF(C28="Late Season Stage",'2 Crop Water Requirement'!$J$15,"")))) ->  | F28: 0 | P28: 0 | Q28: 0 | R28: 0 | S28: 0 | T28: 0 | U28: 0 | V28: 0 | W28: 0 | X28: 0 | Y28: 0 | Z28: 0 | AA28: 0 | AF28: Latitude | AH28: Jan | AI28: Feb | AJ28: Mar | AK28: Apr | AL28: May | AM28: June | AN28: July | AO28: Aug | AP28: Sept | AQ28: Oct | AR28: Nov | AS28: Dec
B29: 2017-01-23 | C29: =IF(AND(B29>='2 Crop Water Requirement'!$H$12,B29<='2 Crop Water Requirement'!$I$12),"Initial Stage",IF(AND(B29+1>'2 Crop Water Requirement'!$H$13,B29<='2 Crop Water Requirement'!$I$13),"Crop Development Phase",IF(AND(B29+1>'2 Crop Water Requirement'!$H$14,B29<'2 Crop Water Requirement'!$I$14+1),"Mid Season",IF(AND(B29+1>'2 Crop Water Requirement'!$H$15,B29-1<'2 Crop Water Requirement'!$I$15),"Late Season Stage","")))) ->  | D29: =IF(MONTH(B29)=1,'2 Crop Water Requirement'!$E$52,IF(MONTH(B29)=2,'2 Crop Water Requirement'!$F$52,IF(MONTH(B29)=3,'2 Crop Water Requirement'!$G$52,IF(MONTH(B29)=4,'2 Crop Water Requirement'!$H$52,IF(MONTH(B29)=5,'2 Crop Water Requirement'!$I$52,IF(MONTH(B29)=6,'2 Crop Water Requirement'!$J$52,IF(MONTH(B29)=7,'2 Crop Water Requirement'!$K$52,IF(MONTH(B29)=8,'2 Crop Water Requirement'!$L$52,IF(MONTH(B29)=9,'2 Crop Water Requirement'!$M$52,IF(MONTH(B29)=10,'2 Crop Water Requirement'!$N$52,IF(MONTH(B29)=11,'2 Crop Water Requirement'!$O$52,IF(MONTH(B29)=12,'2 Crop Water Requirement'!$P$52,"")))))))))))) -> 4.579 | E29: =IF(C29="Initial Stage",'2 Crop Water Requirement'!$J$12,IF(C29="Crop Development Phase",'2 Crop Water Requirement'!$J$13,IF(C29="Mid Season",'2 Crop Water Requirement'!$J$14,IF(C29="Late Season Stage",'2 Crop Water Requirement'!$J$15,"")))) ->  | F29: 0 | P29: 0 | Q29: 0 | R29: 0 | S29: 0 | T29: 0 | U29: 0 | V29: 0 | W29: 0 | X29: 0 | Y29: 0 | Z29: 0 | AA29: 0
B30: 2017-01-24 | C30: =IF(AND(B30>='2 Crop Water Requirement'!$H$12,B30<='2 Crop Water Requirement'!$I$12),"Initial Stage",IF(AND(B30+1>'2 Crop Water Requirement'!$H$13,B30<='2 Crop Water Requirement'!$I$13),"Crop Development Phase",IF(AND(B30+1>'2 Crop Water Requirement'!$H$14,B30<'2 Crop Water Requirement'!$I$14+1),"Mid Season",IF(AND(B30+1>'2 Crop Water Requirement'!$H$15,B30-1<'2 Crop Water Requirement'!$I$15),"Late Season Stage","")))) ->  | D30: =IF(MONTH(B30)=1,'2 Crop Water Requirement'!$E$52,IF(MONTH(B30)=2,'2 Crop Water Requirement'!$F$52,IF(MONTH(B30)=3,'2 Crop Water Requirement'!$G$52,IF(MONTH(B30)=4,'2 Crop Water Requirement'!$H$52,IF(MONTH(B30)=5,'2 Crop Water Requirement'!$I$52,IF(MONTH(B30)=6,'2 Crop Water Requirement'!$J$52,IF(MONTH(B30)=7,'2 Crop Water Requirement'!$K$52,IF(MONTH(B30)=8,'2 Crop Water Requirement'!$L$52,IF(MONTH(B30)=9,'2 Crop Water Requirement'!$M$52,IF(MONTH(B30)=10,'2 Crop Water Requirement'!$N$52,IF(MONTH(B30)=11,'2 Crop Water Requirement'!$O$52,IF(MONTH(B30)=12,'2 Crop Water Requirement'!$P$52,"")))))))))))) -> 4.579 | E30: =IF(C30="Initial Stage",'2 Crop Water Requirement'!$J$12,IF(C30="Crop Development Phase",'2 Crop Water Requirement'!$J$13,IF(C30="Mid Season",'2 Crop Water Requirement'!$J$14,IF(C30="Late Season Stage",'2 Crop Water Requirement'!$J$15,"")))) ->  | F30: 0 | P30: 0 | Q30: 0 | R30: 0 | S30: 0 | T30: 0 | U30: 0 | V30: 0 | W30: 0 | X30: 0 | Y30: 0 | Z30: 0 | AA30: 0 | AF30: 60° | AH30: 0.4 | AI30: 0.34 | AJ30: 0.28 | AK30: 0.22 | AL30: 0.17 | AM30: 0.13 | AN30: 0.15 | AO30: 0.2 | AP30: 0.26 | AQ30: 0.32 | AR30: 0.38 | AS30: 0.41
B31: 2017-01-25 | C31: =IF(AND(B31>='2 Crop Water Requirement'!$H$12,B31<='2 Crop Water Requirement'!$I$12),"Initial Stage",IF(AND(B31+1>'2 Crop Water Requirement'!$H$13,B31<='2 Crop Water Requirement'!$I$13),"Crop Development Phase",IF(AND(B31+1>'2 Crop Water Requirement'!$H$14,B31<'2 Crop Water Requirement'!$I$14+1),"Mid Season",IF(AND(B31+1>'2 Crop Water Requirement'!$H$15,B31-1<'2 Crop Water Requirement'!$I$15),"Late Season Stage","")))) ->  | D31: =IF(MONTH(B31)=1,'2 Crop Water Requirement'!$E$52,IF(MONTH(B31)=2,'2 Crop Water Requirement'!$F$52,IF(MONTH(B31)=3,'2 Crop Water Requirement'!$G$52,IF(MONTH(B31)=4,'2 Crop Water Requirement'!$H$52,IF(MONTH(B31)=5,'2 Crop Water Requirement'!$I$52,IF(MONTH(B31)=6,'2 Crop Water Requirement'!$J$52,IF(MONTH(B31)=7,'2 Crop Water Requirement'!$K$52,IF(MONTH(B31)=8,'2 Crop Water Requirement'!$L$52,IF(MONTH(B31)=9,'2 Crop Water Requirement'!$M$52,IF(MONTH(B31)=10,'2 Crop Water Requirement'!$N$52,IF(MONTH(B31)=11,'2 Crop Water Requirement'!$O$52,IF(MONTH(B31)=12,'2 Crop Water Requirement'!$P$52,"")))))))))))) -> 4.579 | E31: =IF(C31="Initial Stage",'2 Crop Water Requirement'!$J$12,IF(C31="Crop Development Phase",'2 Crop Water Requirement'!$J$13,IF(C31="Mid Season",'2 Crop Water Requirement'!$J$14,IF(C31="Late Season Stage",'2 Crop Water Requirement'!$J$15,"")))) ->  | F31: 0 | P31: 0 | Q31: 0 | R31: 0 | S31: 0 | T31: 0 | U31: 0 | V31: 0 | W31: 0 | X31: 0 | Y31: 0 | Z31: 0 | AA31: 0 | AF31: 55 | AH31: 0.38 | AI31: 0.33 | AJ31: 0.28 | AK31: 0.23 | AL31: 0.18 | AM31: 0.16 | AN31: 0.17 | AO31: 0.21 | AP31: 0.26 | AQ31: 0.32 | AR31: 0.36 | AS31: 0.39
B32: 2017-01-26 | C32: =IF(AND(B32>='2 Crop Water Requirement'!$H$12,B32<='2 Crop Water Requirement'!$I$12),"Initial Stage",IF(AND(B32+1>'2 Crop Water Requirement'!$H$13,B32<='2 Crop Water Requirement'!$I$13),"Crop Development Phase",IF(AND(B32+1>'2 Crop Water Requirement'!$H$14,B32<'2 Crop Water Requirement'!$I$14+1),"Mid Season",IF(AND(B32+1>'2 Crop Water Requirement'!$H$15,B32-1<'2 Crop Water Requirement'!$I$15),"Late Season Stage","")))) ->  | D32: =IF(MONTH(B32)=1,'2 Crop Water Requirement'!$E$52,IF(MONTH(B32)=2,'2 Crop Water Requirement'!$F$52,IF(MONTH(B32)=3,'2 Crop Water Requirement'!$G$52,IF(MONTH(B32)=4,'2 Crop Water Requirement'!$H$52,IF(MONTH(B32)=5,'2 Crop Water Requirement'!$I$52,IF(MONTH(B32)=6,'2 Crop Water Requirement'!$J$52,IF(MONTH(B32)=7,'2 Crop Water Requirement'!$K$52,IF(MONTH(B32)=8,'2 Crop Water Requirement'!$L$52,IF(MONTH(B32)=9,'2 Crop Water Requirement'!$M$52,IF(MONTH(B32)=10,'2 Crop Water Requirement'!$N$52,IF(MONTH(B32)=11,'2 Crop Water Requirement'!$O$52,IF(MONTH(B32)=12,'2 Crop Water Requirement'!$P$52,"")))))))))))) -> 4.579 | E32: =IF(C32="Initial Stage",'2 Crop Water Requirement'!$J$12,IF(C32="Crop Development Phase",'2 Crop Water Requirement'!$J$13,IF(C32="Mid Season",'2 Crop Water Requirement'!$J$14,IF(C32="Late Season Stage",'2 Crop Water Requirement'!$J$15,"")))) ->  | F32: 0 | P32: 0 | Q32: 0 | R32: 0 | S32: 0 | T32: 0 | U32: 0 | V32: 0 | W32: 0 | X32: 0 | Y32: 0 | Z32: 0 | AA32: 0 | AF32: 50 | AH32: 0.35 | AI32: 0.32 | AJ32: 0.28 | AK32: 0.24 | AL32: 0.2 | AM32: 0.18 | AN32: 0.19 | AO32: 0.23 | AP32: 0.27 | AQ32: 0.31 | AR32: 0.34 | AS32: 0.36
B33: 2017-01-27 | C33: =IF(AND(B33>='2 Crop Water Requirement'!$H$12,B33<='2 Crop Water Requirement'!$I$12),"Initial Stage",IF(AND(B33+1>'2 Crop Water Requirement'!$H$13,B33<='2 Crop Water Requirement'!$I$13),"Crop Development Phase",IF(AND(B33+1>'2 Crop Water Requirement'!$H$14,B33<'2 Crop Water Requirement'!$I$14+1),"Mid Season",IF(AND(B33+1>'2 Crop Water Requirement'!$H$15,B33-1<'2 Crop Water Requirement'!$I$15),"Late Season Stage","")))) ->  | D33: =IF(MONTH(B33)=1,'2 Crop Water Requirement'!$E$52,IF(MONTH(B33)=2,'2 Crop Water Requirement'!$F$52,IF(MONTH(B33)=3,'2 Crop Water Requirement'!$G$52,IF(MONTH(B33)=4,'2 Crop Water Requirement'!$H$52,IF(MONTH(B33)=5,'2 Crop Water Requirement'!$I$52,IF(MONTH(B33)=6,'2 Crop Water Requirement'!$J$52,IF(MONTH(B33)=7,'2 Crop Water Requirement'!$K$52,IF(MONTH(B33)=8,'2 Crop Water Requirement'!$L$52,IF(MONTH(B33)=9,'2 Crop Water Requirement'!$M$52,IF(MONTH(B33)=10,'2 Crop Water Requirement'!$N$52,IF(MONTH(B33)=11,'2 Crop Water Requirement'!$O$52,IF(MONTH(B33)=12,'2 Crop Water Requirement'!$P$52,"")))))))))))) -> 4.579 | E33: =IF(C33="Initial Stage",'2 Crop Water Requirement'!$J$12,IF(C33="Crop Development Phase",'2 Crop Water Requirement'!$J$13,IF(C33="Mid Season",'2 Crop Water Requirement'!$J$14,IF(C33="Late Season Stage",'2 Crop Water Requirement'!$J$15,"")))) ->  | F33: 0 | P33: 0 | Q33: 0 | R33: 0 | S33: 0 | T33: 0 | U33: 0 | V33: 0 | W33: 0 | X33: 0 | Y33: 0 | Z33: 0 | AA33: 0 | AF33: 45 | AH33: 0.34 | AI33: 0.32 | AJ33: 0.28 | AK33: 0.24 | AL33: 0.21 | AM33: 0.2 | AN33: 0.2 | AO33: 0.23 | AP33: 0.27 | AQ33: 0.3 | AR33: 0.34 | AS33: 0.35
B34: 2017-01-28 | C34: =IF(AND(B34>='2 Crop Water Requirement'!$H$12,B34<='2 Crop Water Requirement'!$I$12),"Initial Stage",IF(AND(B34+1>'2 Crop Water Requirement'!$H$13,B34<='2 Crop Water Requirement'!$I$13),"Crop Development Phase",IF(AND(B34+1>'2 Crop Water Requirement'!$H$14,B34<'2 Crop Water Requirement'!$I$14+1),"Mid Season",IF(AND(B34+1>'2 Crop Water Requirement'!$H$15,B34-1<'2 Crop Water Requirement'!$I$15),"Late Season Stage","")))) ->  | D34: =IF(MONTH(B34)=1,'2 Crop Water Requirement'!$E$52,IF(MONTH(B34)=2,'2 Crop Water Requirement'!$F$52,IF(MONTH(B34)=3,'2 Crop Water Requirement'!$G$52,IF(MONTH(B34)=4,'2 Crop Water Requirement'!$H$52,IF(MONTH(B34)=5,'2 Crop Water Requirement'!$I$52,IF(MONTH(B34)=6,'2 Crop Water Requirement'!$J$52,IF(MONTH(B34)=7,'2 Crop Water Requirement'!$K$52,IF(MONTH(B34)=8,'2 Crop Water Requirement'!$L$52,IF(MONTH(B34)=9,'2 Crop Water Requirement'!$M$52,IF(MONTH(B34)=10,'2 Crop Water Requirement'!$N$52,IF(MONTH(B34)=11,'2 Crop Water Requirement'!$O$52,IF(MONTH(B34)=12,'2 Crop Water Requirement'!$P$52,"")))))))))))) -> 4.579 | E34: =IF(C34="Initial Stage",'2 Crop Water Requirement'!$J$12,IF(C34="Crop Development Phase",'2 Crop Water Requirement'!$J$13,IF(C34="Mid Season",'2 Crop Water Requirement'!$J$14,IF(C34="Late Season Stage",'2 Crop Water Requirement'!$J$15,"")))) ->  | F34: 0 | P34: 0 | Q34: 0 | R34: 0 | S34: 0 | T34: 0 | U34: 0 | V34: 0 | W34: 0 | X34: 0 | Y34: 0 | Z34: 0 | AA34: 0 | AF34: 40 | AH34: 0.33 | AI34: 0.31 | AJ34: 0.28 | AK34: 0.25 | AL34: 0.22 | AM34: 0.21 | AN34: 0.22 | AO34: 0.24 | AP34: 0.27 | AQ34: 0.3 | AR34: 0.32 | AS34: 0.34
B35: 2017-01-29 | C35: =IF(AND(B35>='2 Crop Water Requirement'!$H$12,B35<='2 Crop Water Requirement'!$I$12),"Initial Stage",IF(AND(B35+1>'2 Crop Water Requirement'!$H$13,B35<='2 Crop Water Requirement'!$I$13),"Crop Development Phase",IF(AND(B35+1>'2 Crop Water Requirement'!$H$14,B35<'2 Crop Water Requirement'!$I$14+1),"Mid Season",IF(AND(B35+1>'2 Crop Water Requirement'!$H$15,B35-1<'2 Crop Water Requirement'!$I$15),"Late Season Stage","")))) ->  | D35: =IF(MONTH(B35)=1,'2 Crop Water Requirement'!$E$52,IF(MONTH(B35)=2,'2 Crop Water Requirement'!$F$52,IF(MONTH(B35)=3,'2 Crop Water Requirement'!$G$52,IF(MONTH(B35)=4,'2 Crop Water Requirement'!$H$52,IF(MONTH(B35)=5,'2 Crop Water Requirement'!$I$52,IF(MONTH(B35)=6,'2 Crop Water Requirement'!$J$52,IF(MONTH(B35)=7,'2 Crop Water Requirement'!$K$52,IF(MONTH(B35)=8,'2 Crop Water Requirement'!$L$52,IF(MONTH(B35)=9,'2 Crop Water Requirement'!$M$52,IF(MONTH(B35)=10,'2 Crop Water Requirement'!$N$52,IF(MONTH(B35)=11,'2 Crop Water Requirement'!$O$52,IF(MONTH(B35)=12,'2 Crop Water Requirement'!$P$52,"")))))))))))) -> 4.579 | E35: =IF(C35="Initial Stage",'2 Crop Water Requirement'!$J$12,IF(C35="Crop Development Phase",'2 Crop Water Requirement'!$J$13,IF(C35="Mid Season",'2 Crop Water Requirement'!$J$14,IF(C35="Late Season Stage",'2 Crop Water Requirement'!$J$15,"")))) ->  | F35: 0 | P35: 0 | Q35: 0 | R35: 0 | S35: 0 | T35: 0 | U35: 0 | V35: 0 | W35: 0 | X35: 0 | Y35: 0 | Z35: 0 | AA35: 0 | AF35: 35 | AH35: 0.32 | AI35: 0.3 | AJ35: 0.28 | AK35: 0.25 | AL35: 0.23 | AM35: 0.22 | AN35: 0.23 | AO35: 0.25 | AP35: 0.27 | AQ35: 0.29 | AR35: 0.31 | AS35: 0.32
B36: 2017-01-30 | C36: =IF(AND(B36>='2 Crop Water Requirement'!$H$12,B36<='2 Crop Water Requirement'!$I$12),"Initial Stage",IF(AND(B36+1>'2 Crop Water Requirement'!$H$13,B36<='2 Crop Water Requirement'!$I$13),"Crop Development Phase",IF(AND(B36+1>'2 Crop Water Requirement'!$H$14,B36<'2 Crop Water Requirement'!$I$14+1),"Mid Season",IF(AND(B36+1>'2 Crop Water Requirement'!$H$15,B36-1<'2 Crop Water Requirement'!$I$15),"Late Season Stage","")))) ->  | D36: =IF(MONTH(B36)=1,'2 Crop Water Requirement'!$E$52,IF(MONTH(B36)=2,'2 Crop Water Requirement'!$F$52,IF(MONTH(B36)=3,'2 Crop Water Requirement'!$G$52,IF(MONTH(B36)=4,'2 Crop Water Requirement'!$H$52,IF(MONTH(B36)=5,'2 Crop Water Requirement'!$I$52,IF(MONTH(B36)=6,'2 Crop Water Requirement'!$J$52,IF(MONTH(B36)=7,'2 Crop Water Requirement'!$K$52,IF(MONTH(B36)=8,'2 Crop Water Requirement'!$L$52,IF(MONTH(B36)=9,'2 Crop Water Requirement'!$M$52,IF(MONTH(B36)=10,'2 Crop Water Requirement'!$N$52,IF(MONTH(B36)=11,'2 Crop Water Requirement'!$O$52,IF(MONTH(B36)=12,'2 Crop Water Requirement'!$P$52,"")))))))))))) -> 4.579 | E36: =IF(C36="Initial Stage",'2 Crop Water Requirement'!$J$12,IF(C36="Crop Development Phase",'2 Crop Water Requirement'!$J$13,IF(C36="Mid Season",'2 Crop Water Requirement'!$J$14,IF(C36="Late Season Stage",'2 Crop Water Requirement'!$J$15,"")))) ->  | F36: 0 | P36: 0 | Q36: 0 | R36: 0 | S36: 0 | T36: 0 | U36: 0 | V36: 0 | W36: 0 | X36: 0 | Y36: 0 | Z36: 0 | AA36: 0 | AF36: 30 | AH36: 0.31 | AI36: 0.3 | AJ36: 0.28 | AK36: 0.26 | AL36: 0.24 | AM36: 0.23 | AN36: 0.24 | AO36: 0.25 | AP36: 0.27 | AQ36: 0.29 | AR36: 0.31 | AS36: 0.32
B37: 2017-01-31 | C37: =IF(AND(B37>='2 Crop Water Requirement'!$H$12,B37<='2 Crop Water Requirement'!$I$12),"Initial Stage",IF(AND(B37+1>'2 Crop Water Requirement'!$H$13,B37<='2 Crop Water Requirement'!$I$13),"Crop Development Phase",IF(AND(B37+1>'2 Crop Water Requirement'!$H$14,B37<'2 Crop Water Requirement'!$I$14+1),"Mid Season",IF(AND(B37+1>'2 Crop Water Requirement'!$H$15,B37-1<'2 Crop Water Requirement'!$I$15),"Late Season Stage","")))) ->  | D37: =IF(MONTH(B37)=1,'2 Crop Water Requirement'!$E$52,IF(MONTH(B37)=2,'2 Crop Water Requirement'!$F$52,IF(MONTH(B37)=3,'2 Crop Water Requirement'!$G$52,IF(MONTH(B37)=4,'2 Crop Water Requirement'!$H$52,IF(MONTH(B37)=5,'2 Crop Water Requirement'!$I$52,IF(MONTH(B37)=6,'2 Crop Water Requirement'!$J$52,IF(MONTH(B37)=7,'2 Crop Water Requirement'!$K$52,IF(MONTH(B37)=8,'2 Crop Water Requirement'!$L$52,IF(MONTH(B37)=9,'2 Crop Water Requirement'!$M$52,IF(MONTH(B37)=10,'2 Crop Water Requirement'!$N$52,IF(MONTH(B37)=11,'2 Crop Water Requirement'!$O$52,IF(MONTH(B37)=12,'2 Crop Water Requirement'!$P$52,"")))))))))))) -> 4.579 | E37: =IF(C37="Initial Stage",'2 Crop Water Requirement'!$J$12,IF(C37="Crop Development Phase",'2 Crop Water Requirement'!$J$13,IF(C37="Mid Season",'2 Crop Water Requirement'!$J$14,IF(C37="Late Season Stage",'2 Crop Water Requirement'!$J$15,"")))) ->  | F37: 0 | P37: 0 | Q37: 0 | R37: 0 | S37: 0 | T37: 0 | U37: 0 | V37: 0 | W37: 0 | X37: 0 | Y37: 0 | Z37: 0 | AA37: 0 | AF37: 25 | AH37: 0.31 | AI37: 0.29 | AJ37: 0.28 | AK37: 0.26 | AL37: 0.25 | AM37: 0.24 | AN37: 0.24 | AO37: 0.26 | AP37: 0.27 | AQ37: 0.29 | AR37: 0.3 | AS37: 0.31
B38: 2017-02-01 | C38: =IF(AND(B38>='2 Crop Water Requirement'!$H$12,B38<='2 Crop Water Requirement'!$I$12),"Initial Stage",IF(AND(B38+1>'2 Crop Water Requirement'!$H$13,B38<='2 Crop Water Requirement'!$I$13),"Crop Development Phase",IF(AND(B38+1>'2 Crop Water Requirement'!$H$14,B38<'2 Crop Water Requirement'!$I$14+1),"Mid Season",IF(AND(B38+1>'2 Crop Water Requirement'!$H$15,B38-1<'2 Crop Water Requirement'!$I$15),"Late Season Stage","")))) ->  | D38: =IF(MONTH(B38)=1,'2 Crop Water Requirement'!$E$52,IF(MONTH(B38)=2,'2 Crop Water Requirement'!$F$52,IF(MONTH(B38)=3,'2 Crop Water Requirement'!$G$52,IF(MONTH(B38)=4,'2 Crop Water Requirement'!$H$52,IF(MONTH(B38)=5,'2 Crop Water Requirement'!$I$52,IF(MONTH(B38)=6,'2 Crop Water Requirement'!$J$52,IF(MONTH(B38)=7,'2 Crop Water Requirement'!$K$52,IF(MONTH(B38)=8,'2 Crop Water Requirement'!$L$52,IF(MONTH(B38)=9,'2 Crop Water Requirement'!$M$52,IF(MONTH(B38)=10,'2 Crop Water Requirement'!$N$52,IF(MONTH(B38)=11,'2 Crop Water Requirement'!$O$52,IF(MONTH(B38)=12,'2 Crop Water Requirement'!$P$52,"")))))))))))) -> 5.543 | E38: =IF(C38="Initial Stage",'2 Crop Water Requirement'!$J$12,IF(C38="Crop Development Phase",'2 Crop Water Requirement'!$J$13,IF(C38="Mid Season",'2 Crop Water Requirement'!$J$14,IF(C38="Late Season Stage",'2 Crop Water Requirement'!$J$15,"")))) ->  | F38: 0 | P38: 0 | Q38: 0 | R38: 0 | S38: 0 | T38: 0 | U38: 0 | V38: 0 | W38: 0 | X38: 0 | Y38: 0 | Z38: 0 | AA38: 0 | AF38: 20 | AH38: 0.3 | AI38: 0.29 | AJ38: 0.28 | AK38: 0.26 | AL38: 0.25 | AM38: 0.25 | AN38: 0.25 | AO38: 0.26 | AP38: 0.27 | AQ38: 0.28 | AR38: 0.29 | AS38: 0.3
B39: 2017-02-02 | C39: =IF(AND(B39>='2 Crop Water Requirement'!$H$12,B39<='2 Crop Water Requirement'!$I$12),"Initial Stage",IF(AND(B39+1>'2 Crop Water Requirement'!$H$13,B39<='2 Crop Water Requirement'!$I$13),"Crop Development Phase",IF(AND(B39+1>'2 Crop Water Requirement'!$H$14,B39<'2 Crop Water Requirement'!$I$14+1),"Mid Season",IF(AND(B39+1>'2 Crop Water Requirement'!$H$15,B39-1<'2 Crop Water Requirement'!$I$15),"Late Season Stage","")))) ->  | D39: =IF(MONTH(B39)=1,'2 Crop Water Requirement'!$E$52,IF(MONTH(B39)=2,'2 Crop Water Requirement'!$F$52,IF(MONTH(B39)=3,'2 Crop Water Requirement'!$G$52,IF(MONTH(B39)=4,'2 Crop Water Requirement'!$H$52,IF(MONTH(B39)=5,'2 Crop Water Requirement'!$I$52,IF(MONTH(B39)=6,'2 Crop Water Requirement'!$J$52,IF(MONTH(B39)=7,'2 Crop Water Requirement'!$K$52,IF(MONTH(B39)=8,'2 Crop Water Requirement'!$L$52,IF(MONTH(B39)=9,'2 Crop Water Requirement'!$M$52,IF(MONTH(B39)=10,'2 Crop Water Requirement'!$N$52,IF(MONTH(B39)=11,'2 Crop Water Requirement'!$O$52,IF(MONTH(B39)=12,'2 Crop Water Requirement'!$P$52,"")))))))))))) -> 5.543 | E39: =IF(C39="Initial Stage",'2 Crop Water Requirement'!$J$12,IF(C39="Crop Development Phase",'2 Crop Water Requirement'!$J$13,IF(C39="Mid Season",'2 Crop Water Requirement'!$J$14,IF(C39="Late Season Stage",'2 Crop Water Requirement'!$J$15,"")))) ->  | F39: 0 | P39: 0 | Q39: 0 | R39: 0 | S39: 0 | T39: 0 | U39: 0 | V39: 0 | W39: 0 | X39: 0 | Y39: 0 | Z39: 0 | AA39: 0 | AF39: 15 | AH39: 0.29 | AI39: 0.28 | AJ39: 0.28 | AK39: 0.27 | AL39: 0.26 | AM39: 0.25 | AN39: 0.26 | AO39: 0.26 | AP39: 0.27 | AQ39: 0.28 | AR39: 0.29 | AS39: 0.29
B40: 2017-02-03 | C40: =IF(AND(B40>='2 Crop Water Requirement'!$H$12,B40<='2 Crop Water Requirement'!$I$12),"Initial Stage",IF(AND(B40+1>'2 Crop Water Requirement'!$H$13,B40<='2 Crop Water Requirement'!$I$13),"Crop Development Phase",IF(AND(B40+1>'2 Crop Water Requirement'!$H$14,B40<'2 Crop Water Requirement'!$I$14+1),"Mid Season",IF(AND(B40+1>'2 Crop Water Requirement'!$H$15,B40-1<'2 Crop Water Requirement'!$I$15),"Late Season Stage","")))) ->  | D40: =IF(MONTH(B40)=1,'2 Crop Water Requirement'!$E$52,IF(MONTH(B40)=2,'2 Crop Water Requirement'!$F$52,IF(MONTH(B40)=3,'2 Crop Water Requirement'!$G$52,IF(MONTH(B40)=4,'2 Crop Water Requirement'!$H$52,IF(MONTH(B40)=5,'2 Crop Water Requirement'!$I$52,IF(MONTH(B40)=6,'2 Crop Water Requirement'!$J$52,IF(MONTH(B40)=7,'2 Crop Water Requirement'!$K$52,IF(MONTH(B40)=8,'2 Crop Water Requirement'!$L$52,IF(MONTH(B40)=9,'2 Crop Water Requirement'!$M$52,IF(MONTH(B40)=10,'2 Crop Water Requirement'!$N$52,IF(MONTH(B40)=11,'2 Crop Water Requirement'!$O$52,IF(MONTH(B40)=12,'2 Crop Water Requirement'!$P$52,"")))))))))))) -> 5.543 | E40: =IF(C40="Initial Stage",'2 Crop Water Requirement'!$J$12,IF(C40="Crop Development Phase",'2 Crop Water Requirement'!$J$13,IF(C40="Mid Season",'2 Crop Water Requirement'!$J$14,IF(C40="Late Season Stage",'2 Crop Water Requirement'!$J$15,"")))) ->  | F40: 0 | P40: 0 | Q40: 0 | R40: 0 | S40: 0 | T40: 0 | U40: 0 | V40: 0 | W40: 0 | X40: 0 | Y40: 0 | Z40: 0 | AA40: 0 | AF40: 10 | AH40: 0.29 | AI40: 0.28 | AJ40: 0.28 | AK40: 0.27 | AL40: 0.26 | AM40: 0.26 | AN40: 0.26 | AO40: 0.27 | AP40: 0.27 | AQ40: 0.28 | AR40: 0.28 | AS40: 0.29
B41: 2017-02-04 | C41: =IF(AND(B41>='2 Crop Water Requirement'!$H$12,B41<='2 Crop Water Requirement'!$I$12),"Initial Stage",IF(AND(B41+1>'2 Crop Water Requirement'!$H$13,B41<='2 Crop Water Requirement'!$I$13),"Crop Development Phase",IF(AND(B41+1>'2 Crop Water Requirement'!$H$14,B41<'2 Crop Water Requirement'!$I$14+1),"Mid Season",IF(AND(B41+1>'2 Crop Water Requirement'!$H$15,B41-1<'2 Crop Water Requirement'!$I$15),"Late Season Stage","")))) ->  | D41: =IF(MONTH(B41)=1,'2 Crop Water Requirement'!$E$52,IF(MONTH(B41)=2,'2 Crop Water Requirement'!$F$52,IF(MONTH(B41)=3,'2 Crop Water Requirement'!$G$52,IF(MONTH(B41)=4,'2 Crop Water Requirement'!$H$52,IF(MONTH(B41)=5,'2 Crop Water Requirement'!$I$52,IF(MONTH(B41)=6,'2 Crop Water Requirement'!$J$52,IF(MONTH(B41)=7,'2 Crop Water Requirement'!$K$52,IF(MONTH(B41)=8,'2 Crop Water Requirement'!$L$52,IF(MONTH(B41)=9,'2 Crop Water Requirement'!$M$52,IF(MONTH(B41)=10,'2 Crop Water Requirement'!$N$52,IF(MONTH(B41)=11,'2 Crop Water Requirement'!$O$52,IF(MONTH(B41)=12,'2 Crop Water Requirement'!$P$52,"")))))))))))) -> 5.543 | E41: =IF(C41="Initial Stage",'2 Crop Water Requirement'!$J$12,IF(C41="Crop Development Phase",'2 Crop Water Requirement'!$J$13,IF(C41="Mid Season",'2 Crop Water Requirement'!$J$14,IF(C41="Late Season Stage",'2 Crop Water Requirement'!$J$15,"")))) ->  | F41: 0 | P41: 0 | Q41: 0 | R41: 0 | S41: 0 | T41: 0 | U41: 0 | V41: 0 | W41: 0 | X41: 0 | Y41: 0 | Z41: 0 | AA41: 0 | AF41: 5 | AH41: 0.28 | AI41: 0.28 | AJ41: 0.28 | AK41: 0.27 | AL41: 0.27 | AM41: 0.27 | AN41: 0.27 | AO41: 0.27 | AP41: 0.27 | AQ41: 0.28 | AR41: 0.28 | AS41: 0.28
B42: 2017-02-05 | C42: =IF(AND(B42>='2 Crop Water Requirement'!$H$12,B42<='2 Crop Water Requirement'!$I$12),"Initial Stage",IF(AND(B42+1>'2 Crop Water Requirement'!$H$13,B42<='2 Crop Water Requirement'!$I$13),"Crop Development Phase",IF(AND(B42+1>'2 Crop Water Requirement'!$H$14,B42<'2 Crop Water Requirement'!$I$14+1),"Mid Season",IF(AND(B42+1>'2 Crop Water Requirement'!$H$15,B42-1<'2 Crop Water Requirement'!$I$15),"Late Season Stage","")))) ->  | D42: =IF(MONTH(B42)=1,'2 Crop Water Requirement'!$E$52,IF(MONTH(B42)=2,'2 Crop Water Requirement'!$F$52,IF(MONTH(B42)=3,'2 Crop Water Requirement'!$G$52,IF(MONTH(B42)=4,'2 Crop Water Requirement'!$H$52,IF(MONTH(B42)=5,'2 Crop Water Requirement'!$I$52,IF(MONTH(B42)=6,'2 Crop Water Requirement'!$J$52,IF(MONTH(B42)=7,'2 Crop Water Requirement'!$K$52,IF(MONTH(B42)=8,'2 Crop Water Requirement'!$L$52,IF(MONTH(B42)=9,'2 Crop Water Requirement'!$M$52,IF(MONTH(B42)=10,'2 Crop Water Requirement'!$N$52,IF(MONTH(B42)=11,'2 Crop Water Requirement'!$O$52,IF(MONTH(B42)=12,'2 Crop Water Requirement'!$P$52,"")))))))))))) -> 5.543 | E42: =IF(C42="Initial Stage",'2 Crop Water Requirement'!$J$12,IF(C42="Crop Development Phase",'2 Crop Water Requirement'!$J$13,IF(C42="Mid Season",'2 Crop Water Requirement'!$J$14,IF(C42="Late Season Stage",'2 Crop Water Requirement'!$J$15,"")))) ->  | F42: 0 | P42: 0 | Q42: 0 | R42: 0 | S42: 0 | T42: 0 | U42: 0 | V42: 0 | W42: 0 | X42: 0 | Y42: 0 | Z42: 0 | AA42: 0 | AF42: 0 | AH42: 0.27 | AI42: 0.27 | AJ42: 0.27 | AK42: 0.27 | AL42: 0.27 | AM42: 0.27 | AN42: 0.27 | AO42: 0.27 | AP42: 0.27 | AQ42: 0.27 | AR42: 0.27 | AS42: 0.27
B43: 2017-02-06 | C43: =IF(AND(B43>='2 Crop Water Requirement'!$H$12,B43<='2 Crop Water Requirement'!$I$12),"Initial Stage",IF(AND(B43+1>'2 Crop Water Requirement'!$H$13,B43<='2 Crop Water Requirement'!$I$13),"Crop Development Phase",IF(AND(B43+1>'2 Crop Water Requirement'!$H$14,B43<'2 Crop Water Requirement'!$I$14+1),"Mid Season",IF(AND(B43+1>'2 Crop Water Requirement'!$H$15,B43-1<'2 Crop Water Requirement'!$I$15),"Late Season Stage","")))) ->  | D43: =IF(MONTH(B43)=1,'2 Crop Water Requirement'!$E$52,IF(MONTH(B43)=2,'2 Crop Water Requirement'!$F$52,IF(MONTH(B43)=3,'2 Crop Water Requirement'!$G$52,IF(MONTH(B43)=4,'2 Crop Water Requirement'!$H$52,IF(MONTH(B43)=5,'2 Crop Water Requirement'!$I$52,IF(MONTH(B43)=6,'2 Crop Water Requirement'!$J$52,IF(MONTH(B43)=7,'2 Crop Water Requirement'!$K$52,IF(MONTH(B43)=8,'2 Crop Water Requirement'!$L$52,IF(MONTH(B43)=9,'2 Crop Water Requirement'!$M$52,IF(MONTH(B43)=10,'2 Crop Water Requirement'!$N$52,IF(MONTH(B43)=11,'2 Crop Water Requirement'!$O$52,IF(MONTH(B43)=12,'2 Crop Water Requirement'!$P$52,"")))))))))))) -> 5.543 | E43: =IF(C43="Initial Stage",'2 Crop Water Requirement'!$J$12,IF(C43="Crop Development Phase",'2 Crop Water Requirement'!$J$13,IF(C43="Mid Season",'2 Crop Water Requirement'!$J$14,IF(C43="Late Season Stage",'2 Crop Water Requirement'!$J$15,"")))) ->  | F43: 0 | P43: 0 | Q43: 0 | R43: 0 | S43: 0 | T43: 0 | U43: 0 | V43: 0 | W43: 0 | X43: 0 | Y43: 0 | Z43: 0 | AA43: 0
B44: 2017-02-07 | C44: =IF(AND(B44>='2 Crop Water Requirement'!$H$12,B44<='2 Crop Water Requirement'!$I$12),"Initial Stage",IF(AND(B44+1>'2 Crop Water Requirement'!$H$13,B44<='2 Crop Water Requirement'!$I$13),"Crop Development Phase",IF(AND(B44+1>'2 Crop Water Requirement'!$H$14,B44<'2 Crop Water Requirement'!$I$14+1),"Mid Season",IF(AND(B44+1>'2 Crop Water Requirement'!$H$15,B44-1<'2 Crop Water Requirement'!$I$15),"Late Season Stage","")))) ->  | D44: =IF(MONTH(B44)=1,'2 Crop Water Requirement'!$E$52,IF(MONTH(B44)=2,'2 Crop Water Requirement'!$F$52,IF(MONTH(B44)=3,'2 Crop Water Requirement'!$G$52,IF(MONTH(B44)=4,'2 Crop Water Requirement'!$H$52,IF(MONTH(B44)=5,'2 Crop Water Requirement'!$I$52,IF(MONTH(B44)=6,'2 Crop Water Requirement'!$J$52,IF(MONTH(B44)=7,'2 Crop Water Requirement'!$K$52,IF(MONTH(B44)=8,'2 Crop Water Requirement'!$L$52,IF(MONTH(B44)=9,'2 Crop Water Requirement'!$M$52,IF(MONTH(B44)=10,'2 Crop Water Requirement'!$N$52,IF(MONTH(B44)=11,'2 Crop Water Requirement'!$O$52,IF(MONTH(B44)=12,'2 Crop Water Requirement'!$P$52,"")))))))))))) -> 5.543 | E44: =IF(C44="Initial Stage",'2 Crop Water Requirement'!$J$12,IF(C44="Crop Development Phase",'2 Crop Water Requirement'!$J$13,IF(C44="Mid Season",'2 Crop Water Requirement'!$J$14,IF(C44="Late Season Stage",'2 Crop Water Requirement'!$J$15,"")))) ->  | F44: 0 | P44: 0 | Q44: 0 | R44: 0 | S44: 0 | T44: 0 | U44: 0 | V44: 0 | W44: 0 | X44: 0 | Y44: 0 | Z44: 0 | AA44: 0
B45: 2017-02-08 | C45: =IF(AND(B45>='2 Crop Water Requirement'!$H$12,B45<='2 Crop Water Requirement'!$I$12),"Initial Stage",IF(AND(B45+1>'2 Crop Water Requirement'!$H$13,B45<='2 Crop Water Requirement'!$I$13),"Crop Development Phase",IF(AND(B45+1>'2 Crop Water Requirement'!$H$14,B45<'2 Crop Water Requirement'!$I$14+1),"Mid Season",IF(AND(B45+1>'2 Crop Water Requirement'!$H$15,B45-1<'2 Crop Water Requirement'!$I$15),"Late Season Stage","")))) ->  | D45: =IF(MONTH(B45)=1,'2 Crop Water Requirement'!$E$52,IF(MONTH(B45)=2,'2 Crop Water Requirement'!$F$52,IF(MONTH(B45)=3,'2 Crop Water Requirement'!$G$52,IF(MONTH(B45)=4,'2 Crop Water Requirement'!$H$52,IF(MONTH(B45)=5,'2 Crop Water Requirement'!$I$52,IF(MONTH(B45)=6,'2 Crop Water Requirement'!$J$52,IF(MONTH(B45)=7,'2 Crop Water Requirement'!$K$52,IF(MONTH(B45)=8,'2 Crop Water Requirement'!$L$52,IF(MONTH(B45)=9,'2 Crop Water Requirement'!$M$52,IF(MONTH(B45)=10,'2 Crop Water Requirement'!$N$52,IF(MONTH(B45)=11,'2 Crop Water Requirement'!$O$52,IF(MONTH(B45)=12,'2 Crop Water Requirement'!$P$52,"")))))))))))) -> 5.543 | E45: =IF(C45="Initial Stage",'2 Crop Water Requirement'!$J$12,IF(C45="Crop Development Phase",'2 Crop Water Requirement'!$J$13,IF(C45="Mid Season",'2 Crop Water Requirement'!$J$14,IF(C45="Late Season Stage",'2 Crop Water Requirement'!$J$15,"")))) ->  | F45: 0 | P45: 0 | Q45: 0 | R45: 0 | S45: 0 | T45: 0 | U45: 0 | V45: 0 | W45: 0 | X45: 0 | Y45: 0 | Z45: 0 | AA45: 0
B46: 2017-02-09 | C46: =IF(AND(B46>='2 Crop Water Requirement'!$H$12,B46<='2 Crop Water Requirement'!$I$12),"Initial Stage",IF(AND(B46+1>'2 Crop Water Requirement'!$H$13,B46<='2 Crop Water Requirement'!$I$13),"Crop Development Phase",IF(AND(B46+1>'2 Crop Water Requirement'!$H$14,B46<'2 Crop Water Requirement'!$I$14+1),"Mid Season",IF(AND(B46+1>'2 Crop Water Requirement'!$H$15,B46-1<'2 Crop Water Requirement'!$I$15),"Late Season Stage","")))) ->  | D46: =IF(MONTH(B46)=1,'2 Crop Water Requirement'!$E$52,IF(MONTH(B46)=2,'2 Crop Water Requirement'!$F$52,IF(MONTH(B46)=3,'2 Crop Water Requirement'!$G$52,IF(MONTH(B46)=4,'2 Crop Water Requirement'!$H$52,IF(MONTH(B46)=5,'2 Crop Water Requirement'!$I$52,IF(MONTH(B46)=6,'2 Crop Water Requirement'!$J$52,IF(MONTH(B46)=7,'2 Crop Water Requirement'!$K$52,IF(MONTH(B46)=8,'2 Crop Water Requirement'!$L$52,IF(MONTH(B46)=9,'2 Crop Water Requirement'!$M$52,IF(MONTH(B46)=10,'2 Crop Water Requirement'!$N$52,IF(MONTH(B46)=11,'2 Crop Water Requirement'!$O$52,IF(MONTH(B46)=12,'2 Crop Water Requirement'!$P$52,"")))))))))))) -> 5.543 | E46: =IF(C46="Initial Stage",'2 Crop Water Requirement'!$J$12,IF(C46="Crop Development Phase",'2 Crop Water Requirement'!$J$13,IF(C46="Mid Season",'2 Crop Water Requirement'!$J$14,IF(C46="Late Season Stage",'2 Crop Water Requirement'!$J$15,"")))) ->  | F46: 0 | P46: 0 | Q46: 0 | R46: 0 | S46: 0 | T46: 0 | U46: 0 | V46: 0 | W46: 0 | X46: 0 | Y46: 0 | Z46: 0 | AA46: 0
B47: 2017-02-10 | C47: =IF(AND(B47>='2 Crop Water Requirement'!$H$12,B47<='2 Crop Water Requirement'!$I$12),"Initial Stage",IF(AND(B47+1>'2 Crop Water Requirement'!$H$13,B47<='2 Crop Water Requirement'!$I$13),"Crop Development Phase",IF(AND(B47+1>'2 Crop Water Requirement'!$H$14,B47<'2 Crop Water Requirement'!$I$14+1),"Mid Season",IF(AND(B47+1>'2 Crop Water Requirement'!$H$15,B47-1<'2 Crop Water Requirement'!$I$15),"Late Season Stage","")))) ->  | D47: =IF(MONTH(B47)=1,'2 Crop Water Requirement'!$E$52,IF(MONTH(B47)=2,'2 Crop Water Requirement'!$F$52,IF(MONTH(B47)=3,'2 Crop Water Requirement'!$G$52,IF(MONTH(B47)=4,'2 Crop Water Requirement'!$H$52,IF(MONTH(B47)=5,'2 Crop Water Requirement'!$I$52,IF(MONTH(B47)=6,'2 Crop Water Requirement'!$J$52,IF(MONTH(B47)=7,'2 Crop Water Requirement'!$K$52,IF(MONTH(B47)=8,'2 Crop Water Requirement'!$L$52,IF(MONTH(B47)=9,'2 Crop Water Requirement'!$M$52,IF(MONTH(B47)=10,'2 Crop Water Requirement'!$N$52,IF(MONTH(B47)=11,'2 Crop Water Requirement'!$O$52,IF(MONTH(B47)=12,'2 Crop Water Requirement'!$P$52,"")))))))))))) -> 5.543 | E47: =IF(C47="Initial Stage",'2 Crop Water Requirement'!$J$12,IF(C47="Crop Development Phase",'2 Crop Water Requirement'!$J$13,IF(C47="Mid Season",'2 Crop Water Requirement'!$J$14,IF(C47="Late Season Stage",'2 Crop Water Requirement'!$J$15,"")))) ->  | F47: 0 | P47: 0 | Q47: 0 | R47: 0 | S47: 0 | T47: 0 | U47: 0 | V47: 0 | W47: 0 | X47: 0 | Y47: 0 | Z47: 0 | AA47: 0 | AF47: Evapotranspiration | AH47: ='Calculation Sheet'!AF47&'Crop Information'!B1&'Calculation Sheet'!AF48 -> Evapotranspiration Barley/Oats/Wheat [mm/month]
B48: 2017-02-11 | C48: =IF(AND(B48>='2 Crop Water Requirement'!$H$12,B48<='2 Crop Water Requirement'!$I$12),"Initial Stage",IF(AND(B48+1>'2 Crop Water Requirement'!$H$13,B48<='2 Crop Water Requirement'!$I$13),"Crop Development Phase",IF(AND(B48+1>'2 Crop Water Requirement'!$H$14,B48<'2 Crop Water Requirement'!$I$14+1),"Mid Season",IF(AND(B48+1>'2 Crop Water Requirement'!$H$15,B48-1<'2 Crop Water Requirement'!$I$15),"Late Season Stage","")))) ->  | D48: =IF(MONTH(B48)=1,'2 Crop Water Requirement'!$E$52,IF(MONTH(B48)=2,'2 Crop Water Requirement'!$F$52,IF(MONTH(B48)=3,'2 Crop Water Requirement'!$G$52,IF(MONTH(B48)=4,'2 Crop Water Requirement'!$H$52,IF(MONTH(B48)=5,'2 Crop Water Requirement'!$I$52,IF(MONTH(B48)=6,'2 Crop Water Requirement'!$J$52,IF(MONTH(B48)=7,'2 Crop Water Requirement'!$K$52,IF(MONTH(B48)=8,'2 Crop Water Requirement'!$L$52,IF(MONTH(B48)=9,'2 Crop Water Requirement'!$M$52,IF(MONTH(B48)=10,'2 Crop Water Requirement'!$N$52,IF(MONTH(B48)=11,'2 Crop Water Requirement'!$O$52,IF(MONTH(B48)=12,'2 Crop Water Requirement'!$P$52,"")))))))))))) -> 5.543 | E48: =IF(C48="Initial Stage",'2 Crop Water Requirement'!$J$12,IF(C48="Crop Development Phase",'2 Crop Water Requirement'!$J$13,IF(C48="Mid Season",'2 Crop Water Requirement'!$J$14,IF(C48="Late Season Stage",'2 Crop Water Requirement'!$J$15,"")))) ->  | F48: 0 | P48: 0 | Q48: 0 | R48: 0 | S48: 0 | T48: 0 | U48: 0 | V48: 0 | W48: 0 | X48: 0 | Y48: 0 | Z48: 0 | AA48: 0 | AF48: [mm/month]
B49: 2017-02-12 | C49: =IF(AND(B49>='2 Crop Water Requirement'!$H$12,B49<='2 Crop Water Requirement'!$I$12),"Initial Stage",IF(AND(B49+1>'2 Crop Water Requirement'!$H$13,B49<='2 Crop Water Requirement'!$I$13),"Crop Development Phase",IF(AND(B49+1>'2 Crop Water Requirement'!$H$14,B49<'2 Crop Water Requirement'!$I$14+1),"Mid Season",IF(AND(B49+1>'2 Crop Water Requirement'!$H$15,B49-1<'2 Crop Water Requirement'!$I$15),"Late Season Stage","")))) ->  | D49: =IF(MONTH(B49)=1,'2 Crop Water Requirement'!$E$52,IF(MONTH(B49)=2,'2 Crop Water Requirement'!$F$52,IF(MONTH(B49)=3,'2 Crop Water Requirement'!$G$52,IF(MONTH(B49)=4,'2 Crop Water Requirement'!$H$52,IF(MONTH(B49)=5,'2 Crop Water Requirement'!$I$52,IF(MONTH(B49)=6,'2 Crop Water Requirement'!$J$52,IF(MONTH(B49)=7,'2 Crop Water Requirement'!$K$52,IF(MONTH(B49)=8,'2 Crop Water Requirement'!$L$52,IF(MONTH(B49)=9,'2 Crop Water Requirement'!$M$52,IF(MONTH(B49)=10,'2 Crop Water Requirement'!$N$52,IF(MONTH(B49)=11,'2 Crop Water Requirement'!$O$52,IF(MONTH(B49)=12,'2 Crop Water Requirement'!$P$52,"")))))))))))) -> 5.543 | E49: =IF(C49="Initial Stage",'2 Crop Water Requirement'!$J$12,IF(C49="Crop Development Phase",'2 Crop Water Requirement'!$J$13,IF(C49="Mid Season",'2 Crop Water Requirement'!$J$14,IF(C49="Late Season Stage",'2 Crop Water Requirement'!$J$15,"")))) ->  | F49: 0 | P49: 0 | Q49: 0 | R49: 0 | S49: 0 | T49: 0 | U49: 0 | V49: 0 | W49: 0 | X49: 0 | Y49: 0 | Z49: 0 | AA49: 0
B50: 2017-02-13 | C50: =IF(AND(B50>='2 Crop Water Requirement'!$H$12,B50<='2 Crop Water Requirement'!$I$12),"Initial Stage",IF(AND(B50+1>'2 Crop Water Requirement'!$H$13,B50<='2 Crop Water Requirement'!$I$13),"Crop Development Phase",IF(AND(B50+1>'2 Crop Water Requirement'!$H$14,B50<'2 Crop Water Requirement'!$I$14+1),"Mid Season",IF(AND(B50+1>'2 Crop Water Requirement'!$H$15,B50-1<'2 Crop Water Requirement'!$I$15),"Late Season Stage","")))) ->  | D50: =IF(MONTH(B50)=1,'2 Crop Water Requirement'!$E$52,IF(MONTH(B50)=2,'2 Crop Water Requirement'!$F$52,IF(MONTH(B50)=3,'2 Crop Water Requirement'!$G$52,IF(MONTH(B50)=4,'2 Crop Water Requirement'!$H$52,IF(MONTH(B50)=5,'2 Crop Water Requirement'!$I$52,IF(MONTH(B50)=6,'2 Crop Water Requirement'!$J$52,IF(MONTH(B50)=7,'2 Crop Water Requirement'!$K$52,IF(MONTH(B50)=8,'2 Crop Water Requirement'!$L$52,IF(MONTH(B50)=9,'2 Crop Water Requirement'!$M$52,IF(MONTH(B50)=10,'2 Crop Water Requirement'!$N$52,IF(MONTH(B50)=11,'2 Crop Water Requirement'!$O$52,IF(MONTH(B50)=12,'2 Crop Water Requirement'!$P$52,"")))))))))))) -> 5.543 | E50: =IF(C50="Initial Stage",'2 Crop Water Requirement'!$J$12,IF(C50="Crop Development Phase",'2 Crop Water Requirement'!$J$13,IF(C50="Mid Season",'2 Crop Water Requirement'!$J$14,IF(C50="Late Season Stage",'2 Crop Water Requirement'!$J$15,"")))) ->  | F50: 0 | P50: 0 | Q50: 0 | R50: 0 | S50: 0 | T50: 0 | U50: 0 | V50: 0 | W50: 0 | X50: 0 | Y50: 0 | Z50: 0 | AA50: 0
B51: 2017-02-14 | C51: =IF(AND(B51>='2 Crop Water Requirement'!$H$12,B51<='2 Crop Water Requirement'!$I$12),"Initial Stage",IF(AND(B51+1>'2 Crop Water Requirement'!$H$13,B51<='2 Crop Water Requirement'!$I$13),"Crop Development Phase",IF(AND(B51+1>'2 Crop Water Requirement'!$H$14,B51<'2 Crop Water Requirement'!$I$14+1),"Mid Season",IF(AND(B51+1>'2 Crop Water Requirement'!$H$15,B51-1<'2 Crop Water Requirement'!$I$15),"Late Season Stage","")))) ->  | D51: =IF(MONTH(B51)=1,'2 Crop Water Requirement'!$E$52,IF(MONTH(B51)=2,'2 Crop Water Requirement'!$F$52,IF(MONTH(B51)=3,'2 Crop Water Requirement'!$G$52,IF(MONTH(B51)=4,'2 Crop Water Requirement'!$H$52,IF(MONTH(B51)=5,'2 Crop Water Requirement'!$I$52,IF(MONTH(B51)=6,'2 Crop Water Requirement'!$J$52,IF(MONTH(B51)=7,'2 Crop Water Requirement'!$K$52,IF(MONTH(B51)=8,'2 Crop Water Requirement'!$L$52,IF(MONTH(B51)=9,'2 Crop Water Requirement'!$M$52,IF(MONTH(B51)=10,'2 Crop Water Requirement'!$N$52,IF(MONTH(B51)=11,'2 Crop Water Requirement'!$O$52,IF(MONTH(B51)=12,'2 Crop Water Requirement'!$P$52,"")))))))))))) -> 5.543 | E51: =IF(C51="Initial Stage",'2 Crop Water Requirement'!$J$12,IF(C51="Crop Development Phase",'2 Crop Water Requirement'!$J$13,IF(C51="Mid Season",'2 Crop Water Requirement'!$J$14,IF(C51="Late Season Stage",'2 Crop Water Requirement'!$J$15,"")))) ->  | F51: 0 | P51: 0 | Q51: 0 | R51: 0 | S51: 0 | T51: 0 | U51: 0 | V51: 0 | W51: 0 | X51: 0 | Y51: 0 | Z51: 0 | AA51: 0
B52: 2017-02-15 | C52: =IF(AND(B52>='2 Crop Water Requirement'!$H$12,B52<='2 Crop Water Requirement'!$I$12),"Initial Stage",IF(AND(B52+1>'2 Crop Water Requirement'!$H$13,B52<='2 Crop Water Requirement'!$I$13),"Crop Development Phase",IF(AND(B52+1>'2 Crop Water Requirement'!$H$14,B52<'2 Crop Water Requirement'!$I$14+1),"Mid Season",IF(AND(B52+1>'2 Crop Water Requirement'!$H$15,B52-1<'2 Crop Water Requirement'!$I$15),"Late Season Stage","")))) ->  | D52: =IF(MONTH(B52)=1,'2 Crop Water Requirement'!$E$52,IF(MONTH(B52)=2,'2 Crop Water Requirement'!$F$52,IF(MONTH(B52)=3,'2 Crop Water Requirement'!$G$52,IF(MONTH(B52)=4,'2 Crop Water Requirement'!$H$52,IF(MONTH(B52)=5,'2 Crop Water Requirement'!$I$52,IF(MONTH(B52)=6,'2 Crop Water Requirement'!$J$52,IF(MONTH(B52)=7,'2 Crop Water Requirement'!$K$52,IF(MONTH(B52)=8,'2 Crop Water Requirement'!$L$52,IF(MONTH(B52)=9,'2 Crop Water Requirement'!$M$52,IF(MONTH(B52)=10,'2 Crop Water Requirement'!$N$52,IF(MONTH(B52)=11,'2 Crop Water Requirement'!$O$52,IF(MONTH(B52)=12,'2 Crop Water Requirement'!$P$52,"")))))))))))) -> 5.543 | E52: =IF(C52="Initial Stage",'2 Crop Water Requirement'!$J$12,IF(C52="Crop Development Phase",'2 Crop Water Requirement'!$J$13,IF(C52="Mid Season",'2 Crop Water Requirement'!$J$14,IF(C52="Late Season Stage",'2 Crop Water Requirement'!$J$15,"")))) ->  | F52: 0 | P52: 0 | Q52: 0 | R52: 0 | S52: 0 | T52: 0 | U52: 0 | V52: 0 | W52: 0 | X52: 0 | Y52: 0 | Z52: 0 | AA52: 0 | AH52: Crop Growing Periods: | AI52: Efficiency of
B53: 2017-02-16 | C53: =IF(AND(B53>='2 Crop Water Requirement'!$H$12,B53<='2 Crop Water Requirement'!$I$12),"Initial Stage",IF(AND(B53+1>'2 Crop Water Requirement'!$H$13,B53<='2 Crop Water Requirement'!$I$13),"Crop Development Phase",IF(AND(B53+1>'2 Crop Water Requirement'!$H$14,B53<'2 Crop Water Requirement'!$I$14+1),"Mid Season",IF(AND(B53+1>'2 Crop Water Requirement'!$H$15,B53-1<'2 Crop Water Requirement'!$I$15),"Late Season Stage","")))) ->  | D53: =IF(MONTH(B53)=1,'2 Crop Water Requirement'!$E$52,IF(MONTH(B53)=2,'2 Crop Water Requirement'!$F$52,IF(MONTH(B53)=3,'2 Crop Water Requirement'!$G$52,IF(MONTH(B53)=4,'2 Crop Water Requirement'!$H$52,IF(MONTH(B53)=5,'2 Crop Water Requirement'!$I$52,IF(MONTH(B53)=6,'2 Crop Water Requirement'!$J$52,IF(MONTH(B53)=7,'2 Crop Water Requirement'!$K$52,IF(MONTH(B53)=8,'2 Crop Water Requirement'!$L$52,IF(MONTH(B53)=9,'2 Crop Water Requirement'!$M$52,IF(MONTH(B53)=10,'2 Crop Water Requirement'!$N$52,IF(MONTH(B53)=11,'2 Crop Water Requirement'!$O$52,IF(MONTH(B53)=12,'2 Crop Water Requirement'!$P$52,"")))))))))))) -> 5.543 | E53: =IF(C53="Initial Stage",'2 Crop Water Requirement'!$J$12,IF(C53="Crop Development Phase",'2 Crop Water Requirement'!$J$13,IF(C53="Mid Season",'2 Crop Water Requirement'!$J$14,IF(C53="Late Season Stage",'2 Crop Water Requirement'!$J$15,"")))) ->  | F53: 0 | P53: 0 | Q53: 0 | R53: 0 | S53: 0 | T53: 0 | U53: 0 | V53: 0 | W53: 0 | X53: 0 | Y53: 0 | Z53: 0 | AA53: 0
B54: 2017-02-17 | C54: =IF(AND(B54>='2 Crop Water Requirement'!$H$12,B54<='2 Crop Water Requirement'!$I$12),"Initial Stage",IF(AND(B54+1>'2 Crop Water Requirement'!$H$13,B54<='2 Crop Water Requirement'!$I$13),"Crop Development Phase",IF(AND(B54+1>'2 Crop Water Requirement'!$H$14,B54<'2 Crop Water Requirement'!$I$14+1),"Mid Season",IF(AND(B54+1>'2 Crop Water Requirement'!$H$15,B54-1<'2 Crop Water Requirement'!$I$15),"Late Season Stage","")))) ->  | D54: =IF(MONTH(B54)=1,'2 Crop Water Requirement'!$E$52,IF(MONTH(B54)=2,'2 Crop Water Requirement'!$F$52,IF(MONTH(B54)=3,'2 Crop Water Requirement'!$G$52,IF(MONTH(B54)=4,'2 Crop Water Requirement'!$H$52,IF(MONTH(B54)=5,'2 Crop Water Requirement'!$I$52,IF(MONTH(B54)=6,'2 Crop Water Requirement'!$J$52,IF(MONTH(B54)=7,'2 Crop Water Requirement'!$K$52,IF(MONTH(B54)=8,'2 Crop Water Requirement'!$L$52,IF(MONTH(B54)=9,'2 Crop Water Requirement'!$M$52,IF(MONTH(B54)=10,'2 Crop Water Requirement'!$N$52,IF(MONTH(B54)=11,'2 Crop Water Requirement'!$O$52,IF(MONTH(B54)=12,'2 Crop Water Requirement'!$P$52,"")))))))))))) -> 5.543 | E54: =IF(C54="Initial Stage",'2 Crop Water Requirement'!$J$12,IF(C54="Crop Development Phase",'2 Crop Water Requirement'!$J$13,IF(C54="Mid Season",'2 Crop Water Requirement'!$J$14,IF(C54="Late Season Stage",'2 Crop Water Requirement'!$J$15,"")))) ->  | F54: 0 | P54: 0 | Q54: 0 | R54: 0 | S54: 0 | T54: 0 | U54: 0 | V54: 0 | W54: 0 | X54: 0 | Y54: 0 | Z54: 0 | AA54: 0 | AH54: Minimum
B55: 2017-02-18 | C55: =IF(AND(B55>='2 Crop Water Requirement'!$H$12,B55<='2 Crop Water Requirement'!$I$12),"Initial Stage",IF(AND(B55+1>'2 Crop Water Requirement'!$H$13,B55<='2 Crop Water Requirement'!$I$13),"Crop Development Phase",IF(AND(B55+1>'2 Crop Water Requirement'!$H$14,B55<'2 Crop Water Requirement'!$I$14+1),"Mid Season",IF(AND(B55+1>'2 Crop Water Requirement'!$H$15,B55-1<'2 Crop Water Requirement'!$I$15),"Late Season Stage","")))) ->  | D55: =IF(MONTH(B55)=1,'2 Crop Water Requirement'!$E$52,IF(MONTH(B55)=2,'2 Crop Water Requirement'!$F$52,IF(MONTH(B55)=3,'2 Crop Water Requirement'!$G$52,IF(MONTH(B55)=4,'2 Crop Water Requirement'!$H$52,IF(MONTH(B55)=5,'2 Crop Water Requirement'!$I$52,IF(MONTH(B55)=6,'2 Crop Water Requirement'!$J$52,IF(MONTH(B55)=7,'2 Crop Water Requirement'!$K$52,IF(MONTH(B55)=8,'2 Crop Water Requirement'!$L$52,IF(MONTH(B55)=9,'2 Crop Water Requirement'!$M$52,IF(MONTH(B55)=10,'2 Crop Water Requirement'!$N$52,IF(MONTH(B55)=11,'2 Crop Water Requirement'!$O$52,IF(MONTH(B55)=12,'2 Crop Water Requirement'!$P$52,"")))))))))))) -> 5.543 | E55: =IF(C55="Initial Stage",'2 Crop Water Requirement'!$J$12,IF(C55="Crop Development Phase",'2 Crop Water Requirement'!$J$13,IF(C55="Mid Season",'2 Crop Water Requirement'!$J$14,IF(C55="Late Season Stage",'2 Crop Water Requirement'!$J$15,"")))) ->  | F55: 0 | P55: 0 | Q55: 0 | R55: 0 | S55: 0 | T55: 0 | U55: 0 | V55: 0 | W55: 0 | X55: 0 | Y55: 0 | Z55: 0 | AA55: 0 | AH55: Maximum
B56: 2017-02-19 | C56: =IF(AND(B56>='2 Crop Water Requirement'!$H$12,B56<='2 Crop Water Requirement'!$I$12),"Initial Stage",IF(AND(B56+1>'2 Crop Water Requirement'!$H$13,B56<='2 Crop Water Requirement'!$I$13),"Crop Development Phase",IF(AND(B56+1>'2 Crop Water Requirement'!$H$14,B56<'2 Crop Water Requirement'!$I$14+1),"Mid Season",IF(AND(B56+1>'2 Crop Water Requirement'!$H$15,B56-1<'2 Crop Water Requirement'!$I$15),"Late Season Stage","")))) ->  | D56: =IF(MONTH(B56)=1,'2 Crop Water Requirement'!$E$52,IF(MONTH(B56)=2,'2 Crop Water Requirement'!$F$52,IF(MONTH(B56)=3,'2 Crop Water Requirement'!$G$52,IF(MONTH(B56)=4,'2 Crop Water Requirement'!$H$52,IF(MONTH(B56)=5,'2 Crop Water Requirement'!$I$52,IF(MONTH(B56)=6,'2 Crop Water Requirement'!$J$52,IF(MONTH(B56)=7,'2 Crop Water Requirement'!$K$52,IF(MONTH(B56)=8,'2 Crop Water Requirement'!$L$52,IF(MONTH(B56)=9,'2 Crop Water Requirement'!$M$52,IF(MONTH(B56)=10,'2 Crop Water Requirement'!$N$52,IF(MONTH(B56)=11,'2 Crop Water Requirement'!$O$52,IF(MONTH(B56)=12,'2 Crop Water Requirement'!$P$52,"")))))))))))) -> 5.543 | E56: =IF(C56="Initial Stage",'2 Crop Water Requirement'!$J$12,IF(C56="Crop Development Phase",'2 Crop Water Requirement'!$J$13,IF(C56="Mid Season",'2 Crop Water Requirement'!$J$14,IF(C56="Late Season Stage",'2 Crop Water Requirement'!$J$15,"")))) ->  | F56: 0 | P56: 0 | Q56: 0 | R56: 0 | S56: 0 | T56: 0 | U56: 0 | V56: 0 | W56: 0 | X56: 0 | Y56: 0 | Z56: 0 | AA56: 0 | AH56: Average
B57: 2017-02-20 | C57: =IF(AND(B57>='2 Crop Water Requirement'!$H$12,B57<='2 Crop Water Requirement'!$I$12),"Initial Stage",IF(AND(B57+1>'2 Crop Water Requirement'!$H$13,B57<='2 Crop Water Requirement'!$I$13),"Crop Development Phase",IF(AND(B57+1>'2 Crop Water Requirement'!$H$14,B57<'2 Crop Water Requirement'!$I$14+1),"Mid Season",IF(AND(B57+1>'2 Crop Water Requirement'!$H$15,B57-1<'2 Crop Water Requirement'!$I$15),"Late Season Stage","")))) ->  | D57: =IF(MONTH(B57)=1,'2 Crop Water Requirement'!$E$52,IF(MONTH(B57)=2,'2 Crop Water Requirement'!$F$52,IF(MONTH(B57)=3,'2 Crop Water Requirement'!$G$52,IF(MONTH(B57)=4,'2 Crop Water Requirement'!$H$52,IF(MONTH(B57)=5,'2 Crop Water Requirement'!$I$52,IF(MONTH(B57)=6,'2 Crop Water Requirement'!$J$52,IF(MONTH(B57)=7,'2 Crop Water Requirement'!$K$52,IF(MONTH(B57)=8,'2 Crop Water Requirement'!$L$52,IF(MONTH(B57)=9,'2 Crop Water Requirement'!$M$52,IF(MONTH(B57)=10,'2 Crop Water Requirement'!$N$52,IF(MONTH(B57)=11,'2 Crop Water Requirement'!$O$52,IF(MONTH(B57)=12,'2 Crop Water Requirement'!$P$52,"")))))))))))) -> 5.543 | E57: =IF(C57="Initial Stage",'2 Crop Water Requirement'!$J$12,IF(C57="Crop Development Phase",'2 Crop Water Requirement'!$J$13,IF(C57="Mid Season",'2 Crop Water Requirement'!$J$14,IF(C57="Late Season Stage",'2 Crop Water Requirement'!$J$15,"")))) ->  | F57: 0 | P57: 0 | Q57: 0 | R57: 0 | S57: 0 | T57: 0 | U57: 0 | V57: 0 | W57: 0 | X57: 0 | Y57: 0 | Z57: 0 | AA57: 0
B58: 2017-02-21 | C58: =IF(AND(B58>='2 Crop Water Requirement'!$H$12,B58<='2 Crop Water Requirement'!$I$12),"Initial Stage",IF(AND(B58+1>'2 Crop Water Requirement'!$H$13,B58<='2 Crop Water Requirement'!$I$13),"Crop Development Phase",IF(AND(B58+1>'2 Crop Water Requirement'!$H$14,B58<'2 Crop Water Requirement'!$I$14+1),"Mid Season",IF(AND(B58+1>'2 Crop Water Requirement'!$H$15,B58-1<'2 Crop Water Requirement'!$I$15),"Late Season Stage","")))) ->  | D58: =IF(MONTH(B58)=1,'2 Crop Water Requirement'!$E$52,IF(MONTH(B58)=2,'2 Crop Water Requirement'!$F$52,IF(MONTH(B58)=3,'2 Crop Water Requirement'!$G$52,IF(MONTH(B58)=4,'2 Crop Water Requirement'!$H$52,IF(MONTH(B58)=5,'2 Crop Water Requirement'!$I$52,IF(MONTH(B58)=6,'2 Crop Water Requirement'!$J$52,IF(MONTH(B58)=7,'2 Crop Water Requirement'!$K$52,IF(MONTH(B58)=8,'2 Crop Water Requirement'!$L$52,IF(MONTH(B58)=9,'2 Crop Water Requirement'!$M$52,IF(MONTH(B58)=10,'2 Crop Water Requirement'!$N$52,IF(MONTH(B58)=11,'2 Crop Water Requirement'!$O$52,IF(MONTH(B58)=12,'2 Crop Water Requirement'!$P$52,"")))))))))))) -> 5.543 | E58: =IF(C58="Initial Stage",'2 Crop Water Requirement'!$J$12,IF(C58="Crop Development Phase",'2 Crop Water Requirement'!$J$13,IF(C58="Mid Season",'2 Crop Water Requirement'!$J$14,IF(C58="Late Season Stage",'2 Crop Water Requirement'!$J$15,"")))) ->  | F58: 0 | P58: 0 | Q58: 0 | R58: 0 | S58: 0 | T58: 0 | U58: 0 | V58: 0 | W58: 0 | X58: 0 | Y58: 0 | Z58: 0 | AA58: 0
B59: 2017-02-22 | C59: =IF(AND(B59>='2 Crop Water Requirement'!$H$12,B59<='2 Crop Water Requirement'!$I$12),"Initial Stage",IF(AND(B59+1>'2 Crop Water Requirement'!$H$13,B59<='2 Crop Water Requirement'!$I$13),"Crop Development Phase",IF(AND(B59+1>'2 Crop Water Requirement'!$H$14,B59<'2 Crop Water Requirement'!$I$14+1),"Mid Season",IF(AND(B59+1>'2 Crop Water Requirement'!$H$15,B59-1<'2 Crop Water Requirement'!$I$15),"Late Season Stage","")))) ->  | D59: =IF(MONTH(B59)=1,'2 Crop Water Requirement'!$E$52,IF(MONTH(B59)=2,'2 Crop Water Requirement'!$F$52,IF(MONTH(B59)=3,'2 Crop Water Requirement'!$G$52,IF(MONTH(B59)=4,'2 Crop Water Requirement'!$H$52,IF(MONTH(B59)=5,'2 Crop Water Requirement'!$I$52,IF(MONTH(B59)=6,'2 Crop Water Requirement'!$J$52,IF(MONTH(B59)=7,'2 Crop Water Requirement'!$K$52,IF(MONTH(B59)=8,'2 Crop Water Requirement'!$L$52,IF(MONTH(B59)=9,'2 Crop Water Requirement'!$M$52,IF(MONTH(B59)=10,'2 Crop Water Requirement'!$N$52,IF(MONTH(B59)=11,'2 Crop Water Requirement'!$O$52,IF(MONTH(B59)=12,'2 Crop Water Requirement'!$P$52,"")))))))))))) -> 5.543 | E59: =IF(C59="Initial Stage",'2 Crop Water Requirement'!$J$12,IF(C59="Crop Development Phase",'2 Crop Water Requirement'!$J$13,IF(C59="Mid Season",'2 Crop Water Requirement'!$J$14,IF(C59="Late Season Stage",'2 Crop Water Requirement'!$J$15,"")))) ->  | F59: 0 | P59: 0 | Q59: 0 | R59: 0 | S59: 0 | T59: 0 | U59: 0 | V59: 0 | W59: 0 | X59: 0 | Y59: 0 | Z59: 0 | AA59: 0
B60: 2017-02-23 | C60: =IF(AND(B60>='2 Crop Water Requirement'!$H$12,B60<='2 Crop Water Requirement'!$I$12),"Initial Stage",IF(AND(B60+1>'2 Crop Water Requirement'!$H$13,B60<='2 Crop Water Requirement'!$I$13),"Crop Development Phase",IF(AND(B60+1>'2 Crop Water Requirement'!$H$14,B60<'2 Crop Water Requirement'!$I$14+1),"Mid Season",IF(AND(B60+1>'2 Crop Water Requirement'!$H$15,B60-1<'2 Crop Water Requirement'!$I$15),"Late Season Stage","")))) ->  | D60: =IF(MONTH(B60)=1,'2 Crop Water Requirement'!$E$52,IF(MONTH(B60)=2,'2 Crop Water Requirement'!$F$52,IF(MONTH(B60)=3,'2 Crop Water Requirement'!$G$52,IF(MONTH(B60)=4,'2 Crop Water Requirement'!$H$52,IF(MONTH(B60)=5,'2 Crop Water Requirement'!$I$52,IF(MONTH(B60)=6,'2 Crop Water Requirement'!$J$52,IF(MONTH(B60)=7,'2 Crop Water Requirement'!$K$52,IF(MONTH(B60)=8,'2 Crop Water Requirement'!$L$52,IF(MONTH(B60)=9,'2 Crop Water Requirement'!$M$52,IF(MONTH(B60)=10,'2 Crop Water Requirement'!$N$52,IF(MONTH(B60)=11,'2 Crop Water Requirement'!$O$52,IF(MONTH(B60)=12,'2 Crop Water Requirement'!$P$52,"")))))))))))) -> 5.543 | E60: =IF(C60="Initial Stage",'2 Crop Water Requirement'!$J$12,IF(C60="Crop Development Phase",'2 Crop Water Requirement'!$J$13,IF(C60="Mid Season",'2 Crop Water Requirement'!$J$14,IF(C60="Late Season Stage",'2 Crop Water Requirement'!$J$15,"")))) ->  | F60: 0 | P60: 0 | Q60: 0 | R60: 0 | S60: 0 | T60: 0 | U60: 0 | V60: 0 | W60: 0 | X60: 0 | Y60: 0 | Z60: 0 | AA60: 0 | AH60: Irrigation
B61: 2017-02-24 | C61: =IF(AND(B61>='2 Crop Water Requirement'!$H$12,B61<='2 Crop Water Requirement'!$I$12),"Initial Stage",IF(AND(B61+1>'2 Crop Water Requirement'!$H$13,B61<='2 Crop Water Requirement'!$I$13),"Crop Development Phase",IF(AND(B61+1>'2 Crop Water Requirement'!$H$14,B61<'2 Crop Water Requirement'!$I$14+1),"Mid Season",IF(AND(B61+1>'2 Crop Water Requirement'!$H$15,B61-1<'2 Crop Water Requirement'!$I$15),"Late Season Stage","")))) ->  | D61: =IF(MONTH(B61)=1,'2 Crop Water Requirement'!$E$52,IF(MONTH(B61)=2,'2 Crop Water Requirement'!$F$52,IF(MONTH(B61)=3,'2 Crop Water Requirement'!$G$52,IF(MONTH(B61)=4,'2 Crop Water Requirement'!$H$52,IF(MONTH(B61)=5,'2 Crop Water Requirement'!$I$52,IF(MONTH(B61)=6,'2 Crop Water Requirement'!$J$52,IF(MONTH(B61)=7,'2 Crop Water Requirement'!$K$52,IF(MONTH(B61)=8,'2 Crop Water Requirement'!$L$52,IF(MONTH(B61)=9,'2 Crop Water Requirement'!$M$52,IF(MONTH(B61)=10,'2 Crop Water Requirement'!$N$52,IF(MONTH(B61)=11,'2 Crop Water Requirement'!$O$52,IF(MONTH(B61)=12,'2 Crop Water Requirement'!$P$52,"")))))))))))) -> 5.543 | E61: =IF(C61="Initial Stage",'2 Crop Water Requirement'!$J$12,IF(C61="Crop Development Phase",'2 Crop Water Requirement'!$J$13,IF(C61="Mid Season",'2 Crop Water Requirement'!$J$14,IF(C61="Late Season Stage",'2 Crop Water Requirement'!$J$15,"")))) ->  | F61: 0 | P61: 0 | Q61: 0 | R61: 0 | S61: 0 | T61: 0 | U61: 0 | V61: 0 | W61: 0 | X61: 0 | Y61: 0 | Z61: 0 | AA61: 0
B62: 2017-02-25 | C62: =IF(AND(B62>='2 Crop Water Requirement'!$H$12,B62<='2 Crop Water Requirement'!$I$12),"Initial Stage",IF(AND(B62+1>'2 Crop Water Requirement'!$H$13,B62<='2 Crop Water Requirement'!$I$13),"Crop Development Phase",IF(AND(B62+1>'2 Crop Water Requirement'!$H$14,B62<'2 Crop Water Requirement'!$I$14+1),"Mid Season",IF(AND(B62+1>'2 Crop Water Requirement'!$H$15,B62-1<'2 Crop Water Requirement'!$I$15),"Late Season Stage","")))) ->  | D62: =IF(MONTH(B62)=1,'2 Crop Water Requirement'!$E$52,IF(MONTH(B62)=2,'2 Crop Water Requirement'!$F$52,IF(MONTH(B62)=3,'2 Crop Water Requirement'!$G$52,IF(MONTH(B62)=4,'2 Crop Water Requirement'!$H$52,IF(MONTH(B62)=5,'2 Crop Water Requirement'!$I$52,IF(MONTH(B62)=6,'2 Crop Water Requirement'!$J$52,IF(MONTH(B62)=7,'2 Crop Water Requirement'!$K$52,IF(MONTH(B62)=8,'2 Crop Water Requirement'!$L$52,IF(MONTH(B62)=9,'2 Crop Water Requirement'!$M$52,IF(MONTH(B62)=10,'2 Crop Water Requirement'!$N$52,IF(MONTH(B62)=11,'2 Crop Water Requirement'!$O$52,IF(MONTH(B62)=12,'2 Crop Water Requirement'!$P$52,"")))))))))))) -> 5.543 | E62: =IF(C62="Initial Stage",'2 Crop Water Requirement'!$J$12,IF(C62="Crop Development Phase",'2 Crop Water Requirement'!$J$13,IF(C62="Mid Season",'2 Crop Water Requirement'!$J$14,IF(C62="Late Season Stage",'2 Crop Water Requirement'!$J$15,"")))) ->  | F62: 0 | P62: 0 | Q62: 0 | R62: 0 | S62: 0 | T62: 0 | U62: 0 | V62: 0 | W62: 0 | X62: 0 | Y62: 0 | Z62: 0 | AA62: 0 | AH62: Drip | AI62: 0.9
B63: 2017-02-26 | C63: =IF(AND(B63>='2 Crop Water Requirement'!$H$12,B63<='2 Crop Water Requirement'!$I$12),"Initial Stage",IF(AND(B63+1>'2 Crop Water Requirement'!$H$13,B63<='2 Crop Water Requirement'!$I$13),"Crop Development Phase",IF(AND(B63+1>'2 Crop Water Requirement'!$H$14,B63<'2 Crop Water Requirement'!$I$14+1),"Mid Season",IF(AND(B63+1>'2 Crop Water Requirement'!$H$15,B63-1<'2 Crop Water Requirement'!$I$15),"Late Season Stage","")))) ->  | D63: =IF(MONTH(B63)=1,'2 Crop Water Requirement'!$E$52,IF(MONTH(B63)=2,'2 Crop Water Requirement'!$F$52,IF(MONTH(B63)=3,'2 Crop Water Requirement'!$G$52,IF(MONTH(B63)=4,'2 Crop Water Requirement'!$H$52,IF(MONTH(B63)=5,'2 Crop Water Requirement'!$I$52,IF(MONTH(B63)=6,'2 Crop Water Requirement'!$J$52,IF(MONTH(B63)=7,'2 Crop Water Requirement'!$K$52,IF(MONTH(B63)=8,'2 Crop Water Requirement'!$L$52,IF(MONTH(B63)=9,'2 Crop Water Requirement'!$M$52,IF(MONTH(B63)=10,'2 Crop Water Requirement'!$N$52,IF(MONTH(B63)=11,'2 Crop Water Requirement'!$O$52,IF(MONTH(B63)=12,'2 Crop Water Requirement'!$P$52,"")))))))))))) -> 5.543 | E63: =IF(C63="Initial Stage",'2 Crop Water Requirement'!$J$12,IF(C63="Crop Development Phase",'2 Crop Water Requirement'!$J$13,IF(C63="Mid Season",'2 Crop Water Requirement'!$J$14,IF(C63="Late Season Stage",'2 Crop Water Requirement'!$J$15,"")))) ->  | F63: 0 | P63: 0 | Q63: 0 | R63: 0 | S63: 0 | T63: 0 | U63: 0 | V63: 0 | W63: 0 | X63: 0 | Y63: 0 | Z63: 0 | AA63: 0 | AH63: Micro Sprinkler | AI63: 0.8
B64: 2017-02-27 | C64: =IF(AND(B64>='2 Crop Water Requirement'!$H$12,B64<='2 Crop Water Requirement'!$I$12),"Initial Stage",IF(AND(B64+1>'2 Crop Water Requirement'!$H$13,B64<='2 Crop Water Requirement'!$I$13),"Crop Development Phase",IF(AND(B64+1>'2 Crop Water Requirement'!$H$14,B64<'2 Crop Water Requirement'!$I$14+1),"Mid Season",IF(AND(B64+1>'2 Crop Water Requirement'!$H$15,B64-1<'2 Crop Water Requirement'!$I$15),"Late Season Stage","")))) ->  | D64: =IF(MONTH(B64)=1,'2 Crop Water Requirement'!$E$52,IF(MONTH(B64)=2,'2 Crop Water Requirement'!$F$52,IF(MONTH(B64)=3,'2 Crop Water Requirement'!$G$52,IF(MONTH(B64)=4,'2 Crop Water Requirement'!$H$52,IF(MONTH(B64)=5,'2 Crop Water Requirement'!$I$52,IF(MONTH(B64)=6,'2 Crop Water Requirement'!$J$52,IF(MONTH(B64)=7,'2 Crop Water Requirement'!$K$52,IF(MONTH(B64)=8,'2 Crop Water Requirement'!$L$52,IF(MONTH(B64)=9,'2 Crop Water Requirement'!$M$52,IF(MONTH(B64)=10,'2 Crop Water Requirement'!$N$52,IF(MONTH(B64)=11,'2 Crop Water Requirement'!$O$52,IF(MONTH(B64)=12,'2 Crop Water Requirement'!$P$52,"")))))))))))) -> 5.543 | E64: =IF(C64="Initial Stage",'2 Crop Water Requirement'!$J$12,IF(C64="Crop Development Phase",'2 Crop Water Requirement'!$J$13,IF(C64="Mid Season",'2 Crop Water Requirement'!$J$14,IF(C64="Late Season Stage",'2 Crop Water Requirement'!$J$15,"")))) ->  | F64: 0 | P64: 0 | Q64: 0 | R64: 0 | S64: 0 | T64: 0 | U64: 0 | V64: 0 | W64: 0 | X64: 0 | Y64: 0 | Z64: 0 | AA64: 0 | AH64: Centre Pivot, Linear move | AI64: 0.8
B65: 2017-02-28 | C65: =IF(AND(B65>='2 Crop Water Requirement'!$H$12,B65<='2 Crop Water Requirement'!$I$12),"Initial Stage",IF(AND(B65+1>'2 Crop Water Requirement'!$H$13,B65<='2 Crop Water Requirement'!$I$13),"Crop Development Phase",IF(AND(B65+1>'2 Crop Water Requirement'!$H$14,B65<'2 Crop Water Requirement'!$I$14+1),"Mid Season",IF(AND(B65+1>'2 Crop Water Requirement'!$H$15,B65-1<'2 Crop Water Requirement'!$I$15),"Late Season Stage","")))) ->  | D65: =IF(MONTH(B65)=1,'2 Crop Water Requirement'!$E$52,IF(MONTH(B65)=2,'2 Crop Water Requirement'!$F$52,IF(MONTH(B65)=3,'2 Crop Water Requirement'!$G$52,IF(MONTH(B65)=4,'2 Crop Water Requirement'!$H$52,IF(MONTH(B65)=5,'2 Crop Water Requirement'!$I$52,IF(MONTH(B65)=6,'2 Crop Water Requirement'!$J$52,IF(MONTH(B65)=7,'2 Crop Water Requirement'!$K$52,IF(MONTH(B65)=8,'2 Crop Water Requirement'!$L$52,IF(MONTH(B65)=9,'2 Crop Water Requirement'!$M$52,IF(MONTH(B65)=10,'2 Crop Water Requirement'!$N$52,IF(MONTH(B65)=11,'2 Crop Water Requirement'!$O$52,IF(MONTH(B65)=12,'2 Crop Water Requirement'!$P$52,"")))))))))))) -> 5.543 | E65: =IF(C65="Initial Stage",'2 Crop Water Requirement'!$J$12,IF(C65="Crop Development Phase",'2 Crop Water Requirement'!$J$13,IF(C65="Mid Season",'2 Crop Water Requirement'!$J$14,IF(C65="Late Season Stage",'2 Crop Water Requirement'!$J$15,"")))) ->  | F65: 0 | P65: 0 | Q65: 0 | R65: 0 | S65: 0 | T65: 0 | U65: 0 | V65: 0 | W65: 0 | X65: 0 | Y65: 0 | Z65: 0 | AA65: 0 | AH65: Centre Pivot LEPA | AI65: 0.85
B66: 2017-03-01 | C66: =IF(AND(B66>='2 Crop Water Requirement'!$H$12,B66<='2 Crop Water Requirement'!$I$12),"Initial Stage",IF(AND(B66+1>'2 Crop Water Requirement'!$H$13,B66<='2 Crop Water Requirement'!$I$13),"Crop Development Phase",IF(AND(B66+1>'2 Crop Water Requirement'!$H$14,B66<'2 Crop Water Requirement'!$I$14+1),"Mid Season",IF(AND(B66+1>'2 Crop Water Requirement'!$H$15,B66-1<'2 Crop Water Requirement'!$I$15),"Late Season Stage","")))) ->  | D66: =IF(MONTH(B66)=1,'2 Crop Water Requirement'!$E$52,IF(MONTH(B66)=2,'2 Crop Water Requirement'!$F$52,IF(MONTH(B66)=3,'2 Crop Water Requirement'!$G$52,IF(MONTH(B66)=4,'2 Crop Water Requirement'!$H$52,IF(MONTH(B66)=5,'2 Crop Water Requirement'!$I$52,IF(MONTH(B66)=6,'2 Crop Water Requirement'!$J$52,IF(MONTH(B66)=7,'2 Crop Water Requirement'!$K$52,IF(MONTH(B66)=8,'2 Crop Water Requirement'!$L$52,IF(MONTH(B66)=9,'2 Crop Water Requirement'!$M$52,IF(MONTH(B66)=10,'2 Crop Water Requirement'!$N$52,IF(MONTH(B66)=11,'2 Crop Water Requirement'!$O$52,IF(MONTH(B66)=12,'2 Crop Water Requirement'!$P$52,"")))))))))))) -> 6.507 | E66: =IF(C66="Initial Stage",'2 Crop Water Requirement'!$J$12,IF(C66="Crop Development Phase",'2 Crop Water Requirement'!$J$13,IF(C66="Mid Season",'2 Crop Water Requirement'!$J$14,IF(C66="Late Season Stage",'2 Crop Water Requirement'!$J$15,"")))) ->  | F66: 0 | P66: 0 | Q66: 0 | R66: 0 | S66: 0 | T66: 0 | U66: 0 | V66: 0 | W66: 0 | X66: 0 | Y66: 0 | Z66: 0 | AA66: 0 | AH66: Flood: Piped supply | AI66: 0.8
B67: 2017-03-02 | C67: =IF(AND(B67>='2 Crop Water Requirement'!$H$12,B67<='2 Crop Water Requirement'!$I$12),"Initial Stage",IF(AND(B67+1>'2 Crop Water Requirement'!$H$13,B67<='2 Crop Water Requirement'!$I$13),"Crop Development Phase",IF(AND(B67+1>'2 Crop Water Requirement'!$H$14,B67<'2 Crop Water Requirement'!$I$14+1),"Mid Season",IF(AND(B67+1>'2 Crop Water Requirement'!$H$15,B67-1<'2 Crop Water Requirement'!$I$15),"Late Season Stage","")))) ->  | D67: =IF(MONTH(B67)=1,'2 Crop Water Requirement'!$E$52,IF(MONTH(B67)=2,'2 Crop Water Requirement'!$F$52,IF(MONTH(B67)=3,'2 Crop Water Requirement'!$G$52,IF(MONTH(B67)=4,'2 Crop Water Requirement'!$H$52,IF(MONTH(B67)=5,'2 Crop Water Requirement'!$I$52,IF(MONTH(B67)=6,'2 Crop Water Requirement'!$J$52,IF(MONTH(B67)=7,'2 Crop Water Requirement'!$K$52,IF(MONTH(B67)=8,'2 Crop Water Requirement'!$L$52,IF(MONTH(B67)=9,'2 Crop Water Requirement'!$M$52,IF(MONTH(B67)=10,'2 Crop Water Requirement'!$N$52,IF(MONTH(B67)=11,'2 Crop Water Requirement'!$O$52,IF(MONTH(B67)=12,'2 Crop Water Requirement'!$P$52,"")))))))))))) -> 6.507 | E67: =IF(C67="Initial Stage",'2 Crop Water Requirement'!$J$12,IF(C67="Crop Development Phase",'2 Crop Water Requirement'!$J$13,IF(C67="Mid Season",'2 Crop Water Requirement'!$J$14,IF(C67="Late Season Stage",'2 Crop Water Requirement'!$J$15,"")))) ->  | F67: 0 | P67: 0 | Q67: 0 | R67: 0 | S67: 0 | T67: 0 | U67: 0 | V67: 0 | W67: 0 | X67: 0 | Y67: 0 | Z67: 0 | AA67: 0 | AH67: Flood: Lined canal supplied | AI67: 0.7
B68: 2017-03-03 | C68: =IF(AND(B68>='2 Crop Water Requirement'!$H$12,B68<='2 Crop Water Requirement'!$I$12),"Initial Stage",IF(AND(B68+1>'2 Crop Water Requirement'!$H$13,B68<='2 Crop Water Requirement'!$I$13),"Crop Development Phase",IF(AND(B68+1>'2 Crop Water Requirement'!$H$14,B68<'2 Crop Water Requirement'!$I$14+1),"Mid Season",IF(AND(B68+1>'2 Crop Water Requirement'!$H$15,B68-1<'2 Crop Water Requirement'!$I$15),"Late Season Stage","")))) ->  | D68: =IF(MONTH(B68)=1,'2 Crop Water Requirement'!$E$52,IF(MONTH(B68)=2,'2 Crop Water Requirement'!$F$52,IF(MONTH(B68)=3,'2 Crop Water Requirement'!$G$52,IF(MONTH(B68)=4,'2 Crop Water Requirement'!$H$52,IF(MONTH(B68)=5,'2 Crop Water Requirement'!$I$52,IF(MONTH(B68)=6,'2 Crop Water Requirement'!$J$52,IF(MONTH(B68)=7,'2 Crop Water Requirement'!$K$52,IF(MONTH(B68)=8,'2 Crop Water Requirement'!$L$52,IF(MONTH(B68)=9,'2 Crop Water Requirement'!$M$52,IF(MONTH(B68)=10,'2 Crop Water Requirement'!$N$52,IF(MONTH(B68)=11,'2 Crop Water Requirement'!$O$52,IF(MONTH(B68)=12,'2 Crop Water Requirement'!$P$52,"")))))))))))) -> 6.507 | E68: =IF(C68="Initial Stage",'2 Crop Water Requirement'!$J$12,IF(C68="Crop Development Phase",'2 Crop Water Requirement'!$J$13,IF(C68="Mid Season",'2 Crop Water Requirement'!$J$14,IF(C68="Late Season Stage",'2 Crop Water Requirement'!$J$15,"")))) ->  | F68: 0 | P68: 0 | Q68: 0 | R68: 0 | S68: 0 | T68: 0 | U68: 0 | V68: 0 | W68: 0 | X68: 0 | Y68: 0 | Z68: 0 | AA68: 0 | AH68: Flood: Earth canal supplied | AI68: 0.6
B69: 2017-03-04 | C69: =IF(AND(B69>='2 Crop Water Requirement'!$H$12,B69<='2 Crop Water Requirement'!$I$12),"Initial Stage",IF(AND(B69+1>'2 Crop Water Requirement'!$H$13,B69<='2 Crop Water Requirement'!$I$13),"Crop Development Phase",IF(AND(B69+1>'2 Crop Water Requirement'!$H$14,B69<'2 Crop Water Requirement'!$I$14+1),"Mid Season",IF(AND(B69+1>'2 Crop Water Requirement'!$H$15,B69-1<'2 Crop Water Requirement'!$I$15),"Late Season Stage","")))) ->  | D69: =IF(MONTH(B69)=1,'2 Crop Water Requirement'!$E$52,IF(MONTH(B69)=2,'2 Crop Water Requirement'!$F$52,IF(MONTH(B69)=3,'2 Crop Water Requirement'!$G$52,IF(MONTH(B69)=4,'2 Crop Water Requirement'!$H$52,IF(MONTH(B69)=5,'2 Crop Water Requirement'!$I$52,IF(MONTH(B69)=6,'2 Crop Water Requirement'!$J$52,IF(MONTH(B69)=7,'2 Crop Water Requirement'!$K$52,IF(MONTH(B69)=8,'2 Crop Water Requirement'!$L$52,IF(MONTH(B69)=9,'2 Crop Water Requirement'!$M$52,IF(MONTH(B69)=10,'2 Crop Water Requirement'!$N$52,IF(MONTH(B69)=11,'2 Crop Water Requirement'!$O$52,IF(MONTH(B69)=12,'2 Crop Water Requirement'!$P$52,"")))))))))))) -> 6.507 | E69: =IF(C69="Initial Stage",'2 Crop Water Requirement'!$J$12,IF(C69="Crop Development Phase",'2 Crop Water Requirement'!$J$13,IF(C69="Mid Season",'2 Crop Water Requirement'!$J$14,IF(C69="Late Season Stage",'2 Crop Water Requirement'!$J$15,"")))) ->  | F69: 0 | P69: 0 | Q69: 0 | R69: 0 | S69: 0 | T69: 0 | U69: 0 | V69: 0 | W69: 0 | X69: 0 | Y69: 0 | Z69: 0 | AA69: 0 | AH69: Sprinkler (permanent) | AI69: 0.75
B70: 2017-03-05 | C70: =IF(AND(B70>='2 Crop Water Requirement'!$H$12,B70<='2 Crop Water Requirement'!$I$12),"Initial Stage",IF(AND(B70+1>'2 Crop Water Requirement'!$H$13,B70<='2 Crop Water Requirement'!$I$13),"Crop Development Phase",IF(AND(B70+1>'2 Crop Water Requirement'!$H$14,B70<'2 Crop Water Requirement'!$I$14+1),"Mid Season",IF(AND(B70+1>'2 Crop Water Requirement'!$H$15,B70-1<'2 Crop Water Requirement'!$I$15),"Late Season Stage","")))) ->  | D70: =IF(MONTH(B70)=1,'2 Crop Water Requirement'!$E$52,IF(MONTH(B70)=2,'2 Crop Water Requirement'!$F$52,IF(MONTH(B70)=3,'2 Crop Water Requirement'!$G$52,IF(MONTH(B70)=4,'2 Crop Water Requirement'!$H$52,IF(MONTH(B70)=5,'2 Crop Water Requirement'!$I$52,IF(MONTH(B70)=6,'2 Crop Water Requirement'!$J$52,IF(MONTH(B70)=7,'2 Crop Water Requirement'!$K$52,IF(MONTH(B70)=8,'2 Crop Water Requirement'!$L$52,IF(MONTH(B70)=9,'2 Crop Water Requirement'!$M$52,IF(MONTH(B70)=10,'2 Crop Water Requirement'!$N$52,IF(MONTH(B70)=11,'2 Crop Water Requirement'!$O$52,IF(MONTH(B70)=12,'2 Crop Water Requirement'!$P$52,"")))))))))))) -> 6.507 | E70: =IF(C70="Initial Stage",'2 Crop Water Requirement'!$J$12,IF(C70="Crop Development Phase",'2 Crop Water Requirement'!$J$13,IF(C70="Mid Season",'2 Crop Water Requirement'!$J$14,IF(C70="Late Season Stage",'2 Crop Water Requirement'!$J$15,"")))) ->  | F70: 0 | P70: 0 | Q70: 0 | R70: 0 | S70: 0 | T70: 0 | U70: 0 | V70: 0 | W70: 0 | X70: 0 | Y70: 0 | Z70: 0 | AA70: 0 | AH70: Sprinkler (movable) | AI70: 0.7
B71: 2017-03-06 | C71: =IF(AND(B71>='2 Crop Water Requirement'!$H$12,B71<='2 Crop Water Requirement'!$I$12),"Initial Stage",IF(AND(B71+1>'2 Crop Water Requirement'!$H$13,B71<='2 Crop Water Requirement'!$I$13),"Crop Development Phase",IF(AND(B71+1>'2 Crop Water Requirement'!$H$14,B71<'2 Crop Water Requirement'!$I$14+1),"Mid Season",IF(AND(B71+1>'2 Crop Water Requirement'!$H$15,B71-1<'2 Crop Water Requirement'!$I$15),"Late Season Stage","")))) ->  | D71: =IF(MONTH(B71)=1,'2 Crop Water Requirement'!$E$52,IF(MONTH(B71)=2,'2 Crop Water Requirement'!$F$52,IF(MONTH(B71)=3,'2 Crop Water Requirement'!$G$52,IF(MONTH(B71)=4,'2 Crop Water Requirement'!$H$52,IF(MONTH(B71)=5,'2 Crop Water Requirement'!$I$52,IF(MONTH(B71)=6,'2 Crop Water Requirement'!$J$52,IF(MONTH(B71)=7,'2 Crop Water Requirement'!$K$52,IF(MONTH(B71)=8,'2 Crop Water Requirement'!$L$52,IF(MONTH(B71)=9,'2 Crop Water Requirement'!$M$52,IF(MONTH(B71)=10,'2 Crop Water Requirement'!$N$52,IF(MONTH(B71)=11,'2 Crop Water Requirement'!$O$52,IF(MONTH(B71)=12,'2 Crop Water Requirement'!$P$52,"")))))))))))) -> 6.507 | E71: =IF(C71="Initial Stage",'2 Crop Water Requirement'!$J$12,IF(C71="Crop Development Phase",'2 Crop Water Requirement'!$J$13,IF(C71="Mid Season",'2 Crop Water Requirement'!$J$14,IF(C71="Late Season Stage",'2 Crop Water Requirement'!$J$15,"")))) ->  | F71: 0 | P71: 0 | Q71: 0 | R71: 0 | S71: 0 | T71: 0 | U71: 0 | V71: 0 | W71: 0 | X71: 0 | Y71: 0 | Z71: 0 | AA71: 0 | AH71: Traveling gun | AI71: 0.65
B72: 2017-03-07 | C72: =IF(AND(B72>='2 Crop Water Requirement'!$H$12,B72<='2 Crop Water Requirement'!$I$12),"Initial Stage",IF(AND(B72+1>'2 Crop Water Requirement'!$H$13,B72<='2 Crop Water Requirement'!$I$13),"Crop Development Phase",IF(AND(B72+1>'2 Crop Water Requirement'!$H$14,B72<'2 Crop Water Requirement'!$I$14+1),"Mid Season",IF(AND(B72+1>'2 Crop Water Requirement'!$H$15,B72-1<'2 Crop Water Requirement'!$I$15),"Late Season Stage","")))) ->  | D72: =IF(MONTH(B72)=1,'2 Crop Water Requirement'!$E$52,IF(MONTH(B72)=2,'2 Crop Water Requirement'!$F$52,IF(MONTH(B72)=3,'2 Crop Water Requirement'!$G$52,IF(MONTH(B72)=4,'2 Crop Water Requirement'!$H$52,IF(MONTH(B72)=5,'2 Crop Water Requirement'!$I$52,IF(MONTH(B72)=6,'2 Crop Water Requirement'!$J$52,IF(MONTH(B72)=7,'2 Crop Water Requirement'!$K$52,IF(MONTH(B72)=8,'2 Crop Water Requirement'!$L$52,IF(MONTH(B72)=9,'2 Crop Water Requirement'!$M$52,IF(MONTH(B72)=10,'2 Crop Water Requirement'!$N$52,IF(MONTH(B72)=11,'2 Crop Water Requirement'!$O$52,IF(MONTH(B72)=12,'2 Crop Water Requirement'!$P$52,"")))))))))))) -> 6.507 | E72: =IF(C72="Initial Stage",'2 Crop Water Requirement'!$J$12,IF(C72="Crop Development Phase",'2 Crop Water Requirement'!$J$13,IF(C72="Mid Season",'2 Crop Water Requirement'!$J$14,IF(C72="Late Season Stage",'2 Crop Water Requirement'!$J$15,"")))) ->  | F72: =IFERROR((D72*E72),0) -> 0 | P72: =IF(MONTH($B72)=1,$F72,0) -> 0 | Q72: =IF(MONTH($B72)=2,$F72,0) -> 0 | R72: =IF(MONTH($B72)=3,$F72,0) -> 0 | S72: =IF(MONTH($B72)=4,$F72,0) -> 0 | T72: =IF(MONTH($B72)=5,$F72,0) -> 0 | U72: =IF(MONTH($B72)=6,$F72,0) -> 0 | V72: =IF(MONTH($B72)=7,$F72,0) -> 0 | W72: =IF(MONTH($B72)=8,$F72,0) -> 0 | X72: =IF(MONTH($B72)=9,$F72,0) -> 0 | Y72: =IF(MONTH($B72)=10,$F72,0) -> 0 | Z72: =IF(MONTH($B72)=11,$F72,0) -> 0 | AA72: =IF(MONTH($B72)=12,$F72,0) -> 0
B73: 2017-03-08 | C73: =IF(AND(B73>='2 Crop Water Requirement'!$H$12,B73<='2 Crop Water Requirement'!$I$12),"Initial Stage",IF(AND(B73+1>'2 Crop Water Requirement'!$H$13,B73<='2 Crop Water Requirement'!$I$13),"Crop Development Phase",IF(AND(B73+1>'2 Crop Water Requirement'!$H$14,B73<'2 Crop Water Requirement'!$I$14+1),"Mid Season",IF(AND(B73+1>'2 Crop Water Requirement'!$H$15,B73-1<'2 Crop Water Requirement'!$I$15),"Late Season Stage","")))) ->  | D73: =IF(MONTH(B73)=1,'2 Crop Water Requirement'!$E$52,IF(MONTH(B73)=2,'2 Crop Water Requirement'!$F$52,IF(MONTH(B73)=3,'2 Crop Water Requirement'!$G$52,IF(MONTH(B73)=4,'2 Crop Water Requirement'!$H$52,IF(MONTH(B73)=5,'2 Crop Water Requirement'!$I$52,IF(MONTH(B73)=6,'2 Crop Water Requirement'!$J$52,IF(MONTH(B73)=7,'2 Crop Water Requirement'!$K$52,IF(MONTH(B73)=8,'2 Crop Water Requirement'!$L$52,IF(MONTH(B73)=9,'2 Crop Water Requirement'!$M$52,IF(MONTH(B73)=10,'2 Crop Water Requirement'!$N$52,IF(MONTH(B73)=11,'2 Crop Water Requirement'!$O$52,IF(MONTH(B73)=12,'2 Crop Water Requirement'!$P$52,"")))))))))))) -> 6.507 | E73: =IF(C73="Initial Stage",'2 Crop Water Requirement'!$J$12,IF(C73="Crop Development Phase",'2 Crop Water Requirement'!$J$13,IF(C73="Mid Season",'2 Crop Water Requirement'!$J$14,IF(C73="Late Season Stage",'2 Crop Water Requirement'!$J$15,"")))) ->  | F73: 0 | P73: 0 | Q73: 0 | R73: 0 | S73: 0 | T73: 0 | U73: 0 | V73: 0 | W73: 0 | X73: 0 | Y73: 0 | Z73: 0 | AA73: 0
B74: 2017-03-09 | C74: =IF(AND(B74>='2 Crop Water Requirement'!$H$12,B74<='2 Crop Water Requirement'!$I$12),"Initial Stage",IF(AND(B74+1>'2 Crop Water Requirement'!$H$13,B74<='2 Crop Water Requirement'!$I$13),"Crop Development Phase",IF(AND(B74+1>'2 Crop Water Requirement'!$H$14,B74<'2 Crop Water Requirement'!$I$14+1),"Mid Season",IF(AND(B74+1>'2 Crop Water Requirement'!$H$15,B74-1<'2 Crop Water Requirement'!$I$15),"Late Season Stage","")))) ->  | D74: =IF(MONTH(B74)=1,'2 Crop Water Requirement'!$E$52,IF(MONTH(B74)=2,'2 Crop Water Requirement'!$F$52,IF(MONTH(B74)=3,'2 Crop Water Requirement'!$G$52,IF(MONTH(B74)=4,'2 Crop Water Requirement'!$H$52,IF(MONTH(B74)=5,'2 Crop Water Requirement'!$I$52,IF(MONTH(B74)=6,'2 Crop Water Requirement'!$J$52,IF(MONTH(B74)=7,'2 Crop Water Requirement'!$K$52,IF(MONTH(B74)=8,'2 Crop Water Requirement'!$L$52,IF(MONTH(B74)=9,'2 Crop Water Requirement'!$M$52,IF(MONTH(B74)=10,'2 Crop Water Requirement'!$N$52,IF(MONTH(B74)=11,'2 Crop Water Requirement'!$O$52,IF(MONTH(B74)=12,'2 Crop Water Requirement'!$P$52,"")))))))))))) -> 6.507 | E74: =IF(C74="Initial Stage",'2 Crop Water Requirement'!$J$12,IF(C74="Crop Development Phase",'2 Crop Water Requirement'!$J$13,IF(C74="Mid Season",'2 Crop Water Requirement'!$J$14,IF(C74="Late Season Stage",'2 Crop Water Requirement'!$J$15,"")))) ->  | F74: 0 | P74: 0 | Q74: 0 | R74: 0 | S74: 0 | T74: 0 | U74: 0 | V74: 0 | W74: 0 | X74: 0 | Y74: 0 | Z74: 0 | AA74: 0
B75: 2017-03-10 | C75: =IF(AND(B75>='2 Crop Water Requirement'!$H$12,B75<='2 Crop Water Requirement'!$I$12),"Initial Stage",IF(AND(B75+1>'2 Crop Water Requirement'!$H$13,B75<='2 Crop Water Requirement'!$I$13),"Crop Development Phase",IF(AND(B75+1>'2 Crop Water Requirement'!$H$14,B75<'2 Crop Water Requirement'!$I$14+1),"Mid Season",IF(AND(B75+1>'2 Crop Water Requirement'!$H$15,B75-1<'2 Crop Water Requirement'!$I$15),"Late Season Stage","")))) ->  | D75: =IF(MONTH(B75)=1,'2 Crop Water Requirement'!$E$52,IF(MONTH(B75)=2,'2 Crop Water Requirement'!$F$52,IF(MONTH(B75)=3,'2 Crop Water Requirement'!$G$52,IF(MONTH(B75)=4,'2 Crop Water Requirement'!$H$52,IF(MONTH(B75)=5,'2 Crop Water Requirement'!$I$52,IF(MONTH(B75)=6,'2 Crop Water Requirement'!$J$52,IF(MONTH(B75)=7,'2 Crop Water Requirement'!$K$52,IF(MONTH(B75)=8,'2 Crop Water Requirement'!$L$52,IF(MONTH(B75)=9,'2 Crop Water Requirement'!$M$52,IF(MONTH(B75)=10,'2 Crop Water Requirement'!$N$52,IF(MONTH(B75)=11,'2 Crop Water Requirement'!$O$52,IF(MONTH(B75)=12,'2 Crop Water Requirement'!$P$52,"")))))))))))) -> 6.507 | E75: =IF(C75="Initial Stage",'2 Crop Water Requirement'!$J$12,IF(C75="Crop Development Phase",'2 Crop Water Requirement'!$J$13,IF(C75="Mid Season",'2 Crop Water Requirement'!$J$14,IF(C75="Late Season Stage",'2 Crop Water Requirement'!$J$15,"")))) ->  | F75: 0 | P75: 0 | Q75: 0 | R75: 0 | S75: 0 | T75: 0 | U75: 0 | V75: 0 | W75: 0 | X75: 0 | Y75: 0 | Z75: 0 | AA75: 0
B76: 2017-03-11 | C76: =IF(AND(B76>='2 Crop Water Requirement'!$H$12,B76<='2 Crop Water Requirement'!$I$12),"Initial Stage",IF(AND(B76+1>'2 Crop Water Requirement'!$H$13,B76<='2 Crop Water Requirement'!$I$13),"Crop Development Phase",IF(AND(B76+1>'2 Crop Water Requirement'!$H$14,B76<'2 Crop Water Requirement'!$I$14+1),"Mid Season",IF(AND(B76+1>'2 Crop Water Requirement'!$H$15,B76-1<'2 Crop Water Requirement'!$I$15),"Late Season Stage","")))) ->  | D76: =IF(MONTH(B76)=1,'2 Crop Water Requirement'!$E$52,IF(MONTH(B76)=2,'2 Crop Water Requirement'!$F$52,IF(MONTH(B76)=3,'2 Crop Water Requirement'!$G$52,IF(MONTH(B76)=4,'2 Crop Water Requirement'!$H$52,IF(MONTH(B76)=5,'2 Crop Water Requirement'!$I$52,IF(MONTH(B76)=6,'2 Crop Water Requirement'!$J$52,IF(MONTH(B76)=7,'2 Crop Water Requirement'!$K$52,IF(MONTH(B76)=8,'2 Crop Water Requirement'!$L$52,IF(MONTH(B76)=9,'2 Crop Water Requirement'!$M$52,IF(MONTH(B76)=10,'2 Crop Water Requirement'!$N$52,IF(MONTH(B76)=11,'2 Crop Water Requirement'!$O$52,IF(MONTH(B76)=12,'2 Crop Water Requirement'!$P$52,"")))))))))))) -> 6.507 | E76: =IF(C76="Initial Stage",'2 Crop Water Requirement'!$J$12,IF(C76="Crop Development Phase",'2 Crop Water Requirement'!$J$13,IF(C76="Mid Season",'2 Crop Water Requirement'!$J$14,IF(C76="Late Season Stage",'2 Crop Water Requirement'!$J$15,"")))) ->  | F76: 0 | P76: 0 | Q76: 0 | R76: 0 | S76: 0 | T76: 0 | U76: 0 | V76: 0 | W76: 0 | X76: 0 | Y76: 0 | Z76: 0 | AA76: 0 | AI76: 31 | AJ76: 28 | AK76: 31 | AL76: 30 | AM76: 31 | AN76: 30 | AO76: 31 | AP76: 31 | AQ76: 30 | AR76: 31 | AS76: 30 | AT76: 31
B77: 2017-03-12 | C77: =IF(AND(B77>='2 Crop Water Requirement'!$H$12,B77<='2 Crop Water Requirement'!$I$12),"Initial Stage",IF(AND(B77+1>'2 Crop Water Requirement'!$H$13,B77<='2 Crop Water Requirement'!$I$13),"Crop Development Phase",IF(AND(B77+1>'2 Crop Water Requirement'!$H$14,B77<'2 Crop Water Requirement'!$I$14+1),"Mid Season",IF(AND(B77+1>'2 Crop Water Requirement'!$H$15,B77-1<'2 Crop Water Requirement'!$I$15),"Late Season Stage","")))) ->  | D77: =IF(MONTH(B77)=1,'2 Crop Water Requirement'!$E$52,IF(MONTH(B77)=2,'2 Crop Water Requirement'!$F$52,IF(MONTH(B77)=3,'2 Crop Water Requirement'!$G$52,IF(MONTH(B77)=4,'2 Crop Water Requirement'!$H$52,IF(MONTH(B77)=5,'2 Crop Water Requirement'!$I$52,IF(MONTH(B77)=6,'2 Crop Water Requirement'!$J$52,IF(MONTH(B77)=7,'2 Crop Water Requirement'!$K$52,IF(MONTH(B77)=8,'2 Crop Water Requirement'!$L$52,IF(MONTH(B77)=9,'2 Crop Water Requirement'!$M$52,IF(MONTH(B77)=10,'2 Crop Water Requirement'!$N$52,IF(MONTH(B77)=11,'2 Crop Water Requirement'!$O$52,IF(MONTH(B77)=12,'2 Crop Water Requirement'!$P$52,"")))))))))))) -> 6.507 | E77: =IF(C77="Initial Stage",'2 Crop Water Requirement'!$J$12,IF(C77="Crop Development Phase",'2 Crop Water Requirement'!$J$13,IF(C77="Mid Season",'2 Crop Water Requirement'!$J$14,IF(C77="Late Season Stage",'2 Crop Water Requirement'!$J$15,"")))) ->  | F77: 0 | P77: 0 | Q77: 0 | R77: 0 | S77: 0 | T77: 0 | U77: 0 | V77: 0 | W77: 0 | X77: 0 | Y77: 0 | Z77: 0 | AA77: 0 | AI77: January | AJ77: February | AK77: March | AL77: April | AM77: May | AN77: June | AO77: July | AP77: August | AQ77: September | AR77: October | AS77: November | AT77: December
B78: 2017-03-13 | C78: =IF(AND(B78>='2 Crop Water Requirement'!$H$12,B78<='2 Crop Water Requirement'!$I$12),"Initial Stage",IF(AND(B78+1>'2 Crop Water Requirement'!$H$13,B78<='2 Crop Water Requirement'!$I$13),"Crop Development Phase",IF(AND(B78+1>'2 Crop Water Requirement'!$H$14,B78<'2 Crop Water Requirement'!$I$14+1),"Mid Season",IF(AND(B78+1>'2 Crop Water Requirement'!$H$15,B78-1<'2 Crop Water Requirement'!$I$15),"Late Season Stage","")))) ->  | D78: =IF(MONTH(B78)=1,'2 Crop Water Requirement'!$E$52,IF(MONTH(B78)=2,'2 Crop Water Requirement'!$F$52,IF(MONTH(B78)=3,'2 Crop Water Requirement'!$G$52,IF(MONTH(B78)=4,'2 Crop Water Requirement'!$H$52,IF(MONTH(B78)=5,'2 Crop Water Requirement'!$I$52,IF(MONTH(B78)=6,'2 Crop Water Requirement'!$J$52,IF(MONTH(B78)=7,'2 Crop Water Requirement'!$K$52,IF(MONTH(B78)=8,'2 Crop Water Requirement'!$L$52,IF(MONTH(B78)=9,'2 Crop Water Requirement'!$M$52,IF(MONTH(B78)=10,'2 Crop Water Requirement'!$N$52,IF(MONTH(B78)=11,'2 Crop Water Requirement'!$O$52,IF(MONTH(B78)=12,'2 Crop Water Requirement'!$P$52,"")))))))))))) -> 6.507 | E78: =IF(C78="Initial Stage",'2 Crop Water Requirement'!$J$12,IF(C78="Crop Development Phase",'2 Crop Water Requirement'!$J$13,IF(C78="Mid Season",'2 Crop Water Requirement'!$J$14,IF(C78="Late Season Stage",'2 Crop Water Requirement'!$J$15,"")))) ->  | F78: 0 | P78: 0 | Q78: 0 | R78: 0 | S78: 0 | T78: 0 | U78: 0 | V78: 0 | W78: 0 | X78: 0 | Y78: 0 | Z78: 0 | AA78: 0 | AF78: ='2 Crop Water Requirement'!B23 -> 0 | AG78: TRUE | AI78: =IF($AG$78=TRUE,'2 Crop Water Requirement'!F23,NA()) -> 0 | AJ78: =IF($AG$78=TRUE,'2 Crop Water Requirement'!G23,NA()) -> 0 | AK78: =IF($AG$78=TRUE,'2 Crop Water Requirement'!H23,NA()) -> 0 | AL78: =IF($AG$78=TRUE,'2 Crop Water Requirement'!I23,NA()) -> 0 | AM78: =IF($AG$78=TRUE,'2 Crop Water Requirement'!J23,NA()) -> 0 | AN78: =IF($AG$78=TRUE,'2 Crop Water Requirement'!K23,NA()) -> 0 | AO78: =IF($AG$78=TRUE,'2 Crop Water Requirement'!L23,NA()) -> 0 | AP78: =IF($AG$78=TRUE,'2 Crop Water Requirement'!M23,NA()) -> 0 | AQ78: =IF($AG$78=TRUE,'2 Crop Water Requirement'!N23,NA()) -> 0 | AR78: =IF($AG$78=TRUE,'2 Crop Water Requirement'!O23,NA()) -> 0 | AS78: =IF($AG$78=TRUE,'2 Crop Water Requirement'!P23,NA()) -> 0 | AT78: =IF($AG$78=TRUE,'2 Crop Water Requirement'!Q23,NA()) -> 0
B79: 2017-03-14 | C79: =IF(AND(B79>='2 Crop Water Requirement'!$H$12,B79<='2 Crop Water Requirement'!$I$12),"Initial Stage",IF(AND(B79+1>'2 Crop Water Requirement'!$H$13,B79<='2 Crop Water Requirement'!$I$13),"Crop Development Phase",IF(AND(B79+1>'2 Crop Water Requirement'!$H$14,B79<'2 Crop Water Requirement'!$I$14+1),"Mid Season",IF(AND(B79+1>'2 Crop Water Requirement'!$H$15,B79-1<'2 Crop Water Requirement'!$I$15),"Late Season Stage","")))) ->  | D79: =IF(MONTH(B79)=1,'2 Crop Water Requirement'!$E$52,IF(MONTH(B79)=2,'2 Crop Water Requirement'!$F$52,IF(MONTH(B79)=3,'2 Crop Water Requirement'!$G$52,IF(MONTH(B79)=4,'2 Crop Water Requirement'!$H$52,IF(MONTH(B79)=5,'2 Crop Water Requirement'!$I$52,IF(MONTH(B79)=6,'2 Crop Water Requirement'!$J$52,IF(MONTH(B79)=7,'2 Crop Water Requirement'!$K$52,IF(MONTH(B79)=8,'2 Crop Water Requirement'!$L$52,IF(MONTH(B79)=9,'2 Crop Water Requirement'!$M$52,IF(MONTH(B79)=10,'2 Crop Water Requirement'!$N$52,IF(MONTH(B79)=11,'2 Crop Water Requirement'!$O$52,IF(MONTH(B79)=12,'2 Crop Water Requirement'!$P$52,"")))))))))))) -> 6.507 | E79: =IF(C79="Initial Stage",'2 Crop Water Requirement'!$J$12,IF(C79="Crop Development Phase",'2 Crop Water Requirement'!$J$13,IF(C79="Mid Season",'2 Crop Water Requirement'!$J$14,IF(C79="Late Season Stage",'2 Crop Water Requirement'!$J$15,"")))) ->  | F79: 0 | P79: 0 | Q79: 0 | R79: 0 | S79: 0 | T79: 0 | U79: 0 | V79: 0 | W79: 0 | X79: 0 | Y79: 0 | Z79: 0 | AA79: 0 | AF79: ='2 Crop Water Requirement'!B24 -> 0 | AG79: TRUE | AI79: =IF($AG$79=TRUE,'2 Crop Water Requirement'!F24,NA()) -> 0 | AJ79: =IF($AG$79=TRUE,'2 Crop Water Requirement'!G24,NA()) -> 0 | AK79: =IF($AG$79=TRUE,'2 Crop Water Requirement'!H24,NA()) -> 0 | AL79: =IF($AG$79=TRUE,'2 Crop Water Requirement'!I24,NA()) -> 0 | AM79: =IF($AG$79=TRUE,'2 Crop Water Requirement'!J24,NA()) -> 0 | AN79: =IF($AG$79=TRUE,'2 Crop Water Requirement'!K24,NA()) -> 0 | AO79: =IF($AG$79=TRUE,'2 Crop Water Requirement'!L24,NA()) -> 0 | AP79: =IF($AG$79=TRUE,'2 Crop Water Requirement'!M24,NA()) -> 0 | AQ79: =IF($AG$79=TRUE,'2 Crop Water Requirement'!N24,NA()) -> 0 | AR79: =IF($AG$79=TRUE,'2 Crop Water Requirement'!O24,NA()) -> 0 | AS79: =IF($AG$79=TRUE,'2 Crop Water Requirement'!P24,NA()) -> 0 | AT79: =IF($AG$79=TRUE,'2 Crop Water Requirement'!Q24,NA()) -> 0
B80: 2017-03-15 | C80: =IF(AND(B80>='2 Crop Water Requirement'!$H$12,B80<='2 Crop Water Requirement'!$I$12),"Initial Stage",IF(AND(B80+1>'2 Crop Water Requirement'!$H$13,B80<='2 Crop Water Requirement'!$I$13),"Crop Development Phase",IF(AND(B80+1>'2 Crop Water Requirement'!$H$14,B80<'2 Crop Water Requirement'!$I$14+1),"Mid Season",IF(AND(B80+1>'2 Crop Water Requirement'!$H$15,B80-1<'2 Crop Water Requirement'!$I$15),"Late Season Stage","")))) ->  | D80: =IF(MONTH(B80)=1,'2 Crop Water Requirement'!$E$52,IF(MONTH(B80)=2,'2 Crop Water Requirement'!$F$52,IF(MONTH(B80)=3,'2 Crop Water Requirement'!$G$52,IF(MONTH(B80)=4,'2 Crop Water Requirement'!$H$52,IF(MONTH(B80)=5,'2 Crop Water Requirement'!$I$52,IF(MONTH(B80)=6,'2 Crop Water Requirement'!$J$52,IF(MONTH(B80)=7,'2 Crop Water Requirement'!$K$52,IF(MONTH(B80)=8,'2 Crop Water Requirement'!$L$52,IF(MONTH(B80)=9,'2 Crop Water Requirement'!$M$52,IF(MONTH(B80)=10,'2 Crop Water Requirement'!$N$52,IF(MONTH(B80)=11,'2 Crop Water Requirement'!$O$52,IF(MONTH(B80)=12,'2 Crop Water Requirement'!$P$52,"")))))))))))) -> 6.507 | E80: =IF(C80="Initial Stage",'2 Crop Water Requirement'!$J$12,IF(C80="Crop Development Phase",'2 Crop Water Requirement'!$J$13,IF(C80="Mid Season",'2 Crop Water Requirement'!$J$14,IF(C80="Late Season Stage",'2 Crop Water Requirement'!$J$15,"")))) ->  | F80: 0 | P80: 0 | Q80: 0 | R80: 0 | S80: 0 | T80: 0 | U80: 0 | V80: 0 | W80: 0 | X80: 0 | Y80: 0 | Z80: 0 | AA80: 0 | AF80: ='2 Crop Water Requirement'!B25 -> 0 | AG80: TRUE | AI80: =IF($AG$80=TRUE,'2 Crop Water Requirement'!F25,NA()) -> 0 | AJ80: =IF($AG$80=TRUE,'2 Crop Water Requirement'!G25,NA()) -> 0 | AK80: =IF($AG$80=TRUE,'2 Crop Water Requirement'!H25,NA()) -> 0 | AL80: =IF($AG$80=TRUE,'2 Crop Water Requirement'!I25,NA()) -> 0 | AM80: =IF($AG$80=TRUE,'2 Crop Water Requirement'!J25,NA()) -> 0 | AN80: =IF($AG$80=TRUE,'2 Crop Water Requirement'!K25,NA()) -> 0 | AO80: =IF($AG$80=TRUE,'2 Crop Water Requirement'!L25,NA()) -> 0 | AP80: =IF($AG$80=TRUE,'2 Crop Water Requirement'!M25,NA()) -> 0 | AQ80: =IF($AG$80=TRUE,'2 Crop Water Requirement'!N25,NA()) -> 0 | AR80: =IF($AG$80=TRUE,'2 Crop Water Requirement'!O25,NA()) -> 0 | AS80: =IF($AG$80=TRUE,'2 Crop Water Requirement'!P25,NA()) -> 0 | AT80: =IF($AG$80=TRUE,'2 Crop Water Requirement'!Q25,NA()) -> 0
B81: 2017-03-16 | C81: =IF(AND(B81>='2 Crop Water Requirement'!$H$12,B81<='2 Crop Water Requirement'!$I$12),"Initial Stage",IF(AND(B81+1>'2 Crop Water Requirement'!$H$13,B81<='2 Crop Water Requirement'!$I$13),"Crop Development Phase",IF(AND(B81+1>'2 Crop Water Requirement'!$H$14,B81<'2 Crop Water Requirement'!$I$14+1),"Mid Season",IF(AND(B81+1>'2 Crop Water Requirement'!$H$15,B81-1<'2 Crop Water Requirement'!$I$15),"Late Season Stage","")))) ->  | D81: =IF(MONTH(B81)=1,'2 Crop Water Requirement'!$E$52,IF(MONTH(B81)=2,'2 Crop Water Requirement'!$F$52,IF(MONTH(B81)=3,'2 Crop Water Requirement'!$G$52,IF(MONTH(B81)=4,'2 Crop Water Requirement'!$H$52,IF(MONTH(B81)=5,'2 Crop Water Requirement'!$I$52,IF(MONTH(B81)=6,'2 Crop Water Requirement'!$J$52,IF(MONTH(B81)=7,'2 Crop Water Requirement'!$K$52,IF(MONTH(B81)=8,'2 Crop Water Requirement'!$L$52,IF(MONTH(B81)=9,'2 Crop Water Requirement'!$M$52,IF(MONTH(B81)=10,'2 Crop Water Requirement'!$N$52,IF(MONTH(B81)=11,'2 Crop Water Requirement'!$O$52,IF(MONTH(B81)=12,'2 Crop Water Requirement'!$P$52,"")))))))))))) -> 6.507 | E81: =IF(C81="Initial Stage",'2 Crop Water Requirement'!$J$12,IF(C81="Crop Development Phase",'2 Crop Water Requirement'!$J$13,IF(C81="Mid Season",'2 Crop Water Requirement'!$J$14,IF(C81="Late Season Stage",'2 Crop Water Requirement'!$J$15,"")))) ->  | F81: 0 | P81: 0 | Q81: 0 | R81: 0 | S81: 0 | T81: 0 | U81: 0 | V81: 0 | W81: 0 | X81: 0 | Y81: 0 | Z81: 0 | AA81: 0 | AF81: ='2 Crop Water Requirement'!B26 -> 0 | AG81: TRUE | AI81: =IF($AG$81=TRUE,'2 Crop Water Requirement'!F26,NA()) -> 0 | AJ81: =IF($AG$81=TRUE,'2 Crop Water Requirement'!G26,NA()) -> 0 | AK81: =IF($AG$81=TRUE,'2 Crop Water Requirement'!H26,NA()) -> 0 | AL81: =IF($AG$81=TRUE,'2 Crop Water Requirement'!I26,NA()) -> 0 | AM81: =IF($AG$81=TRUE,'2 Crop Water Requirement'!J26,NA()) -> 0 | AN81: =IF($AG$81=TRUE,'2 Crop Water Requirement'!K26,NA()) -> 0 | AO81: =IF($AG$81=TRUE,'2 Crop Water Requirement'!L26,NA()) -> 0 | AP81: =IF($AG$81=TRUE,'2 Crop Water Requirement'!M26,NA()) -> 0 | AQ81: =IF($AG$81=TRUE,'2 Crop Water Requirement'!N26,NA()) -> 0 | AR81: =IF($AG$81=TRUE,'2 Crop Water Requirement'!O26,NA()) -> 0 | AS81: =IF($AG$81=TRUE,'2 Crop Water Requirement'!P26,NA()) -> 0 | AT81: =IF($AG$81=TRUE,'2 Crop Water Requirement'!Q26,NA()) -> 0
B82: 2017-03-17 | C82: =IF(AND(B82>='2 Crop Water Requirement'!$H$12,B82<='2 Crop Water Requirement'!$I$12),"Initial Stage",IF(AND(B82+1>'2 Crop Water Requirement'!$H$13,B82<='2 Crop Water Requirement'!$I$13),"Crop Development Phase",IF(AND(B82+1>'2 Crop Water Requirement'!$H$14,B82<'2 Crop Water Requirement'!$I$14+1),"Mid Season",IF(AND(B82+1>'2 Crop Water Requirement'!$H$15,B82-1<'2 Crop Water Requirement'!$I$15),"Late Season Stage","")))) ->  | D82: =IF(MONTH(B82)=1,'2 Crop Water Requirement'!$E$52,IF(MONTH(B82)=2,'2 Crop Water Requirement'!$F$52,IF(MONTH(B82)=3,'2 Crop Water Requirement'!$G$52,IF(MONTH(B82)=4,'2 Crop Water Requirement'!$H$52,IF(MONTH(B82)=5,'2 Crop Water Requirement'!$I$52,IF(MONTH(B82)=6,'2 Crop Water Requirement'!$J$52,IF(MONTH(B82)=7,'2 Crop Water Requirement'!$K$52,IF(MONTH(B82)=8,'2 Crop Water Requirement'!$L$52,IF(MONTH(B82)=9,'2 Crop Water Requirement'!$M$52,IF(MONTH(B82)=10,'2 Crop Water Requirement'!$N$52,IF(MONTH(B82)=11,'2 Crop Water Requirement'!$O$52,IF(MONTH(B82)=12,'2 Crop Water Requirement'!$P$52,"")))))))))))) -> 6.507 | E82: =IF(C82="Initial Stage",'2 Crop Water Requirement'!$J$12,IF(C82="Crop Development Phase",'2 Crop Water Requirement'!$J$13,IF(C82="Mid Season",'2 Crop Water Requirement'!$J$14,IF(C82="Late Season Stage",'2 Crop Water Requirement'!$J$15,"")))) ->  | F82: 0 | P82: 0 | Q82: 0 | R82: 0 | S82: 0 | T82: 0 | U82: 0 | V82: 0 | W82: 0 | X82: 0 | Y82: 0 | Z82: 0 | AA82: 0
B83: 2017-03-18 | C83: =IF(AND(B83>='2 Crop Water Requirement'!$H$12,B83<='2 Crop Water Requirement'!$I$12),"Initial Stage",IF(AND(B83+1>'2 Crop Water Requirement'!$H$13,B83<='2 Crop Water Requirement'!$I$13),"Crop Development Phase",IF(AND(B83+1>'2 Crop Water Requirement'!$H$14,B83<'2 Crop Water Requirement'!$I$14+1),"Mid Season",IF(AND(B83+1>'2 Crop Water Requirement'!$H$15,B83-1<'2 Crop Water Requirement'!$I$15),"Late Season Stage","")))) ->  | D83: =IF(MONTH(B83)=1,'2 Crop Water Requirement'!$E$52,IF(MONTH(B83)=2,'2 Crop Water Requirement'!$F$52,IF(MONTH(B83)=3,'2 Crop Water Requirement'!$G$52,IF(MONTH(B83)=4,'2 Crop Water Requirement'!$H$52,IF(MONTH(B83)=5,'2 Crop Water Requirement'!$I$52,IF(MONTH(B83)=6,'2 Crop Water Requirement'!$J$52,IF(MONTH(B83)=7,'2 Crop Water Requirement'!$K$52,IF(MONTH(B83)=8,'2 Crop Water Requirement'!$L$52,IF(MONTH(B83)=9,'2 Crop Water Requirement'!$M$52,IF(MONTH(B83)=10,'2 Crop Water Requirement'!$N$52,IF(MONTH(B83)=11,'2 Crop Water Requirement'!$O$52,IF(MONTH(B83)=12,'2 Crop Water Requirement'!$P$52,"")))))))))))) -> 6.507 | E83: =IF(C83="Initial Stage",'2 Crop Water Requirement'!$J$12,IF(C83="Crop Development Phase",'2 Crop Water Requirement'!$J$13,IF(C83="Mid Season",'2 Crop Water Requirement'!$J$14,IF(C83="Late Season Stage",'2 Crop Water Requirement'!$J$15,"")))) ->  | F83: 0 | P83: 0 | Q83: 0 | R83: 0 | S83: 0 | T83: 0 | U83: 0 | V83: 0 | W83: 0 | X83: 0 | Y83: 0 | Z83: 0 | AA83: 0 | AF83: ='2 Crop Water Requirement'!B22 -> Evapotranspiration Barley/Oats/Wheat [mm/month] | AG83: TRUE | AI83: =IF($AG$83=TRUE,'2 Crop Water Requirement'!F22,NA()) -> 0 | AJ83: =IF($AG$83=TRUE,'2 Crop Water Requirement'!G22,NA()) -> 0 | AK83: =IF($AG$83=TRUE,'2 Crop Water Requirement'!H22,NA()) -> 0 | AL83: =IF($AG$83=TRUE,'2 Crop Water Requirement'!I22,NA()) -> 0 | AM83: =IF($AG$83=TRUE,'2 Crop Water Requirement'!J22,NA()) -> 0 | AN83: =IF($AG$83=TRUE,'2 Crop Water Requirement'!K22,NA()) -> 14.742 | AO83: =IF($AG$83=TRUE,'2 Crop Water Requirement'!L22,NA()) -> 115.885 | AP83: =IF($AG$83=TRUE,'2 Crop Water Requirement'!M22,NA()) -> 197.496 | AQ83: =IF($AG$83=TRUE,'2 Crop Water Requirement'!N22,NA()) -> 188.37 | AR83: =IF($AG$83=TRUE,'2 Crop Water Requirement'!O22,NA()) -> 127.9224 | AS83: =IF($AG$83=TRUE,'2 Crop Water Requirement'!P22,NA()) -> 49.05 | AT83: =IF($AG$83=TRUE,'2 Crop Water Requirement'!Q22,NA()) -> 0
B84: 2017-03-19 | C84: =IF(AND(B84>='2 Crop Water Requirement'!$H$12,B84<='2 Crop Water Requirement'!$I$12),"Initial Stage",IF(AND(B84+1>'2 Crop Water Requirement'!$H$13,B84<='2 Crop Water Requirement'!$I$13),"Crop Development Phase",IF(AND(B84+1>'2 Crop Water Requirement'!$H$14,B84<'2 Crop Water Requirement'!$I$14+1),"Mid Season",IF(AND(B84+1>'2 Crop Water Requirement'!$H$15,B84-1<'2 Crop Water Requirement'!$I$15),"Late Season Stage","")))) ->  | D84: =IF(MONTH(B84)=1,'2 Crop Water Requirement'!$E$52,IF(MONTH(B84)=2,'2 Crop Water Requirement'!$F$52,IF(MONTH(B84)=3,'2 Crop Water Requirement'!$G$52,IF(MONTH(B84)=4,'2 Crop Water Requirement'!$H$52,IF(MONTH(B84)=5,'2 Crop Water Requirement'!$I$52,IF(MONTH(B84)=6,'2 Crop Water Requirement'!$J$52,IF(MONTH(B84)=7,'2 Crop Water Requirement'!$K$52,IF(MONTH(B84)=8,'2 Crop Water Requirement'!$L$52,IF(MONTH(B84)=9,'2 Crop Water Requirement'!$M$52,IF(MONTH(B84)=10,'2 Crop Water Requirement'!$N$52,IF(MONTH(B84)=11,'2 Crop Water Requirement'!$O$52,IF(MONTH(B84)=12,'2 Crop Water Requirement'!$P$52,"")))))))))))) -> 6.507 | E84: =IF(C84="Initial Stage",'2 Crop Water Requirement'!$J$12,IF(C84="Crop Development Phase",'2 Crop Water Requirement'!$J$13,IF(C84="Mid Season",'2 Crop Water Requirement'!$J$14,IF(C84="Late Season Stage",'2 Crop Water Requirement'!$J$15,"")))) ->  | F84: 0 | P84: 0 | Q84: 0 | R84: 0 | S84: 0 | T84: 0 | U84: 0 | V84: 0 | W84: 0 | X84: 0 | Y84: 0 | Z84: 0 | AA84: 0
B85: 2017-03-20 | C85: =IF(AND(B85>='2 Crop Water Requirement'!$H$12,B85<='2 Crop Water Requirement'!$I$12),"Initial Stage",IF(AND(B85+1>'2 Crop Water Requirement'!$H$13,B85<='2 Crop Water Requirement'!$I$13),"Crop Development Phase",IF(AND(B85+1>'2 Crop Water Requirement'!$H$14,B85<'2 Crop Water Requirement'!$I$14+1),"Mid Season",IF(AND(B85+1>'2 Crop Water Requirement'!$H$15,B85-1<'2 Crop Water Requirement'!$I$15),"Late Season Stage","")))) ->  | D85: =IF(MONTH(B85)=1,'2 Crop Water Requirement'!$E$52,IF(MONTH(B85)=2,'2 Crop Water Requirement'!$F$52,IF(MONTH(B85)=3,'2 Crop Water Requirement'!$G$52,IF(MONTH(B85)=4,'2 Crop Water Requirement'!$H$52,IF(MONTH(B85)=5,'2 Crop Water Requirement'!$I$52,IF(MONTH(B85)=6,'2 Crop Water Requirement'!$J$52,IF(MONTH(B85)=7,'2 Crop Water Requirement'!$K$52,IF(MONTH(B85)=8,'2 Crop Water Requirement'!$L$52,IF(MONTH(B85)=9,'2 Crop Water Requirement'!$M$52,IF(MONTH(B85)=10,'2 Crop Water Requirement'!$N$52,IF(MONTH(B85)=11,'2 Crop Water Requirement'!$O$52,IF(MONTH(B85)=12,'2 Crop Water Requirement'!$P$52,"")))))))))))) -> 6.507 | E85: =IF(C85="Initial Stage",'2 Crop Water Requirement'!$J$12,IF(C85="Crop Development Phase",'2 Crop Water Requirement'!$J$13,IF(C85="Mid Season",'2 Crop Water Requirement'!$J$14,IF(C85="Late Season Stage",'2 Crop Water Requirement'!$J$15,"")))) ->  | F85: 0 | P85: 0 | Q85: 0 | R85: 0 | S85: 0 | T85: 0 | U85: 0 | V85: 0 | W85: 0 | X85: 0 | Y85: 0 | Z85: 0 | AA85: 0
B86: 2017-03-21 | C86: =IF(AND(B86>='2 Crop Water Requirement'!$H$12,B86<='2 Crop Water Requirement'!$I$12),"Initial Stage",IF(AND(B86+1>'2 Crop Water Requirement'!$H$13,B86<='2 Crop Water Requirement'!$I$13),"Crop Development Phase",IF(AND(B86+1>'2 Crop Water Requirement'!$H$14,B86<'2 Crop Water Requirement'!$I$14+1),"Mid Season",IF(AND(B86+1>'2 Crop Water Requirement'!$H$15,B86-1<'2 Crop Water Requirement'!$I$15),"Late Season Stage","")))) ->  | D86: =IF(MONTH(B86)=1,'2 Crop Water Requirement'!$E$52,IF(MONTH(B86)=2,'2 Crop Water Requirement'!$F$52,IF(MONTH(B86)=3,'2 Crop Water Requirement'!$G$52,IF(MONTH(B86)=4,'2 Crop Water Requirement'!$H$52,IF(MONTH(B86)=5,'2 Crop Water Requirement'!$I$52,IF(MONTH(B86)=6,'2 Crop Water Requirement'!$J$52,IF(MONTH(B86)=7,'2 Crop Water Requirement'!$K$52,IF(MONTH(B86)=8,'2 Crop Water Requirement'!$L$52,IF(MONTH(B86)=9,'2 Crop Water Requirement'!$M$52,IF(MONTH(B86)=10,'2 Crop Water Requirement'!$N$52,IF(MONTH(B86)=11,'2 Crop Water Requirement'!$O$52,IF(MONTH(B86)=12,'2 Crop Water Requirement'!$P$52,"")))))))))))) -> 6.507 | E86: =IF(C86="Initial Stage",'2 Crop Water Requirement'!$J$12,IF(C86="Crop Development Phase",'2 Crop Water Requirement'!$J$13,IF(C86="Mid Season",'2 Crop Water Requirement'!$J$14,IF(C86="Late Season Stage",'2 Crop Water Requirement'!$J$15,"")))) ->  | F86: 0 | P86: 0 | Q86: 0 | R86: 0 | S86: 0 | T86: 0 | U86: 0 | V86: 0 | W86: 0 | X86: 0 | Y86: 0 | Z86: 0 | AA86: 0
B87: 2017-03-22 | C87: =IF(AND(B87>='2 Crop Water Requirement'!$H$12,B87<='2 Crop Water Requirement'!$I$12),"Initial Stage",IF(AND(B87+1>'2 Crop Water Requirement'!$H$13,B87<='2 Crop Water Requirement'!$I$13),"Crop Development Phase",IF(AND(B87+1>'2 Crop Water Requirement'!$H$14,B87<'2 Crop Water Requirement'!$I$14+1),"Mid Season",IF(AND(B87+1>'2 Crop Water Requirement'!$H$15,B87-1<'2 Crop Water Requirement'!$I$15),"Late Season Stage","")))) ->  | D87: =IF(MONTH(B87)=1,'2 Crop Water Requirement'!$E$52,IF(MONTH(B87)=2,'2 Crop Water Requirement'!$F$52,IF(MONTH(B87)=3,'2 Crop Water Requirement'!$G$52,IF(MONTH(B87)=4,'2 Crop Water Requirement'!$H$52,IF(MONTH(B87)=5,'2 Crop Water Requirement'!$I$52,IF(MONTH(B87)=6,'2 Crop Water Requirement'!$J$52,IF(MONTH(B87)=7,'2 Crop Water Requirement'!$K$52,IF(MONTH(B87)=8,'2 Crop Water Requirement'!$L$52,IF(MONTH(B87)=9,'2 Crop Water Requirement'!$M$52,IF(MONTH(B87)=10,'2 Crop Water Requirement'!$N$52,IF(MONTH(B87)=11,'2 Crop Water Requirement'!$O$52,IF(MONTH(B87)=12,'2 Crop Water Requirement'!$P$52,"")))))))))))) -> 6.507 | E87: =IF(C87="Initial Stage",'2 Crop Water Requirement'!$J$12,IF(C87="Crop Development Phase",'2 Crop Water Requirement'!$J$13,IF(C87="Mid Season",'2 Crop Water Requirement'!$J$14,IF(C87="Late Season Stage",'2 Crop Water Requirement'!$J$15,"")))) ->  | F87: 0 | P87: 0 | Q87: 0 | R87: 0 | S87: 0 | T87: 0 | U87: 0 | V87: 0 | W87: 0 | X87: 0 | Y87: 0 | Z87: 0 | AA87: 0
B88: 2017-03-23 | C88: =IF(AND(B88>='2 Crop Water Requirement'!$H$12,B88<='2 Crop Water Requirement'!$I$12),"Initial Stage",IF(AND(B88+1>'2 Crop Water Requirement'!$H$13,B88<='2 Crop Water Requirement'!$I$13),"Crop Development Phase",IF(AND(B88+1>'2 Crop Water Requirement'!$H$14,B88<'2 Crop Water Requirement'!$I$14+1),"Mid Season",IF(AND(B88+1>'2 Crop Water Requirement'!$H$15,B88-1<'2 Crop Water Requirement'!$I$15),"Late Season Stage","")))) ->  | D88: =IF(MONTH(B88)=1,'2 Crop Water Requirement'!$E$52,IF(MONTH(B88)=2,'2 Crop Water Requirement'!$F$52,IF(MONTH(B88)=3,'2 Crop Water Requirement'!$G$52,IF(MONTH(B88)=4,'2 Crop Water Requirement'!$H$52,IF(MONTH(B88)=5,'2 Crop Water Requirement'!$I$52,IF(MONTH(B88)=6,'2 Crop Water Requirement'!$J$52,IF(MONTH(B88)=7,'2 Crop Water Requirement'!$K$52,IF(MONTH(B88)=8,'2 Crop Water Requirement'!$L$52,IF(MONTH(B88)=9,'2 Crop Water Requirement'!$M$52,IF(MONTH(B88)=10,'2 Crop Water Requirement'!$N$52,IF(MONTH(B88)=11,'2 Crop Water Requirement'!$O$52,IF(MONTH(B88)=12,'2 Crop Water Requirement'!$P$52,"")))))))))))) -> 6.507 | E88: =IF(C88="Initial Stage",'2 Crop Water Requirement'!$J$12,IF(C88="Crop Development Phase",'2 Crop Water Requirement'!$J$13,IF(C88="Mid Season",'2 Crop Water Requirement'!$J$14,IF(C88="Late Season Stage",'2 Crop Water Requirement'!$J$15,"")))) ->  | F88: 0 | P88: 0 | Q88: 0 | R88: 0 | S88: 0 | T88: 0 | U88: 0 | V88: 0 | W88: 0 | X88: 0 | Y88: 0 | Z88: 0 | AA88: 0
B89: 2017-03-24 | C89: =IF(AND(B89>='2 Crop Water Requirement'!$H$12,B89<='2 Crop Water Requirement'!$I$12),"Initial Stage",IF(AND(B89+1>'2 Crop Water Requirement'!$H$13,B89<='2 Crop Water Requirement'!$I$13),"Crop Development Phase",IF(AND(B89+1>'2 Crop Water Requirement'!$H$14,B89<'2 Crop Water Requirement'!$I$14+1),"Mid Season",IF(AND(B89+1>'2 Crop Water Requirement'!$H$15,B89-1<'2 Crop Water Requirement'!$I$15),"Late Season Stage","")))) ->  | D89: =IF(MONTH(B89)=1,'2 Crop Water Requirement'!$E$52,IF(MONTH(B89)=2,'2 Crop Water Requirement'!$F$52,IF(MONTH(B89)=3,'2 Crop Water Requirement'!$G$52,IF(MONTH(B89)=4,'2 Crop Water Requirement'!$H$52,IF(MONTH(B89)=5,'2 Crop Water Requirement'!$I$52,IF(MONTH(B89)=6,'2 Crop Water Requirement'!$J$52,IF(MONTH(B89)=7,'2 Crop Water Requirement'!$K$52,IF(MONTH(B89)=8,'2 Crop Water Requirement'!$L$52,IF(MONTH(B89)=9,'2 Crop Water Requirement'!$M$52,IF(MONTH(B89)=10,'2 Crop Water Requirement'!$N$52,IF(MONTH(B89)=11,'2 Crop Water Requirement'!$O$52,IF(MONTH(B89)=12,'2 Crop Water Requirement'!$P$52,"")))))))))))) -> 6.507 | E89: =IF(C89="Initial Stage",'2 Crop Water Requirement'!$J$12,IF(C89="Crop Development Phase",'2 Crop Water Requirement'!$J$13,IF(C89="Mid Season",'2 Crop Water Requirement'!$J$14,IF(C89="Late Season Stage",'2 Crop Water Requirement'!$J$15,"")))) ->  | F89: 0 | P89: 0 | Q89: 0 | R89: 0 | S89: 0 | T89: 0 | U89: 0 | V89: 0 | W89: 0 | X89: 0 | Y89: 0 | Z89: 0 | AA89: 0
B90: 2017-03-25 | C90: =IF(AND(B90>='2 Crop Water Requirement'!$H$12,B90<='2 Crop Water Requirement'!$I$12),"Initial Stage",IF(AND(B90+1>'2 Crop Water Requirement'!$H$13,B90<='2 Crop Water Requirement'!$I$13),"Crop Development Phase",IF(AND(B90+1>'2 Crop Water Requirement'!$H$14,B90<'2 Crop Water Requirement'!$I$14+1),"Mid Season",IF(AND(B90+1>'2 Crop Water Requirement'!$H$15,B90-1<'2 Crop Water Requirement'!$I$15),"Late Season Stage","")))) ->  | D90: =IF(MONTH(B90)=1,'2 Crop Water Requirement'!$E$52,IF(MONTH(B90)=2,'2 Crop Water Requirement'!$F$52,IF(MONTH(B90)=3,'2 Crop Water Requirement'!$G$52,IF(MONTH(B90)=4,'2 Crop Water Requirement'!$H$52,IF(MONTH(B90)=5,'2 Crop Water Requirement'!$I$52,IF(MONTH(B90)=6,'2 Crop Water Requirement'!$J$52,IF(MONTH(B90)=7,'2 Crop Water Requirement'!$K$52,IF(MONTH(B90)=8,'2 Crop Water Requirement'!$L$52,IF(MONTH(B90)=9,'2 Crop Water Requirement'!$M$52,IF(MONTH(B90)=10,'2 Crop Water Requirement'!$N$52,IF(MONTH(B90)=11,'2 Crop Water Requirement'!$O$52,IF(MONTH(B90)=12,'2 Crop Water Requirement'!$P$52,"")))))))))))) -> 6.507 | E90: =IF(C90="Initial Stage",'2 Crop Water Requirement'!$J$12,IF(C90="Crop Development Phase",'2 Crop Water Requirement'!$J$13,IF(C90="Mid Season",'2 Crop Water Requirement'!$J$14,IF(C90="Late Season Stage",'2 Crop Water Requirement'!$J$15,"")))) ->  | F90: 0 | P90: 0 | Q90: 0 | R90: 0 | S90: 0 | T90: 0 | U90: 0 | V90: 0 | W90: 0 | X90: 0 | Y90: 0 | Z90: 0 | AA90: 0 | AH90: ='2 Crop Water Requirement'!B51 -> Daytime hours: | AI90: ='2 Crop Water Requirement'!E51 -> 0.19 | AJ90: ='2 Crop Water Requirement'!F51 -> 0.23 | AK90: ='2 Crop Water Requirement'!G51 -> 0.27 | AL90: ='2 Crop Water Requirement'!H51 -> 0.31 | AM90: ='2 Crop Water Requirement'!I51 -> 0.34 | AN90: ='2 Crop Water Requirement'!J51 -> 0.36 | AO90: ='2 Crop Water Requirement'!K51 -> 0.35 | AP90: ='2 Crop Water Requirement'!L51 -> 0.32 | AQ90: ='2 Crop Water Requirement'!M51 -> 0.28 | AR90: ='2 Crop Water Requirement'!N51 -> 0.24 | AS90: ='2 Crop Water Requirement'!O51 -> 0.2 | AT90: ='2 Crop Water Requirement'!P51 -> 0.18
B91: 2017-03-26 | C91: =IF(AND(B91>='2 Crop Water Requirement'!$H$12,B91<='2 Crop Water Requirement'!$I$12),"Initial Stage",IF(AND(B91+1>'2 Crop Water Requirement'!$H$13,B91<='2 Crop Water Requirement'!$I$13),"Crop Development Phase",IF(AND(B91+1>'2 Crop Water Requirement'!$H$14,B91<'2 Crop Water Requirement'!$I$14+1),"Mid Season",IF(AND(B91+1>'2 Crop Water Requirement'!$H$15,B91-1<'2 Crop Water Requirement'!$I$15),"Late Season Stage","")))) ->  | D91: =IF(MONTH(B91)=1,'2 Crop Water Requirement'!$E$52,IF(MONTH(B91)=2,'2 Crop Water Requirement'!$F$52,IF(MONTH(B91)=3,'2 Crop Water Requirement'!$G$52,IF(MONTH(B91)=4,'2 Crop Water Requirement'!$H$52,IF(MONTH(B91)=5,'2 Crop Water Requirement'!$I$52,IF(MONTH(B91)=6,'2 Crop Water Requirement'!$J$52,IF(MONTH(B91)=7,'2 Crop Water Requirement'!$K$52,IF(MONTH(B91)=8,'2 Crop Water Requirement'!$L$52,IF(MONTH(B91)=9,'2 Crop Water Requirement'!$M$52,IF(MONTH(B91)=10,'2 Crop Water Requirement'!$N$52,IF(MONTH(B91)=11,'2 Crop Water Requirement'!$O$52,IF(MONTH(B91)=12,'2 Crop Water Requirement'!$P$52,"")))))))))))) -> 6.507 | E91: =IF(C91="Initial Stage",'2 Crop Water Requirement'!$J$12,IF(C91="Crop Development Phase",'2 Crop Water Requirement'!$J$13,IF(C91="Mid Season",'2 Crop Water Requirement'!$J$14,IF(C91="Late Season Stage",'2 Crop Water Requirement'!$J$15,"")))) ->  | F91: 0 | P91: 0 | Q91: 0 | R91: 0 | S91: 0 | T91: 0 | U91: 0 | V91: 0 | W91: 0 | X91: 0 | Y91: 0 | Z91: 0 | AA91: 0 | AH91: ='2 Crop Water Requirement'!B52 -> Reference Evapotranspiration | AI91: ='2 Crop Water Requirement'!E52 -> 4.579 | AJ91: ='2 Crop Water Requirement'!F52 -> 5.543 | AK91: ='2 Crop Water Requirement'!G52 -> 6.507 | AL91: ='2 Crop Water Requirement'!H52 -> 6.045 | AM91: ='2 Crop Water Requirement'!I52 -> 6.63 | AN91: ='2 Crop Water Requirement'!J52 -> 7.02 | AO91: ='2 Crop Water Requirement'!K52 -> 6.02 | AP91: ='2 Crop Water Requirement'!L52 -> 6.24 | AQ91: ='2 Crop Water Requirement'!M52 -> 5.46 | AR91: ='2 Crop Water Requirement'!N52 -> 5.232 | AS91: ='2 Crop Water Requirement'!O52 -> 4.36 | AT91: ='2 Crop Water Requirement'!P52 -> 4.338
B92: 2017-03-27 | C92: =IF(AND(B92>='2 Crop Water Requirement'!$H$12,B92<='2 Crop Water Requirement'!$I$12),"Initial Stage",IF(AND(B92+1>'2 Crop Water Requirement'!$H$13,B92<='2 Crop Water Requirement'!$I$13),"Crop Development Phase",IF(AND(B92+1>'2 Crop Water Requirement'!$H$14,B92<'2 Crop Water Requirement'!$I$14+1),"Mid Season",IF(AND(B92+1>'2 Crop Water Requirement'!$H$15,B92-1<'2 Crop Water Requirement'!$I$15),"Late Season Stage","")))) ->  | D92: =IF(MONTH(B92)=1,'2 Crop Water Requirement'!$E$52,IF(MONTH(B92)=2,'2 Crop Water Requirement'!$F$52,IF(MONTH(B92)=3,'2 Crop Water Requirement'!$G$52,IF(MONTH(B92)=4,'2 Crop Water Requirement'!$H$52,IF(MONTH(B92)=5,'2 Crop Water Requirement'!$I$52,IF(MONTH(B92)=6,'2 Crop Water Requirement'!$J$52,IF(MONTH(B92)=7,'2 Crop Water Requirement'!$K$52,IF(MONTH(B92)=8,'2 Crop Water Requirement'!$L$52,IF(MONTH(B92)=9,'2 Crop Water Requirement'!$M$52,IF(MONTH(B92)=10,'2 Crop Water Requirement'!$N$52,IF(MONTH(B92)=11,'2 Crop Water Requirement'!$O$52,IF(MONTH(B92)=12,'2 Crop Water Requirement'!$P$52,"")))))))))))) -> 6.507 | E92: =IF(C92="Initial Stage",'2 Crop Water Requirement'!$J$12,IF(C92="Crop Development Phase",'2 Crop Water Requirement'!$J$13,IF(C92="Mid Season",'2 Crop Water Requirement'!$J$14,IF(C92="Late Season Stage",'2 Crop Water Requirement'!$J$15,"")))) ->  | F92: 0 | P92: 0 | Q92: 0 | R92: 0 | S92: 0 | T92: 0 | U92: 0 | V92: 0 | W92: 0 | X92: 0 | Y92: 0 | Z92: 0 | AA92: 0 | AH92: ='2 Crop Water Requirement'!B53 -> Crop Evapotranspiration [mm/month] | AI92: ='2 Crop Water Requirement'!E53 -> 0 | AJ92: ='2 Crop Water Requirement'!F53 -> 0 | AK92: ='2 Crop Water Requirement'!G53 -> 0 | AL92: ='2 Crop Water Requirement'!H53 -> 0 | AM92: ='2 Crop Water Requirement'!I53 -> 0 | AN92: ='2 Crop Water Requirement'!J53 -> 14.742 | AO92: ='2 Crop Water Requirement'!K53 -> 115.885 | AP92: ='2 Crop Water Requirement'!L53 -> 197.496 | AQ92: ='2 Crop Water Requirement'!M53 -> 188.37 | AR92: ='2 Crop Water Requirement'!N53 -> 127.9224 | AS92: ='2 Crop Water Requirement'!O53 -> 49.05 | AT92: ='2 Crop Water Requirement'!P53 -> 0
B93: 2017-03-28 | C93: =IF(AND(B93>='2 Crop Water Requirement'!$H$12,B93<='2 Crop Water Requirement'!$I$12),"Initial Stage",IF(AND(B93+1>'2 Crop Water Requirement'!$H$13,B93<='2 Crop Water Requirement'!$I$13),"Crop Development Phase",IF(AND(B93+1>'2 Crop Water Requirement'!$H$14,B93<'2 Crop Water Requirement'!$I$14+1),"Mid Season",IF(AND(B93+1>'2 Crop Water Requirement'!$H$15,B93-1<'2 Crop Water Requirement'!$I$15),"Late Season Stage","")))) ->  | D93: =IF(MONTH(B93)=1,'2 Crop Water Requirement'!$E$52,IF(MONTH(B93)=2,'2 Crop Water Requirement'!$F$52,IF(MONTH(B93)=3,'2 Crop Water Requirement'!$G$52,IF(MONTH(B93)=4,'2 Crop Water Requirement'!$H$52,IF(MONTH(B93)=5,'2 Crop Water Requirement'!$I$52,IF(MONTH(B93)=6,'2 Crop Water Requirement'!$J$52,IF(MONTH(B93)=7,'2 Crop Water Requirement'!$K$52,IF(MONTH(B93)=8,'2 Crop Water Requirement'!$L$52,IF(MONTH(B93)=9,'2 Crop Water Requirement'!$M$52,IF(MONTH(B93)=10,'2 Crop Water Requirement'!$N$52,IF(MONTH(B93)=11,'2 Crop Water Requirement'!$O$52,IF(MONTH(B93)=12,'2 Crop Water Requirement'!$P$52,"")))))))))))) -> 6.507 | E93: =IF(C93="Initial Stage",'2 Crop Water Requirement'!$J$12,IF(C93="Crop Development Phase",'2 Crop Water Requirement'!$J$13,IF(C93="Mid Season",'2 Crop Water Requirement'!$J$14,IF(C93="Late Season Stage",'2 Crop Water Requirement'!$J$15,"")))) ->  | F93: 0 | P93: 0 | Q93: 0 | R93: 0 | S93: 0 | T93: 0 | U93: 0 | V93: 0 | W93: 0 | X93: 0 | Y93: 0 | Z93: 0 | AA93: 0 | AH93: ='2 Crop Water Requirement'!B54 -> Effective rainfall [mm/month]: | AI93: ='2 Crop Water Requirement'!E54 -> 20 | AJ93: ='2 Crop Water Requirement'!F54 -> 95 | AK93: ='2 Crop Water Requirement'!G54 -> 95 | AL93: ='2 Crop Water Requirement'!H54 -> 55 | AM93: ='2 Crop Water Requirement'!I54 -> 20 | AN93: ='2 Crop Water Requirement'!J54 -> 0 | AO93: ='2 Crop Water Requirement'!K54 -> 0 | AP93: ='2 Crop Water Requirement'!L54 -> 0 | AQ93: ='2 Crop Water Requirement'!M54 -> 0 | AR93: ='2 Crop Water Requirement'!N54 -> 0 | AS93: ='2 Crop Water Requirement'!O54 -> 0 | AT93: ='2 Crop Water Requirement'!P54 -> 0
B94: 2017-03-29 | C94: =IF(AND(B94>='2 Crop Water Requirement'!$H$12,B94<='2 Crop Water Requirement'!$I$12),"Initial Stage",IF(AND(B94+1>'2 Crop Water Requirement'!$H$13,B94<='2 Crop Water Requirement'!$I$13),"Crop Development Phase",IF(AND(B94+1>'2 Crop Water Requirement'!$H$14,B94<'2 Crop Water Requirement'!$I$14+1),"Mid Season",IF(AND(B94+1>'2 Crop Water Requirement'!$H$15,B94-1<'2 Crop Water Requirement'!$I$15),"Late Season Stage","")))) ->  | D94: =IF(MONTH(B94)=1,'2 Crop Water Requirement'!$E$52,IF(MONTH(B94)=2,'2 Crop Water Requirement'!$F$52,IF(MONTH(B94)=3,'2 Crop Water Requirement'!$G$52,IF(MONTH(B94)=4,'2 Crop Water Requirement'!$H$52,IF(MONTH(B94)=5,'2 Crop Water Requirement'!$I$52,IF(MONTH(B94)=6,'2 Crop Water Requirement'!$J$52,IF(MONTH(B94)=7,'2 Crop Water Requirement'!$K$52,IF(MONTH(B94)=8,'2 Crop Water Requirement'!$L$52,IF(MONTH(B94)=9,'2 Crop Water Requirement'!$M$52,IF(MONTH(B94)=10,'2 Crop Water Requirement'!$N$52,IF(MONTH(B94)=11,'2 Crop Water Requirement'!$O$52,IF(MONTH(B94)=12,'2 Crop Water Requirement'!$P$52,"")))))))))))) -> 6.507 | E94: =IF(C94="Initial Stage",'2 Crop Water Requirement'!$J$12,IF(C94="Crop Development Phase",'2 Crop Water Requirement'!$J$13,IF(C94="Mid Season",'2 Crop Water Requirement'!$J$14,IF(C94="Late Season Stage",'2 Crop Water Requirement'!$J$15,"")))) ->  | F94: 0 | P94: 0 | Q94: 0 | R94: 0 | S94: 0 | T94: 0 | U94: 0 | V94: 0 | W94: 0 | X94: 0 | Y94: 0 | Z94: 0 | AA94: 0
B95: 2017-03-30 | C95: =IF(AND(B95>='2 Crop Water Requirement'!$H$12,B95<='2 Crop Water Requirement'!$I$12),"Initial Stage",IF(AND(B95+1>'2 Crop Water Requirement'!$H$13,B95<='2 Crop Water Requirement'!$I$13),"Crop Development Phase",IF(AND(B95+1>'2 Crop Water Requirement'!$H$14,B95<'2 Crop Water Requirement'!$I$14+1),"Mid Season",IF(AND(B95+1>'2 Crop Water Requirement'!$H$15,B95-1<'2 Crop Water Requirement'!$I$15),"Late Season Stage","")))) ->  | D95: =IF(MONTH(B95)=1,'2 Crop Water Requirement'!$E$52,IF(MONTH(B95)=2,'2 Crop Water Requirement'!$F$52,IF(MONTH(B95)=3,'2 Crop Water Requirement'!$G$52,IF(MONTH(B95)=4,'2 Crop Water Requirement'!$H$52,IF(MONTH(B95)=5,'2 Crop Water Requirement'!$I$52,IF(MONTH(B95)=6,'2 Crop Water Requirement'!$J$52,IF(MONTH(B95)=7,'2 Crop Water Requirement'!$K$52,IF(MONTH(B95)=8,'2 Crop Water Requirement'!$L$52,IF(MONTH(B95)=9,'2 Crop Water Requirement'!$M$52,IF(MONTH(B95)=10,'2 Crop Water Requirement'!$N$52,IF(MONTH(B95)=11,'2 Crop Water Requirement'!$O$52,IF(MONTH(B95)=12,'2 Crop Water Requirement'!$P$52,"")))))))))))) -> 6.507 | E95: =IF(C95="Initial Stage",'2 Crop Water Requirement'!$J$12,IF(C95="Crop Development Phase",'2 Crop Water Requirement'!$J$13,IF(C95="Mid Season",'2 Crop Water Requirement'!$J$14,IF(C95="Late Season Stage",'2 Crop Water Requirement'!$J$15,"")))) ->  | F95: 0 | P95: 0 | Q95: 0 | R95: 0 | S95: 0 | T95: 0 | U95: 0 | V95: 0 | W95: 0 | X95: 0 | Y95: 0 | Z95: 0 | AA95: 0
B96: 2017-03-31 | C96: =IF(AND(B96>='2 Crop Water Requirement'!$H$12,B96<='2 Crop Water Requirement'!$I$12),"Initial Stage",IF(AND(B96+1>'2 Crop Water Requirement'!$H$13,B96<='2 Crop Water Requirement'!$I$13),"Crop Development Phase",IF(AND(B96+1>'2 Crop Water Requirement'!$H$14,B96<'2 Crop Water Requirement'!$I$14+1),"Mid Season",IF(AND(B96+1>'2 Crop Water Requirement'!$H$15,B96-1<'2 Crop Water Requirement'!$I$15),"Late Season Stage","")))) ->  | D96: =IF(MONTH(B96)=1,'2 Crop Water Requirement'!$E$52,IF(MONTH(B96)=2,'2 Crop Water Requirement'!$F$52,IF(MONTH(B96)=3,'2 Crop Water Requirement'!$G$52,IF(MONTH(B96)=4,'2 Crop Water Requirement'!$H$52,IF(MONTH(B96)=5,'2 Crop Water Requirement'!$I$52,IF(MONTH(B96)=6,'2 Crop Water Requirement'!$J$52,IF(MONTH(B96)=7,'2 Crop Water Requirement'!$K$52,IF(MONTH(B96)=8,'2 Crop Water Requirement'!$L$52,IF(MONTH(B96)=9,'2 Crop Water Requirement'!$M$52,IF(MONTH(B96)=10,'2 Crop Water Requirement'!$N$52,IF(MONTH(B96)=11,'2 Crop Water Requirement'!$O$52,IF(MONTH(B96)=12,'2 Crop Water Requirement'!$P$52,"")))))))))))) -> 6.507 | E96: =IF(C96="Initial Stage",'2 Crop Water Requirement'!$J$12,IF(C96="Crop Development Phase",'2 Crop Water Requirement'!$J$13,IF(C96="Mid Season",'2 Crop Water Requirement'!$J$14,IF(C96="Late Season Stage",'2 Crop Water Requirement'!$J$15,"")))) ->  | F96: 0 | P96: 0 | Q96: 0 | R96: 0 | S96: 0 | T96: 0 | U96: 0 | V96: 0 | W96: 0 | X96: 0 | Y96: 0 | Z96: 0 | AA96: 0
B97: 2017-04-01 | C97: =IF(AND(B97>='2 Crop Water Requirement'!$H$12,B97<='2 Crop Water Requirement'!$I$12),"Initial Stage",IF(AND(B97+1>'2 Crop Water Requirement'!$H$13,B97<='2 Crop Water Requirement'!$I$13),"Crop Development Phase",IF(AND(B97+1>'2 Crop Water Requirement'!$H$14,B97<'2 Crop Water Requirement'!$I$14+1),"Mid Season",IF(AND(B97+1>'2 Crop Water Requirement'!$H$15,B97-1<'2 Crop Water Requirement'!$I$15),"Late Season Stage","")))) ->  | D97: =IF(MONTH(B97)=1,'2 Crop Water Requirement'!$E$52,IF(MONTH(B97)=2,'2 Crop Water Requirement'!$F$52,IF(MONTH(B97)=3,'2 Crop Water Requirement'!$G$52,IF(MONTH(B97)=4,'2 Crop Water Requirement'!$H$52,IF(MONTH(B97)=5,'2 Crop Water Requirement'!$I$52,IF(MONTH(B97)=6,'2 Crop Water Requirement'!$J$52,IF(MONTH(B97)=7,'2 Crop Water Requirement'!$K$52,IF(MONTH(B97)=8,'2 Crop Water Requirement'!$L$52,IF(MONTH(B97)=9,'2 Crop Water Requirement'!$M$52,IF(MONTH(B97)=10,'2 Crop Water Requirement'!$N$52,IF(MONTH(B97)=11,'2 Crop Water Requirement'!$O$52,IF(MONTH(B97)=12,'2 Crop Water Requirement'!$P$52,"")))))))))))) -> 6.045 | E97: =IF(C97="Initial Stage",'2 Crop Water Requirement'!$J$12,IF(C97="Crop Development Phase",'2 Crop Water Requirement'!$J$13,IF(C97="Mid Season",'2 Crop Water Requirement'!$J$14,IF(C97="Late Season Stage",'2 Crop Water Requirement'!$J$15,"")))) ->  | F97: 0 | P97: 0 | Q97: 0 | R97: 0 | S97: 0 | T97: 0 | U97: 0 | V97: 0 | W97: 0 | X97: 0 | Y97: 0 | Z97: 0 | AA97: 0
B98: 2017-04-02 | C98: =IF(AND(B98>='2 Crop Water Requirement'!$H$12,B98<='2 Crop Water Requirement'!$I$12),"Initial Stage",IF(AND(B98+1>'2 Crop Water Requirement'!$H$13,B98<='2 Crop Water Requirement'!$I$13),"Crop Development Phase",IF(AND(B98+1>'2 Crop Water Requirement'!$H$14,B98<'2 Crop Water Requirement'!$I$14+1),"Mid Season",IF(AND(B98+1>'2 Crop Water Requirement'!$H$15,B98-1<'2 Crop Water Requirement'!$I$15),"Late Season Stage","")))) ->  | D98: =IF(MONTH(B98)=1,'2 Crop Water Requirement'!$E$52,IF(MONTH(B98)=2,'2 Crop Water Requirement'!$F$52,IF(MONTH(B98)=3,'2 Crop Water Requirement'!$G$52,IF(MONTH(B98)=4,'2 Crop Water Requirement'!$H$52,IF(MONTH(B98)=5,'2 Crop Water Requirement'!$I$52,IF(MONTH(B98)=6,'2 Crop Water Requirement'!$J$52,IF(MONTH(B98)=7,'2 Crop Water Requirement'!$K$52,IF(MONTH(B98)=8,'2 Crop Water Requirement'!$L$52,IF(MONTH(B98)=9,'2 Crop Water Requirement'!$M$52,IF(MONTH(B98)=10,'2 Crop Water Requirement'!$N$52,IF(MONTH(B98)=11,'2 Crop Water Requirement'!$O$52,IF(MONTH(B98)=12,'2 Crop Water Requirement'!$P$52,"")))))))))))) -> 6.045 | E98: =IF(C98="Initial Stage",'2 Crop Water Requirement'!$J$12,IF(C98="Crop Development Phase",'2 Crop Water Requirement'!$J$13,IF(C98="Mid Season",'2 Crop Water Requirement'!$J$14,IF(C98="Late Season Stage",'2 Crop Water Requirement'!$J$15,"")))) ->  | F98: 0 | P98: 0 | Q98: 0 | R98: 0 | S98: 0 | T98: 0 | U98: 0 | V98: 0 | W98: 0 | X98: 0 | Y98: 0 | Z98: 0 | AA98: 0
B99: 2017-04-03 | C99: =IF(AND(B99>='2 Crop Water Requirement'!$H$12,B99<='2 Crop Water Requirement'!$I$12),"Initial Stage",IF(AND(B99+1>'2 Crop Water Requirement'!$H$13,B99<='2 Crop Water Requirement'!$I$13),"Crop Development Phase",IF(AND(B99+1>'2 Crop Water Requirement'!$H$14,B99<'2 Crop Water Requirement'!$I$14+1),"Mid Season",IF(AND(B99+1>'2 Crop Water Requirement'!$H$15,B99-1<'2 Crop Water Requirement'!$I$15),"Late Season Stage","")))) ->  | D99: =IF(MONTH(B99)=1,'2 Crop Water Requirement'!$E$52,IF(MONTH(B99)=2,'2 Crop Water Requirement'!$F$52,IF(MONTH(B99)=3,'2 Crop Water Requirement'!$G$52,IF(MONTH(B99)=4,'2 Crop Water Requirement'!$H$52,IF(MONTH(B99)=5,'2 Crop Water Requirement'!$I$52,IF(MONTH(B99)=6,'2 Crop Water Requirement'!$J$52,IF(MONTH(B99)=7,'2 Crop Water Requirement'!$K$52,IF(MONTH(B99)=8,'2 Crop Water Requirement'!$L$52,IF(MONTH(B99)=9,'2 Crop Water Requirement'!$M$52,IF(MONTH(B99)=10,'2 Crop Water Requirement'!$N$52,IF(MONTH(B99)=11,'2 Crop Water Requirement'!$O$52,IF(MONTH(B99)=12,'2 Crop Water Requirement'!$P$52,"")))))))))))) -> 6.045 | E99: =IF(C99="Initial Stage",'2 Crop Water Requirement'!$J$12,IF(C99="Crop Development Phase",'2 Crop Water Requirement'!$J$13,IF(C99="Mid Season",'2 Crop Water Requirement'!$J$14,IF(C99="Late Season Stage",'2 Crop Water Requirement'!$J$15,"")))) ->  | F99: 0 | P99: 0 | Q99: 0 | R99: 0 | S99: 0 | T99: 0 | U99: 0 | V99: 0 | W99: 0 | X99: 0 | Y99: 0 | Z99: 0 | AA99: 0
B100: 2017-04-04 | C100: =IF(AND(B100>='2 Crop Water Requirement'!$H$12,B100<='2 Crop Water Requirement'!$I$12),"Initial Stage",IF(AND(B100+1>'2 Crop Water Requirement'!$H$13,B100<='2 Crop Water Requirement'!$I$13),"Crop Development Phase",IF(AND(B100+1>'2 Crop Water Requirement'!$H$14,B100<'2 Crop Water Requirement'!$I$14+1),"Mid Season",IF(AND(B100+1>'2 Crop Water Requirement'!$H$15,B100-1<'2 Crop Water Requirement'!$I$15),"Late Season Stage","")))) ->  | D100: =IF(MONTH(B100)=1,'2 Crop Water Requirement'!$E$52,IF(MONTH(B100)=2,'2 Crop Water Requirement'!$F$52,IF(MONTH(B100)=3,'2 Crop Water Requirement'!$G$52,IF(MONTH(B100)=4,'2 Crop Water Requirement'!$H$52,IF(MONTH(B100)=5,'2 Crop Water Requirement'!$I$52,IF(MONTH(B100)=6,'2 Crop Water Requirement'!$J$52,IF(MONTH(B100)=7,'2 Crop Water Requirement'!$K$52,IF(MONTH(B100)=8,'2 Crop Water Requirement'!$L$52,IF(MONTH(B100)=9,'2 Crop Water Requirement'!$M$52,IF(MONTH(B100)=10,'2 Crop Water Requirement'!$N$52,IF(MONTH(B100)=11,'2 Crop Water Requirement'!$O$52,IF(MONTH(B100)=12,'2 Crop Water Requirement'!$P$52,"")))))))))))) -> 6.045 | E100: =IF(C100="Initial Stage",'2 Crop Water Requirement'!$J$12,IF(C100="Crop Development Phase",'2 Crop Water Requirement'!$J$13,IF(C100="Mid Season",'2 Crop Water Requirement'!$J$14,IF(C100="Late Season Stage",'2 Crop Water Requirement'!$J$15,"")))) ->  | F100: 0 | P100: 0 | Q100: 0 | R100: 0 | S100: 0 | T100: 0 | U100: 0 | V100: 0 | W100: 0 | X100: 0 | Y100: 0 | Z100: 0 | AA100: 0 | AI100: =IF('2 Crop Water Requirement'!C22="Drip",1,IF('2 Crop Water Requirement'!C22="Micro Sprinkler",2,IF('2 Crop Water Requirement'!C22="Centre Pivot, Linear move",3,IF('2 Crop Water Requirement'!C22="Centre Pivot LEPA",4,IF('2 Crop Water Requirement'!C22="Flood: Piped supply",5,IF('2 Crop Water Requirement'!C22="Flood: Lined canal supplied",6,IF('2 Crop Water Requirement'!C22="Flood: Earth canal supplied",7,IF('2 Crop Water Requirement'!C22="Sprinkler (permanent)",8,IF('2 Crop Water Requirement'!C22="Sprinkler (movable)",9,IF('2 Crop Water Requirement'!C22="Traveling gun",10,"ERROR")))))))))) -> 1
B101: 2017-04-05 | C101: =IF(AND(B101>='2 Crop Water Requirement'!$H$12,B101<='2 Crop Water Requirement'!$I$12),"Initial Stage",IF(AND(B101+1>'2 Crop Water Requirement'!$H$13,B101<='2 Crop Water Requirement'!$I$13),"Crop Development Phase",IF(AND(B101+1>'2 Crop Water Requirement'!$H$14,B101<'2 Crop Water Requirement'!$I$14+1),"Mid Season",IF(AND(B101+1>'2 Crop Water Requirement'!$H$15,B101-1<'2 Crop Water Requirement'!$I$15),"Late Season Stage","")))) ->  | D101: =IF(MONTH(B101)=1,'2 Crop Water Requirement'!$E$52,IF(MONTH(B101)=2,'2 Crop Water Requirement'!$F$52,IF(MONTH(B101)=3,'2 Crop Water Requirement'!$G$52,IF(MONTH(B101)=4,'2 Crop Water Requirement'!$H$52,IF(MONTH(B101)=5,'2 Crop Water Requirement'!$I$52,IF(MONTH(B101)=6,'2 Crop Water Requirement'!$J$52,IF(MONTH(B101)=7,'2 Crop Water Requirement'!$K$52,IF(MONTH(B101)=8,'2 Crop Water Requirement'!$L$52,IF(MONTH(B101)=9,'2 Crop Water Requirement'!$M$52,IF(MONTH(B101)=10,'2 Crop Water Requirement'!$N$52,IF(MONTH(B101)=11,'2 Crop Water Requirement'!$O$52,IF(MONTH(B101)=12,'2 Crop Water Requirement'!$P$52,"")))))))))))) -> 6.045 | E101: =IF(C101="Initial Stage",'2 Crop Water Requirement'!$J$12,IF(C101="Crop Development Phase",'2 Crop Water Requirement'!$J$13,IF(C101="Mid Season",'2 Crop Water Requirement'!$J$14,IF(C101="Late Season Stage",'2 Crop Water Requirement'!$J$15,"")))) ->  | F101: 0 | P101: 0 | Q101: 0 | R101: 0 | S101: 0 | T101: 0 | U101: 0 | V101: 0 | W101: 0 | X101: 0 | Y101: 0 | Z101: 0 | AA101: 0
B102: 2017-04-06 | C102: =IF(AND(B102>='2 Crop Water Requirement'!$H$12,B102<='2 Crop Water Requirement'!$I$12),"Initial Stage",IF(AND(B102+1>'2 Crop Water Requirement'!$H$13,B102<='2 Crop Water Requirement'!$I$13),"Crop Development Phase",IF(AND(B102+1>'2 Crop Water Requirement'!$H$14,B102<'2 Crop Water Requirement'!$I$14+1),"Mid Season",IF(AND(B102+1>'2 Crop Water Requirement'!$H$15,B102-1<'2 Crop Water Requirement'!$I$15),"Late Season Stage","")))) ->  | D102: =IF(MONTH(B102)=1,'2 Crop Water Requirement'!$E$52,IF(MONTH(B102)=2,'2 Crop Water Requirement'!$F$52,IF(MONTH(B102)=3,'2 Crop Water Requirement'!$G$52,IF(MONTH(B102)=4,'2 Crop Water Requirement'!$H$52,IF(MONTH(B102)=5,'2 Crop Water Requirement'!$I$52,IF(MONTH(B102)=6,'2 Crop Water Requirement'!$J$52,IF(MONTH(B102)=7,'2 Crop Water Requirement'!$K$52,IF(MONTH(B102)=8,'2 Crop Water Requirement'!$L$52,IF(MONTH(B102)=9,'2 Crop Water Requirement'!$M$52,IF(MONTH(B102)=10,'2 Crop Water Requirement'!$N$52,IF(MONTH(B102)=11,'2 Crop Water Requirement'!$O$52,IF(MONTH(B102)=12,'2 Crop Water Requirement'!$P$52,"")))))))))))) -> 6.045 | E102: =IF(C102="Initial Stage",'2 Crop Water Requirement'!$J$12,IF(C102="Crop Development Phase",'2 Crop Water Requirement'!$J$13,IF(C102="Mid Season",'2 Crop Water Requirement'!$J$14,IF(C102="Late Season Stage",'2 Crop Water Requirement'!$J$15,"")))) ->  | F102: 0 | P102: 0 | Q102: 0 | R102: 0 | S102: 0 | T102: 0 | U102: 0 | V102: 0 | W102: 0 | X102: 0 | Y102: 0 | Z102: 0 | AA102: 0 | AH102: Selected Crop
B103: 2017-04-07 | C103: =IF(AND(B103>='2 Crop Water Requirement'!$H$12,B103<='2 Crop Water Requirement'!$I$12),"Initial Stage",IF(AND(B103+1>'2 Crop Water Requirement'!$H$13,B103<='2 Crop Water Requirement'!$I$13),"Crop Development Phase",IF(AND(B103+1>'2 Crop Water Requirement'!$H$14,B103<'2 Crop Water Requirement'!$I$14+1),"Mid Season",IF(AND(B103+1>'2 Crop Water Requirement'!$H$15,B103-1<'2 Crop Water Requirement'!$I$15),"Late Season Stage","")))) ->  | D103: =IF(MONTH(B103)=1,'2 Crop Water Requirement'!$E$52,IF(MONTH(B103)=2,'2 Crop Water Requirement'!$F$52,IF(MONTH(B103)=3,'2 Crop Water Requirement'!$G$52,IF(MONTH(B103)=4,'2 Crop Water Requirement'!$H$52,IF(MONTH(B103)=5,'2 Crop Water Requirement'!$I$52,IF(MONTH(B103)=6,'2 Crop Water Requirement'!$J$52,IF(MONTH(B103)=7,'2 Crop Water Requirement'!$K$52,IF(MONTH(B103)=8,'2 Crop Water Requirement'!$L$52,IF(MONTH(B103)=9,'2 Crop Water Requirement'!$M$52,IF(MONTH(B103)=10,'2 Crop Water Requirement'!$N$52,IF(MONTH(B103)=11,'2 Crop Water Requirement'!$O$52,IF(MONTH(B103)=12,'2 Crop Water Requirement'!$P$52,"")))))))))))) -> 6.045 | E103: =IF(C103="Initial Stage",'2 Crop Water Requirement'!$J$12,IF(C103="Crop Development Phase",'2 Crop Water Requirement'!$J$13,IF(C103="Mid Season",'2 Crop Water Requirement'!$J$14,IF(C103="Late Season Stage",'2 Crop Water Requirement'!$J$15,"")))) ->  | F103: 0 | P103: 0 | Q103: 0 | R103: 0 | S103: 0 | T103: 0 | U103: 0 | V103: 0 | W103: 0 | X103: 0 | Y103: 0 | Z103: 0 | AA103: 0 | AH103: Irrigation Method | AI103: =IF('2 Crop Water Requirement'!C22="Drip",1,IF('2 Crop Water Requirement'!C22="Micro Sprinkler",2,IF('2 Crop Water Requirement'!C22="Centre Pivot, Linear move",3,IF('2 Crop Water Requirement'!C22="Centre Pivot LEPA",4,IF('2 Crop Water Requirement'!C22="Flood: Piped supply",5,IF('2 Crop Water Requirement'!C22="Flood: Lined canal supplied",6,IF('2 Crop Water Requirement'!C22="Flood: Earth canal supplied",7,IF('2 Crop Water Requirement'!C22="Sprinkler (permanent)",8,IF('2 Crop Water Requirement'!C22="Sprinkler (movable)",9,IF('2 Crop Water Requirement'!C22="Traveling gun",10,"ERROR")))))))))) -> 1 | AJ103: =INDEX($AH$62:$AH$71,AI103) -> Drip | AL103: =INDEX($AI$62:$AI$71,AI103) -> 0.9
B104: 2017-04-08 | C104: =IF(AND(B104>='2 Crop Water Requirement'!$H$12,B104<='2 Crop Water Requirement'!$I$12),"Initial Stage",IF(AND(B104+1>'2 Crop Water Requirement'!$H$13,B104<='2 Crop Water Requirement'!$I$13),"Crop Development Phase",IF(AND(B104+1>'2 Crop Water Requirement'!$H$14,B104<'2 Crop Water Requirement'!$I$14+1),"Mid Season",IF(AND(B104+1>'2 Crop Water Requirement'!$H$15,B104-1<'2 Crop Water Requirement'!$I$15),"Late Season Stage","")))) ->  | D104: =IF(MONTH(B104)=1,'2 Crop Water Requirement'!$E$52,IF(MONTH(B104)=2,'2 Crop Water Requirement'!$F$52,IF(MONTH(B104)=3,'2 Crop Water Requirement'!$G$52,IF(MONTH(B104)=4,'2 Crop Water Requirement'!$H$52,IF(MONTH(B104)=5,'2 Crop Water Requirement'!$I$52,IF(MONTH(B104)=6,'2 Crop Water Requirement'!$J$52,IF(MONTH(B104)=7,'2 Crop Water Requirement'!$K$52,IF(MONTH(B104)=8,'2 Crop Water Requirement'!$L$52,IF(MONTH(B104)=9,'2 Crop Water Requirement'!$M$52,IF(MONTH(B104)=10,'2 Crop Water Requirement'!$N$52,IF(MONTH(B104)=11,'2 Crop Water Requirement'!$O$52,IF(MONTH(B104)=12,'2 Crop Water Requirement'!$P$52,"")))))))))))) -> 6.045 | E104: =IF(C104="Initial Stage",'2 Crop Water Requirement'!$J$12,IF(C104="Crop Development Phase",'2 Crop Water Requirement'!$J$13,IF(C104="Mid Season",'2 Crop Water Requirement'!$J$14,IF(C104="Late Season Stage",'2 Crop Water Requirement'!$J$15,"")))) ->  | F104: 0 | P104: 0 | Q104: 0 | R104: 0 | S104: 0 | T104: 0 | U104: 0 | V104: 0 | W104: 0 | X104: 0 | Y104: 0 | Z104: 0 | AA104: 0 | AH104: Selected Crop Area | AI104: ='2 Crop Water Requirement'!E22 -> 1
B105: 2017-04-09 | C105: =IF(AND(B105>='2 Crop Water Requirement'!$H$12,B105<='2 Crop Water Requirement'!$I$12),"Initial Stage",IF(AND(B105+1>'2 Crop Water Requirement'!$H$13,B105<='2 Crop Water Requirement'!$I$13),"Crop Development Phase",IF(AND(B105+1>'2 Crop Water Requirement'!$H$14,B105<'2 Crop Water Requirement'!$I$14+1),"Mid Season",IF(AND(B105+1>'2 Crop Water Requirement'!$H$15,B105-1<'2 Crop Water Requirement'!$I$15),"Late Season Stage","")))) ->  | D105: =IF(MONTH(B105)=1,'2 Crop Water Requirement'!$E$52,IF(MONTH(B105)=2,'2 Crop Water Requirement'!$F$52,IF(MONTH(B105)=3,'2 Crop Water Requirement'!$G$52,IF(MONTH(B105)=4,'2 Crop Water Requirement'!$H$52,IF(MONTH(B105)=5,'2 Crop Water Requirement'!$I$52,IF(MONTH(B105)=6,'2 Crop Water Requirement'!$J$52,IF(MONTH(B105)=7,'2 Crop Water Requirement'!$K$52,IF(MONTH(B105)=8,'2 Crop Water Requirement'!$L$52,IF(MONTH(B105)=9,'2 Crop Water Requirement'!$M$52,IF(MONTH(B105)=10,'2 Crop Water Requirement'!$N$52,IF(MONTH(B105)=11,'2 Crop Water Requirement'!$O$52,IF(MONTH(B105)=12,'2 Crop Water Requirement'!$P$52,"")))))))))))) -> 6.045 | E105: =IF(C105="Initial Stage",'2 Crop Water Requirement'!$J$12,IF(C105="Crop Development Phase",'2 Crop Water Requirement'!$J$13,IF(C105="Mid Season",'2 Crop Water Requirement'!$J$14,IF(C105="Late Season Stage",'2 Crop Water Requirement'!$J$15,"")))) ->  | F105: 0 | P105: 0 | Q105: 0 | R105: 0 | S105: 0 | T105: 0 | U105: 0 | V105: 0 | W105: 0 | X105: 0 | Y105: 0 | Z105: 0 | AA105: 0 | AH105: ='2 Crop Water Requirement'!B55 -> Irrigation Water need [mm/month]: | AI105: =IF((AI83-AI93)<0,0,(AI83-AI93)) -> 0 | AJ105: =IF((AJ83-AJ93)<0,0,(AJ83-AJ93)) -> 0 | AK105: 0 | AL105: 0 | AM105: 0 | AN105: 14.742 | AO105: 115.885 | AP105: 197.496 | AQ105: 188.37 | AR105: 127.9224 | AS105: 49.05 | AT105: 0
B106: 2017-04-10 | C106: =IF(AND(B106>='2 Crop Water Requirement'!$H$12,B106<='2 Crop Water Requirement'!$I$12),"Initial Stage",IF(AND(B106+1>'2 Crop Water Requirement'!$H$13,B106<='2 Crop Water Requirement'!$I$13),"Crop Development Phase",IF(AND(B106+1>'2 Crop Water Requirement'!$H$14,B106<'2 Crop Water Requirement'!$I$14+1),"Mid Season",IF(AND(B106+1>'2 Crop Water Requirement'!$H$15,B106-1<'2 Crop Water Requirement'!$I$15),"Late Season Stage","")))) ->  | D106: =IF(MONTH(B106)=1,'2 Crop Water Requirement'!$E$52,IF(MONTH(B106)=2,'2 Crop Water Requirement'!$F$52,IF(MONTH(B106)=3,'2 Crop Water Requirement'!$G$52,IF(MONTH(B106)=4,'2 Crop Water Requirement'!$H$52,IF(MONTH(B106)=5,'2 Crop Water Requirement'!$I$52,IF(MONTH(B106)=6,'2 Crop Water Requirement'!$J$52,IF(MONTH(B106)=7,'2 Crop Water Requirement'!$K$52,IF(MONTH(B106)=8,'2 Crop Water Requirement'!$L$52,IF(MONTH(B106)=9,'2 Crop Water Requirement'!$M$52,IF(MONTH(B106)=10,'2 Crop Water Requirement'!$N$52,IF(MONTH(B106)=11,'2 Crop Water Requirement'!$O$52,IF(MONTH(B106)=12,'2 Crop Water Requirement'!$P$52,"")))))))))))) -> 6.045 | E106: =IF(C106="Initial Stage",'2 Crop Water Requirement'!$J$12,IF(C106="Crop Development Phase",'2 Crop Water Requirement'!$J$13,IF(C106="Mid Season",'2 Crop Water Requirement'!$J$14,IF(C106="Late Season Stage",'2 Crop Water Requirement'!$J$15,"")))) ->  | F106: 0 | P106: 0 | Q106: 0 | R106: 0 | S106: 0 | T106: 0 | U106: 0 | V106: 0 | W106: 0 | X106: 0 | Y106: 0 | Z106: 0 | AA106: 0 | AH106: Irrigation Water need [m³/day]: | AI106: =(AI105*10*$AI$104*((1-$AL$103)+1))/AI76 -> 0 | AJ106: =(AJ105*10*$AI$104*((1-$AL$103)+1))/AJ76 -> 0 | AK106: 0 | AL106: 0 | AM106: 0 | AN106: 5.4054 | AO106: 41.12048387 | AP106: 70.07922581 | AQ106: 69.069 | AR106: 45.39181935 | AS106: 17.985 | AT106: 0
B107: 2017-04-11 | C107: =IF(AND(B107>='2 Crop Water Requirement'!$H$12,B107<='2 Crop Water Requirement'!$I$12),"Initial Stage",IF(AND(B107+1>'2 Crop Water Requirement'!$H$13,B107<='2 Crop Water Requirement'!$I$13),"Crop Development Phase",IF(AND(B107+1>'2 Crop Water Requirement'!$H$14,B107<'2 Crop Water Requirement'!$I$14+1),"Mid Season",IF(AND(B107+1>'2 Crop Water Requirement'!$H$15,B107-1<'2 Crop Water Requirement'!$I$15),"Late Season Stage","")))) ->  | D107: =IF(MONTH(B107)=1,'2 Crop Water Requirement'!$E$52,IF(MONTH(B107)=2,'2 Crop Water Requirement'!$F$52,IF(MONTH(B107)=3,'2 Crop Water Requirement'!$G$52,IF(MONTH(B107)=4,'2 Crop Water Requirement'!$H$52,IF(MONTH(B107)=5,'2 Crop Water Requirement'!$I$52,IF(MONTH(B107)=6,'2 Crop Water Requirement'!$J$52,IF(MONTH(B107)=7,'2 Crop Water Requirement'!$K$52,IF(MONTH(B107)=8,'2 Crop Water Requirement'!$L$52,IF(MONTH(B107)=9,'2 Crop Water Requirement'!$M$52,IF(MONTH(B107)=10,'2 Crop Water Requirement'!$N$52,IF(MONTH(B107)=11,'2 Crop Water Requirement'!$O$52,IF(MONTH(B107)=12,'2 Crop Water Requirement'!$P$52,"")))))))))))) -> 6.045 | E107: =IF(C107="Initial Stage",'2 Crop Water Requirement'!$J$12,IF(C107="Crop Development Phase",'2 Crop Water Requirement'!$J$13,IF(C107="Mid Season",'2 Crop Water Requirement'!$J$14,IF(C107="Late Season Stage",'2 Crop Water Requirement'!$J$15,"")))) ->  | F107: 0 | P107: 0 | Q107: 0 | R107: 0 | S107: 0 | T107: 0 | U107: 0 | V107: 0 | W107: 0 | X107: 0 | Y107: 0 | Z107: 0 | AA107: 0
B108: 2017-04-12 | C108: =IF(AND(B108>='2 Crop Water Requirement'!$H$12,B108<='2 Crop Water Requirement'!$I$12),"Initial Stage",IF(AND(B108+1>'2 Crop Water Requirement'!$H$13,B108<='2 Crop Water Requirement'!$I$13),"Crop Development Phase",IF(AND(B108+1>'2 Crop Water Requirement'!$H$14,B108<'2 Crop Water Requirement'!$I$14+1),"Mid Season",IF(AND(B108+1>'2 Crop Water Requirement'!$H$15,B108-1<'2 Crop Water Requirement'!$I$15),"Late Season Stage","")))) ->  | D108: =IF(MONTH(B108)=1,'2 Crop Water Requirement'!$E$52,IF(MONTH(B108)=2,'2 Crop Water Requirement'!$F$52,IF(MONTH(B108)=3,'2 Crop Water Requirement'!$G$52,IF(MONTH(B108)=4,'2 Crop Water Requirement'!$H$52,IF(MONTH(B108)=5,'2 Crop Water Requirement'!$I$52,IF(MONTH(B108)=6,'2 Crop Water Requirement'!$J$52,IF(MONTH(B108)=7,'2 Crop Water Requirement'!$K$52,IF(MONTH(B108)=8,'2 Crop Water Requirement'!$L$52,IF(MONTH(B108)=9,'2 Crop Water Requirement'!$M$52,IF(MONTH(B108)=10,'2 Crop Water Requirement'!$N$52,IF(MONTH(B108)=11,'2 Crop Water Requirement'!$O$52,IF(MONTH(B108)=12,'2 Crop Water Requirement'!$P$52,"")))))))))))) -> 6.045 | E108: =IF(C108="Initial Stage",'2 Crop Water Requirement'!$J$12,IF(C108="Crop Development Phase",'2 Crop Water Requirement'!$J$13,IF(C108="Mid Season",'2 Crop Water Requirement'!$J$14,IF(C108="Late Season Stage",'2 Crop Water Requirement'!$J$15,"")))) ->  | F108: 0 | P108: 0 | Q108: 0 | R108: 0 | S108: 0 | T108: 0 | U108: 0 | V108: 0 | W108: 0 | X108: 0 | Y108: 0 | Z108: 0 | AA108: 0
B109: 2017-04-13 | C109: =IF(AND(B109>='2 Crop Water Requirement'!$H$12,B109<='2 Crop Water Requirement'!$I$12),"Initial Stage",IF(AND(B109+1>'2 Crop Water Requirement'!$H$13,B109<='2 Crop Water Requirement'!$I$13),"Crop Development Phase",IF(AND(B109+1>'2 Crop Water Requirement'!$H$14,B109<'2 Crop Water Requirement'!$I$14+1),"Mid Season",IF(AND(B109+1>'2 Crop Water Requirement'!$H$15,B109-1<'2 Crop Water Requirement'!$I$15),"Late Season Stage","")))) ->  | D109: =IF(MONTH(B109)=1,'2 Crop Water Requirement'!$E$52,IF(MONTH(B109)=2,'2 Crop Water Requirement'!$F$52,IF(MONTH(B109)=3,'2 Crop Water Requirement'!$G$52,IF(MONTH(B109)=4,'2 Crop Water Requirement'!$H$52,IF(MONTH(B109)=5,'2 Crop Water Requirement'!$I$52,IF(MONTH(B109)=6,'2 Crop Water Requirement'!$J$52,IF(MONTH(B109)=7,'2 Crop Water Requirement'!$K$52,IF(MONTH(B109)=8,'2 Crop Water Requirement'!$L$52,IF(MONTH(B109)=9,'2 Crop Water Requirement'!$M$52,IF(MONTH(B109)=10,'2 Crop Water Requirement'!$N$52,IF(MONTH(B109)=11,'2 Crop Water Requirement'!$O$52,IF(MONTH(B109)=12,'2 Crop Water Requirement'!$P$52,"")))))))))))) -> 6.045 | E109: =IF(C109="Initial Stage",'2 Crop Water Requirement'!$J$12,IF(C109="Crop Development Phase",'2 Crop Water Requirement'!$J$13,IF(C109="Mid Season",'2 Crop Water Requirement'!$J$14,IF(C109="Late Season Stage",'2 Crop Water Requirement'!$J$15,"")))) ->  | F109: 0 | P109: 0 | Q109: 0 | R109: 0 | S109: 0 | T109: 0 | U109: 0 | V109: 0 | W109: 0 | X109: 0 | Y109: 0 | Z109: 0 | AA109: 0
B110: 2017-04-14 | C110: =IF(AND(B110>='2 Crop Water Requirement'!$H$12,B110<='2 Crop Water Requirement'!$I$12),"Initial Stage",IF(AND(B110+1>'2 Crop Water Requirement'!$H$13,B110<='2 Crop Water Requirement'!$I$13),"Crop Development Phase",IF(AND(B110+1>'2 Crop Water Requirement'!$H$14,B110<'2 Crop Water Requirement'!$I$14+1),"Mid Season",IF(AND(B110+1>'2 Crop Water Requirement'!$H$15,B110-1<'2 Crop Water Requirement'!$I$15),"Late Season Stage","")))) ->  | D110: =IF(MONTH(B110)=1,'2 Crop Water Requirement'!$E$52,IF(MONTH(B110)=2,'2 Crop Water Requirement'!$F$52,IF(MONTH(B110)=3,'2 Crop Water Requirement'!$G$52,IF(MONTH(B110)=4,'2 Crop Water Requirement'!$H$52,IF(MONTH(B110)=5,'2 Crop Water Requirement'!$I$52,IF(MONTH(B110)=6,'2 Crop Water Requirement'!$J$52,IF(MONTH(B110)=7,'2 Crop Water Requirement'!$K$52,IF(MONTH(B110)=8,'2 Crop Water Requirement'!$L$52,IF(MONTH(B110)=9,'2 Crop Water Requirement'!$M$52,IF(MONTH(B110)=10,'2 Crop Water Requirement'!$N$52,IF(MONTH(B110)=11,'2 Crop Water Requirement'!$O$52,IF(MONTH(B110)=12,'2 Crop Water Requirement'!$P$52,"")))))))))))) -> 6.045 | E110: =IF(C110="Initial Stage",'2 Crop Water Requirement'!$J$12,IF(C110="Crop Development Phase",'2 Crop Water Requirement'!$J$13,IF(C110="Mid Season",'2 Crop Water Requirement'!$J$14,IF(C110="Late Season Stage",'2 Crop Water Requirement'!$J$15,"")))) ->  | F110: 0 | P110: 0 | Q110: 0 | R110: 0 | S110: 0 | T110: 0 | U110: 0 | V110: 0 | W110: 0 | X110: 0 | Y110: 0 | Z110: 0 | AA110: 0
B111: 2017-04-15 | C111: =IF(AND(B111>='2 Crop Water Requirement'!$H$12,B111<='2 Crop Water Requirement'!$I$12),"Initial Stage",IF(AND(B111+1>'2 Crop Water Requirement'!$H$13,B111<='2 Crop Water Requirement'!$I$13),"Crop Development Phase",IF(AND(B111+1>'2 Crop Water Requirement'!$H$14,B111<'2 Crop Water Requirement'!$I$14+1),"Mid Season",IF(AND(B111+1>'2 Crop Water Requirement'!$H$15,B111-1<'2 Crop Water Requirement'!$I$15),"Late Season Stage","")))) ->  | D111: =IF(MONTH(B111)=1,'2 Crop Water Requirement'!$E$52,IF(MONTH(B111)=2,'2 Crop Water Requirement'!$F$52,IF(MONTH(B111)=3,'2 Crop Water Requirement'!$G$52,IF(MONTH(B111)=4,'2 Crop Water Requirement'!$H$52,IF(MONTH(B111)=5,'2 Crop Water Requirement'!$I$52,IF(MONTH(B111)=6,'2 Crop Water Requirement'!$J$52,IF(MONTH(B111)=7,'2 Crop Water Requirement'!$K$52,IF(MONTH(B111)=8,'2 Crop Water Requirement'!$L$52,IF(MONTH(B111)=9,'2 Crop Water Requirement'!$M$52,IF(MONTH(B111)=10,'2 Crop Water Requirement'!$N$52,IF(MONTH(B111)=11,'2 Crop Water Requirement'!$O$52,IF(MONTH(B111)=12,'2 Crop Water Requirement'!$P$52,"")))))))))))) -> 6.045 | E111: =IF(C111="Initial Stage",'2 Crop Water Requirement'!$J$12,IF(C111="Crop Development Phase",'2 Crop Water Requirement'!$J$13,IF(C111="Mid Season",'2 Crop Water Requirement'!$J$14,IF(C111="Late Season Stage",'2 Crop Water Requirement'!$J$15,"")))) ->  | F111: 0 | P111: 0 | Q111: 0 | R111: 0 | S111: 0 | T111: 0 | U111: 0 | V111: 0 | W111: 0 | X111: 0 | Y111: 0 | Z111: 0 | AA111: 0 | AH111: Copied Crop I
B112: 2017-04-16 | C112: =IF(AND(B112>='2 Crop Water Requirement'!$H$12,B112<='2 Crop Water Requirement'!$I$12),"Initial Stage",IF(AND(B112+1>'2 Crop Water Requirement'!$H$13,B112<='2 Crop Water Requirement'!$I$13),"Crop Development Phase",IF(AND(B112+1>'2 Crop Water Requirement'!$H$14,B112<'2 Crop Water Requirement'!$I$14+1),"Mid Season",IF(AND(B112+1>'2 Crop Water Requirement'!$H$15,B112-1<'2 Crop Water Requirement'!$I$15),"Late Season Stage","")))) ->  | D112: =IF(MONTH(B112)=1,'2 Crop Water Requirement'!$E$52,IF(MONTH(B112)=2,'2 Crop Water Requirement'!$F$52,IF(MONTH(B112)=3,'2 Crop Water Requirement'!$G$52,IF(MONTH(B112)=4,'2 Crop Water Requirement'!$H$52,IF(MONTH(B112)=5,'2 Crop Water Requirement'!$I$52,IF(MONTH(B112)=6,'2 Crop Water Requirement'!$J$52,IF(MONTH(B112)=7,'2 Crop Water Requirement'!$K$52,IF(MONTH(B112)=8,'2 Crop Water Requirement'!$L$52,IF(MONTH(B112)=9,'2 Crop Water Requirement'!$M$52,IF(MONTH(B112)=10,'2 Crop Water Requirement'!$N$52,IF(MONTH(B112)=11,'2 Crop Water Requirement'!$O$52,IF(MONTH(B112)=12,'2 Crop Water Requirement'!$P$52,"")))))))))))) -> 6.045 | E112: =IF(C112="Initial Stage",'2 Crop Water Requirement'!$J$12,IF(C112="Crop Development Phase",'2 Crop Water Requirement'!$J$13,IF(C112="Mid Season",'2 Crop Water Requirement'!$J$14,IF(C112="Late Season Stage",'2 Crop Water Requirement'!$J$15,"")))) ->  | F112: 0 | P112: 0 | Q112: 0 | R112: 0 | S112: 0 | T112: 0 | U112: 0 | V112: 0 | W112: 0 | X112: 0 | Y112: 0 | Z112: 0 | AA112: 0 | AH112: Irrigation Method | AI112: =IF('2 Crop Water Requirement'!C23="Drip",1,IF('2 Crop Water Requirement'!C23="Micro Sprinkler",2,IF('2 Crop Water Requirement'!C23="Centre Pivot, Linear move",3,IF('2 Crop Water Requirement'!C23="Centre Pivot LEPA",4,IF('2 Crop Water Requirement'!C23="Flood: Piped supply",5,IF('2 Crop Water Requirement'!C23="Flood: Lined canal supplied",6,IF('2 Crop Water Requirement'!C23="Flood: Earth canal supplied",7,IF('2 Crop Water Requirement'!C23="Sprinkler (permanent)",8,IF('2 Crop Water Requirement'!C23="Sprinkler (movable)",9,IF('2 Crop Water Requirement'!C23="Traveling gun",10,"ERROR")))))))))) -> 1 | AJ112: =INDEX($AH$62:$AH$71,AI112) -> Drip | AL112: =INDEX($AI$62:$AI$71,AI112) -> 0.9
B113: 2017-04-17 | C113: =IF(AND(B113>='2 Crop Water Requirement'!$H$12,B113<='2 Crop Water Requirement'!$I$12),"Initial Stage",IF(AND(B113+1>'2 Crop Water Requirement'!$H$13,B113<='2 Crop Water Requirement'!$I$13),"Crop Development Phase",IF(AND(B113+1>'2 Crop Water Requirement'!$H$14,B113<'2 Crop Water Requirement'!$I$14+1),"Mid Season",IF(AND(B113+1>'2 Crop Water Requirement'!$H$15,B113-1<'2 Crop Water Requirement'!$I$15),"Late Season Stage","")))) ->  | D113: =IF(MONTH(B113)=1,'2 Crop Water Requirement'!$E$52,IF(MONTH(B113)=2,'2 Crop Water Requirement'!$F$52,IF(MONTH(B113)=3,'2 Crop Water Requirement'!$G$52,IF(MONTH(B113)=4,'2 Crop Water Requirement'!$H$52,IF(MONTH(B113)=5,'2 Crop Water Requirement'!$I$52,IF(MONTH(B113)=6,'2 Crop Water Requirement'!$J$52,IF(MONTH(B113)=7,'2 Crop Water Requirement'!$K$52,IF(MONTH(B113)=8,'2 Crop Water Requirement'!$L$52,IF(MONTH(B113)=9,'2 Crop Water Requirement'!$M$52,IF(MONTH(B113)=10,'2 Crop Water Requirement'!$N$52,IF(MONTH(B113)=11,'2 Crop Water Requirement'!$O$52,IF(MONTH(B113)=12,'2 Crop Water Requirement'!$P$52,"")))))))))))) -> 6.045 | E113: =IF(C113="Initial Stage",'2 Crop Water Requirement'!$J$12,IF(C113="Crop Development Phase",'2 Crop Water Requirement'!$J$13,IF(C113="Mid Season",'2 Crop Water Requirement'!$J$14,IF(C113="Late Season Stage",'2 Crop Water Requirement'!$J$15,"")))) ->  | F113: 0 | P113: 0 | Q113: 0 | R113: 0 | S113: 0 | T113: 0 | U113: 0 | V113: 0 | W113: 0 | X113: 0 | Y113: 0 | Z113: 0 | AA113: 0 | AH113: Area Crop I | AI113: ='2 Crop Water Requirement'!E23 -> 0
B114: 2017-04-18 | C114: =IF(AND(B114>='2 Crop Water Requirement'!$H$12,B114<='2 Crop Water Requirement'!$I$12),"Initial Stage",IF(AND(B114+1>'2 Crop Water Requirement'!$H$13,B114<='2 Crop Water Requirement'!$I$13),"Crop Development Phase",IF(AND(B114+1>'2 Crop Water Requirement'!$H$14,B114<'2 Crop Water Requirement'!$I$14+1),"Mid Season",IF(AND(B114+1>'2 Crop Water Requirement'!$H$15,B114-1<'2 Crop Water Requirement'!$I$15),"Late Season Stage","")))) ->  | D114: =IF(MONTH(B114)=1,'2 Crop Water Requirement'!$E$52,IF(MONTH(B114)=2,'2 Crop Water Requirement'!$F$52,IF(MONTH(B114)=3,'2 Crop Water Requirement'!$G$52,IF(MONTH(B114)=4,'2 Crop Water Requirement'!$H$52,IF(MONTH(B114)=5,'2 Crop Water Requirement'!$I$52,IF(MONTH(B114)=6,'2 Crop Water Requirement'!$J$52,IF(MONTH(B114)=7,'2 Crop Water Requirement'!$K$52,IF(MONTH(B114)=8,'2 Crop Water Requirement'!$L$52,IF(MONTH(B114)=9,'2 Crop Water Requirement'!$M$52,IF(MONTH(B114)=10,'2 Crop Water Requirement'!$N$52,IF(MONTH(B114)=11,'2 Crop Water Requirement'!$O$52,IF(MONTH(B114)=12,'2 Crop Water Requirement'!$P$52,"")))))))))))) -> 6.045 | E114: =IF(C114="Initial Stage",'2 Crop Water Requirement'!$J$12,IF(C114="Crop Development Phase",'2 Crop Water Requirement'!$J$13,IF(C114="Mid Season",'2 Crop Water Requirement'!$J$14,IF(C114="Late Season Stage",'2 Crop Water Requirement'!$J$15,"")))) ->  | F114: 0 | P114: 0 | Q114: 0 | R114: 0 | S114: 0 | T114: 0 | U114: 0 | V114: 0 | W114: 0 | X114: 0 | Y114: 0 | Z114: 0 | AA114: 0 | AH114: =AH105 -> Irrigation Water need [mm/month]: | AI114: =IF((AI78-AI93)<0,0,(AI78-AI93)) -> 0 | AJ114: =IF((AJ78-AJ93)<0,0,(AJ78-AJ93)) -> 0 | AK114: 0 | AL114: 0 | AM114: 0 | AN114: 0 | AO114: 0 | AP114: 0 | AQ114: 0 | AR114: 0 | AS114: 0 | AT114: 0
B115: 2017-04-19 | C115: =IF(AND(B115>='2 Crop Water Requirement'!$H$12,B115<='2 Crop Water Requirement'!$I$12),"Initial Stage",IF(AND(B115+1>'2 Crop Water Requirement'!$H$13,B115<='2 Crop Water Requirement'!$I$13),"Crop Development Phase",IF(AND(B115+1>'2 Crop Water Requirement'!$H$14,B115<'2 Crop Water Requirement'!$I$14+1),"Mid Season",IF(AND(B115+1>'2 Crop Water Requirement'!$H$15,B115-1<'2 Crop Water Requirement'!$I$15),"Late Season Stage","")))) ->  | D115: =IF(MONTH(B115)=1,'2 Crop Water Requirement'!$E$52,IF(MONTH(B115)=2,'2 Crop Water Requirement'!$F$52,IF(MONTH(B115)=3,'2 Crop Water Requirement'!$G$52,IF(MONTH(B115)=4,'2 Crop Water Requirement'!$H$52,IF(MONTH(B115)=5,'2 Crop Water Requirement'!$I$52,IF(MONTH(B115)=6,'2 Crop Water Requirement'!$J$52,IF(MONTH(B115)=7,'2 Crop Water Requirement'!$K$52,IF(MONTH(B115)=8,'2 Crop Water Requirement'!$L$52,IF(MONTH(B115)=9,'2 Crop Water Requirement'!$M$52,IF(MONTH(B115)=10,'2 Crop Water Requirement'!$N$52,IF(MONTH(B115)=11,'2 Crop Water Requirement'!$O$52,IF(MONTH(B115)=12,'2 Crop Water Requirement'!$P$52,"")))))))))))) -> 6.045 | E115: =IF(C115="Initial Stage",'2 Crop Water Requirement'!$J$12,IF(C115="Crop Development Phase",'2 Crop Water Requirement'!$J$13,IF(C115="Mid Season",'2 Crop Water Requirement'!$J$14,IF(C115="Late Season Stage",'2 Crop Water Requirement'!$J$15,"")))) ->  | F115: 0 | P115: 0 | Q115: 0 | R115: 0 | S115: 0 | T115: 0 | U115: 0 | V115: 0 | W115: 0 | X115: 0 | Y115: 0 | Z115: 0 | AA115: 0 | AH115: Irrigation Water need [m³/day]: | AI115: =(AI114*10*$AI$113*((1-$AL$112)+1))/AI76 -> 0 | AJ115: =(AJ114*10*$AI$113*((1-$AL$112)+1))/AJ76 -> 0 | AK115: 0 | AL115: 0 | AM115: 0 | AN115: 0 | AO115: 0 | AP115: 0 | AQ115: 0 | AR115: 0 | AS115: 0 | AT115: 0
B116: 2017-04-20 | C116: =IF(AND(B116>='2 Crop Water Requirement'!$H$12,B116<='2 Crop Water Requirement'!$I$12),"Initial Stage",IF(AND(B116+1>'2 Crop Water Requirement'!$H$13,B116<='2 Crop Water Requirement'!$I$13),"Crop Development Phase",IF(AND(B116+1>'2 Crop Water Requirement'!$H$14,B116<'2 Crop Water Requirement'!$I$14+1),"Mid Season",IF(AND(B116+1>'2 Crop Water Requirement'!$H$15,B116-1<'2 Crop Water Requirement'!$I$15),"Late Season Stage","")))) ->  | D116: =IF(MONTH(B116)=1,'2 Crop Water Requirement'!$E$52,IF(MONTH(B116)=2,'2 Crop Water Requirement'!$F$52,IF(MONTH(B116)=3,'2 Crop Water Requirement'!$G$52,IF(MONTH(B116)=4,'2 Crop Water Requirement'!$H$52,IF(MONTH(B116)=5,'2 Crop Water Requirement'!$I$52,IF(MONTH(B116)=6,'2 Crop Water Requirement'!$J$52,IF(MONTH(B116)=7,'2 Crop Water Requirement'!$K$52,IF(MONTH(B116)=8,'2 Crop Water Requirement'!$L$52,IF(MONTH(B116)=9,'2 Crop Water Requirement'!$M$52,IF(MONTH(B116)=10,'2 Crop Water Requirement'!$N$52,IF(MONTH(B116)=11,'2 Crop Water Requirement'!$O$52,IF(MONTH(B116)=12,'2 Crop Water Requirement'!$P$52,"")))))))))))) -> 6.045 | E116: =IF(C116="Initial Stage",'2 Crop Water Requirement'!$J$12,IF(C116="Crop Development Phase",'2 Crop Water Requirement'!$J$13,IF(C116="Mid Season",'2 Crop Water Requirement'!$J$14,IF(C116="Late Season Stage",'2 Crop Water Requirement'!$J$15,"")))) ->  | F116: 0 | P116: 0 | Q116: 0 | R116: 0 | S116: 0 | T116: 0 | U116: 0 | V116: 0 | W116: 0 | X116: 0 | Y116: 0 | Z116: 0 | AA116: 0
B117: 2017-04-21 | C117: =IF(AND(B117>='2 Crop Water Requirement'!$H$12,B117<='2 Crop Water Requirement'!$I$12),"Initial Stage",IF(AND(B117+1>'2 Crop Water Requirement'!$H$13,B117<='2 Crop Water Requirement'!$I$13),"Crop Development Phase",IF(AND(B117+1>'2 Crop Water Requirement'!$H$14,B117<'2 Crop Water Requirement'!$I$14+1),"Mid Season",IF(AND(B117+1>'2 Crop Water Requirement'!$H$15,B117-1<'2 Crop Water Requirement'!$I$15),"Late Season Stage","")))) ->  | D117: =IF(MONTH(B117)=1,'2 Crop Water Requirement'!$E$52,IF(MONTH(B117)=2,'2 Crop Water Requirement'!$F$52,IF(MONTH(B117)=3,'2 Crop Water Requirement'!$G$52,IF(MONTH(B117)=4,'2 Crop Water Requirement'!$H$52,IF(MONTH(B117)=5,'2 Crop Water Requirement'!$I$52,IF(MONTH(B117)=6,'2 Crop Water Requirement'!$J$52,IF(MONTH(B117)=7,'2 Crop Water Requirement'!$K$52,IF(MONTH(B117)=8,'2 Crop Water Requirement'!$L$52,IF(MONTH(B117)=9,'2 Crop Water Requirement'!$M$52,IF(MONTH(B117)=10,'2 Crop Water Requirement'!$N$52,IF(MONTH(B117)=11,'2 Crop Water Requirement'!$O$52,IF(MONTH(B117)=12,'2 Crop Water Requirement'!$P$52,"")))))))))))) -> 6.045 | E117: =IF(C117="Initial Stage",'2 Crop Water Requirement'!$J$12,IF(C117="Crop Development Phase",'2 Crop Water Requirement'!$J$13,IF(C117="Mid Season",'2 Crop Water Requirement'!$J$14,IF(C117="Late Season Stage",'2 Crop Water Requirement'!$J$15,"")))) ->  | F117: 0 | P117: 0 | Q117: 0 | R117: 0 | S117: 0 | T117: 0 | U117: 0 | V117: 0 | W117: 0 | X117: 0 | Y117: 0 | Z117: 0 | AA117: 0
B118: 2017-04-22 | C118: =IF(AND(B118>='2 Crop Water Requirement'!$H$12,B118<='2 Crop Water Requirement'!$I$12),"Initial Stage",IF(AND(B118+1>'2 Crop Water Requirement'!$H$13,B118<='2 Crop Water Requirement'!$I$13),"Crop Development Phase",IF(AND(B118+1>'2 Crop Water Requirement'!$H$14,B118<'2 Crop Water Requirement'!$I$14+1),"Mid Season",IF(AND(B118+1>'2 Crop Water Requirement'!$H$15,B118-1<'2 Crop Water Requirement'!$I$15),"Late Season Stage","")))) ->  | D118: =IF(MONTH(B118)=1,'2 Crop Water Requirement'!$E$52,IF(MONTH(B118)=2,'2 Crop Water Requirement'!$F$52,IF(MONTH(B118)=3,'2 Crop Water Requirement'!$G$52,IF(MONTH(B118)=4,'2 Crop Water Requirement'!$H$52,IF(MONTH(B118)=5,'2 Crop Water Requirement'!$I$52,IF(MONTH(B118)=6,'2 Crop Water Requirement'!$J$52,IF(MONTH(B118)=7,'2 Crop Water Requirement'!$K$52,IF(MONTH(B118)=8,'2 Crop Water Requirement'!$L$52,IF(MONTH(B118)=9,'2 Crop Water Requirement'!$M$52,IF(MONTH(B118)=10,'2 Crop Water Requirement'!$N$52,IF(MONTH(B118)=11,'2 Crop Water Requirement'!$O$52,IF(MONTH(B118)=12,'2 Crop Water Requirement'!$P$52,"")))))))))))) -> 6.045 | E118: =IF(C118="Initial Stage",'2 Crop Water Requirement'!$J$12,IF(C118="Crop Development Phase",'2 Crop Water Requirement'!$J$13,IF(C118="Mid Season",'2 Crop Water Requirement'!$J$14,IF(C118="Late Season Stage",'2 Crop Water Requirement'!$J$15,"")))) ->  | F118: 0 | P118: 0 | Q118: 0 | R118: 0 | S118: 0 | T118: 0 | U118: 0 | V118: 0 | W118: 0 | X118: 0 | Y118: 0 | Z118: 0 | AA118: 0 | AH118: Copied Crop II
B119: 2017-04-23 | C119: =IF(AND(B119>='2 Crop Water Requirement'!$H$12,B119<='2 Crop Water Requirement'!$I$12),"Initial Stage",IF(AND(B119+1>'2 Crop Water Requirement'!$H$13,B119<='2 Crop Water Requirement'!$I$13),"Crop Development Phase",IF(AND(B119+1>'2 Crop Water Requirement'!$H$14,B119<'2 Crop Water Requirement'!$I$14+1),"Mid Season",IF(AND(B119+1>'2 Crop Water Requirement'!$H$15,B119-1<'2 Crop Water Requirement'!$I$15),"Late Season Stage","")))) ->  | D119: =IF(MONTH(B119)=1,'2 Crop Water Requirement'!$E$52,IF(MONTH(B119)=2,'2 Crop Water Requirement'!$F$52,IF(MONTH(B119)=3,'2 Crop Water Requirement'!$G$52,IF(MONTH(B119)=4,'2 Crop Water Requirement'!$H$52,IF(MONTH(B119)=5,'2 Crop Water Requirement'!$I$52,IF(MONTH(B119)=6,'2 Crop Water Requirement'!$J$52,IF(MONTH(B119)=7,'2 Crop Water Requirement'!$K$52,IF(MONTH(B119)=8,'2 Crop Water Requirement'!$L$52,IF(MONTH(B119)=9,'2 Crop Water Requirement'!$M$52,IF(MONTH(B119)=10,'2 Crop Water Requirement'!$N$52,IF(MONTH(B119)=11,'2 Crop Water Requirement'!$O$52,IF(MONTH(B119)=12,'2 Crop Water Requirement'!$P$52,"")))))))))))) -> 6.045 | E119: =IF(C119="Initial Stage",'2 Crop Water Requirement'!$J$12,IF(C119="Crop Development Phase",'2 Crop Water Requirement'!$J$13,IF(C119="Mid Season",'2 Crop Water Requirement'!$J$14,IF(C119="Late Season Stage",'2 Crop Water Requirement'!$J$15,"")))) ->  | F119: 0 | P119: 0 | Q119: 0 | R119: 0 | S119: 0 | T119: 0 | U119: 0 | V119: 0 | W119: 0 | X119: 0 | Y119: 0 | Z119: 0 | AA119: 0 | AH119: Irrigation Method | AI119: =IF('2 Crop Water Requirement'!C24="Drip",1,IF('2 Crop Water Requirement'!C24="Micro Sprinkler",2,IF('2 Crop Water Requirement'!C24="Centre Pivot, Linear move",3,IF('2 Crop Water Requirement'!C24="Centre Pivot LEPA",4,IF('2 Crop Water Requirement'!C24="Flood: Piped supply",5,IF('2 Crop Water Requirement'!C24="Flood: Lined canal supplied",6,IF('2 Crop Water Requirement'!C24="Flood: Earth canal supplied",7,IF('2 Crop Water Requirement'!C24="Sprinkler (permanent)",8,IF('2 Crop Water Requirement'!C24="Sprinkler (movable)",9,IF('2 Crop Water Requirement'!C24="Traveling gun",10,"ERROR")))))))))) -> 1 | AJ119: =INDEX($AH$62:$AH$71,AI119) -> Drip | AL119: =INDEX($AI$62:$AI$71,AI119) -> 0.9
B120: 2017-04-24 | C120: =IF(AND(B120>='2 Crop Water Requirement'!$H$12,B120<='2 Crop Water Requirement'!$I$12),"Initial Stage",IF(AND(B120+1>'2 Crop Water Requirement'!$H$13,B120<='2 Crop Water Requirement'!$I$13),"Crop Development Phase",IF(AND(B120+1>'2 Crop Water Requirement'!$H$14,B120<'2 Crop Water Requirement'!$I$14+1),"Mid Season",IF(AND(B120+1>'2 Crop Water Requirement'!$H$15,B120-1<'2 Crop Water Requirement'!$I$15),"Late Season Stage","")))) ->  | D120: =IF(MONTH(B120)=1,'2 Crop Water Requirement'!$E$52,IF(MONTH(B120)=2,'2 Crop Water Requirement'!$F$52,IF(MONTH(B120)=3,'2 Crop Water Requirement'!$G$52,IF(MONTH(B120)=4,'2 Crop Water Requirement'!$H$52,IF(MONTH(B120)=5,'2 Crop Water Requirement'!$I$52,IF(MONTH(B120)=6,'2 Crop Water Requirement'!$J$52,IF(MONTH(B120)=7,'2 Crop Water Requirement'!$K$52,IF(MONTH(B120)=8,'2 Crop Water Requirement'!$L$52,IF(MONTH(B120)=9,'2 Crop Water Requirement'!$M$52,IF(MONTH(B120)=10,'2 Crop Water Requirement'!$N$52,IF(MONTH(B120)=11,'2 Crop Water Requirement'!$O$52,IF(MONTH(B120)=12,'2 Crop Water Requirement'!$P$52,"")))))))))))) -> 6.045 | E120: =IF(C120="Initial Stage",'2 Crop Water Requirement'!$J$12,IF(C120="Crop Development Phase",'2 Crop Water Requirement'!$J$13,IF(C120="Mid Season",'2 Crop Water Requirement'!$J$14,IF(C120="Late Season Stage",'2 Crop Water Requirement'!$J$15,"")))) ->  | F120: 0 | P120: 0 | Q120: 0 | R120: 0 | S120: 0 | T120: 0 | U120: 0 | V120: 0 | W120: 0 | X120: 0 | Y120: 0 | Z120: 0 | AA120: 0 | AH120: Area Crop II | AI120: ='2 Crop Water Requirement'!E24 -> 0
B121: 2017-04-25 | C121: =IF(AND(B121>='2 Crop Water Requirement'!$H$12,B121<='2 Crop Water Requirement'!$I$12),"Initial Stage",IF(AND(B121+1>'2 Crop Water Requirement'!$H$13,B121<='2 Crop Water Requirement'!$I$13),"Crop Development Phase",IF(AND(B121+1>'2 Crop Water Requirement'!$H$14,B121<'2 Crop Water Requirement'!$I$14+1),"Mid Season",IF(AND(B121+1>'2 Crop Water Requirement'!$H$15,B121-1<'2 Crop Water Requirement'!$I$15),"Late Season Stage","")))) ->  | D121: =IF(MONTH(B121)=1,'2 Crop Water Requirement'!$E$52,IF(MONTH(B121)=2,'2 Crop Water Requirement'!$F$52,IF(MONTH(B121)=3,'2 Crop Water Requirement'!$G$52,IF(MONTH(B121)=4,'2 Crop Water Requirement'!$H$52,IF(MONTH(B121)=5,'2 Crop Water Requirement'!$I$52,IF(MONTH(B121)=6,'2 Crop Water Requirement'!$J$52,IF(MONTH(B121)=7,'2 Crop Water Requirement'!$K$52,IF(MONTH(B121)=8,'2 Crop Water Requirement'!$L$52,IF(MONTH(B121)=9,'2 Crop Water Requirement'!$M$52,IF(MONTH(B121)=10,'2 Crop Water Requirement'!$N$52,IF(MONTH(B121)=11,'2 Crop Water Requirement'!$O$52,IF(MONTH(B121)=12,'2 Crop Water Requirement'!$P$52,"")))))))))))) -> 6.045 | E121: =IF(C121="Initial Stage",'2 Crop Water Requirement'!$J$12,IF(C121="Crop Development Phase",'2 Crop Water Requirement'!$J$13,IF(C121="Mid Season",'2 Crop Water Requirement'!$J$14,IF(C121="Late Season Stage",'2 Crop Water Requirement'!$J$15,"")))) ->  | F121: 0 | P121: 0 | Q121: 0 | R121: 0 | S121: 0 | T121: 0 | U121: 0 | V121: 0 | W121: 0 | X121: 0 | Y121: 0 | Z121: 0 | AA121: 0 | AH121: Irrigation Water need [mm/month]: | AI121: =IF((AI79-AI93)<0,0,(AI79-AI93)) -> 0 | AJ121: =IF((AJ79-AJ93)<0,0,(AJ79-AJ93)) -> 0 | AK121: 0 | AL121: 0 | AM121: 0 | AN121: 0 | AO121: 0 | AP121: 0 | AQ121: 0 | AR121: 0 | AS121: 0 | AT121: 0
B122: 2017-04-26 | C122: =IF(AND(B122>='2 Crop Water Requirement'!$H$12,B122<='2 Crop Water Requirement'!$I$12),"Initial Stage",IF(AND(B122+1>'2 Crop Water Requirement'!$H$13,B122<='2 Crop Water Requirement'!$I$13),"Crop Development Phase",IF(AND(B122+1>'2 Crop Water Requirement'!$H$14,B122<'2 Crop Water Requirement'!$I$14+1),"Mid Season",IF(AND(B122+1>'2 Crop Water Requirement'!$H$15,B122-1<'2 Crop Water Requirement'!$I$15),"Late Season Stage","")))) ->  | D122: =IF(MONTH(B122)=1,'2 Crop Water Requirement'!$E$52,IF(MONTH(B122)=2,'2 Crop Water Requirement'!$F$52,IF(MONTH(B122)=3,'2 Crop Water Requirement'!$G$52,IF(MONTH(B122)=4,'2 Crop Water Requirement'!$H$52,IF(MONTH(B122)=5,'2 Crop Water Requirement'!$I$52,IF(MONTH(B122)=6,'2 Crop Water Requirement'!$J$52,IF(MONTH(B122)=7,'2 Crop Water Requirement'!$K$52,IF(MONTH(B122)=8,'2 Crop Water Requirement'!$L$52,IF(MONTH(B122)=9,'2 Crop Water Requirement'!$M$52,IF(MONTH(B122)=10,'2 Crop Water Requirement'!$N$52,IF(MONTH(B122)=11,'2 Crop Water Requirement'!$O$52,IF(MONTH(B122)=12,'2 Crop Water Requirement'!$P$52,"")))))))))))) -> 6.045 | E122: =IF(C122="Initial Stage",'2 Crop Water Requirement'!$J$12,IF(C122="Crop Development Phase",'2 Crop Water Requirement'!$J$13,IF(C122="Mid Season",'2 Crop Water Requirement'!$J$14,IF(C122="Late Season Stage",'2 Crop Water Requirement'!$J$15,"")))) ->  | F122: 0 | P122: 0 | Q122: 0 | R122: 0 | S122: 0 | T122: 0 | U122: 0 | V122: 0 | W122: 0 | X122: 0 | Y122: 0 | Z122: 0 | AA122: 0 | AH122: Irrigation Water need [m³/day]: | AI122: =(AI121*10*$AI$120*((1-$AL$119)+1))/AI76 -> 0 | AJ122: =(AJ121*10*$AI$120*((1-$AL$119)+1))/AJ76 -> 0 | AK122: 0 | AL122: 0 | AM122: 0 | AN122: 0 | AO122: 0 | AP122: 0 | AQ122: 0 | AR122: 0 | AS122: 0 | AT122: 0
B123: 2017-04-27 | C123: =IF(AND(B123>='2 Crop Water Requirement'!$H$12,B123<='2 Crop Water Requirement'!$I$12),"Initial Stage",IF(AND(B123+1>'2 Crop Water Requirement'!$H$13,B123<='2 Crop Water Requirement'!$I$13),"Crop Development Phase",IF(AND(B123+1>'2 Crop Water Requirement'!$H$14,B123<'2 Crop Water Requirement'!$I$14+1),"Mid Season",IF(AND(B123+1>'2 Crop Water Requirement'!$H$15,B123-1<'2 Crop Water Requirement'!$I$15),"Late Season Stage","")))) ->  | D123: =IF(MONTH(B123)=1,'2 Crop Water Requirement'!$E$52,IF(MONTH(B123)=2,'2 Crop Water Requirement'!$F$52,IF(MONTH(B123)=3,'2 Crop Water Requirement'!$G$52,IF(MONTH(B123)=4,'2 Crop Water Requirement'!$H$52,IF(MONTH(B123)=5,'2 Crop Water Requirement'!$I$52,IF(MONTH(B123)=6,'2 Crop Water Requirement'!$J$52,IF(MONTH(B123)=7,'2 Crop Water Requirement'!$K$52,IF(MONTH(B123)=8,'2 Crop Water Requirement'!$L$52,IF(MONTH(B123)=9,'2 Crop Water Requirement'!$M$52,IF(MONTH(B123)=10,'2 Crop Water Requirement'!$N$52,IF(MONTH(B123)=11,'2 Crop Water Requirement'!$O$52,IF(MONTH(B123)=12,'2 Crop Water Requirement'!$P$52,"")))))))))))) -> 6.045 | E123: =IF(C123="Initial Stage",'2 Crop Water Requirement'!$J$12,IF(C123="Crop Development Phase",'2 Crop Water Requirement'!$J$13,IF(C123="Mid Season",'2 Crop Water Requirement'!$J$14,IF(C123="Late Season Stage",'2 Crop Water Requirement'!$J$15,"")))) ->  | F123: 0 | P123: 0 | Q123: 0 | R123: 0 | S123: 0 | T123: 0 | U123: 0 | V123: 0 | W123: 0 | X123: 0 | Y123: 0 | Z123: 0 | AA123: 0
B124: 2017-04-28 | C124: =IF(AND(B124>='2 Crop Water Requirement'!$H$12,B124<='2 Crop Water Requirement'!$I$12),"Initial Stage",IF(AND(B124+1>'2 Crop Water Requirement'!$H$13,B124<='2 Crop Water Requirement'!$I$13),"Crop Development Phase",IF(AND(B124+1>'2 Crop Water Requirement'!$H$14,B124<'2 Crop Water Requirement'!$I$14+1),"Mid Season",IF(AND(B124+1>'2 Crop Water Requirement'!$H$15,B124-1<'2 Crop Water Requirement'!$I$15),"Late Season Stage","")))) ->  | D124: =IF(MONTH(B124)=1,'2 Crop Water Requirement'!$E$52,IF(MONTH(B124)=2,'2 Crop Water Requirement'!$F$52,IF(MONTH(B124)=3,'2 Crop Water Requirement'!$G$52,IF(MONTH(B124)=4,'2 Crop Water Requirement'!$H$52,IF(MONTH(B124)=5,'2 Crop Water Requirement'!$I$52,IF(MONTH(B124)=6,'2 Crop Water Requirement'!$J$52,IF(MONTH(B124)=7,'2 Crop Water Requirement'!$K$52,IF(MONTH(B124)=8,'2 Crop Water Requirement'!$L$52,IF(MONTH(B124)=9,'2 Crop Water Requirement'!$M$52,IF(MONTH(B124)=10,'2 Crop Water Requirement'!$N$52,IF(MONTH(B124)=11,'2 Crop Water Requirement'!$O$52,IF(MONTH(B124)=12,'2 Crop Water Requirement'!$P$52,"")))))))))))) -> 6.045 | E124: =IF(C124="Initial Stage",'2 Crop Water Requirement'!$J$12,IF(C124="Crop Development Phase",'2 Crop Water Requirement'!$J$13,IF(C124="Mid Season",'2 Crop Water Requirement'!$J$14,IF(C124="Late Season Stage",'2 Crop Water Requirement'!$J$15,"")))) ->  | F124: 0 | P124: 0 | Q124: 0 | R124: 0 | S124: 0 | T124: 0 | U124: 0 | V124: 0 | W124: 0 | X124: 0 | Y124: 0 | Z124: 0 | AA124: 0
B125: 2017-04-29 | C125: =IF(AND(B125>='2 Crop Water Requirement'!$H$12,B125<='2 Crop Water Requirement'!$I$12),"Initial Stage",IF(AND(B125+1>'2 Crop Water Requirement'!$H$13,B125<='2 Crop Water Requirement'!$I$13),"Crop Development Phase",IF(AND(B125+1>'2 Crop Water Requirement'!$H$14,B125<'2 Crop Water Requirement'!$I$14+1),"Mid Season",IF(AND(B125+1>'2 Crop Water Requirement'!$H$15,B125-1<'2 Crop Water Requirement'!$I$15),"Late Season Stage","")))) ->  | D125: =IF(MONTH(B125)=1,'2 Crop Water Requirement'!$E$52,IF(MONTH(B125)=2,'2 Crop Water Requirement'!$F$52,IF(MONTH(B125)=3,'2 Crop Water Requirement'!$G$52,IF(MONTH(B125)=4,'2 Crop Water Requirement'!$H$52,IF(MONTH(B125)=5,'2 Crop Water Requirement'!$I$52,IF(MONTH(B125)=6,'2 Crop Water Requirement'!$J$52,IF(MONTH(B125)=7,'2 Crop Water Requirement'!$K$52,IF(MONTH(B125)=8,'2 Crop Water Requirement'!$L$52,IF(MONTH(B125)=9,'2 Crop Water Requirement'!$M$52,IF(MONTH(B125)=10,'2 Crop Water Requirement'!$N$52,IF(MONTH(B125)=11,'2 Crop Water Requirement'!$O$52,IF(MONTH(B125)=12,'2 Crop Water Requirement'!$P$52,"")))))))))))) -> 6.045 | E125: =IF(C125="Initial Stage",'2 Crop Water Requirement'!$J$12,IF(C125="Crop Development Phase",'2 Crop Water Requirement'!$J$13,IF(C125="Mid Season",'2 Crop Water Requirement'!$J$14,IF(C125="Late Season Stage",'2 Crop Water Requirement'!$J$15,"")))) ->  | F125: 0 | P125: 0 | Q125: 0 | R125: 0 | S125: 0 | T125: 0 | U125: 0 | V125: 0 | W125: 0 | X125: 0 | Y125: 0 | Z125: 0 | AA125: 0 | AH125: Copied Crop III
B126: 2017-04-30 | C126: =IF(AND(B126>='2 Crop Water Requirement'!$H$12,B126<='2 Crop Water Requirement'!$I$12),"Initial Stage",IF(AND(B126+1>'2 Crop Water Requirement'!$H$13,B126<='2 Crop Water Requirement'!$I$13),"Crop Development Phase",IF(AND(B126+1>'2 Crop Water Requirement'!$H$14,B126<'2 Crop Water Requirement'!$I$14+1),"Mid Season",IF(AND(B126+1>'2 Crop Water Requirement'!$H$15,B126-1<'2 Crop Water Requirement'!$I$15),"Late Season Stage","")))) ->  | D126: =IF(MONTH(B126)=1,'2 Crop Water Requirement'!$E$52,IF(MONTH(B126)=2,'2 Crop Water Requirement'!$F$52,IF(MONTH(B126)=3,'2 Crop Water Requirement'!$G$52,IF(MONTH(B126)=4,'2 Crop Water Requirement'!$H$52,IF(MONTH(B126)=5,'2 Crop Water Requirement'!$I$52,IF(MONTH(B126)=6,'2 Crop Water Requirement'!$J$52,IF(MONTH(B126)=7,'2 Crop Water Requirement'!$K$52,IF(MONTH(B126)=8,'2 Crop Water Requirement'!$L$52,IF(MONTH(B126)=9,'2 Crop Water Requirement'!$M$52,IF(MONTH(B126)=10,'2 Crop Water Requirement'!$N$52,IF(MONTH(B126)=11,'2 Crop Water Requirement'!$O$52,IF(MONTH(B126)=12,'2 Crop Water Requirement'!$P$52,"")))))))))))) -> 6.045 | E126: =IF(C126="Initial Stage",'2 Crop Water Requirement'!$J$12,IF(C126="Crop Development Phase",'2 Crop Water Requirement'!$J$13,IF(C126="Mid Season",'2 Crop Water Requirement'!$J$14,IF(C126="Late Season Stage",'2 Crop Water Requirement'!$J$15,"")))) ->  | F126: 0 | P126: 0 | Q126: 0 | R126: 0 | S126: 0 | T126: 0 | U126: 0 | V126: 0 | W126: 0 | X126: 0 | Y126: 0 | Z126: 0 | AA126: 0 | AH126: Irrigation Method | AI126: =IF('2 Crop Water Requirement'!C25="Drip",1,IF('2 Crop Water Requirement'!C25="Micro Sprinkler",2,IF('2 Crop Water Requirement'!C25="Centre Pivot, Linear move",3,IF('2 Crop Water Requirement'!C25="Centre Pivot LEPA",4,IF('2 Crop Water Requirement'!C25="Flood: Piped supply",5,IF('2 Crop Water Requirement'!C25="Flood: Lined canal supplied",6,IF('2 Crop Water Requirement'!C25="Flood: Earth canal supplied",7,IF('2 Crop Water Requirement'!C25="Sprinkler (permanent)",8,IF('2 Crop Water Requirement'!C25="Sprinkler (movable)",9,IF('2 Crop Water Requirement'!C25="Traveling gun",10,"ERROR")))))))))) -> 1 | AJ126: =INDEX($AH$62:$AH$71,AI126) -> Drip | AL126: =INDEX($AI$62:$AI$71,AI126) -> 0.9
B127: 2017-05-01 | C127: =IF(AND(B127>='2 Crop Water Requirement'!$H$12,B127<='2 Crop Water Requirement'!$I$12),"Initial Stage",IF(AND(B127+1>'2 Crop Water Requirement'!$H$13,B127<='2 Crop Water Requirement'!$I$13),"Crop Development Phase",IF(AND(B127+1>'2 Crop Water Requirement'!$H$14,B127<'2 Crop Water Requirement'!$I$14+1),"Mid Season",IF(AND(B127+1>'2 Crop Water Requirement'!$H$15,B127-1<'2 Crop Water Requirement'!$I$15),"Late Season Stage","")))) ->  | D127: =IF(MONTH(B127)=1,'2 Crop Water Requirement'!$E$52,IF(MONTH(B127)=2,'2 Crop Water Requirement'!$F$52,IF(MONTH(B127)=3,'2 Crop Water Requirement'!$G$52,IF(MONTH(B127)=4,'2 Crop Water Requirement'!$H$52,IF(MONTH(B127)=5,'2 Crop Water Requirement'!$I$52,IF(MONTH(B127)=6,'2 Crop Water Requirement'!$J$52,IF(MONTH(B127)=7,'2 Crop Water Requirement'!$K$52,IF(MONTH(B127)=8,'2 Crop Water Requirement'!$L$52,IF(MONTH(B127)=9,'2 Crop Water Requirement'!$M$52,IF(MONTH(B127)=10,'2 Crop Water Requirement'!$N$52,IF(MONTH(B127)=11,'2 Crop Water Requirement'!$O$52,IF(MONTH(B127)=12,'2 Crop Water Requirement'!$P$52,"")))))))))))) -> 6.63 | E127: =IF(C127="Initial Stage",'2 Crop Water Requirement'!$J$12,IF(C127="Crop Development Phase",'2 Crop Water Requirement'!$J$13,IF(C127="Mid Season",'2 Crop Water Requirement'!$J$14,IF(C127="Late Season Stage",'2 Crop Water Requirement'!$J$15,"")))) ->  | F127: 0 | P127: 0 | Q127: 0 | R127: 0 | S127: 0 | T127: 0 | U127: 0 | V127: 0 | W127: 0 | X127: 0 | Y127: 0 | Z127: 0 | AA127: 0 | AH127: Area Crop III | AI127: ='2 Crop Water Requirement'!E25 -> 0
B128: 2017-05-02 | C128: =IF(AND(B128>='2 Crop Water Requirement'!$H$12,B128<='2 Crop Water Requirement'!$I$12),"Initial Stage",IF(AND(B128+1>'2 Crop Water Requirement'!$H$13,B128<='2 Crop Water Requirement'!$I$13),"Crop Development Phase",IF(AND(B128+1>'2 Crop Water Requirement'!$H$14,B128<'2 Crop Water Requirement'!$I$14+1),"Mid Season",IF(AND(B128+1>'2 Crop Water Requirement'!$H$15,B128-1<'2 Crop Water Requirement'!$I$15),"Late Season Stage","")))) ->  | D128: =IF(MONTH(B128)=1,'2 Crop Water Requirement'!$E$52,IF(MONTH(B128)=2,'2 Crop Water Requirement'!$F$52,IF(MONTH(B128)=3,'2 Crop Water Requirement'!$G$52,IF(MONTH(B128)=4,'2 Crop Water Requirement'!$H$52,IF(MONTH(B128)=5,'2 Crop Water Requirement'!$I$52,IF(MONTH(B128)=6,'2 Crop Water Requirement'!$J$52,IF(MONTH(B128)=7,'2 Crop Water Requirement'!$K$52,IF(MONTH(B128)=8,'2 Crop Water Requirement'!$L$52,IF(MONTH(B128)=9,'2 Crop Water Requirement'!$M$52,IF(MONTH(B128)=10,'2 Crop Water Requirement'!$N$52,IF(MONTH(B128)=11,'2 Crop Water Requirement'!$O$52,IF(MONTH(B128)=12,'2 Crop Water Requirement'!$P$52,"")))))))))))) -> 6.63 | E128: =IF(C128="Initial Stage",'2 Crop Water Requirement'!$J$12,IF(C128="Crop Development Phase",'2 Crop Water Requirement'!$J$13,IF(C128="Mid Season",'2 Crop Water Requirement'!$J$14,IF(C128="Late Season Stage",'2 Crop Water Requirement'!$J$15,"")))) ->  | F128: 0 | P128: 0 | Q128: 0 | R128: 0 | S128: 0 | T128: 0 | U128: 0 | V128: 0 | W128: 0 | X128: 0 | Y128: 0 | Z128: 0 | AA128: 0 | AH128: Irrigation Water need [mm/month]: | AI128: =IF((AI80-AI93)<0,0,(AI80-AI93)) -> 0 | AJ128: =IF((AJ80-AJ93)<0,0,(AJ80-AJ93)) -> 0 | AK128: 0 | AL128: 0 | AM128: 0 | AN128: 0 | AO128: 0 | AP128: 0 | AQ128: 0 | AR128: 0 | AS128: 0 | AT128: 0
B129: 2017-05-03 | C129: =IF(AND(B129>='2 Crop Water Requirement'!$H$12,B129<='2 Crop Water Requirement'!$I$12),"Initial Stage",IF(AND(B129+1>'2 Crop Water Requirement'!$H$13,B129<='2 Crop Water Requirement'!$I$13),"Crop Development Phase",IF(AND(B129+1>'2 Crop Water Requirement'!$H$14,B129<'2 Crop Water Requirement'!$I$14+1),"Mid Season",IF(AND(B129+1>'2 Crop Water Requirement'!$H$15,B129-1<'2 Crop Water Requirement'!$I$15),"Late Season Stage","")))) ->  | D129: =IF(MONTH(B129)=1,'2 Crop Water Requirement'!$E$52,IF(MONTH(B129)=2,'2 Crop Water Requirement'!$F$52,IF(MONTH(B129)=3,'2 Crop Water Requirement'!$G$52,IF(MONTH(B129)=4,'2 Crop Water Requirement'!$H$52,IF(MONTH(B129)=5,'2 Crop Water Requirement'!$I$52,IF(MONTH(B129)=6,'2 Crop Water Requirement'!$J$52,IF(MONTH(B129)=7,'2 Crop Water Requirement'!$K$52,IF(MONTH(B129)=8,'2 Crop Water Requirement'!$L$52,IF(MONTH(B129)=9,'2 Crop Water Requirement'!$M$52,IF(MONTH(B129)=10,'2 Crop Water Requirement'!$N$52,IF(MONTH(B129)=11,'2 Crop Water Requirement'!$O$52,IF(MONTH(B129)=12,'2 Crop Water Requirement'!$P$52,"")))))))))))) -> 6.63 | E129: =IF(C129="Initial Stage",'2 Crop Water Requirement'!$J$12,IF(C129="Crop Development Phase",'2 Crop Water Requirement'!$J$13,IF(C129="Mid Season",'2 Crop Water Requirement'!$J$14,IF(C129="Late Season Stage",'2 Crop Water Requirement'!$J$15,"")))) ->  | F129: 0 | P129: 0 | Q129: 0 | R129: 0 | S129: 0 | T129: 0 | U129: 0 | V129: 0 | W129: 0 | X129: 0 | Y129: 0 | Z129: 0 | AA129: 0 | AH129: Irrigation Water need [m³/day]: | AI129: =(AI128*10*$AI$127*((1-$AL$126)+1))/AI76 -> 0 | AJ129: =(AJ128*10*$AI$127*((1-$AL$126)+1))/AJ76 -> 0 | AK129: 0 | AL129: 0 | AM129: 0 | AN129: 0 | AO129: 0 | AP129: 0 | AQ129: 0 | AR129: 0 | AS129: 0 | AT129: 0
B130: 2017-05-04 | C130: =IF(AND(B130>='2 Crop Water Requirement'!$H$12,B130<='2 Crop Water Requirement'!$I$12),"Initial Stage",IF(AND(B130+1>'2 Crop Water Requirement'!$H$13,B130<='2 Crop Water Requirement'!$I$13),"Crop Development Phase",IF(AND(B130+1>'2 Crop Water Requirement'!$H$14,B130<'2 Crop Water Requirement'!$I$14+1),"Mid Season",IF(AND(B130+1>'2 Crop Water Requirement'!$H$15,B130-1<'2 Crop Water Requirement'!$I$15),"Late Season Stage","")))) ->  | D130: =IF(MONTH(B130)=1,'2 Crop Water Requirement'!$E$52,IF(MONTH(B130)=2,'2 Crop Water Requirement'!$F$52,IF(MONTH(B130)=3,'2 Crop Water Requirement'!$G$52,IF(MONTH(B130)=4,'2 Crop Water Requirement'!$H$52,IF(MONTH(B130)=5,'2 Crop Water Requirement'!$I$52,IF(MONTH(B130)=6,'2 Crop Water Requirement'!$J$52,IF(MONTH(B130)=7,'2 Crop Water Requirement'!$K$52,IF(MONTH(B130)=8,'2 Crop Water Requirement'!$L$52,IF(MONTH(B130)=9,'2 Crop Water Requirement'!$M$52,IF(MONTH(B130)=10,'2 Crop Water Requirement'!$N$52,IF(MONTH(B130)=11,'2 Crop Water Requirement'!$O$52,IF(MONTH(B130)=12,'2 Crop Water Requirement'!$P$52,"")))))))))))) -> 6.63 | E130: =IF(C130="Initial Stage",'2 Crop Water Requirement'!$J$12,IF(C130="Crop Development Phase",'2 Crop Water Requirement'!$J$13,IF(C130="Mid Season",'2 Crop Water Requirement'!$J$14,IF(C130="Late Season Stage",'2 Crop Water Requirement'!$J$15,"")))) ->  | F130: 0 | P130: 0 | Q130: 0 | R130: 0 | S130: 0 | T130: 0 | U130: 0 | V130: 0 | W130: 0 | X130: 0 | Y130: 0 | Z130: 0 | AA130: 0
B131: 2017-05-05 | C131: =IF(AND(B131>='2 Crop Water Requirement'!$H$12,B131<='2 Crop Water Requirement'!$I$12),"Initial Stage",IF(AND(B131+1>'2 Crop Water Requirement'!$H$13,B131<='2 Crop Water Requirement'!$I$13),"Crop Development Phase",IF(AND(B131+1>'2 Crop Water Requirement'!$H$14,B131<'2 Crop Water Requirement'!$I$14+1),"Mid Season",IF(AND(B131+1>'2 Crop Water Requirement'!$H$15,B131-1<'2 Crop Water Requirement'!$I$15),"Late Season Stage","")))) ->  | D131: =IF(MONTH(B131)=1,'2 Crop Water Requirement'!$E$52,IF(MONTH(B131)=2,'2 Crop Water Requirement'!$F$52,IF(MONTH(B131)=3,'2 Crop Water Requirement'!$G$52,IF(MONTH(B131)=4,'2 Crop Water Requirement'!$H$52,IF(MONTH(B131)=5,'2 Crop Water Requirement'!$I$52,IF(MONTH(B131)=6,'2 Crop Water Requirement'!$J$52,IF(MONTH(B131)=7,'2 Crop Water Requirement'!$K$52,IF(MONTH(B131)=8,'2 Crop Water Requirement'!$L$52,IF(MONTH(B131)=9,'2 Crop Water Requirement'!$M$52,IF(MONTH(B131)=10,'2 Crop Water Requirement'!$N$52,IF(MONTH(B131)=11,'2 Crop Water Requirement'!$O$52,IF(MONTH(B131)=12,'2 Crop Water Requirement'!$P$52,"")))))))))))) -> 6.63 | E131: =IF(C131="Initial Stage",'2 Crop Water Requirement'!$J$12,IF(C131="Crop Development Phase",'2 Crop Water Requirement'!$J$13,IF(C131="Mid Season",'2 Crop Water Requirement'!$J$14,IF(C131="Late Season Stage",'2 Crop Water Requirement'!$J$15,"")))) ->  | F131: 0 | P131: 0 | Q131: 0 | R131: 0 | S131: 0 | T131: 0 | U131: 0 | V131: 0 | W131: 0 | X131: 0 | Y131: 0 | Z131: 0 | AA131: 0
B132: 2017-05-06 | C132: =IF(AND(B132>='2 Crop Water Requirement'!$H$12,B132<='2 Crop Water Requirement'!$I$12),"Initial Stage",IF(AND(B132+1>'2 Crop Water Requirement'!$H$13,B132<='2 Crop Water Requirement'!$I$13),"Crop Development Phase",IF(AND(B132+1>'2 Crop Water Requirement'!$H$14,B132<'2 Crop Water Requirement'!$I$14+1),"Mid Season",IF(AND(B132+1>'2 Crop Water Requirement'!$H$15,B132-1<'2 Crop Water Requirement'!$I$15),"Late Season Stage","")))) ->  | D132: =IF(MONTH(B132)=1,'2 Crop Water Requirement'!$E$52,IF(MONTH(B132)=2,'2 Crop Water Requirement'!$F$52,IF(MONTH(B132)=3,'2 Crop Water Requirement'!$G$52,IF(MONTH(B132)=4,'2 Crop Water Requirement'!$H$52,IF(MONTH(B132)=5,'2 Crop Water Requirement'!$I$52,IF(MONTH(B132)=6,'2 Crop Water Requirement'!$J$52,IF(MONTH(B132)=7,'2 Crop Water Requirement'!$K$52,IF(MONTH(B132)=8,'2 Crop Water Requirement'!$L$52,IF(MONTH(B132)=9,'2 Crop Water Requirement'!$M$52,IF(MONTH(B132)=10,'2 Crop Water Requirement'!$N$52,IF(MONTH(B132)=11,'2 Crop Water Requirement'!$O$52,IF(MONTH(B132)=12,'2 Crop Water Requirement'!$P$52,"")))))))))))) -> 6.63 | E132: =IF(C132="Initial Stage",'2 Crop Water Requirement'!$J$12,IF(C132="Crop Development Phase",'2 Crop Water Requirement'!$J$13,IF(C132="Mid Season",'2 Crop Water Requirement'!$J$14,IF(C132="Late Season Stage",'2 Crop Water Requirement'!$J$15,"")))) ->  | F132: 0 | P132: 0 | Q132: 0 | R132: 0 | S132: 0 | T132: 0 | U132: 0 | V132: 0 | W132: 0 | X132: 0 | Y132: 0 | Z132: 0 | AA132: 0 | AH132: Copied Crop IV
B133: 2017-05-07 | C133: =IF(AND(B133>='2 Crop Water Requirement'!$H$12,B133<='2 Crop Water Requirement'!$I$12),"Initial Stage",IF(AND(B133+1>'2 Crop Water Requirement'!$H$13,B133<='2 Crop Water Requirement'!$I$13),"Crop Development Phase",IF(AND(B133+1>'2 Crop Water Requirement'!$H$14,B133<'2 Crop Water Requirement'!$I$14+1),"Mid Season",IF(AND(B133+1>'2 Crop Water Requirement'!$H$15,B133-1<'2 Crop Water Requirement'!$I$15),"Late Season Stage","")))) ->  | D133: =IF(MONTH(B133)=1,'2 Crop Water Requirement'!$E$52,IF(MONTH(B133)=2,'2 Crop Water Requirement'!$F$52,IF(MONTH(B133)=3,'2 Crop Water Requirement'!$G$52,IF(MONTH(B133)=4,'2 Crop Water Requirement'!$H$52,IF(MONTH(B133)=5,'2 Crop Water Requirement'!$I$52,IF(MONTH(B133)=6,'2 Crop Water Requirement'!$J$52,IF(MONTH(B133)=7,'2 Crop Water Requirement'!$K$52,IF(MONTH(B133)=8,'2 Crop Water Requirement'!$L$52,IF(MONTH(B133)=9,'2 Crop Water Requirement'!$M$52,IF(MONTH(B133)=10,'2 Crop Water Requirement'!$N$52,IF(MONTH(B133)=11,'2 Crop Water Requirement'!$O$52,IF(MONTH(B133)=12,'2 Crop Water Requirement'!$P$52,"")))))))))))) -> 6.63 | E133: =IF(C133="Initial Stage",'2 Crop Water Requirement'!$J$12,IF(C133="Crop Development Phase",'2 Crop Water Requirement'!$J$13,IF(C133="Mid Season",'2 Crop Water Requirement'!$J$14,IF(C133="Late Season Stage",'2 Crop Water Requirement'!$J$15,"")))) ->  | F133: 0 | P133: 0 | Q133: 0 | R133: 0 | S133: 0 | T133: 0 | U133: 0 | V133: 0 | W133: 0 | X133: 0 | Y133: 0 | Z133: 0 | AA133: 0 | AH133: Irrigation Method | AI133: =IF('2 Crop Water Requirement'!C26="Drip",1,IF('2 Crop Water Requirement'!C26="Micro Sprinkler",2,IF('2 Crop Water Requirement'!C26="Centre Pivot, Linear move",3,IF('2 Crop Water Requirement'!C26="Centre Pivot LEPA",4,IF('2 Crop Water Requirement'!C26="Flood: Piped supply",5,IF('2 Crop Water Requirement'!C26="Flood: Lined canal supplied",6,IF('2 Crop Water Requirement'!C26="Flood: Earth canal supplied",7,IF('2 Crop Water Requirement'!C26="Sprinkler (permanent)",8,IF('2 Crop Water Requirement'!C26="Sprinkler (movable)",9,IF('2 Crop Water Requirement'!C26="Traveling gun",10,"ERROR")))))))))) -> 1 | AJ133: =INDEX($AH$62:$AH$71,AI133) -> Drip | AL133: =INDEX($AI$62:$AI$71,AI133) -> 0.9
B134: 2017-05-08 | C134: =IF(AND(B134>='2 Crop Water Requirement'!$H$12,B134<='2 Crop Water Requirement'!$I$12),"Initial Stage",IF(AND(B134+1>'2 Crop Water Requirement'!$H$13,B134<='2 Crop Water Requirement'!$I$13),"Crop Development Phase",IF(AND(B134+1>'2 Crop Water Requirement'!$H$14,B134<'2 Crop Water Requirement'!$I$14+1),"Mid Season",IF(AND(B134+1>'2 Crop Water Requirement'!$H$15,B134-1<'2 Crop Water Requirement'!$I$15),"Late Season Stage","")))) ->  | D134: =IF(MONTH(B134)=1,'2 Crop Water Requirement'!$E$52,IF(MONTH(B134)=2,'2 Crop Water Requirement'!$F$52,IF(MONTH(B134)=3,'2 Crop Water Requirement'!$G$52,IF(MONTH(B134)=4,'2 Crop Water Requirement'!$H$52,IF(MONTH(B134)=5,'2 Crop Water Requirement'!$I$52,IF(MONTH(B134)=6,'2 Crop Water Requirement'!$J$52,IF(MONTH(B134)=7,'2 Crop Water Requirement'!$K$52,IF(MONTH(B134)=8,'2 Crop Water Requirement'!$L$52,IF(MONTH(B134)=9,'2 Crop Water Requirement'!$M$52,IF(MONTH(B134)=10,'2 Crop Water Requirement'!$N$52,IF(MONTH(B134)=11,'2 Crop Water Requirement'!$O$52,IF(MONTH(B134)=12,'2 Crop Water Requirement'!$P$52,"")))))))))))) -> 6.63 | E134: =IF(C134="Initial Stage",'2 Crop Water Requirement'!$J$12,IF(C134="Crop Development Phase",'2 Crop Water Requirement'!$J$13,IF(C134="Mid Season",'2 Crop Water Requirement'!$J$14,IF(C134="Late Season Stage",'2 Crop Water Requirement'!$J$15,"")))) ->  | F134: 0 | P134: 0 | Q134: 0 | R134: 0 | S134: 0 | T134: 0 | U134: 0 | V134: 0 | W134: 0 | X134: 0 | Y134: 0 | Z134: 0 | AA134: 0 | AH134: Area Crop IV | AI134: ='2 Crop Water Requirement'!E26 -> 0
B135: 2017-05-09 | C135: =IF(AND(B135>='2 Crop Water Requirement'!$H$12,B135<='2 Crop Water Requirement'!$I$12),"Initial Stage",IF(AND(B135+1>'2 Crop Water Requirement'!$H$13,B135<='2 Crop Water Requirement'!$I$13),"Crop Development Phase",IF(AND(B135+1>'2 Crop Water Requirement'!$H$14,B135<'2 Crop Water Requirement'!$I$14+1),"Mid Season",IF(AND(B135+1>'2 Crop Water Requirement'!$H$15,B135-1<'2 Crop Water Requirement'!$I$15),"Late Season Stage","")))) ->  | D135: =IF(MONTH(B135)=1,'2 Crop Water Requirement'!$E$52,IF(MONTH(B135)=2,'2 Crop Water Requirement'!$F$52,IF(MONTH(B135)=3,'2 Crop Water Requirement'!$G$52,IF(MONTH(B135)=4,'2 Crop Water Requirement'!$H$52,IF(MONTH(B135)=5,'2 Crop Water Requirement'!$I$52,IF(MONTH(B135)=6,'2 Crop Water Requirement'!$J$52,IF(MONTH(B135)=7,'2 Crop Water Requirement'!$K$52,IF(MONTH(B135)=8,'2 Crop Water Requirement'!$L$52,IF(MONTH(B135)=9,'2 Crop Water Requirement'!$M$52,IF(MONTH(B135)=10,'2 Crop Water Requirement'!$N$52,IF(MONTH(B135)=11,'2 Crop Water Requirement'!$O$52,IF(MONTH(B135)=12,'2 Crop Water Requirement'!$P$52,"")))))))))))) -> 6.63 | E135: =IF(C135="Initial Stage",'2 Crop Water Requirement'!$J$12,IF(C135="Crop Development Phase",'2 Crop Water Requirement'!$J$13,IF(C135="Mid Season",'2 Crop Water Requirement'!$J$14,IF(C135="Late Season Stage",'2 Crop Water Requirement'!$J$15,"")))) ->  | F135: 0 | P135: 0 | Q135: 0 | R135: 0 | S135: 0 | T135: 0 | U135: 0 | V135: 0 | W135: 0 | X135: 0 | Y135: 0 | Z135: 0 | AA135: 0 | AH135: Irrigation Water need [mm/month]: | AI135: =IF((AI81-AI93)<0,0,(AI81-AI93)) -> 0 | AJ135: =IF((AJ81-AJ93)<0,0,(AJ81-AJ93)) -> 0 | AK135: 0 | AL135: 0 | AM135: 0 | AN135: 0 | AO135: 0 | AP135: 0 | AQ135: 0 | AR135: 0 | AS135: 0 | AT135: 0
B136: 2017-05-10 | C136: =IF(AND(B136>='2 Crop Water Requirement'!$H$12,B136<='2 Crop Water Requirement'!$I$12),"Initial Stage",IF(AND(B136+1>'2 Crop Water Requirement'!$H$13,B136<='2 Crop Water Requirement'!$I$13),"Crop Development Phase",IF(AND(B136+1>'2 Crop Water Requirement'!$H$14,B136<'2 Crop Water Requirement'!$I$14+1),"Mid Season",IF(AND(B136+1>'2 Crop Water Requirement'!$H$15,B136-1<'2 Crop Water Requirement'!$I$15),"Late Season Stage","")))) ->  | D136: =IF(MONTH(B136)=1,'2 Crop Water Requirement'!$E$52,IF(MONTH(B136)=2,'2 Crop Water Requirement'!$F$52,IF(MONTH(B136)=3,'2 Crop Water Requirement'!$G$52,IF(MONTH(B136)=4,'2 Crop Water Requirement'!$H$52,IF(MONTH(B136)=5,'2 Crop Water Requirement'!$I$52,IF(MONTH(B136)=6,'2 Crop Water Requirement'!$J$52,IF(MONTH(B136)=7,'2 Crop Water Requirement'!$K$52,IF(MONTH(B136)=8,'2 Crop Water Requirement'!$L$52,IF(MONTH(B136)=9,'2 Crop Water Requirement'!$M$52,IF(MONTH(B136)=10,'2 Crop Water Requirement'!$N$52,IF(MONTH(B136)=11,'2 Crop Water Requirement'!$O$52,IF(MONTH(B136)=12,'2 Crop Water Requirement'!$P$52,"")))))))))))) -> 6.63 | E136: =IF(C136="Initial Stage",'2 Crop Water Requirement'!$J$12,IF(C136="Crop Development Phase",'2 Crop Water Requirement'!$J$13,IF(C136="Mid Season",'2 Crop Water Requirement'!$J$14,IF(C136="Late Season Stage",'2 Crop Water Requirement'!$J$15,"")))) ->  | F136: =IFERROR((D136*E136),0) -> 0 | P136: =IF(MONTH($B136)=1,$F136,0) -> 0 | Q136: =IF(MONTH($B136)=2,$F136,0) -> 0 | R136: =IF(MONTH($B136)=3,$F136,0) -> 0 | S136: =IF(MONTH($B136)=4,$F136,0) -> 0 | T136: =IF(MONTH($B136)=5,$F136,0) -> 0 | U136: =IF(MONTH($B136)=6,$F136,0) -> 0 | V136: =IF(MONTH($B136)=7,$F136,0) -> 0 | W136: =IF(MONTH($B136)=8,$F136,0) -> 0 | X136: =IF(MONTH($B136)=9,$F136,0) -> 0 | Y136: =IF(MONTH($B136)=10,$F136,0) -> 0 | Z136: =IF(MONTH($B136)=11,$F136,0) -> 0 | AA136: =IF(MONTH($B136)=12,$F136,0) -> 0 | AH136: Irrigation Water need [m³/day]: | AI136: =(AI135*10*$AI$134*((1-$AL$133)+1))/AI76 -> 0 | AJ136: =(AJ135*10*$AI$134*((1-$AL$133)+1))/AJ76 -> 0 | AK136: 0 | AL136: 0 | AM136: 0 | AN136: 0 | AO136: 0 | AP136: 0 | AQ136: 0 | AR136: 0 | AS136: 0 | AT136: 0
B137: 2017-05-11 | C137: =IF(AND(B137>='2 Crop Water Requirement'!$H$12,B137<='2 Crop Water Requirement'!$I$12),"Initial Stage",IF(AND(B137+1>'2 Crop Water Requirement'!$H$13,B137<='2 Crop Water Requirement'!$I$13),"Crop Development Phase",IF(AND(B137+1>'2 Crop Water Requirement'!$H$14,B137<'2 Crop Water Requirement'!$I$14+1),"Mid Season",IF(AND(B137+1>'2 Crop Water Requirement'!$H$15,B137-1<'2 Crop Water Requirement'!$I$15),"Late Season Stage","")))) ->  | D137: =IF(MONTH(B137)=1,'2 Crop Water Requirement'!$E$52,IF(MONTH(B137)=2,'2 Crop Water Requirement'!$F$52,IF(MONTH(B137)=3,'2 Crop Water Requirement'!$G$52,IF(MONTH(B137)=4,'2 Crop Water Requirement'!$H$52,IF(MONTH(B137)=5,'2 Crop Water Requirement'!$I$52,IF(MONTH(B137)=6,'2 Crop Water Requirement'!$J$52,IF(MONTH(B137)=7,'2 Crop Water Requirement'!$K$52,IF(MONTH(B137)=8,'2 Crop Water Requirement'!$L$52,IF(MONTH(B137)=9,'2 Crop Water Requirement'!$M$52,IF(MONTH(B137)=10,'2 Crop Water Requirement'!$N$52,IF(MONTH(B137)=11,'2 Crop Water Requirement'!$O$52,IF(MONTH(B137)=12,'2 Crop Water Requirement'!$P$52,"")))))))))))) -> 6.63 | E137: =IF(C137="Initial Stage",'2 Crop Water Requirement'!$J$12,IF(C137="Crop Development Phase",'2 Crop Water Requirement'!$J$13,IF(C137="Mid Season",'2 Crop Water Requirement'!$J$14,IF(C137="Late Season Stage",'2 Crop Water Requirement'!$J$15,"")))) ->  | F137: 0 | P137: 0 | Q137: 0 | R137: 0 | S137: 0 | T137: 0 | U137: 0 | V137: 0 | W137: 0 | X137: 0 | Y137: 0 | Z137: 0 | AA137: 0
B138: 2017-05-12 | C138: =IF(AND(B138>='2 Crop Water Requirement'!$H$12,B138<='2 Crop Water Requirement'!$I$12),"Initial Stage",IF(AND(B138+1>'2 Crop Water Requirement'!$H$13,B138<='2 Crop Water Requirement'!$I$13),"Crop Development Phase",IF(AND(B138+1>'2 Crop Water Requirement'!$H$14,B138<'2 Crop Water Requirement'!$I$14+1),"Mid Season",IF(AND(B138+1>'2 Crop Water Requirement'!$H$15,B138-1<'2 Crop Water Requirement'!$I$15),"Late Season Stage","")))) ->  | D138: =IF(MONTH(B138)=1,'2 Crop Water Requirement'!$E$52,IF(MONTH(B138)=2,'2 Crop Water Requirement'!$F$52,IF(MONTH(B138)=3,'2 Crop Water Requirement'!$G$52,IF(MONTH(B138)=4,'2 Crop Water Requirement'!$H$52,IF(MONTH(B138)=5,'2 Crop Water Requirement'!$I$52,IF(MONTH(B138)=6,'2 Crop Water Requirement'!$J$52,IF(MONTH(B138)=7,'2 Crop Water Requirement'!$K$52,IF(MONTH(B138)=8,'2 Crop Water Requirement'!$L$52,IF(MONTH(B138)=9,'2 Crop Water Requirement'!$M$52,IF(MONTH(B138)=10,'2 Crop Water Requirement'!$N$52,IF(MONTH(B138)=11,'2 Crop Water Requirement'!$O$52,IF(MONTH(B138)=12,'2 Crop Water Requirement'!$P$52,"")))))))))))) -> 6.63 | E138: =IF(C138="Initial Stage",'2 Crop Water Requirement'!$J$12,IF(C138="Crop Development Phase",'2 Crop Water Requirement'!$J$13,IF(C138="Mid Season",'2 Crop Water Requirement'!$J$14,IF(C138="Late Season Stage",'2 Crop Water Requirement'!$J$15,"")))) ->  | F138: 0 | P138: 0 | Q138: 0 | R138: 0 | S138: 0 | T138: 0 | U138: 0 | V138: 0 | W138: 0 | X138: 0 | Y138: 0 | Z138: 0 | AA138: 0
B139: 2017-05-13 | C139: =IF(AND(B139>='2 Crop Water Requirement'!$H$12,B139<='2 Crop Water Requirement'!$I$12),"Initial Stage",IF(AND(B139+1>'2 Crop Water Requirement'!$H$13,B139<='2 Crop Water Requirement'!$I$13),"Crop Development Phase",IF(AND(B139+1>'2 Crop Water Requirement'!$H$14,B139<'2 Crop Water Requirement'!$I$14+1),"Mid Season",IF(AND(B139+1>'2 Crop Water Requirement'!$H$15,B139-1<'2 Crop Water Requirement'!$I$15),"Late Season Stage","")))) ->  | D139: =IF(MONTH(B139)=1,'2 Crop Water Requirement'!$E$52,IF(MONTH(B139)=2,'2 Crop Water Requirement'!$F$52,IF(MONTH(B139)=3,'2 Crop Water Requirement'!$G$52,IF(MONTH(B139)=4,'2 Crop Water Requirement'!$H$52,IF(MONTH(B139)=5,'2 Crop Water Requirement'!$I$52,IF(MONTH(B139)=6,'2 Crop Water Requirement'!$J$52,IF(MONTH(B139)=7,'2 Crop Water Requirement'!$K$52,IF(MONTH(B139)=8,'2 Crop Water Requirement'!$L$52,IF(MONTH(B139)=9,'2 Crop Water Requirement'!$M$52,IF(MONTH(B139)=10,'2 Crop Water Requirement'!$N$52,IF(MONTH(B139)=11,'2 Crop Water Requirement'!$O$52,IF(MONTH(B139)=12,'2 Crop Water Requirement'!$P$52,"")))))))))))) -> 6.63 | E139: =IF(C139="Initial Stage",'2 Crop Water Requirement'!$J$12,IF(C139="Crop Development Phase",'2 Crop Water Requirement'!$J$13,IF(C139="Mid Season",'2 Crop Water Requirement'!$J$14,IF(C139="Late Season Stage",'2 Crop Water Requirement'!$J$15,"")))) ->  | F139: 0 | P139: 0 | Q139: 0 | R139: 0 | S139: 0 | T139: 0 | U139: 0 | V139: 0 | W139: 0 | X139: 0 | Y139: 0 | Z139: 0 | AA139: 0
B140: 2017-05-14 | C140: =IF(AND(B140>='2 Crop Water Requirement'!$H$12,B140<='2 Crop Water Requirement'!$I$12),"Initial Stage",IF(AND(B140+1>'2 Crop Water Requirement'!$H$13,B140<='2 Crop Water Requirement'!$I$13),"Crop Development Phase",IF(AND(B140+1>'2 Crop Water Requirement'!$H$14,B140<'2 Crop Water Requirement'!$I$14+1),"Mid Season",IF(AND(B140+1>'2 Crop Water Requirement'!$H$15,B140-1<'2 Crop Water Requirement'!$I$15),"Late Season Stage","")))) ->  | D140: =IF(MONTH(B140)=1,'2 Crop Water Requirement'!$E$52,IF(MONTH(B140)=2,'2 Crop Water Requirement'!$F$52,IF(MONTH(B140)=3,'2 Crop Water Requirement'!$G$52,IF(MONTH(B140)=4,'2 Crop Water Requirement'!$H$52,IF(MONTH(B140)=5,'2 Crop Water Requirement'!$I$52,IF(MONTH(B140)=6,'2 Crop Water Requirement'!$J$52,IF(MONTH(B140)=7,'2 Crop Water Requirement'!$K$52,IF(MONTH(B140)=8,'2 Crop Water Requirement'!$L$52,IF(MONTH(B140)=9,'2 Crop Water Requirement'!$M$52,IF(MONTH(B140)=10,'2 Crop Water Requirement'!$N$52,IF(MONTH(B140)=11,'2 Crop Water Requirement'!$O$52,IF(MONTH(B140)=12,'2 Crop Water Requirement'!$P$52,"")))))))))))) -> 6.63 | E140: =IF(C140="Initial Stage",'2 Crop Water Requirement'!$J$12,IF(C140="Crop Development Phase",'2 Crop Water Requirement'!$J$13,IF(C140="Mid Season",'2 Crop Water Requirement'!$J$14,IF(C140="Late Season Stage",'2 Crop Water Requirement'!$J$15,"")))) ->  | F140: 0 | P140: 0 | Q140: 0 | R140: 0 | S140: 0 | T140: 0 | U140: 0 | V140: 0 | W140: 0 | X140: 0 | Y140: 0 | Z140: 0 | AA140: 0
B141: 2017-05-15 | C141: =IF(AND(B141>='2 Crop Water Requirement'!$H$12,B141<='2 Crop Water Requirement'!$I$12),"Initial Stage",IF(AND(B141+1>'2 Crop Water Requirement'!$H$13,B141<='2 Crop Water Requirement'!$I$13),"Crop Development Phase",IF(AND(B141+1>'2 Crop Water Requirement'!$H$14,B141<'2 Crop Water Requirement'!$I$14+1),"Mid Season",IF(AND(B141+1>'2 Crop Water Requirement'!$H$15,B141-1<'2 Crop Water Requirement'!$I$15),"Late Season Stage","")))) ->  | D141: =IF(MONTH(B141)=1,'2 Crop Water Requirement'!$E$52,IF(MONTH(B141)=2,'2 Crop Water Requirement'!$F$52,IF(MONTH(B141)=3,'2 Crop Water Requirement'!$G$52,IF(MONTH(B141)=4,'2 Crop Water Requirement'!$H$52,IF(MONTH(B141)=5,'2 Crop Water Requirement'!$I$52,IF(MONTH(B141)=6,'2 Crop Water Requirement'!$J$52,IF(MONTH(B141)=7,'2 Crop Water Requirement'!$K$52,IF(MONTH(B141)=8,'2 Crop Water Requirement'!$L$52,IF(MONTH(B141)=9,'2 Crop Water Requirement'!$M$52,IF(MONTH(B141)=10,'2 Crop Water Requirement'!$N$52,IF(MONTH(B141)=11,'2 Crop Water Requirement'!$O$52,IF(MONTH(B141)=12,'2 Crop Water Requirement'!$P$52,"")))))))))))) -> 6.63 | E141: =IF(C141="Initial Stage",'2 Crop Water Requirement'!$J$12,IF(C141="Crop Development Phase",'2 Crop Water Requirement'!$J$13,IF(C141="Mid Season",'2 Crop Water Requirement'!$J$14,IF(C141="Late Season Stage",'2 Crop Water Requirement'!$J$15,"")))) ->  | F141: 0 | P141: 0 | Q141: 0 | R141: 0 | S141: 0 | T141: 0 | U141: 0 | V141: 0 | W141: 0 | X141: 0 | Y141: 0 | Z141: 0 | AA141: 0
B142: 2017-05-16 | C142: =IF(AND(B142>='2 Crop Water Requirement'!$H$12,B142<='2 Crop Water Requirement'!$I$12),"Initial Stage",IF(AND(B142+1>'2 Crop Water Requirement'!$H$13,B142<='2 Crop Water Requirement'!$I$13),"Crop Development Phase",IF(AND(B142+1>'2 Crop Water Requirement'!$H$14,B142<'2 Crop Water Requirement'!$I$14+1),"Mid Season",IF(AND(B142+1>'2 Crop Water Requirement'!$H$15,B142-1<'2 Crop Water Requirement'!$I$15),"Late Season Stage","")))) ->  | D142: =IF(MONTH(B142)=1,'2 Crop Water Requirement'!$E$52,IF(MONTH(B142)=2,'2 Crop Water Requirement'!$F$52,IF(MONTH(B142)=3,'2 Crop Water Requirement'!$G$52,IF(MONTH(B142)=4,'2 Crop Water Requirement'!$H$52,IF(MONTH(B142)=5,'2 Crop Water Requirement'!$I$52,IF(MONTH(B142)=6,'2 Crop Water Requirement'!$J$52,IF(MONTH(B142)=7,'2 Crop Water Requirement'!$K$52,IF(MONTH(B142)=8,'2 Crop Water Requirement'!$L$52,IF(MONTH(B142)=9,'2 Crop Water Requirement'!$M$52,IF(MONTH(B142)=10,'2 Crop Water Requirement'!$N$52,IF(MONTH(B142)=11,'2 Crop Water Requirement'!$O$52,IF(MONTH(B142)=12,'2 Crop Water Requirement'!$P$52,"")))))))))))) -> 6.63 | E142: =IF(C142="Initial Stage",'2 Crop Water Requirement'!$J$12,IF(C142="Crop Development Phase",'2 Crop Water Requirement'!$J$13,IF(C142="Mid Season",'2 Crop Water Requirement'!$J$14,IF(C142="Late Season Stage",'2 Crop Water Requirement'!$J$15,"")))) ->  | F142: 0 | P142: 0 | Q142: 0 | R142: 0 | S142: 0 | T142: 0 | U142: 0 | V142: 0 | W142: 0 | X142: 0 | Y142: 0 | Z142: 0 | AA142: 0
B143: 2017-05-17 | C143: =IF(AND(B143>='2 Crop Water Requirement'!$H$12,B143<='2 Crop Water Requirement'!$I$12),"Initial Stage",IF(AND(B143+1>'2 Crop Water Requirement'!$H$13,B143<='2 Crop Water Requirement'!$I$13),"Crop Development Phase",IF(AND(B143+1>'2 Crop Water Requirement'!$H$14,B143<'2 Crop Water Requirement'!$I$14+1),"Mid Season",IF(AND(B143+1>'2 Crop Water Requirement'!$H$15,B143-1<'2 Crop Water Requirement'!$I$15),"Late Season Stage","")))) ->  | D143: =IF(MONTH(B143)=1,'2 Crop Water Requirement'!$E$52,IF(MONTH(B143)=2,'2 Crop Water Requirement'!$F$52,IF(MONTH(B143)=3,'2 Crop Water Requirement'!$G$52,IF(MONTH(B143)=4,'2 Crop Water Requirement'!$H$52,IF(MONTH(B143)=5,'2 Crop Water Requirement'!$I$52,IF(MONTH(B143)=6,'2 Crop Water Requirement'!$J$52,IF(MONTH(B143)=7,'2 Crop Water Requirement'!$K$52,IF(MONTH(B143)=8,'2 Crop Water Requirement'!$L$52,IF(MONTH(B143)=9,'2 Crop Water Requirement'!$M$52,IF(MONTH(B143)=10,'2 Crop Water Requirement'!$N$52,IF(MONTH(B143)=11,'2 Crop Water Requirement'!$O$52,IF(MONTH(B143)=12,'2 Crop Water Requirement'!$P$52,"")))))))))))) -> 6.63 | E143: =IF(C143="Initial Stage",'2 Crop Water Requirement'!$J$12,IF(C143="Crop Development Phase",'2 Crop Water Requirement'!$J$13,IF(C143="Mid Season",'2 Crop Water Requirement'!$J$14,IF(C143="Late Season Stage",'2 Crop Water Requirement'!$J$15,"")))) ->  | F143: 0 | P143: 0 | Q143: 0 | R143: 0 | S143: 0 | T143: 0 | U143: 0 | V143: 0 | W143: 0 | X143: 0 | Y143: 0 | Z143: 0 | AA143: 0 | AH143: Total Irrigation Water Need [m³/day] | AI143: =IFERROR(AI115,0)+IFERROR(AI122,0)+IFERROR(AI129,0)+IFERROR(AI136,0)+IFERROR(AI106,0) -> 0 | AJ143: =IFERROR(AJ115,0)+IFERROR(AJ122,0)+IFERROR(AJ129,0)+IFERROR(AJ136,0)+IFERROR(AJ106,0) -> 0 | AK143: 0 | AL143: 0 | AM143: 0 | AN143: 5.4054 | AO143: 41.12048387 | AP143: 70.07922581 | AQ143: 69.069 | AR143: 45.39181935 | AS143: 17.985 | AT143: 0
B144: 2017-05-18 | C144: =IF(AND(B144>='2 Crop Water Requirement'!$H$12,B144<='2 Crop Water Requirement'!$I$12),"Initial Stage",IF(AND(B144+1>'2 Crop Water Requirement'!$H$13,B144<='2 Crop Water Requirement'!$I$13),"Crop Development Phase",IF(AND(B144+1>'2 Crop Water Requirement'!$H$14,B144<'2 Crop Water Requirement'!$I$14+1),"Mid Season",IF(AND(B144+1>'2 Crop Water Requirement'!$H$15,B144-1<'2 Crop Water Requirement'!$I$15),"Late Season Stage","")))) ->  | D144: =IF(MONTH(B144)=1,'2 Crop Water Requirement'!$E$52,IF(MONTH(B144)=2,'2 Crop Water Requirement'!$F$52,IF(MONTH(B144)=3,'2 Crop Water Requirement'!$G$52,IF(MONTH(B144)=4,'2 Crop Water Requirement'!$H$52,IF(MONTH(B144)=5,'2 Crop Water Requirement'!$I$52,IF(MONTH(B144)=6,'2 Crop Water Requirement'!$J$52,IF(MONTH(B144)=7,'2 Crop Water Requirement'!$K$52,IF(MONTH(B144)=8,'2 Crop Water Requirement'!$L$52,IF(MONTH(B144)=9,'2 Crop Water Requirement'!$M$52,IF(MONTH(B144)=10,'2 Crop Water Requirement'!$N$52,IF(MONTH(B144)=11,'2 Crop Water Requirement'!$O$52,IF(MONTH(B144)=12,'2 Crop Water Requirement'!$P$52,"")))))))))))) -> 6.63 | E144: =IF(C144="Initial Stage",'2 Crop Water Requirement'!$J$12,IF(C144="Crop Development Phase",'2 Crop Water Requirement'!$J$13,IF(C144="Mid Season",'2 Crop Water Requirement'!$J$14,IF(C144="Late Season Stage",'2 Crop Water Requirement'!$J$15,"")))) ->  | F144: 0 | P144: 0 | Q144: 0 | R144: 0 | S144: 0 | T144: 0 | U144: 0 | V144: 0 | W144: 0 | X144: 0 | Y144: 0 | Z144: 0 | AA144: 0
B145: 2017-05-19 | C145: =IF(AND(B145>='2 Crop Water Requirement'!$H$12,B145<='2 Crop Water Requirement'!$I$12),"Initial Stage",IF(AND(B145+1>'2 Crop Water Requirement'!$H$13,B145<='2 Crop Water Requirement'!$I$13),"Crop Development Phase",IF(AND(B145+1>'2 Crop Water Requirement'!$H$14,B145<'2 Crop Water Requirement'!$I$14+1),"Mid Season",IF(AND(B145+1>'2 Crop Water Requirement'!$H$15,B145-1<'2 Crop Water Requirement'!$I$15),"Late Season Stage","")))) ->  | D145: =IF(MONTH(B145)=1,'2 Crop Water Requirement'!$E$52,IF(MONTH(B145)=2,'2 Crop Water Requirement'!$F$52,IF(MONTH(B145)=3,'2 Crop Water Requirement'!$G$52,IF(MONTH(B145)=4,'2 Crop Water Requirement'!$H$52,IF(MONTH(B145)=5,'2 Crop Water Requirement'!$I$52,IF(MONTH(B145)=6,'2 Crop Water Requirement'!$J$52,IF(MONTH(B145)=7,'2 Crop Water Requirement'!$K$52,IF(MONTH(B145)=8,'2 Crop Water Requirement'!$L$52,IF(MONTH(B145)=9,'2 Crop Water Requirement'!$M$52,IF(MONTH(B145)=10,'2 Crop Water Requirement'!$N$52,IF(MONTH(B145)=11,'2 Crop Water Requirement'!$O$52,IF(MONTH(B145)=12,'2 Crop Water Requirement'!$P$52,"")))))))))))) -> 6.63 | E145: =IF(C145="Initial Stage",'2 Crop Water Requirement'!$J$12,IF(C145="Crop Development Phase",'2 Crop Water Requirement'!$J$13,IF(C145="Mid Season",'2 Crop Water Requirement'!$J$14,IF(C145="Late Season Stage",'2 Crop Water Requirement'!$J$15,"")))) ->  | F145: 0 | P145: 0 | Q145: 0 | R145: 0 | S145: 0 | T145: 0 | U145: 0 | V145: 0 | W145: 0 | X145: 0 | Y145: 0 | Z145: 0 | AA145: 0
B146: 2017-05-20 | C146: =IF(AND(B146>='2 Crop Water Requirement'!$H$12,B146<='2 Crop Water Requirement'!$I$12),"Initial Stage",IF(AND(B146+1>'2 Crop Water Requirement'!$H$13,B146<='2 Crop Water Requirement'!$I$13),"Crop Development Phase",IF(AND(B146+1>'2 Crop Water Requirement'!$H$14,B146<'2 Crop Water Requirement'!$I$14+1),"Mid Season",IF(AND(B146+1>'2 Crop Water Requirement'!$H$15,B146-1<'2 Crop Water Requirement'!$I$15),"Late Season Stage","")))) ->  | D146: =IF(MONTH(B146)=1,'2 Crop Water Requirement'!$E$52,IF(MONTH(B146)=2,'2 Crop Water Requirement'!$F$52,IF(MONTH(B146)=3,'2 Crop Water Requirement'!$G$52,IF(MONTH(B146)=4,'2 Crop Water Requirement'!$H$52,IF(MONTH(B146)=5,'2 Crop Water Requirement'!$I$52,IF(MONTH(B146)=6,'2 Crop Water Requirement'!$J$52,IF(MONTH(B146)=7,'2 Crop Water Requirement'!$K$52,IF(MONTH(B146)=8,'2 Crop Water Requirement'!$L$52,IF(MONTH(B146)=9,'2 Crop Water Requirement'!$M$52,IF(MONTH(B146)=10,'2 Crop Water Requirement'!$N$52,IF(MONTH(B146)=11,'2 Crop Water Requirement'!$O$52,IF(MONTH(B146)=12,'2 Crop Water Requirement'!$P$52,"")))))))))))) -> 6.63 | E146: =IF(C146="Initial Stage",'2 Crop Water Requirement'!$J$12,IF(C146="Crop Development Phase",'2 Crop Water Requirement'!$J$13,IF(C146="Mid Season",'2 Crop Water Requirement'!$J$14,IF(C146="Late Season Stage",'2 Crop Water Requirement'!$J$15,"")))) ->  | F146: 0 | P146: 0 | Q146: 0 | R146: 0 | S146: 0 | T146: 0 | U146: 0 | V146: 0 | W146: 0 | X146: 0 | Y146: 0 | Z146: 0 | AA146: 0
B147: 2017-05-21 | C147: =IF(AND(B147>='2 Crop Water Requirement'!$H$12,B147<='2 Crop Water Requirement'!$I$12),"Initial Stage",IF(AND(B147+1>'2 Crop Water Requirement'!$H$13,B147<='2 Crop Water Requirement'!$I$13),"Crop Development Phase",IF(AND(B147+1>'2 Crop Water Requirement'!$H$14,B147<'2 Crop Water Requirement'!$I$14+1),"Mid Season",IF(AND(B147+1>'2 Crop Water Requirement'!$H$15,B147-1<'2 Crop Water Requirement'!$I$15),"Late Season Stage","")))) ->  | D147: =IF(MONTH(B147)=1,'2 Crop Water Requirement'!$E$52,IF(MONTH(B147)=2,'2 Crop Water Requirement'!$F$52,IF(MONTH(B147)=3,'2 Crop Water Requirement'!$G$52,IF(MONTH(B147)=4,'2 Crop Water Requirement'!$H$52,IF(MONTH(B147)=5,'2 Crop Water Requirement'!$I$52,IF(MONTH(B147)=6,'2 Crop Water Requirement'!$J$52,IF(MONTH(B147)=7,'2 Crop Water Requirement'!$K$52,IF(MONTH(B147)=8,'2 Crop Water Requirement'!$L$52,IF(MONTH(B147)=9,'2 Crop Water Requirement'!$M$52,IF(MONTH(B147)=10,'2 Crop Water Requirement'!$N$52,IF(MONTH(B147)=11,'2 Crop Water Requirement'!$O$52,IF(MONTH(B147)=12,'2 Crop Water Requirement'!$P$52,"")))))))))))) -> 6.63 | E147: =IF(C147="Initial Stage",'2 Crop Water Requirement'!$J$12,IF(C147="Crop Development Phase",'2 Crop Water Requirement'!$J$13,IF(C147="Mid Season",'2 Crop Water Requirement'!$J$14,IF(C147="Late Season Stage",'2 Crop Water Requirement'!$J$15,"")))) ->  | F147: 0 | P147: 0 | Q147: 0 | R147: 0 | S147: 0 | T147: 0 | U147: 0 | V147: 0 | W147: 0 | X147: 0 | Y147: 0 | Z147: 0 | AA147: 0
B148: 2017-05-22 | C148: =IF(AND(B148>='2 Crop Water Requirement'!$H$12,B148<='2 Crop Water Requirement'!$I$12),"Initial Stage",IF(AND(B148+1>'2 Crop Water Requirement'!$H$13,B148<='2 Crop Water Requirement'!$I$13),"Crop Development Phase",IF(AND(B148+1>'2 Crop Water Requirement'!$H$14,B148<'2 Crop Water Requirement'!$I$14+1),"Mid Season",IF(AND(B148+1>'2 Crop Water Requirement'!$H$15,B148-1<'2 Crop Water Requirement'!$I$15),"Late Season Stage","")))) ->  | D148: =IF(MONTH(B148)=1,'2 Crop Water Requirement'!$E$52,IF(MONTH(B148)=2,'2 Crop Water Requirement'!$F$52,IF(MONTH(B148)=3,'2 Crop Water Requirement'!$G$52,IF(MONTH(B148)=4,'2 Crop Water Requirement'!$H$52,IF(MONTH(B148)=5,'2 Crop Water Requirement'!$I$52,IF(MONTH(B148)=6,'2 Crop Water Requirement'!$J$52,IF(MONTH(B148)=7,'2 Crop Water Requirement'!$K$52,IF(MONTH(B148)=8,'2 Crop Water Requirement'!$L$52,IF(MONTH(B148)=9,'2 Crop Water Requirement'!$M$52,IF(MONTH(B148)=10,'2 Crop Water Requirement'!$N$52,IF(MONTH(B148)=11,'2 Crop Water Requirement'!$O$52,IF(MONTH(B148)=12,'2 Crop Water Requirement'!$P$52,"")))))))))))) -> 6.63 | E148: =IF(C148="Initial Stage",'2 Crop Water Requirement'!$J$12,IF(C148="Crop Development Phase",'2 Crop Water Requirement'!$J$13,IF(C148="Mid Season",'2 Crop Water Requirement'!$J$14,IF(C148="Late Season Stage",'2 Crop Water Requirement'!$J$15,"")))) ->  | F148: 0 | P148: 0 | Q148: 0 | R148: 0 | S148: 0 | T148: 0 | U148: 0 | V148: 0 | W148: 0 | X148: 0 | Y148: 0 | Z148: 0 | AA148: 0
B149: 2017-05-23 | C149: =IF(AND(B149>='2 Crop Water Requirement'!$H$12,B149<='2 Crop Water Requirement'!$I$12),"Initial Stage",IF(AND(B149+1>'2 Crop Water Requirement'!$H$13,B149<='2 Crop Water Requirement'!$I$13),"Crop Development Phase",IF(AND(B149+1>'2 Crop Water Requirement'!$H$14,B149<'2 Crop Water Requirement'!$I$14+1),"Mid Season",IF(AND(B149+1>'2 Crop Water Requirement'!$H$15,B149-1<'2 Crop Water Requirement'!$I$15),"Late Season Stage","")))) ->  | D149: =IF(MONTH(B149)=1,'2 Crop Water Requirement'!$E$52,IF(MONTH(B149)=2,'2 Crop Water Requirement'!$F$52,IF(MONTH(B149)=3,'2 Crop Water Requirement'!$G$52,IF(MONTH(B149)=4,'2 Crop Water Requirement'!$H$52,IF(MONTH(B149)=5,'2 Crop Water Requirement'!$I$52,IF(MONTH(B149)=6,'2 Crop Water Requirement'!$J$52,IF(MONTH(B149)=7,'2 Crop Water Requirement'!$K$52,IF(MONTH(B149)=8,'2 Crop Water Requirement'!$L$52,IF(MONTH(B149)=9,'2 Crop Water Requirement'!$M$52,IF(MONTH(B149)=10,'2 Crop Water Requirement'!$N$52,IF(MONTH(B149)=11,'2 Crop Water Requirement'!$O$52,IF(MONTH(B149)=12,'2 Crop Water Requirement'!$P$52,"")))))))))))) -> 6.63 | E149: =IF(C149="Initial Stage",'2 Crop Water Requirement'!$J$12,IF(C149="Crop Development Phase",'2 Crop Water Requirement'!$J$13,IF(C149="Mid Season",'2 Crop Water Requirement'!$J$14,IF(C149="Late Season Stage",'2 Crop Water Requirement'!$J$15,"")))) ->  | F149: 0 | P149: 0 | Q149: 0 | R149: 0 | S149: 0 | T149: 0 | U149: 0 | V149: 0 | W149: 0 | X149: 0 | Y149: 0 | Z149: 0 | AA149: 0
B150: 2017-05-24 | C150: =IF(AND(B150>='2 Crop Water Requirement'!$H$12,B150<='2 Crop Water Requirement'!$I$12),"Initial Stage",IF(AND(B150+1>'2 Crop Water Requirement'!$H$13,B150<='2 Crop Water Requirement'!$I$13),"Crop Development Phase",IF(AND(B150+1>'2 Crop Water Requirement'!$H$14,B150<'2 Crop Water Requirement'!$I$14+1),"Mid Season",IF(AND(B150+1>'2 Crop Water Requirement'!$H$15,B150-1<'2 Crop Water Requirement'!$I$15),"Late Season Stage","")))) ->  | D150: =IF(MONTH(B150)=1,'2 Crop Water Requirement'!$E$52,IF(MONTH(B150)=2,'2 Crop Water Requirement'!$F$52,IF(MONTH(B150)=3,'2 Crop Water Requirement'!$G$52,IF(MONTH(B150)=4,'2 Crop Water Requirement'!$H$52,IF(MONTH(B150)=5,'2 Crop Water Requirement'!$I$52,IF(MONTH(B150)=6,'2 Crop Water Requirement'!$J$52,IF(MONTH(B150)=7,'2 Crop Water Requirement'!$K$52,IF(MONTH(B150)=8,'2 Crop Water Requirement'!$L$52,IF(MONTH(B150)=9,'2 Crop Water Requirement'!$M$52,IF(MONTH(B150)=10,'2 Crop Water Requirement'!$N$52,IF(MONTH(B150)=11,'2 Crop Water Requirement'!$O$52,IF(MONTH(B150)=12,'2 Crop Water Requirement'!$P$52,"")))))))))))) -> 6.63 | E150: =IF(C150="Initial Stage",'2 Crop Water Requirement'!$J$12,IF(C150="Crop Development Phase",'2 Crop Water Requirement'!$J$13,IF(C150="Mid Season",'2 Crop Water Requirement'!$J$14,IF(C150="Late Season Stage",'2 Crop Water Requirement'!$J$15,"")))) ->  | F150: 0 | P150: 0 | Q150: 0 | R150: 0 | S150: 0 | T150: 0 | U150: 0 | V150: 0 | W150: 0 | X150: 0 | Y150: 0 | Z150: 0 | AA150: 0
B151: 2017-05-25 | C151: =IF(AND(B151>='2 Crop Water Requirement'!$H$12,B151<='2 Crop Water Requirement'!$I$12),"Initial Stage",IF(AND(B151+1>'2 Crop Water Requirement'!$H$13,B151<='2 Crop Water Requirement'!$I$13),"Crop Development Phase",IF(AND(B151+1>'2 Crop Water Requirement'!$H$14,B151<'2 Crop Water Requirement'!$I$14+1),"Mid Season",IF(AND(B151+1>'2 Crop Water Requirement'!$H$15,B151-1<'2 Crop Water Requirement'!$I$15),"Late Season Stage","")))) ->  | D151: =IF(MONTH(B151)=1,'2 Crop Water Requirement'!$E$52,IF(MONTH(B151)=2,'2 Crop Water Requirement'!$F$52,IF(MONTH(B151)=3,'2 Crop Water Requirement'!$G$52,IF(MONTH(B151)=4,'2 Crop Water Requirement'!$H$52,IF(MONTH(B151)=5,'2 Crop Water Requirement'!$I$52,IF(MONTH(B151)=6,'2 Crop Water Requirement'!$J$52,IF(MONTH(B151)=7,'2 Crop Water Requirement'!$K$52,IF(MONTH(B151)=8,'2 Crop Water Requirement'!$L$52,IF(MONTH(B151)=9,'2 Crop Water Requirement'!$M$52,IF(MONTH(B151)=10,'2 Crop Water Requirement'!$N$52,IF(MONTH(B151)=11,'2 Crop Water Requirement'!$O$52,IF(MONTH(B151)=12,'2 Crop Water Requirement'!$P$52,"")))))))))))) -> 6.63 | E151: =IF(C151="Initial Stage",'2 Crop Water Requirement'!$J$12,IF(C151="Crop Development Phase",'2 Crop Water Requirement'!$J$13,IF(C151="Mid Season",'2 Crop Water Requirement'!$J$14,IF(C151="Late Season Stage",'2 Crop Water Requirement'!$J$15,"")))) ->  | F151: 0 | P151: 0 | Q151: 0 | R151: 0 | S151: 0 | T151: 0 | U151: 0 | V151: 0 | W151: 0 | X151: 0 | Y151: 0 | Z151: 0 | AA151: 0
B152: 2017-05-26 | C152: =IF(AND(B152>='2 Crop Water Requirement'!$H$12,B152<='2 Crop Water Requirement'!$I$12),"Initial Stage",IF(AND(B152+1>'2 Crop Water Requirement'!$H$13,B152<='2 Crop Water Requirement'!$I$13),"Crop Development Phase",IF(AND(B152+1>'2 Crop Water Requirement'!$H$14,B152<'2 Crop Water Requirement'!$I$14+1),"Mid Season",IF(AND(B152+1>'2 Crop Water Requirement'!$H$15,B152-1<'2 Crop Water Requirement'!$I$15),"Late Season Stage","")))) ->  | D152: =IF(MONTH(B152)=1,'2 Crop Water Requirement'!$E$52,IF(MONTH(B152)=2,'2 Crop Water Requirement'!$F$52,IF(MONTH(B152)=3,'2 Crop Water Requirement'!$G$52,IF(MONTH(B152)=4,'2 Crop Water Requirement'!$H$52,IF(MONTH(B152)=5,'2 Crop Water Requirement'!$I$52,IF(MONTH(B152)=6,'2 Crop Water Requirement'!$J$52,IF(MONTH(B152)=7,'2 Crop Water Requirement'!$K$52,IF(MONTH(B152)=8,'2 Crop Water Requirement'!$L$52,IF(MONTH(B152)=9,'2 Crop Water Requirement'!$M$52,IF(MONTH(B152)=10,'2 Crop Water Requirement'!$N$52,IF(MONTH(B152)=11,'2 Crop Water Requirement'!$O$52,IF(MONTH(B152)=12,'2 Crop Water Requirement'!$P$52,"")))))))))))) -> 6.63 | E152: =IF(C152="Initial Stage",'2 Crop Water Requirement'!$J$12,IF(C152="Crop Development Phase",'2 Crop Water Requirement'!$J$13,IF(C152="Mid Season",'2 Crop Water Requirement'!$J$14,IF(C152="Late Season Stage",'2 Crop Water Requirement'!$J$15,"")))) ->  | F152: 0 | P152: 0 | Q152: 0 | R152: 0 | S152: 0 | T152: 0 | U152: 0 | V152: 0 | W152: 0 | X152: 0 | Y152: 0 | Z152: 0 | AA152: 0
B153: 2017-05-27 | C153: =IF(AND(B153>='2 Crop Water Requirement'!$H$12,B153<='2 Crop Water Requirement'!$I$12),"Initial Stage",IF(AND(B153+1>'2 Crop Water Requirement'!$H$13,B153<='2 Crop Water Requirement'!$I$13),"Crop Development Phase",IF(AND(B153+1>'2 Crop Water Requirement'!$H$14,B153<'2 Crop Water Requirement'!$I$14+1),"Mid Season",IF(AND(B153+1>'2 Crop Water Requirement'!$H$15,B153-1<'2 Crop Water Requirement'!$I$15),"Late Season Stage","")))) ->  | D153: =IF(MONTH(B153)=1,'2 Crop Water Requirement'!$E$52,IF(MONTH(B153)=2,'2 Crop Water Requirement'!$F$52,IF(MONTH(B153)=3,'2 Crop Water Requirement'!$G$52,IF(MONTH(B153)=4,'2 Crop Water Requirement'!$H$52,IF(MONTH(B153)=5,'2 Crop Water Requirement'!$I$52,IF(MONTH(B153)=6,'2 Crop Water Requirement'!$J$52,IF(MONTH(B153)=7,'2 Crop Water Requirement'!$K$52,IF(MONTH(B153)=8,'2 Crop Water Requirement'!$L$52,IF(MONTH(B153)=9,'2 Crop Water Requirement'!$M$52,IF(MONTH(B153)=10,'2 Crop Water Requirement'!$N$52,IF(MONTH(B153)=11,'2 Crop Water Requirement'!$O$52,IF(MONTH(B153)=12,'2 Crop Water Requirement'!$P$52,"")))))))))))) -> 6.63 | E153: =IF(C153="Initial Stage",'2 Crop Water Requirement'!$J$12,IF(C153="Crop Development Phase",'2 Crop Water Requirement'!$J$13,IF(C153="Mid Season",'2 Crop Water Requirement'!$J$14,IF(C153="Late Season Stage",'2 Crop Water Requirement'!$J$15,"")))) ->  | F153: 0 | P153: 0 | Q153: 0 | R153: 0 | S153: 0 | T153: 0 | U153: 0 | V153: 0 | W153: 0 | X153: 0 | Y153: 0 | Z153: 0 | AA153: 0
B154: 2017-05-28 | C154: =IF(AND(B154>='2 Crop Water Requirement'!$H$12,B154<='2 Crop Water Requirement'!$I$12),"Initial Stage",IF(AND(B154+1>'2 Crop Water Requirement'!$H$13,B154<='2 Crop Water Requirement'!$I$13),"Crop Development Phase",IF(AND(B154+1>'2 Crop Water Requirement'!$H$14,B154<'2 Crop Water Requirement'!$I$14+1),"Mid Season",IF(AND(B154+1>'2 Crop Water Requirement'!$H$15,B154-1<'2 Crop Water Requirement'!$I$15),"Late Season Stage","")))) ->  | D154: =IF(MONTH(B154)=1,'2 Crop Water Requirement'!$E$52,IF(MONTH(B154)=2,'2 Crop Water Requirement'!$F$52,IF(MONTH(B154)=3,'2 Crop Water Requirement'!$G$52,IF(MONTH(B154)=4,'2 Crop Water Requirement'!$H$52,IF(MONTH(B154)=5,'2 Crop Water Requirement'!$I$52,IF(MONTH(B154)=6,'2 Crop Water Requirement'!$J$52,IF(MONTH(B154)=7,'2 Crop Water Requirement'!$K$52,IF(MONTH(B154)=8,'2 Crop Water Requirement'!$L$52,IF(MONTH(B154)=9,'2 Crop Water Requirement'!$M$52,IF(MONTH(B154)=10,'2 Crop Water Requirement'!$N$52,IF(MONTH(B154)=11,'2 Crop Water Requirement'!$O$52,IF(MONTH(B154)=12,'2 Crop Water Requirement'!$P$52,"")))))))))))) -> 6.63 | E154: =IF(C154="Initial Stage",'2 Crop Water Requirement'!$J$12,IF(C154="Crop Development Phase",'2 Crop Water Requirement'!$J$13,IF(C154="Mid Season",'2 Crop Water Requirement'!$J$14,IF(C154="Late Season Stage",'2 Crop Water Requirement'!$J$15,"")))) ->  | F154: 0 | P154: 0 | Q154: 0 | R154: 0 | S154: 0 | T154: 0 | U154: 0 | V154: 0 | W154: 0 | X154: 0 | Y154: 0 | Z154: 0 | AA154: 0
B155: 2017-05-29 | C155: =IF(AND(B155>='2 Crop Water Requirement'!$H$12,B155<='2 Crop Water Requirement'!$I$12),"Initial Stage",IF(AND(B155+1>'2 Crop Water Requirement'!$H$13,B155<='2 Crop Water Requirement'!$I$13),"Crop Development Phase",IF(AND(B155+1>'2 Crop Water Requirement'!$H$14,B155<'2 Crop Water Requirement'!$I$14+1),"Mid Season",IF(AND(B155+1>'2 Crop Water Requirement'!$H$15,B155-1<'2 Crop Water Requirement'!$I$15),"Late Season Stage","")))) ->  | D155: =IF(MONTH(B155)=1,'2 Crop Water Requirement'!$E$52,IF(MONTH(B155)=2,'2 Crop Water Requirement'!$F$52,IF(MONTH(B155)=3,'2 Crop Water Requirement'!$G$52,IF(MONTH(B155)=4,'2 Crop Water Requirement'!$H$52,IF(MONTH(B155)=5,'2 Crop Water Requirement'!$I$52,IF(MONTH(B155)=6,'2 Crop Water Requirement'!$J$52,IF(MONTH(B155)=7,'2 Crop Water Requirement'!$K$52,IF(MONTH(B155)=8,'2 Crop Water Requirement'!$L$52,IF(MONTH(B155)=9,'2 Crop Water Requirement'!$M$52,IF(MONTH(B155)=10,'2 Crop Water Requirement'!$N$52,IF(MONTH(B155)=11,'2 Crop Water Requirement'!$O$52,IF(MONTH(B155)=12,'2 Crop Water Requirement'!$P$52,"")))))))))))) -> 6.63 | E155: =IF(C155="Initial Stage",'2 Crop Water Requirement'!$J$12,IF(C155="Crop Development Phase",'2 Crop Water Requirement'!$J$13,IF(C155="Mid Season",'2 Crop Water Requirement'!$J$14,IF(C155="Late Season Stage",'2 Crop Water Requirement'!$J$15,"")))) ->  | F155: 0 | P155: 0 | Q155: 0 | R155: 0 | S155: 0 | T155: 0 | U155: 0 | V155: 0 | W155: 0 | X155: 0 | Y155: 0 | Z155: 0 | AA155: 0
B156: 2017-05-30 | C156: =IF(AND(B156>='2 Crop Water Requirement'!$H$12,B156<='2 Crop Water Requirement'!$I$12),"Initial Stage",IF(AND(B156+1>'2 Crop Water Requirement'!$H$13,B156<='2 Crop Water Requirement'!$I$13),"Crop Development Phase",IF(AND(B156+1>'2 Crop Water Requirement'!$H$14,B156<'2 Crop Water Requirement'!$I$14+1),"Mid Season",IF(AND(B156+1>'2 Crop Water Requirement'!$H$15,B156-1<'2 Crop Water Requirement'!$I$15),"Late Season Stage","")))) ->  | D156: =IF(MONTH(B156)=1,'2 Crop Water Requirement'!$E$52,IF(MONTH(B156)=2,'2 Crop Water Requirement'!$F$52,IF(MONTH(B156)=3,'2 Crop Water Requirement'!$G$52,IF(MONTH(B156)=4,'2 Crop Water Requirement'!$H$52,IF(MONTH(B156)=5,'2 Crop Water Requirement'!$I$52,IF(MONTH(B156)=6,'2 Crop Water Requirement'!$J$52,IF(MONTH(B156)=7,'2 Crop Water Requirement'!$K$52,IF(MONTH(B156)=8,'2 Crop Water Requirement'!$L$52,IF(MONTH(B156)=9,'2 Crop Water Requirement'!$M$52,IF(MONTH(B156)=10,'2 Crop Water Requirement'!$N$52,IF(MONTH(B156)=11,'2 Crop Water Requirement'!$O$52,IF(MONTH(B156)=12,'2 Crop Water Requirement'!$P$52,"")))))))))))) -> 6.63 | E156: =IF(C156="Initial Stage",'2 Crop Water Requirement'!$J$12,IF(C156="Crop Development Phase",'2 Crop Water Requirement'!$J$13,IF(C156="Mid Season",'2 Crop Water Requirement'!$J$14,IF(C156="Late Season Stage",'2 Crop Water Requirement'!$J$15,"")))) ->  | F156: 0 | P156: 0 | Q156: 0 | R156: 0 | S156: 0 | T156: 0 | U156: 0 | V156: 0 | W156: 0 | X156: 0 | Y156: 0 | Z156: 0 | AA156: 0
B157: 2017-05-31 | C157: =IF(AND(B157>='2 Crop Water Requirement'!$H$12,B157<='2 Crop Water Requirement'!$I$12),"Initial Stage",IF(AND(B157+1>'2 Crop Water Requirement'!$H$13,B157<='2 Crop Water Requirement'!$I$13),"Crop Development Phase",IF(AND(B157+1>'2 Crop Water Requirement'!$H$14,B157<'2 Crop Water Requirement'!$I$14+1),"Mid Season",IF(AND(B157+1>'2 Crop Water Requirement'!$H$15,B157-1<'2 Crop Water Requirement'!$I$15),"Late Season Stage","")))) ->  | D157: =IF(MONTH(B157)=1,'2 Crop Water Requirement'!$E$52,IF(MONTH(B157)=2,'2 Crop Water Requirement'!$F$52,IF(MONTH(B157)=3,'2 Crop Water Requirement'!$G$52,IF(MONTH(B157)=4,'2 Crop Water Requirement'!$H$52,IF(MONTH(B157)=5,'2 Crop Water Requirement'!$I$52,IF(MONTH(B157)=6,'2 Crop Water Requirement'!$J$52,IF(MONTH(B157)=7,'2 Crop Water Requirement'!$K$52,IF(MONTH(B157)=8,'2 Crop Water Requirement'!$L$52,IF(MONTH(B157)=9,'2 Crop Water Requirement'!$M$52,IF(MONTH(B157)=10,'2 Crop Water Requirement'!$N$52,IF(MONTH(B157)=11,'2 Crop Water Requirement'!$O$52,IF(MONTH(B157)=12,'2 Crop Water Requirement'!$P$52,"")))))))))))) -> 6.63 | E157: =IF(C157="Initial Stage",'2 Crop Water Requirement'!$J$12,IF(C157="Crop Development Phase",'2 Crop Water Requirement'!$J$13,IF(C157="Mid Season",'2 Crop Water Requirement'!$J$14,IF(C157="Late Season Stage",'2 Crop Water Requirement'!$J$15,"")))) ->  | F157: 0 | P157: 0 | Q157: 0 | R157: 0 | S157: 0 | T157: 0 | U157: 0 | V157: 0 | W157: 0 | X157: 0 | Y157: 0 | Z157: 0 | AA157: 0
B158: 2017-06-01 | C158: =IF(AND(B158>='2 Crop Water Requirement'!$H$12,B158<='2 Crop Water Requirement'!$I$12),"Initial Stage",IF(AND(B158+1>'2 Crop Water Requirement'!$H$13,B158<='2 Crop Water Requirement'!$I$13),"Crop Development Phase",IF(AND(B158+1>'2 Crop Water Requirement'!$H$14,B158<'2 Crop Water Requirement'!$I$14+1),"Mid Season",IF(AND(B158+1>'2 Crop Water Requirement'!$H$15,B158-1<'2 Crop Water Requirement'!$I$15),"Late Season Stage","")))) ->  | D158: =IF(MONTH(B158)=1,'2 Crop Water Requirement'!$E$52,IF(MONTH(B158)=2,'2 Crop Water Requirement'!$F$52,IF(MONTH(B158)=3,'2 Crop Water Requirement'!$G$52,IF(MONTH(B158)=4,'2 Crop Water Requirement'!$H$52,IF(MONTH(B158)=5,'2 Crop Water Requirement'!$I$52,IF(MONTH(B158)=6,'2 Crop Water Requirement'!$J$52,IF(MONTH(B158)=7,'2 Crop Water Requirement'!$K$52,IF(MONTH(B158)=8,'2 Crop Water Requirement'!$L$52,IF(MONTH(B158)=9,'2 Crop Water Requirement'!$M$52,IF(MONTH(B158)=10,'2 Crop Water Requirement'!$N$52,IF(MONTH(B158)=11,'2 Crop Water Requirement'!$O$52,IF(MONTH(B158)=12,'2 Crop Water Requirement'!$P$52,"")))))))))))) -> 7.02 | E158: =IF(C158="Initial Stage",'2 Crop Water Requirement'!$J$12,IF(C158="Crop Development Phase",'2 Crop Water Requirement'!$J$13,IF(C158="Mid Season",'2 Crop Water Requirement'!$J$14,IF(C158="Late Season Stage",'2 Crop Water Requirement'!$J$15,"")))) ->  | F158: 0 | P158: 0 | Q158: 0 | R158: 0 | S158: 0 | T158: 0 | U158: 0 | V158: 0 | W158: 0 | X158: 0 | Y158: 0 | Z158: 0 | AA158: 0
B159: 2017-06-02 | C159: =IF(AND(B159>='2 Crop Water Requirement'!$H$12,B159<='2 Crop Water Requirement'!$I$12),"Initial Stage",IF(AND(B159+1>'2 Crop Water Requirement'!$H$13,B159<='2 Crop Water Requirement'!$I$13),"Crop Development Phase",IF(AND(B159+1>'2 Crop Water Requirement'!$H$14,B159<'2 Crop Water Requirement'!$I$14+1),"Mid Season",IF(AND(B159+1>'2 Crop Water Requirement'!$H$15,B159-1<'2 Crop Water Requirement'!$I$15),"Late Season Stage","")))) ->  | D159: =IF(MONTH(B159)=1,'2 Crop Water Requirement'!$E$52,IF(MONTH(B159)=2,'2 Crop Water Requirement'!$F$52,IF(MONTH(B159)=3,'2 Crop Water Requirement'!$G$52,IF(MONTH(B159)=4,'2 Crop Water Requirement'!$H$52,IF(MONTH(B159)=5,'2 Crop Water Requirement'!$I$52,IF(MONTH(B159)=6,'2 Crop Water Requirement'!$J$52,IF(MONTH(B159)=7,'2 Crop Water Requirement'!$K$52,IF(MONTH(B159)=8,'2 Crop Water Requirement'!$L$52,IF(MONTH(B159)=9,'2 Crop Water Requirement'!$M$52,IF(MONTH(B159)=10,'2 Crop Water Requirement'!$N$52,IF(MONTH(B159)=11,'2 Crop Water Requirement'!$O$52,IF(MONTH(B159)=12,'2 Crop Water Requirement'!$P$52,"")))))))))))) -> 7.02 | E159: =IF(C159="Initial Stage",'2 Crop Water Requirement'!$J$12,IF(C159="Crop Development Phase",'2 Crop Water Requirement'!$J$13,IF(C159="Mid Season",'2 Crop Water Requirement'!$J$14,IF(C159="Late Season Stage",'2 Crop Water Requirement'!$J$15,"")))) ->  | F159: 0 | P159: 0 | Q159: 0 | R159: 0 | S159: 0 | T159: 0 | U159: 0 | V159: 0 | W159: 0 | X159: 0 | Y159: 0 | Z159: 0 | AA159: 0
B160: 2017-06-03 | C160: =IF(AND(B160>='2 Crop Water Requirement'!$H$12,B160<='2 Crop Water Requirement'!$I$12),"Initial Stage",IF(AND(B160+1>'2 Crop Water Requirement'!$H$13,B160<='2 Crop Water Requirement'!$I$13),"Crop Development Phase",IF(AND(B160+1>'2 Crop Water Requirement'!$H$14,B160<'2 Crop Water Requirement'!$I$14+1),"Mid Season",IF(AND(B160+1>'2 Crop Water Requirement'!$H$15,B160-1<'2 Crop Water Requirement'!$I$15),"Late Season Stage","")))) ->  | D160: =IF(MONTH(B160)=1,'2 Crop Water Requirement'!$E$52,IF(MONTH(B160)=2,'2 Crop Water Requirement'!$F$52,IF(MONTH(B160)=3,'2 Crop Water Requirement'!$G$52,IF(MONTH(B160)=4,'2 Crop Water Requirement'!$H$52,IF(MONTH(B160)=5,'2 Crop Water Requirement'!$I$52,IF(MONTH(B160)=6,'2 Crop Water Requirement'!$J$52,IF(MONTH(B160)=7,'2 Crop Water Requirement'!$K$52,IF(MONTH(B160)=8,'2 Crop Water Requirement'!$L$52,IF(MONTH(B160)=9,'2 Crop Water Requirement'!$M$52,IF(MONTH(B160)=10,'2 Crop Water Requirement'!$N$52,IF(MONTH(B160)=11,'2 Crop Water Requirement'!$O$52,IF(MONTH(B160)=12,'2 Crop Water Requirement'!$P$52,"")))))))))))) -> 7.02 | E160: =IF(C160="Initial Stage",'2 Crop Water Requirement'!$J$12,IF(C160="Crop Development Phase",'2 Crop Water Requirement'!$J$13,IF(C160="Mid Season",'2 Crop Water Requirement'!$J$14,IF(C160="Late Season Stage",'2 Crop Water Requirement'!$J$15,"")))) ->  | F160: 0 | P160: 0 | Q160: 0 | R160: 0 | S160: 0 | T160: 0 | U160: 0 | V160: 0 | W160: 0 | X160: 0 | Y160: 0 | Z160: 0 | AA160: 0
B161: 2017-06-04 | C161: =IF(AND(B161>='2 Crop Water Requirement'!$H$12,B161<='2 Crop Water Requirement'!$I$12),"Initial Stage",IF(AND(B161+1>'2 Crop Water Requirement'!$H$13,B161<='2 Crop Water Requirement'!$I$13),"Crop Development Phase",IF(AND(B161+1>'2 Crop Water Requirement'!$H$14,B161<'2 Crop Water Requirement'!$I$14+1),"Mid Season",IF(AND(B161+1>'2 Crop Water Requirement'!$H$15,B161-1<'2 Crop Water Requirement'!$I$15),"Late Season Stage","")))) ->  | D161: =IF(MONTH(B161)=1,'2 Crop Water Requirement'!$E$52,IF(MONTH(B161)=2,'2 Crop Water Requirement'!$F$52,IF(MONTH(B161)=3,'2 Crop Water Requirement'!$G$52,IF(MONTH(B161)=4,'2 Crop Water Requirement'!$H$52,IF(MONTH(B161)=5,'2 Crop Water Requirement'!$I$52,IF(MONTH(B161)=6,'2 Crop Water Requirement'!$J$52,IF(MONTH(B161)=7,'2 Crop Water Requirement'!$K$52,IF(MONTH(B161)=8,'2 Crop Water Requirement'!$L$52,IF(MONTH(B161)=9,'2 Crop Water Requirement'!$M$52,IF(MONTH(B161)=10,'2 Crop Water Requirement'!$N$52,IF(MONTH(B161)=11,'2 Crop Water Requirement'!$O$52,IF(MONTH(B161)=12,'2 Crop Water Requirement'!$P$52,"")))))))))))) -> 7.02 | E161: =IF(C161="Initial Stage",'2 Crop Water Requirement'!$J$12,IF(C161="Crop Development Phase",'2 Crop Water Requirement'!$J$13,IF(C161="Mid Season",'2 Crop Water Requirement'!$J$14,IF(C161="Late Season Stage",'2 Crop Water Requirement'!$J$15,"")))) ->  | F161: 0 | P161: 0 | Q161: 0 | R161: 0 | S161: 0 | T161: 0 | U161: 0 | V161: 0 | W161: 0 | X161: 0 | Y161: 0 | Z161: 0 | AA161: 0
B162: 2017-06-05 | C162: =IF(AND(B162>='2 Crop Water Requirement'!$H$12,B162<='2 Crop Water Requirement'!$I$12),"Initial Stage",IF(AND(B162+1>'2 Crop Water Requirement'!$H$13,B162<='2 Crop Water Requirement'!$I$13),"Crop Development Phase",IF(AND(B162+1>'2 Crop Water Requirement'!$H$14,B162<'2 Crop Water Requirement'!$I$14+1),"Mid Season",IF(AND(B162+1>'2 Crop Water Requirement'!$H$15,B162-1<'2 Crop Water Requirement'!$I$15),"Late Season Stage","")))) ->  | D162: =IF(MONTH(B162)=1,'2 Crop Water Requirement'!$E$52,IF(MONTH(B162)=2,'2 Crop Water Requirement'!$F$52,IF(MONTH(B162)=3,'2 Crop Water Requirement'!$G$52,IF(MONTH(B162)=4,'2 Crop Water Requirement'!$H$52,IF(MONTH(B162)=5,'2 Crop Water Requirement'!$I$52,IF(MONTH(B162)=6,'2 Crop Water Requirement'!$J$52,IF(MONTH(B162)=7,'2 Crop Water Requirement'!$K$52,IF(MONTH(B162)=8,'2 Crop Water Requirement'!$L$52,IF(MONTH(B162)=9,'2 Crop Water Requirement'!$M$52,IF(MONTH(B162)=10,'2 Crop Water Requirement'!$N$52,IF(MONTH(B162)=11,'2 Crop Water Requirement'!$O$52,IF(MONTH(B162)=12,'2 Crop Water Requirement'!$P$52,"")))))))))))) -> 7.02 | E162: =IF(C162="Initial Stage",'2 Crop Water Requirement'!$J$12,IF(C162="Crop Development Phase",'2 Crop Water Requirement'!$J$13,IF(C162="Mid Season",'2 Crop Water Requirement'!$J$14,IF(C162="Late Season Stage",'2 Crop Water Requirement'!$J$15,"")))) ->  | F162: 0 | P162: 0 | Q162: 0 | R162: 0 | S162: 0 | T162: 0 | U162: 0 | V162: 0 | W162: 0 | X162: 0 | Y162: 0 | Z162: 0 | AA162: 0
B163: 2017-06-06 | C163: =IF(AND(B163>='2 Crop Water Requirement'!$H$12,B163<='2 Crop Water Requirement'!$I$12),"Initial Stage",IF(AND(B163+1>'2 Crop Water Requirement'!$H$13,B163<='2 Crop Water Requirement'!$I$13),"Crop Development Phase",IF(AND(B163+1>'2 Crop Water Requirement'!$H$14,B163<'2 Crop Water Requirement'!$I$14+1),"Mid Season",IF(AND(B163+1>'2 Crop Water Requirement'!$H$15,B163-1<'2 Crop Water Requirement'!$I$15),"Late Season Stage","")))) ->  | D163: =IF(MONTH(B163)=1,'2 Crop Water Requirement'!$E$52,IF(MONTH(B163)=2,'2 Crop Water Requirement'!$F$52,IF(MONTH(B163)=3,'2 Crop Water Requirement'!$G$52,IF(MONTH(B163)=4,'2 Crop Water Requirement'!$H$52,IF(MONTH(B163)=5,'2 Crop Water Requirement'!$I$52,IF(MONTH(B163)=6,'2 Crop Water Requirement'!$J$52,IF(MONTH(B163)=7,'2 Crop Water Requirement'!$K$52,IF(MONTH(B163)=8,'2 Crop Water Requirement'!$L$52,IF(MONTH(B163)=9,'2 Crop Water Requirement'!$M$52,IF(MONTH(B163)=10,'2 Crop Water Requirement'!$N$52,IF(MONTH(B163)=11,'2 Crop Water Requirement'!$O$52,IF(MONTH(B163)=12,'2 Crop Water Requirement'!$P$52,"")))))))))))) -> 7.02 | E163: =IF(C163="Initial Stage",'2 Crop Water Requirement'!$J$12,IF(C163="Crop Development Phase",'2 Crop Water Requirement'!$J$13,IF(C163="Mid Season",'2 Crop Water Requirement'!$J$14,IF(C163="Late Season Stage",'2 Crop Water Requirement'!$J$15,"")))) ->  | F163: 0 | P163: 0 | Q163: 0 | R163: 0 | S163: 0 | T163: 0 | U163: 0 | V163: 0 | W163: 0 | X163: 0 | Y163: 0 | Z163: 0 | AA163: 0
B164: 2017-06-07 | C164: =IF(AND(B164>='2 Crop Water Requirement'!$H$12,B164<='2 Crop Water Requirement'!$I$12),"Initial Stage",IF(AND(B164+1>'2 Crop Water Requirement'!$H$13,B164<='2 Crop Water Requirement'!$I$13),"Crop Development Phase",IF(AND(B164+1>'2 Crop Water Requirement'!$H$14,B164<'2 Crop Water Requirement'!$I$14+1),"Mid Season",IF(AND(B164+1>'2 Crop Water Requirement'!$H$15,B164-1<'2 Crop Water Requirement'!$I$15),"Late Season Stage","")))) ->  | D164: =IF(MONTH(B164)=1,'2 Crop Water Requirement'!$E$52,IF(MONTH(B164)=2,'2 Crop Water Requirement'!$F$52,IF(MONTH(B164)=3,'2 Crop Water Requirement'!$G$52,IF(MONTH(B164)=4,'2 Crop Water Requirement'!$H$52,IF(MONTH(B164)=5,'2 Crop Water Requirement'!$I$52,IF(MONTH(B164)=6,'2 Crop Water Requirement'!$J$52,IF(MONTH(B164)=7,'2 Crop Water Requirement'!$K$52,IF(MONTH(B164)=8,'2 Crop Water Requirement'!$L$52,IF(MONTH(B164)=9,'2 Crop Water Requirement'!$M$52,IF(MONTH(B164)=10,'2 Crop Water Requirement'!$N$52,IF(MONTH(B164)=11,'2 Crop Water Requirement'!$O$52,IF(MONTH(B164)=12,'2 Crop Water Requirement'!$P$52,"")))))))))))) -> 7.02 | E164: =IF(C164="Initial Stage",'2 Crop Water Requirement'!$J$12,IF(C164="Crop Development Phase",'2 Crop Water Requirement'!$J$13,IF(C164="Mid Season",'2 Crop Water Requirement'!$J$14,IF(C164="Late Season Stage",'2 Crop Water Requirement'!$J$15,"")))) ->  | F164: 0 | P164: 0 | Q164: 0 | R164: 0 | S164: 0 | T164: 0 | U164: 0 | V164: 0 | W164: 0 | X164: 0 | Y164: 0 | Z164: 0 | AA164: 0
B165: 2017-06-08 | C165: =IF(AND(B165>='2 Crop Water Requirement'!$H$12,B165<='2 Crop Water Requirement'!$I$12),"Initial Stage",IF(AND(B165+1>'2 Crop Water Requirement'!$H$13,B165<='2 Crop Water Requirement'!$I$13),"Crop Development Phase",IF(AND(B165+1>'2 Crop Water Requirement'!$H$14,B165<'2 Crop Water Requirement'!$I$14+1),"Mid Season",IF(AND(B165+1>'2 Crop Water Requirement'!$H$15,B165-1<'2 Crop Water Requirement'!$I$15),"Late Season Stage","")))) ->  | D165: =IF(MONTH(B165)=1,'2 Crop Water Requirement'!$E$52,IF(MONTH(B165)=2,'2 Crop Water Requirement'!$F$52,IF(MONTH(B165)=3,'2 Crop Water Requirement'!$G$52,IF(MONTH(B165)=4,'2 Crop Water Requirement'!$H$52,IF(MONTH(B165)=5,'2 Crop Water Requirement'!$I$52,IF(MONTH(B165)=6,'2 Crop Water Requirement'!$J$52,IF(MONTH(B165)=7,'2 Crop Water Requirement'!$K$52,IF(MONTH(B165)=8,'2 Crop Water Requirement'!$L$52,IF(MONTH(B165)=9,'2 Crop Water Requirement'!$M$52,IF(MONTH(B165)=10,'2 Crop Water Requirement'!$N$52,IF(MONTH(B165)=11,'2 Crop Water Requirement'!$O$52,IF(MONTH(B165)=12,'2 Crop Water Requirement'!$P$52,"")))))))))))) -> 7.02 | E165: =IF(C165="Initial Stage",'2 Crop Water Requirement'!$J$12,IF(C165="Crop Development Phase",'2 Crop Water Requirement'!$J$13,IF(C165="Mid Season",'2 Crop Water Requirement'!$J$14,IF(C165="Late Season Stage",'2 Crop Water Requirement'!$J$15,"")))) ->  | F165: 0 | P165: 0 | Q165: 0 | R165: 0 | S165: 0 | T165: 0 | U165: 0 | V165: 0 | W165: 0 | X165: 0 | Y165: 0 | Z165: 0 | AA165: 0
B166: 2017-06-09 | C166: =IF(AND(B166>='2 Crop Water Requirement'!$H$12,B166<='2 Crop Water Requirement'!$I$12),"Initial Stage",IF(AND(B166+1>'2 Crop Water Requirement'!$H$13,B166<='2 Crop Water Requirement'!$I$13),"Crop Development Phase",IF(AND(B166+1>'2 Crop Water Requirement'!$H$14,B166<'2 Crop Water Requirement'!$I$14+1),"Mid Season",IF(AND(B166+1>'2 Crop Water Requirement'!$H$15,B166-1<'2 Crop Water Requirement'!$I$15),"Late Season Stage","")))) ->  | D166: =IF(MONTH(B166)=1,'2 Crop Water Requirement'!$E$52,IF(MONTH(B166)=2,'2 Crop Water Requirement'!$F$52,IF(MONTH(B166)=3,'2 Crop Water Requirement'!$G$52,IF(MONTH(B166)=4,'2 Crop Water Requirement'!$H$52,IF(MONTH(B166)=5,'2 Crop Water Requirement'!$I$52,IF(MONTH(B166)=6,'2 Crop Water Requirement'!$J$52,IF(MONTH(B166)=7,'2 Crop Water Requirement'!$K$52,IF(MONTH(B166)=8,'2 Crop Water Requirement'!$L$52,IF(MONTH(B166)=9,'2 Crop Water Requirement'!$M$52,IF(MONTH(B166)=10,'2 Crop Water Requirement'!$N$52,IF(MONTH(B166)=11,'2 Crop Water Requirement'!$O$52,IF(MONTH(B166)=12,'2 Crop Water Requirement'!$P$52,"")))))))))))) -> 7.02 | E166: =IF(C166="Initial Stage",'2 Crop Water Requirement'!$J$12,IF(C166="Crop Development Phase",'2 Crop Water Requirement'!$J$13,IF(C166="Mid Season",'2 Crop Water Requirement'!$J$14,IF(C166="Late Season Stage",'2 Crop Water Requirement'!$J$15,"")))) ->  | F166: 0 | P166: 0 | Q166: 0 | R166: 0 | S166: 0 | T166: 0 | U166: 0 | V166: 0 | W166: 0 | X166: 0 | Y166: 0 | Z166: 0 | AA166: 0
B167: 2017-06-10 | C167: =IF(AND(B167>='2 Crop Water Requirement'!$H$12,B167<='2 Crop Water Requirement'!$I$12),"Initial Stage",IF(AND(B167+1>'2 Crop Water Requirement'!$H$13,B167<='2 Crop Water Requirement'!$I$13),"Crop Development Phase",IF(AND(B167+1>'2 Crop Water Requirement'!$H$14,B167<'2 Crop Water Requirement'!$I$14+1),"Mid Season",IF(AND(B167+1>'2 Crop Water Requirement'!$H$15,B167-1<'2 Crop Water Requirement'!$I$15),"Late Season Stage","")))) ->  | D167: =IF(MONTH(B167)=1,'2 Crop Water Requirement'!$E$52,IF(MONTH(B167)=2,'2 Crop Water Requirement'!$F$52,IF(MONTH(B167)=3,'2 Crop Water Requirement'!$G$52,IF(MONTH(B167)=4,'2 Crop Water Requirement'!$H$52,IF(MONTH(B167)=5,'2 Crop Water Requirement'!$I$52,IF(MONTH(B167)=6,'2 Crop Water Requirement'!$J$52,IF(MONTH(B167)=7,'2 Crop Water Requirement'!$K$52,IF(MONTH(B167)=8,'2 Crop Water Requirement'!$L$52,IF(MONTH(B167)=9,'2 Crop Water Requirement'!$M$52,IF(MONTH(B167)=10,'2 Crop Water Requirement'!$N$52,IF(MONTH(B167)=11,'2 Crop Water Requirement'!$O$52,IF(MONTH(B167)=12,'2 Crop Water Requirement'!$P$52,"")))))))))))) -> 7.02 | E167: =IF(C167="Initial Stage",'2 Crop Water Requirement'!$J$12,IF(C167="Crop Development Phase",'2 Crop Water Requirement'!$J$13,IF(C167="Mid Season",'2 Crop Water Requirement'!$J$14,IF(C167="Late Season Stage",'2 Crop Water Requirement'!$J$15,"")))) ->  | F167: 0 | P167: 0 | Q167: 0 | R167: 0 | S167: 0 | T167: 0 | U167: 0 | V167: 0 | W167: 0 | X167: 0 | Y167: 0 | Z167: 0 | AA167: 0
B168: 2017-06-11 | C168: =IF(AND(B168>='2 Crop Water Requirement'!$H$12,B168<='2 Crop Water Requirement'!$I$12),"Initial Stage",IF(AND(B168+1>'2 Crop Water Requirement'!$H$13,B168<='2 Crop Water Requirement'!$I$13),"Crop Development Phase",IF(AND(B168+1>'2 Crop Water Requirement'!$H$14,B168<'2 Crop Water Requirement'!$I$14+1),"Mid Season",IF(AND(B168+1>'2 Crop Water Requirement'!$H$15,B168-1<'2 Crop Water Requirement'!$I$15),"Late Season Stage","")))) ->  | D168: =IF(MONTH(B168)=1,'2 Crop Water Requirement'!$E$52,IF(MONTH(B168)=2,'2 Crop Water Requirement'!$F$52,IF(MONTH(B168)=3,'2 Crop Water Requirement'!$G$52,IF(MONTH(B168)=4,'2 Crop Water Requirement'!$H$52,IF(MONTH(B168)=5,'2 Crop Water Requirement'!$I$52,IF(MONTH(B168)=6,'2 Crop Water Requirement'!$J$52,IF(MONTH(B168)=7,'2 Crop Water Requirement'!$K$52,IF(MONTH(B168)=8,'2 Crop Water Requirement'!$L$52,IF(MONTH(B168)=9,'2 Crop Water Requirement'!$M$52,IF(MONTH(B168)=10,'2 Crop Water Requirement'!$N$52,IF(MONTH(B168)=11,'2 Crop Water Requirement'!$O$52,IF(MONTH(B168)=12,'2 Crop Water Requirement'!$P$52,"")))))))))))) -> 7.02 | E168: =IF(C168="Initial Stage",'2 Crop Water Requirement'!$J$12,IF(C168="Crop Development Phase",'2 Crop Water Requirement'!$J$13,IF(C168="Mid Season",'2 Crop Water Requirement'!$J$14,IF(C168="Late Season Stage",'2 Crop Water Requirement'!$J$15,"")))) ->  | F168: 0 | P168: 0 | Q168: 0 | R168: 0 | S168: 0 | T168: 0 | U168: 0 | V168: 0 | W168: 0 | X168: 0 | Y168: 0 | Z168: 0 | AA168: 0
B169: 2017-06-12 | C169: =IF(AND(B169>='2 Crop Water Requirement'!$H$12,B169<='2 Crop Water Requirement'!$I$12),"Initial Stage",IF(AND(B169+1>'2 Crop Water Requirement'!$H$13,B169<='2 Crop Water Requirement'!$I$13),"Crop Development Phase",IF(AND(B169+1>'2 Crop Water Requirement'!$H$14,B169<'2 Crop Water Requirement'!$I$14+1),"Mid Season",IF(AND(B169+1>'2 Crop Water Requirement'!$H$15,B169-1<'2 Crop Water Requirement'!$I$15),"Late Season Stage","")))) ->  | D169: =IF(MONTH(B169)=1,'2 Crop Water Requirement'!$E$52,IF(MONTH(B169)=2,'2 Crop Water Requirement'!$F$52,IF(MONTH(B169)=3,'2 Crop Water Requirement'!$G$52,IF(MONTH(B169)=4,'2 Crop Water Requirement'!$H$52,IF(MONTH(B169)=5,'2 Crop Water Requirement'!$I$52,IF(MONTH(B169)=6,'2 Crop Water Requirement'!$J$52,IF(MONTH(B169)=7,'2 Crop Water Requirement'!$K$52,IF(MONTH(B169)=8,'2 Crop Water Requirement'!$L$52,IF(MONTH(B169)=9,'2 Crop Water Requirement'!$M$52,IF(MONTH(B169)=10,'2 Crop Water Requirement'!$N$52,IF(MONTH(B169)=11,'2 Crop Water Requirement'!$O$52,IF(MONTH(B169)=12,'2 Crop Water Requirement'!$P$52,"")))))))))))) -> 7.02 | E169: =IF(C169="Initial Stage",'2 Crop Water Requirement'!$J$12,IF(C169="Crop Development Phase",'2 Crop Water Requirement'!$J$13,IF(C169="Mid Season",'2 Crop Water Requirement'!$J$14,IF(C169="Late Season Stage",'2 Crop Water Requirement'!$J$15,"")))) ->  | F169: 0 | P169: 0 | Q169: 0 | R169: 0 | S169: 0 | T169: 0 | U169: 0 | V169: 0 | W169: 0 | X169: 0 | Y169: 0 | Z169: 0 | AA169: 0
